Workbook

Sheet Januar (hidden)
A1: Løn | B1: =PROPER(TEXT(A4,"dd mmmm åååå")) & PROPER(TEXT(N1," - dd mmmm åååå")) -> 01 Januar 2019 - 31 Januar 2019 | I1: Uge : | J1: =IF(A4="","",TRUNC((A4-WEEKDAY(A4,2)-DATE(YEAR(A4+4-WEEKDAY(A4,2)),1,-10))/7)) -> 1 | K1: - | M1: =IF(A25="","",TRUNC((A25-WEEKDAY(A25,2)-DATE(YEAR(A25+4-WEEKDAY(A25,2)),1,-10))/7)) -> 4 | N1: =EOMONTH(A4,0) -> 2019-01-31 | P1: 1 | V1: Time beregning: | AG1: 06:00:00 | AH1: 18:00:00 | AI1: 03:00:00
A2: Lønart | V2: Betalt pause ved vagt over 5 timer | Z2: 00:25:00 | AA2: minutter | AB2: 00:00:00 | AC2: 06:00:00 | AD2: 17:00:00 | AE2: 14:00:00
A3: Dato | B3: Dag | D3: Start | E3: Slut | F3: Pause | G3: Arb. Tid | H3: Overtid 1-3 time | I3: Overtid 4 - time | J3: Forskudt tid alle dage 18-23 | L3: Natarbejde 23-06 | N3: Lørdag tillæg 14 - 24 | O3: Søndag tillæg 00 - 24 | P3: Optjent afspadsering | Q3: Afholdt afspadsering | R3: Syge Timer | S3: norm
A4: =DATE([1]T.!$B$1,$P$1,1) -> 2019-01-01 | B4: =PROPER(TEXT(A4,"ddd")) -> Ti | C4: =HelligdagsNavn(A4,0,0) -> Nytårsdag | D4: 07:00:00 | E4: 16:00:00 | F4: 00:30:00 | G4: =IF(D4="","",(E4-D4)+(D4>E4)-F4) -> 0.3541666667 | H4: =IF(G4="",0,IF(WEEKDAY(A4,2)=7,0,IF(G4>S4,MIN(G4-S4,$AI$1),0))) -> 01:00:00 | I4: =IF(G4="","",IF(G4>S4+H4,G4-(S4+H4),"")) ->  | J4: =ColTime([1]T.!$J$3,[1]T.!$L$3,D4,E4) -> 00:00:00 | L4: =ColTime(TIME([1]T.!$J$4,0,0),TIME([1]T.!$L$4,0,0),D4,E4) -> 00:00:00 | N4: =IF(WEEKDAY(A4,2)=6,ColTime(TIME(14,0,0),TIME(24,0,0),D4,E4),"") ->  | O4: =IF(OR(C4<>"",WEEKDAY(A4,2)=7),ColTime(TIME(0,0,0),TIME(24,0,0),D4,E4),"") -> 09:00:00 | P4: =IFERROR(H4+I4,"") ->  | S4: =CHOOSE(WEEKDAY(A4,2),[1]norm!C$1,[1]norm!C$2,[1]norm!C$3,[1]norm!C$4,[1]norm!C$5,[1]norm!C$6,[1]norm!C$7) -> 07:30:00 | V4: =IF(D4="","",HOUR(D4)) -> 7 | W4: =IF(D4="","",MINUTE(D4)) -> 0 | X4: =IF(D4="","",TIME(HOUR(D4),MINUTE(D4),0)) -> 07:00:00 | Y4: =IF(E4="","",HOUR(E4)) -> 16 | Z4: =IF(E4="","",MINUTE(E4)) -> 0 | AA4: 02:00:00 | AB4: 09:30:00 | AC4: 11:30:00 | AG4: =MIN(G4-S4,3) -> 0.04166666667
A5: =A4+1 -> 2019-01-02 | B5: =PROPER(TEXT(A5,"ddd")) -> On | C5: =HelligdagsNavn(A5,0,0) ->  | D5: 13:45:00 | E5: 21:30:00 | F5: 00:30:00 | G5: =IF(D5="","",(E5-D5)+(D5>E5)-F5) -> 0.3020833333 | H5: =IF(G5="",0,IF(WEEKDAY(A5,2)=7,0,IF(G5>S5,MIN(G5-S5,$AI$1),0))) -> 00:00:00 | I5: =IF(G5="","",IF(G5>S5+H5,G5-(S5+H5),"")) ->  | J5: =ColTime([1]T.!$J$3,[1]T.!$L$3,D5,E5) -> 03:30:00 | L5: =ColTime(TIME([1]T.!$J$4,0,0),TIME([1]T.!$L$4,0,0),D5,E5) -> 00:00:00 | P5: =IFERROR(H5+I5,"") ->  | S5: =CHOOSE(WEEKDAY(A5,2),[1]norm!C$1,[1]norm!C$2,[1]norm!C$3,[1]norm!C$4,[1]norm!C$5,[1]norm!C$6,[1]norm!C$7) -> 07:30:00 | V5: 13 | W5: 45 | X5: 13:45:00 | Y5: 21 | Z5: 30 | AA5: =IF(E5="","",TIME(HOUR(E5),MINUTE(E5),0)) -> 21:30:00 | AH5: Der taste kun i de Gule celler
A6: =A5+1 -> 2019-01-03 | B6: =PROPER(TEXT(A6,"ddd")) -> To | D6: 22:00:00 | E6: 05:45:00 | F6: 00:30:00 | G6: 0.3020833333 | H6: 00:00:00 | J6: =ColTime([1]T.!$J$3,[1]T.!$L$3,D6,E6) -> 01:00:00 | L6: =ColTime(TIME([1]T.!$J$4,0,0),TIME([1]T.!$L$4,0,0),D6,E6) -> 06:45:00 | P6: =IFERROR(H6+I6,"") ->  | S6: =CHOOSE(WEEKDAY(A6,2),[1]norm!C$1,[1]norm!C$2,[1]norm!C$3,[1]norm!C$4,[1]norm!C$5,[1]norm!C$6,[1]norm!C$7) -> 07:30:00 | V6: 22 | W6: 0 | X6: 22:00:00 | Y6: 5 | Z6: 45 | AA6: 05:45:00
A7: 2019-01-04 | B7: Fr | D7: 05:00:00 | E7: 16:45:00 | F7: 00:30:00 | G7: 0.46875 | H7: 03:00:00 | I7: 01:15:00 | J7: =ColTime([1]T.!$J$3,[1]T.!$L$3,D7,E7) -> 00:00:00 | L7: =ColTime(TIME([1]T.!$J$4,0,0),TIME([1]T.!$L$4,0,0),D7,E7) -> 01:00:00 | P7: =IFERROR(H7+I7,"") -> 04:15:00 | S7: =CHOOSE(WEEKDAY(A7,2),[1]norm!C$1,[1]norm!C$2,[1]norm!C$3,[1]norm!C$4,[1]norm!C$5,[1]norm!C$6,[1]norm!C$7) -> 07:00:00 | V7: 5 | W7: 0 | X7: 05:00:00 | Y7: 16 | Z7: 45 | AA7: 16:45:00
A8: 2019-01-05 | B8: Lø | H8: 00:00:00 | J8: =ColTime([1]T.!$J$3,[1]T.!$L$3,D8,E8) -> 00:00:00 | L8: =ColTime(TIME([1]T.!$J$4,0,0),TIME([1]T.!$L$4,0,0),D8,E8) -> 00:00:00 | N8: 00:00:00 | P8: =IFERROR(H8+I8,"") ->  | S8: =CHOOSE(WEEKDAY(A8,2),[1]norm!C$1,[1]norm!C$2,[1]norm!C$3,[1]norm!C$4,[1]norm!C$5,[1]norm!C$6,[1]norm!C$7) -> 00:00:00
A9: 2019-01-06 | B9: Sø | D9: 06:00:00 | E9: 19:00:00 | F9: 00:30:00 | G9: 0.5208333333 | H9: 00:00:00 | I9: 12:30:00 | J9: =ColTime([1]T.!$J$3,[1]T.!$L$3,D9,E9) -> 01:00:00 | L9: =ColTime(TIME([1]T.!$J$4,0,0),TIME([1]T.!$L$4,0,0),D9,E9) -> 00:00:00 | O9: =IF(OR(C9<>"",WEEKDAY(A9,2)=7),ColTime(TIME(0,0,0),TIME(24,0,0),D9,E9),"") -> 13:00:00 | P9: =IFERROR(H9+I9,"") -> 12:30:00 | S9: =CHOOSE(WEEKDAY(A9,2),[1]norm!C$1,[1]norm!C$2,[1]norm!C$3,[1]norm!C$4,[1]norm!C$5,[1]norm!C$6,[1]norm!C$7) -> 00:00:00 | V9: 6 | W9: 0 | X9: 06:00:00 | Y9: 19 | Z9: 0 | AA9: 19:00:00
A10: 2019-01-07 | B10: Ma | D10: 07:00:00 | E10: 19:00:00 | G10: 0.5 | H10: 03:00:00 | I10: 01:30:00 | J10: =ColTime([1]T.!$J$3,[1]T.!$L$3,D10,E10) -> 01:00:00 | L10: =ColTime(TIME([1]T.!$J$4,0,0),TIME([1]T.!$L$4,0,0),D10,E10) -> 00:00:00 | N10: =IF(WEEKDAY(A10,2)=6,ColTime(TIME(14,0,0),TIME(24,0,0),D10,E10),"") ->  | O10: =IF(OR(C10<>"",WEEKDAY(A10,2)=7),ColTime(TIME(0,0,0),TIME(24,0,0),D10,E10),"") ->  | P10: 04:30:00 | S10: =CHOOSE(WEEKDAY(A10,2),[1]norm!C$1,[1]norm!C$2,[1]norm!C$3,[1]norm!C$4,[1]norm!C$5,[1]norm!C$6,[1]norm!C$7) -> 07:30:00 | V10: 7 | W10: 0 | X10: 07:00:00 | Y10: 19 | Z10: 0 | AA10: 19:00:00
A11: =A10+1 -> 2019-01-08 | B11: =PROPER(TEXT(A11,"ddd")) -> Ti | C11: =HelligdagsNavn(A11,0,0) ->  | H11: 00:00:00 | J11: =ColTime([1]T.!$J$3,[1]T.!$L$3,D11,E11) -> 00:00:00 | L11: =ColTime(TIME([1]T.!$J$4,0,0),TIME([1]T.!$L$4,0,0),D11,E11) -> 00:00:00 | N11: =IF(WEEKDAY(A11,2)=6,ColTime(TIME(15,0,0),TIME(24,0,0),D11,E11),"") ->  | S11: =CHOOSE(WEEKDAY(A11,2),[1]norm!C$1,[1]norm!C$2,[1]norm!C$3,[1]norm!C$4,[1]norm!C$5,[1]norm!C$6,[1]norm!C$7) -> 07:30:00
A12: =A11+1 -> 2019-01-09 | B12: =PROPER(TEXT(A12,"ddd")) -> On | C12: =HelligdagsNavn(A12,0,0) ->  | H12: 00:00:00 | J12: =ColTime([1]T.!$J$3,[1]T.!$L$3,D12,E12) -> 00:00:00 | L12: =ColTime(TIME([1]T.!$J$4,0,0),TIME([1]T.!$L$4,0,0),D12,E12) -> 00:00:00 | S12: =CHOOSE(WEEKDAY(A12,2),[1]norm!C$1,[1]norm!C$2,[1]norm!C$3,[1]norm!C$4,[1]norm!C$5,[1]norm!C$6,[1]norm!C$7) -> 07:30:00
A13: =A12+1 -> 2019-01-10 | B13: =PROPER(TEXT(A13,"ddd")) -> To | H13: 00:00:00 | J13: =ColTime([1]T.!$J$3,[1]T.!$L$3,D13,E13) -> 00:00:00 | L13: =ColTime(TIME([1]T.!$J$4,0,0),TIME([1]T.!$L$4,0,0),D13,E13) -> 00:00:00 | S13: =CHOOSE(WEEKDAY(A13,2),[1]norm!C$1,[1]norm!C$2,[1]norm!C$3,[1]norm!C$4,[1]norm!C$5,[1]norm!C$6,[1]norm!C$7) -> 07:30:00
A14: 2019-01-11 | B14: Fr | H14: 00:00:00 | J14: =ColTime([1]T.!$J$3,[1]T.!$L$3,D14,E14) -> 00:00:00 | L14: =ColTime(TIME([1]T.!$J$4,0,0),TIME([1]T.!$L$4,0,0),D14,E14) -> 00:00:00 | S14: =CHOOSE(WEEKDAY(A14,2),[1]norm!C$1,[1]norm!C$2,[1]norm!C$3,[1]norm!C$4,[1]norm!C$5,[1]norm!C$6,[1]norm!C$7) -> 07:00:00
A15: 2019-01-12 | B15: Lø | H15: 00:00:00 | J15: =ColTime([1]T.!$J$3,[1]T.!$L$3,D15,E15) -> 00:00:00 | L15: =ColTime(TIME([1]T.!$J$4,0,0),TIME([1]T.!$L$4,0,0),D15,E15) -> 00:00:00 | N15: 00:00:00 | S15: =CHOOSE(WEEKDAY(A15,2),[1]norm!C$1,[1]norm!C$2,[1]norm!C$3,[1]norm!C$4,[1]norm!C$5,[1]norm!C$6,[1]norm!C$7) -> 00:00:00
A16: 2019-01-13 | B16: Sø | H16: 00:00:00 | J16: =ColTime([1]T.!$J$3,[1]T.!$L$3,D16,E16) -> 00:00:00 | L16: =ColTime(TIME([1]T.!$J$4,0,0),TIME([1]T.!$L$4,0,0),D16,E16) -> 00:00:00 | O16: 00:00:00 | S16: =CHOOSE(WEEKDAY(A16,2),[1]norm!C$1,[1]norm!C$2,[1]norm!C$3,[1]norm!C$4,[1]norm!C$5,[1]norm!C$6,[1]norm!C$7) -> 00:00:00
A17: 2019-01-14 | B17: Ma | H17: 00:00:00 | J17: =ColTime([1]T.!$J$3,[1]T.!$L$3,D17,E17) -> 00:00:00 | L17: =ColTime(TIME([1]T.!$J$4,0,0),TIME([1]T.!$L$4,0,0),D17,E17) -> 00:00:00 | S17: =CHOOSE(WEEKDAY(A17,2),[1]norm!C$1,[1]norm!C$2,[1]norm!C$3,[1]norm!C$4,[1]norm!C$5,[1]norm!C$6,[1]norm!C$7) -> 07:30:00
A18: =A17+1 -> 2019-01-15 | B18: =PROPER(TEXT(A18,"ddd")) -> Ti | C18: =HelligdagsNavn(A18,0,0) ->  | H18: 00:00:00 | J18: =ColTime([1]T.!$J$3,[1]T.!$L$3,D18,E18) -> 00:00:00 | L18: =ColTime(TIME([1]T.!$J$4,0,0),TIME([1]T.!$L$4,0,0),D18,E18) -> 00:00:00 | S18: =CHOOSE(WEEKDAY(A18,2),[1]norm!C$1,[1]norm!C$2,[1]norm!C$3,[1]norm!C$4,[1]norm!C$5,[1]norm!C$6,[1]norm!C$7) -> 07:30:00
A19: =A18+1 -> 2019-01-16 | B19: =PROPER(TEXT(A19,"ddd")) -> On | C19: =HelligdagsNavn(A19,0,0) ->  | H19: 00:00:00 | J19: =ColTime([1]T.!$J$3,[1]T.!$L$3,D19,E19) -> 00:00:00 | L19: =ColTime(TIME([1]T.!$J$4,0,0),TIME([1]T.!$L$4,0,0),D19,E19) -> 00:00:00 | S19: =CHOOSE(WEEKDAY(A19,2),[1]norm!C$1,[1]norm!C$2,[1]norm!C$3,[1]norm!C$4,[1]norm!C$5,[1]norm!C$6,[1]norm!C$7) -> 07:30:00
A20: =A19+1 -> 2019-01-17 | B20: =PROPER(TEXT(A20,"ddd")) -> To | H20: 00:00:00 | J20: =ColTime([1]T.!$J$3,[1]T.!$L$3,D20,E20) -> 00:00:00 | L20: =ColTime(TIME([1]T.!$J$4,0,0),TIME([1]T.!$L$4,0,0),D20,E20) -> 00:00:00 | S20: =CHOOSE(WEEKDAY(A20,2),[1]norm!C$1,[1]norm!C$2,[1]norm!C$3,[1]norm!C$4,[1]norm!C$5,[1]norm!C$6,[1]norm!C$7) -> 07:30:00
A21: 2019-01-18 | B21: Fr | H21: 00:00:00 | J21: =ColTime([1]T.!$J$3,[1]T.!$L$3,D21,E21) -> 00:00:00 | L21: =ColTime(TIME([1]T.!$J$4,0,0),TIME([1]T.!$L$4,0,0),D21,E21) -> 00:00:00 | S21: =CHOOSE(WEEKDAY(A21,2),[1]norm!C$1,[1]norm!C$2,[1]norm!C$3,[1]norm!C$4,[1]norm!C$5,[1]norm!C$6,[1]norm!C$7) -> 07:00:00
A22: 2019-01-19 | B22: Lø | H22: 00:00:00 | J22: =ColTime([1]T.!$J$3,[1]T.!$L$3,D22,E22) -> 00:00:00 | L22: =ColTime(TIME([1]T.!$J$4,0,0),TIME([1]T.!$L$4,0,0),D22,E22) -> 00:00:00 | N22: 00:00:00 | S22: =CHOOSE(WEEKDAY(A22,2),[1]norm!C$1,[1]norm!C$2,[1]norm!C$3,[1]norm!C$4,[1]norm!C$5,[1]norm!C$6,[1]norm!C$7) -> 00:00:00
A23: 2019-01-20 | B23: Sø | H23: 00:00:00 | J23: =ColTime([1]T.!$J$3,[1]T.!$L$3,D23,E23) -> 00:00:00 | L23: =ColTime(TIME([1]T.!$J$4,0,0),TIME([1]T.!$L$4,0,0),D23,E23) -> 00:00:00 | O23: 00:00:00 | S23: =CHOOSE(WEEKDAY(A23,2),[1]norm!C$1,[1]norm!C$2,[1]norm!C$3,[1]norm!C$4,[1]norm!C$5,[1]norm!C$6,[1]norm!C$7) -> 00:00:00
A24: 2019-01-21 | B24: Ma | H24: 00:00:00 | J24: =ColTime([1]T.!$J$3,[1]T.!$L$3,D24,E24) -> 00:00:00 | L24: =ColTime(TIME([1]T.!$J$4,0,0),TIME([1]T.!$L$4,0,0),D24,E24) -> 00:00:00 | S24: =CHOOSE(WEEKDAY(A24,2),[1]norm!C$1,[1]norm!C$2,[1]norm!C$3,[1]norm!C$4,[1]norm!C$5,[1]norm!C$6,[1]norm!C$7) -> 07:30:00
A25: =A24+1 -> 2019-01-22 | B25: =PROPER(TEXT(A25,"ddd")) -> Ti | C25: =HelligdagsNavn(A25,0,0) ->  | H25: 00:00:00 | J25: =ColTime([1]T.!$J$3,[1]T.!$L$3,D25,E25) -> 00:00:00 | L25: =ColTime(TIME([1]T.!$J$4,0,0),TIME([1]T.!$L$4,0,0),D25,E25) -> 00:00:00 | S25: =CHOOSE(WEEKDAY(A25,2),[1]norm!C$1,[1]norm!C$2,[1]norm!C$3,[1]norm!C$4,[1]norm!C$5,[1]norm!C$6,[1]norm!C$7) -> 07:30:00
A26: =A25+1 -> 2019-01-23 | B26: =PROPER(TEXT(A26,"ddd")) -> On | C26: =HelligdagsNavn(A26,0,0) ->  | H26: 00:00:00 | J26: =ColTime([1]T.!$J$3,[1]T.!$L$3,D26,E26) -> 00:00:00 | L26: =ColTime(TIME([1]T.!$J$4,0,0),TIME([1]T.!$L$4,0,0),D26,E26) -> 00:00:00 | S26: =CHOOSE(WEEKDAY(A26,2),[1]norm!C$1,[1]norm!C$2,[1]norm!C$3,[1]norm!C$4,[1]norm!C$5,[1]norm!C$6,[1]norm!C$7) -> 07:30:00
A27: =A26+1 -> 2019-01-24 | B27: =PROPER(TEXT(A27,"ddd")) -> To | H27: 00:00:00 | J27: =ColTime([1]T.!$J$3,[1]T.!$L$3,D27,E27) -> 00:00:00 | L27: =ColTime(TIME([1]T.!$J$4,0,0),TIME([1]T.!$L$4,0,0),D27,E27) -> 00:00:00 | S27: =CHOOSE(WEEKDAY(A27,2),[1]norm!C$1,[1]norm!C$2,[1]norm!C$3,[1]norm!C$4,[1]norm!C$5,[1]norm!C$6,[1]norm!C$7) -> 07:30:00
A28: 2019-01-25 | B28: Fr | H28: 00:00:00 | J28: =ColTime([1]T.!$J$3,[1]T.!$L$3,D28,E28) -> 00:00:00 | L28: =ColTime(TIME([1]T.!$J$4,0,0),TIME([1]T.!$L$4,0,0),D28,E28) -> 00:00:00 | S28: =CHOOSE(WEEKDAY(A28,2),[1]norm!C$1,[1]norm!C$2,[1]norm!C$3,[1]norm!C$4,[1]norm!C$5,[1]norm!C$6,[1]norm!C$7) -> 07:00:00
A29: 2019-01-26 | B29: Lø | H29: 00:00:00 | J29: =ColTime([1]T.!$J$3,[1]T.!$L$3,D29,E29) -> 00:00:00 | L29: =ColTime(TIME([1]T.!$J$4,0,0),TIME([1]T.!$L$4,0,0),D29,E29) -> 00:00:00 | N29: 00:00:00 | S29: =CHOOSE(WEEKDAY(A29,2),[1]norm!C$1,[1]norm!C$2,[1]norm!C$3,[1]norm!C$4,[1]norm!C$5,[1]norm!C$6,[1]norm!C$7) -> 00:00:00
A30: 2019-01-27 | B30: Sø | H30: 00:00:00 | J30: =ColTime([1]T.!$J$3,[1]T.!$L$3,D30,E30) -> 00:00:00 | L30: =ColTime(TIME([1]T.!$J$4,0,0),TIME([1]T.!$L$4,0,0),D30,E30) -> 00:00:00 | O30: 00:00:00 | S30: =CHOOSE(WEEKDAY(A30,2),[1]norm!C$1,[1]norm!C$2,[1]norm!C$3,[1]norm!C$4,[1]norm!C$5,[1]norm!C$6,[1]norm!C$7) -> 00:00:00
A31: 2019-01-28 | B31: Ma | H31: 00:00:00 | J31: =ColTime([1]T.!$J$3,[1]T.!$L$3,D31,E31) -> 00:00:00 | L31: =ColTime(TIME([1]T.!$J$4,0,0),TIME([1]T.!$L$4,0,0),D31,E31) -> 00:00:00 | S31: =CHOOSE(WEEKDAY(A31,2),[1]norm!C$1,[1]norm!C$2,[1]norm!C$3,[1]norm!C$4,[1]norm!C$5,[1]norm!C$6,[1]norm!C$7) -> 07:30:00
A32: =IFERROR(IF(MONTH(A31+1)>MONTH(A31),"",A31+1),"") -> 2019-01-29 | B32: Ti | C32: =IF(A32="","",HelligdagsNavn(A32,0,0)) ->  | H32: 00:00:00 | J32: =ColTime([1]T.!$J$3,[1]T.!$L$3,D32,E32) -> 00:00:00 | L32: =ColTime(TIME([1]T.!$J$4,0,0),TIME([1]T.!$L$4,0,0),D32,E32) -> 00:00:00 | N32: =IFERROR(IF(WEEKDAY(A32,2)=6,ColTime(TIME(15,0,0),TIME(24,0,0),D32,E32),""),"") ->  | O32: =IFERROR(IF(OR(C32<>"",WEEKDAY(A32,2)=7),ColTime(TIME(0,0,0),TIME(24,0,0),D32,E32),""),"") ->  | S32: =IFERROR(CHOOSE(WEEKDAY(A32,2),[1]norm!C$1,[1]norm!C$2,[1]norm!C$3,[1]norm!C$4,[1]norm!C$5,[1]norm!C$6,[1]norm!C$7),"") -> 07:30:00
A33: =IFERROR(IF(MONTH(A32+1)>MONTH(A32),"",A32+1),"") -> 2019-01-30 | B33: On | H33: 00:00:00 | J33: =ColTime([1]T.!$J$3,[1]T.!$L$3,D33,E33) -> 00:00:00 | L33: =ColTime(TIME([1]T.!$J$4,0,0),TIME([1]T.!$L$4,0,0),D33,E33) -> 00:00:00 | N33: =IFERROR(IF(WEEKDAY(A33,2)=6,ColTime(TIME(15,0,0),TIME(24,0,0),D33,E33),""),"") ->  | O33: =IFERROR(IF(OR(C33<>"",WEEKDAY(A33,2)=7),ColTime(TIME(0,0,0),TIME(24,0,0),D33,E33),""),"") ->  | S33: =IFERROR(CHOOSE(WEEKDAY(A33,2),[1]norm!C$1,[1]norm!C$2,[1]norm!C$3,[1]norm!C$4,[1]norm!C$5,[1]norm!C$6,[1]norm!C$7),"") -> 07:30:00
A34: =IFERROR(IF(MONTH(A33+1)>MONTH(A33),"",A33+1),"") -> 2019-01-31 | B34: =IFERROR(PROPER(TEXT(A34,"ddd")),"") -> To | C34: =IF(A34="","",HelligdagsNavn(A34,0,0)) ->  | H34: 00:00:00 | J34: =ColTime([1]T.!$J$3,[1]T.!$L$3,D34,E34) -> 00:00:00 | L34: =ColTime(TIME([1]T.!$J$4,0,0),TIME([1]T.!$L$4,0,0),D34,E34) -> 00:00:00 | S34: =IFERROR(CHOOSE(WEEKDAY(A34,2),[1]norm!C$1,[1]norm!C$2,[1]norm!C$3,[1]norm!C$4,[1]norm!C$5,[1]norm!C$6,[1]norm!C$7),"") -> 07:30:00 | V34: =IF(D34="","",HOUR(D34)) ->  | W34: =IF(D34="","",MINUTE(D34)) ->  | X34: =IF(D34="","",TIME(HOUR(D34),MINUTE(D34),0)) ->  | Y34: =IF(E34="","",HOUR(E34)) ->  | Z34: =IF(E34="","",MINUTE(E34)) ->  | AA34: =IF(E34="","",TIME(HOUR(E34),MINUTE(E34),0)) -> 
A35: Total timer | G35: =IF(SUM(G9:G34)<>"0",SUM(G4:G34),"") -> 2.447916667 | H35: =IF(SUM(H4:H34)<>"0",SUM(H4:H34),"") -> 0.2916666667 | I35: =IF(SUM(I4:I34)<>"0",SUM(I4:I34),"") -> 0.6354166667 | J35: =IF(SUM(J4:J34)<>"0",SUM(J4:J34),"") -> 0.2708333333 | L35: =SUM(L4:M34) -> 07:45:00 | N35: =IF(SUM(N4:N34)<>"0",SUM(N4:N34),"") -> 0 | O35: =IF(SUM(O4:O34)<>"0",SUM(O4:O34),"") -> 22:00:00 | P35: =SUM(P4:P34) -> 0.8854166667 | Q35: =SUM(Q4:Q34) -> 0
A36: Timer 1/100 | G36: =IF(G35<>"",ROUND(G35*24,2),"") -> 58.75 | H36: =IF(H35<>"",ROUND(H35*24,2),"") -> 7 | I36: 15.25 | J36: =IF(J35<>"",ROUND(J35*24,2),"") -> 6.5 | L36: =IF(L35<>"",ROUND(L35*24,2),"") -> 7.75 | N36: =IF(N35<>"",ROUND(N35*24,2),"") -> 0 | O36: 22 | P36: 21.25 | Q36: 0
A37: Satser | G37: =[1]Satser!B7 -> 107.35 | H37: =[1]Satser!B9 -> 36.35 | I37: =[1]Satser!B12 -> 58.1 | J37: =[1]Satser!B17 -> 25.6 | L37: =[1]Satser!B18 -> 34.2 | N37: =[1]Satser!B19 -> 45.1 | O37: =[1]Satser!B20 -> 50.6
G38: =IF(G35<>"",G36*G37,"") -> 6306.8125 | H38: =IF(H35<>"",H36*H37,"") -> 254.45 | I38: 886.025 | J38: =IF(J35<>"",J36*J37,"") -> 166.4 | L38: =IF(L35<>"",L36*L36,"") -> 60.0625 | N38: =IF(N35<>"",N36*N37,"") -> 0 | O38: 1113.2
A40: Lønart
A41: 3025 | G41: =G35 -> 2.447916667
A42: 3425 | G42: =H35 -> 0.2916666667
A43: 3428 | G43: =I35 -> 0.6354166667
A44: Timer | G44: =SUM(G41:G43) -> 3.375 | H44: =IF(G44<>"",ROUND(G44*24,2),"") -> 81
H45: =G37*H44 -> 8695.35

Sheet Hele året
A1: Løn | B1: =PROPER(TEXT(A4,"dd mmmm åååå")) & PROPER(TEXT(N1," - dd mmmm åååå")) -> 01 Januar 2019 - 31 December 2019 | I1: Uge : | J1: =IF(A4="","",TRUNC((A4-WEEKDAY(A4,2)-DATE(YEAR(A4+4-WEEKDAY(A4,2)),1,-10))/7)) -> 1 | K1: - | M1: =IF(A25="","",TRUNC((A25-WEEKDAY(A25,2)-DATE(YEAR(A25+4-WEEKDAY(A25,2)),1,-10))/7)) -> 4 | N1: =EOMONTH(A364,0) -> 2019-12-31 | P1: 1 | V1: Time beregning: | AG1: 06:00:00 | AH1: 18:00:00 | AI1: 03:00:00
A2: Lønart | V2: Betalt pause ved vagt over 5 timer | Z2: 00:25:00 | AA2: minutter | AB2: 00:00:00 | AC2: 06:00:00 | AD2: 17:00:00 | AE2: 14:00:00
A3: Dato | B3: Dag | D3: Start | E3: Slut | F3: Pause | G3: Arb. Tid | H3: Overtid 1-3 time | I3: Overtid 4 - time | J3: Forskudt tid alle dage 18-23 | L3: Natarbejde 23-06 | N3: Lørdag tillæg 14 - 24 | O3: Søndag tillæg 00 - 24 | P3: Optjent afspadsering | Q3: Afholdt afspadsering | R3: Syge Timer | S3: norm
A4: =DATE(T.!$B$1,$P$1,1) -> 2019-01-01 | B4: =PROPER(TEXT(A4,"ddd")) -> Ti | C4: =HelligdagsNavn(A4,0,0) -> Nytårsdag | G4: =IF(D4="","",(E4-D4)+(D4>E4)-F4) ->  | H4: =IF(G4="",0,IF(WEEKDAY(A4,2)=7,0,IF(G4>S4,MIN(G4-S4,$AI$1),0))) -> 00:00:00 | I4: =IF(G4="","",IF(G4>S4+H4,G4-(S4+H4),"")) ->  | J4: =ColTime(T.!$J$3,T.!$L$3,D4,E4) -> 00:00:00 | L4: =ColTime(TIME(T.!$J$4,0,0),TIME(T.!$L$4,0,0),D4,E4) -> 00:00:00 | N4: =IF(WEEKDAY(A4,2)=6,ColTime(TIME(14,0,0),TIME(24,0,0),D4,E4),"") ->  | O4: =IF(OR(C4<>"",WEEKDAY(A4,2)=7),ColTime(TIME(0,0,0),TIME(24,0,0),D4,E4),"") -> 00:00:00 | P4: =IFERROR(H4+I4,"") ->  | S4: =CHOOSE(WEEKDAY(A4,2),norm!C$1,norm!C$2,norm!C$3,norm!C$4,norm!C$5,norm!C$6,norm!C$7) -> 09:00:00 | V4: =IF(D4="","",HOUR(D4)) ->  | W4: =IF(D4="","",MINUTE(D4)) ->  | X4: =IF(D4="","",TIME(HOUR(D4),MINUTE(D4),0)) ->  | Y4: =IF(E4="","",HOUR(E4)) ->  | Z4: =IF(E4="","",MINUTE(E4)) ->  | AA4: 02:00:00 | AB4: 09:30:00 | AC4: 11:30:00 | AG4: =MIN(G4-S4,3) -> 
A5: =A4+1 -> 2019-01-02 | B5: =PROPER(TEXT(A5,"ddd")) -> On | C5: =HelligdagsNavn(A5,0,0) ->  | G5: =IF(D5="","",(E5-D5)+(D5>E5)-F5) ->  | H5: =IF(G5="",0,IF(WEEKDAY(A5,2)=7,0,IF(G5>S5,MIN(G5-S5,$AI$1),0))) -> 00:00:00 | I5: =IF(G5="","",IF(G5>S5+H5,G5-(S5+H5),"")) ->  | J5: =ColTime(T.!$J$3,T.!$L$3,D5,E5) -> 00:00:00 | L5: =ColTime(TIME(T.!$J$4,0,0),TIME(T.!$L$4,0,0),D5,E5) -> 00:00:00 | P5: =IFERROR(H5+I5,"") ->  | S5: =CHOOSE(WEEKDAY(A5,2),norm!C$1,norm!C$2,norm!C$3,norm!C$4,norm!C$5,norm!C$6,norm!C$7) -> 09:00:00 | AA5: =IF(E5="","",TIME(HOUR(E5),MINUTE(E5),0)) ->  | AH5: Der taste kun i de Gule celler
A6: =A5+1 -> 2019-01-03 | B6: =PROPER(TEXT(A6,"ddd")) -> To | H6: 00:00:00 | J6: =ColTime(T.!$J$3,T.!$L$3,D6,E6) -> 00:00:00 | L6: =ColTime(TIME(T.!$J$4,0,0),TIME(T.!$L$4,0,0),D6,E6) -> 00:00:00 | P6: =IFERROR(H6+I6,"") ->  | S6: =CHOOSE(WEEKDAY(A6,2),norm!C$1,norm!C$2,norm!C$3,norm!C$4,norm!C$5,norm!C$6,norm!C$7) -> 09:00:00
A7: 2019-01-04 | B7: Fr | H7: 00:00:00 | J7: =ColTime(T.!$J$3,T.!$L$3,D7,E7) -> 00:00:00 | L7: =ColTime(TIME(T.!$J$4,0,0),TIME(T.!$L$4,0,0),D7,E7) -> 00:00:00 | P7: =IFERROR(H7+I7,"") ->  | S7: =CHOOSE(WEEKDAY(A7,2),norm!C$1,norm!C$2,norm!C$3,norm!C$4,norm!C$5,norm!C$6,norm!C$7) -> 09:00:00
A8: 2019-01-05 | B8: Lø | H8: 00:00:00 | J8: =ColTime(T.!$J$3,T.!$L$3,D8,E8) -> 00:00:00 | L8: =ColTime(TIME(T.!$J$4,0,0),TIME(T.!$L$4,0,0),D8,E8) -> 00:00:00 | N8: 00:00:00 | P8: =IFERROR(H8+I8,"") ->  | S8: =CHOOSE(WEEKDAY(A8,2),norm!C$1,norm!C$2,norm!C$3,norm!C$4,norm!C$5,norm!C$6,norm!C$7) -> 09:00:00
A9: 2019-01-06 | B9: Sø | H9: 00:00:00 | J9: =ColTime(T.!$J$3,T.!$L$3,D9,E9) -> 00:00:00 | L9: =ColTime(TIME(T.!$J$4,0,0),TIME(T.!$L$4,0,0),D9,E9) -> 00:00:00 | O9: =IF(OR(C9<>"",WEEKDAY(A9,2)=7),ColTime(TIME(0,0,0),TIME(24,0,0),D9,E9),"") -> 00:00:00 | P9: =IFERROR(H9+I9,"") ->  | S9: =CHOOSE(WEEKDAY(A9,2),norm!C$1,norm!C$2,norm!C$3,norm!C$4,norm!C$5,norm!C$6,norm!C$7) -> 09:00:00
A10: 2019-01-07 | B10: Ma | D10: 22:00:00 | E10: 07:00:00 | G10: =IF(D10="","",(E10-D10)+(D10>E10)-F10) -> 0.375 | H10: 00:00:00 | J10: =ColTime(T.!$J$3,T.!$L$3,D10,E10) -> 01:00:00 | L10: =ColTime(TIME(T.!$J$4,0,0),TIME(T.!$L$4,0,0),D10,E10) -> 07:00:00 | N10: =IF(WEEKDAY(A10,2)=6,ColTime(TIME(14,0,0),TIME(24,0,0),D10,E10),"") ->  | S10: =CHOOSE(WEEKDAY(A10,2),norm!C$1,norm!C$2,norm!C$3,norm!C$4,norm!C$5,norm!C$6,norm!C$7) -> 09:00:00 | V10: =IF(D10="","",HOUR(D10)) -> 22 | W10: =IF(D10="","",MINUTE(D10)) -> 0 | X10: =IF(D10="","",TIME(HOUR(D10),MINUTE(D10),0)) -> 22:00:00 | Y10: =IF(E10="","",HOUR(E10)) -> 7 | Z10: =IF(E10="","",MINUTE(E10)) -> 0 | AA10: =IF(E10="","",TIME(HOUR(E10),MINUTE(E10),0)) -> 07:00:00
A11: =A10+1 -> 2019-01-08 | B11: =PROPER(TEXT(A11,"ddd")) -> Ti | C11: =HelligdagsNavn(A11,0,0) ->  | D11: 22:00:00 | E11: 07:00:00 | G11: 0.375 | H11: 00:00:00 | J11: =ColTime(T.!$J$3,T.!$L$3,D11,E11) -> 01:00:00 | L11: =ColTime(TIME(T.!$J$4,0,0),TIME(T.!$L$4,0,0),D11,E11) -> 07:00:00 | N11: =IF(WEEKDAY(A11,2)=6,ColTime(TIME(15,0,0),TIME(24,0,0),D11,E11),"") ->  | S11: =CHOOSE(WEEKDAY(A11,2),norm!C$1,norm!C$2,norm!C$3,norm!C$4,norm!C$5,norm!C$6,norm!C$7) -> 09:00:00 | V11: 22 | W11: 0 | X11: 22:00:00 | Y11: 7 | Z11: 0 | AA11: 07:00:00
A12: =A11+1 -> 2019-01-09 | B12: =PROPER(TEXT(A12,"ddd")) -> On | C12: =HelligdagsNavn(A12,0,0) ->  | D12: 22:00:00 | E12: 07:00:00 | G12: 0.375 | H12: 00:00:00 | J12: =ColTime(T.!$J$3,T.!$L$3,D12,E12) -> 01:00:00 | L12: =ColTime(TIME(T.!$J$4,0,0),TIME(T.!$L$4,0,0),D12,E12) -> 07:00:00 | S12: =CHOOSE(WEEKDAY(A12,2),norm!C$1,norm!C$2,norm!C$3,norm!C$4,norm!C$5,norm!C$6,norm!C$7) -> 09:00:00 | V12: 22 | W12: 0 | X12: 22:00:00 | Y12: 7 | Z12: 0 | AA12: 07:00:00
A13: =A12+1 -> 2019-01-10 | B13: =PROPER(TEXT(A13,"ddd")) -> To | D13: 22:00:00 | E13: 07:00:00 | G13: 0.375 | H13: 00:00:00 | J13: =ColTime(T.!$J$3,T.!$L$3,D13,E13) -> 01:00:00 | L13: =ColTime(TIME(T.!$J$4,0,0),TIME(T.!$L$4,0,0),D13,E13) -> 07:00:00 | S13: =CHOOSE(WEEKDAY(A13,2),norm!C$1,norm!C$2,norm!C$3,norm!C$4,norm!C$5,norm!C$6,norm!C$7) -> 09:00:00 | V13: 22 | W13: 0 | X13: 22:00:00 | Y13: 7 | Z13: 0 | AA13: 07:00:00
A14: 2019-01-11 | B14: Fr | D14: 22:00:00 | E14: 07:00:00 | G14: 0.375 | H14: 00:00:00 | J14: =ColTime(T.!$J$3,T.!$L$3,D14,E14) -> 01:00:00 | L14: =ColTime(TIME(T.!$J$4,0,0),TIME(T.!$L$4,0,0),D14,E14) -> 07:00:00 | S14: =CHOOSE(WEEKDAY(A14,2),norm!C$1,norm!C$2,norm!C$3,norm!C$4,norm!C$5,norm!C$6,norm!C$7) -> 09:00:00 | V14: 22 | W14: 0 | X14: 22:00:00 | Y14: 7 | Z14: 0 | AA14: 07:00:00
A15: 2019-01-12 | B15: Lø | D15: 22:00:00 | E15: 07:00:00 | G15: 0.375 | H15: 00:00:00 | J15: =ColTime(T.!$J$3,T.!$L$3,D15,E15) -> 01:00:00 | L15: =ColTime(TIME(T.!$J$4,0,0),TIME(T.!$L$4,0,0),D15,E15) -> 07:00:00 | N15: 02:00:00 | S15: =CHOOSE(WEEKDAY(A15,2),norm!C$1,norm!C$2,norm!C$3,norm!C$4,norm!C$5,norm!C$6,norm!C$7) -> 09:00:00 | V15: 22 | W15: 0 | X15: 22:00:00 | Y15: 7 | Z15: 0 | AA15: 07:00:00
A16: 2019-01-13 | B16: Sø | D16: 22:00:00 | E16: 07:00:00 | G16: 0.375 | H16: 00:00:00 | J16: =ColTime(T.!$J$3,T.!$L$3,D16,E16) -> 01:00:00 | L16: =ColTime(TIME(T.!$J$4,0,0),TIME(T.!$L$4,0,0),D16,E16) -> 07:00:00 | O16: 09:00:00 | S16: =CHOOSE(WEEKDAY(A16,2),norm!C$1,norm!C$2,norm!C$3,norm!C$4,norm!C$5,norm!C$6,norm!C$7) -> 09:00:00 | V16: 22 | W16: 0 | X16: 22:00:00 | Y16: 7 | Z16: 0 | AA16: 07:00:00
A17: 2019-01-14 | B17: Ma | H17: =IF(G17="",0,IF(WEEKDAY(A17,2)=7,0,IF(G17>S17,MIN(G17-S17,$AI$1),0))) -> 00:00:00 | J17: =ColTime(T.!$J$3,T.!$L$3,D17,E17) -> 00:00:00 | L17: =ColTime(TIME(T.!$J$4,0,0),TIME(T.!$L$4,0,0),D17,E17) -> 00:00:00 | N17: =IF(WEEKDAY(A17,2)=6,ColTime(TIME(15,0,0),TIME(24,0,0),D17,E17),"") ->  | O17: =IF(OR(C17<>"",WEEKDAY(A17,2)=7),ColTime(TIME(0,0,0),TIME(24,0,0),D17,E17),"") ->  | S17: =CHOOSE(WEEKDAY(A17,2),norm!C$1,norm!C$2,norm!C$3,norm!C$4,norm!C$5,norm!C$6,norm!C$7) -> 09:00:00
A18: =A17+1 -> 2019-01-15 | B18: =PROPER(TEXT(A18,"ddd")) -> Ti | C18: =HelligdagsNavn(A18,0,0) ->  | H18: 00:00:00 | J18: =ColTime(T.!$J$3,T.!$L$3,D18,E18) -> 00:00:00 | L18: =ColTime(TIME(T.!$J$4,0,0),TIME(T.!$L$4,0,0),D18,E18) -> 00:00:00 | S18: =CHOOSE(WEEKDAY(A18,2),norm!C$1,norm!C$2,norm!C$3,norm!C$4,norm!C$5,norm!C$6,norm!C$7) -> 09:00:00
A19: =A18+1 -> 2019-01-16 | B19: =PROPER(TEXT(A19,"ddd")) -> On | C19: =HelligdagsNavn(A19,0,0) ->  | H19: 00:00:00 | J19: =ColTime(T.!$J$3,T.!$L$3,D19,E19) -> 00:00:00 | L19: =ColTime(TIME(T.!$J$4,0,0),TIME(T.!$L$4,0,0),D19,E19) -> 00:00:00 | S19: =CHOOSE(WEEKDAY(A19,2),norm!C$1,norm!C$2,norm!C$3,norm!C$4,norm!C$5,norm!C$6,norm!C$7) -> 09:00:00
A20: =A19+1 -> 2019-01-17 | B20: =PROPER(TEXT(A20,"ddd")) -> To | H20: 00:00:00 | J20: =ColTime(T.!$J$3,T.!$L$3,D20,E20) -> 00:00:00 | L20: =ColTime(TIME(T.!$J$4,0,0),TIME(T.!$L$4,0,0),D20,E20) -> 00:00:00 | S20: =CHOOSE(WEEKDAY(A20,2),norm!C$1,norm!C$2,norm!C$3,norm!C$4,norm!C$5,norm!C$6,norm!C$7) -> 09:00:00
A21: 2019-01-18 | B21: Fr | H21: 00:00:00 | J21: =ColTime(T.!$J$3,T.!$L$3,D21,E21) -> 00:00:00 | L21: =ColTime(TIME(T.!$J$4,0,0),TIME(T.!$L$4,0,0),D21,E21) -> 00:00:00 | S21: =CHOOSE(WEEKDAY(A21,2),norm!C$1,norm!C$2,norm!C$3,norm!C$4,norm!C$5,norm!C$6,norm!C$7) -> 09:00:00
A22: 2019-01-19 | B22: Lø | H22: 00:00:00 | J22: =ColTime(T.!$J$3,T.!$L$3,D22,E22) -> 00:00:00 | L22: =ColTime(TIME(T.!$J$4,0,0),TIME(T.!$L$4,0,0),D22,E22) -> 00:00:00 | N22: 00:00:00 | S22: =CHOOSE(WEEKDAY(A22,2),norm!C$1,norm!C$2,norm!C$3,norm!C$4,norm!C$5,norm!C$6,norm!C$7) -> 09:00:00
A23: 2019-01-20 | B23: Sø | H23: 00:00:00 | J23: =ColTime(T.!$J$3,T.!$L$3,D23,E23) -> 00:00:00 | L23: =ColTime(TIME(T.!$J$4,0,0),TIME(T.!$L$4,0,0),D23,E23) -> 00:00:00 | O23: 00:00:00 | S23: =CHOOSE(WEEKDAY(A23,2),norm!C$1,norm!C$2,norm!C$3,norm!C$4,norm!C$5,norm!C$6,norm!C$7) -> 09:00:00
A24: 2019-01-21 | B24: Ma | H24: 00:00:00 | J24: =ColTime(T.!$J$3,T.!$L$3,D24,E24) -> 00:00:00 | L24: =ColTime(TIME(T.!$J$4,0,0),TIME(T.!$L$4,0,0),D24,E24) -> 00:00:00 | S24: =CHOOSE(WEEKDAY(A24,2),norm!C$1,norm!C$2,norm!C$3,norm!C$4,norm!C$5,norm!C$6,norm!C$7) -> 09:00:00
A25: =A24+1 -> 2019-01-22 | B25: =PROPER(TEXT(A25,"ddd")) -> Ti | C25: =HelligdagsNavn(A25,0,0) ->  | H25: 00:00:00 | J25: =ColTime(T.!$J$3,T.!$L$3,D25,E25) -> 00:00:00 | L25: =ColTime(TIME(T.!$J$4,0,0),TIME(T.!$L$4,0,0),D25,E25) -> 00:00:00 | S25: =CHOOSE(WEEKDAY(A25,2),norm!C$1,norm!C$2,norm!C$3,norm!C$4,norm!C$5,norm!C$6,norm!C$7) -> 09:00:00
A26: =A25+1 -> 2019-01-23 | B26: =PROPER(TEXT(A26,"ddd")) -> On | C26: =HelligdagsNavn(A26,0,0) ->  | H26: 00:00:00 | J26: =ColTime(T.!$J$3,T.!$L$3,D26,E26) -> 00:00:00 | L26: =ColTime(TIME(T.!$J$4,0,0),TIME(T.!$L$4,0,0),D26,E26) -> 00:00:00 | S26: =CHOOSE(WEEKDAY(A26,2),norm!C$1,norm!C$2,norm!C$3,norm!C$4,norm!C$5,norm!C$6,norm!C$7) -> 09:00:00
A27: =A26+1 -> 2019-01-24 | B27: =PROPER(TEXT(A27,"ddd")) -> To | H27: 00:00:00 | J27: =ColTime(T.!$J$3,T.!$L$3,D27,E27) -> 00:00:00 | L27: =ColTime(TIME(T.!$J$4,0,0),TIME(T.!$L$4,0,0),D27,E27) -> 00:00:00 | S27: =CHOOSE(WEEKDAY(A27,2),norm!C$1,norm!C$2,norm!C$3,norm!C$4,norm!C$5,norm!C$6,norm!C$7) -> 09:00:00
A28: 2019-01-25 | B28: Fr | H28: 00:00:00 | J28: =ColTime(T.!$J$3,T.!$L$3,D28,E28) -> 00:00:00 | L28: =ColTime(TIME(T.!$J$4,0,0),TIME(T.!$L$4,0,0),D28,E28) -> 00:00:00 | S28: =CHOOSE(WEEKDAY(A28,2),norm!C$1,norm!C$2,norm!C$3,norm!C$4,norm!C$5,norm!C$6,norm!C$7) -> 09:00:00
A29: 2019-01-26 | B29: Lø | H29: 00:00:00 | J29: =ColTime(T.!$J$3,T.!$L$3,D29,E29) -> 00:00:00 | L29: =ColTime(TIME(T.!$J$4,0,0),TIME(T.!$L$4,0,0),D29,E29) -> 00:00:00 | N29: 00:00:00 | S29: =CHOOSE(WEEKDAY(A29,2),norm!C$1,norm!C$2,norm!C$3,norm!C$4,norm!C$5,norm!C$6,norm!C$7) -> 09:00:00
A30: 2019-01-27 | B30: Sø | H30: 00:00:00 | J30: =ColTime(T.!$J$3,T.!$L$3,D30,E30) -> 00:00:00 | L30: =ColTime(TIME(T.!$J$4,0,0),TIME(T.!$L$4,0,0),D30,E30) -> 00:00:00 | O30: 00:00:00 | S30: =CHOOSE(WEEKDAY(A30,2),norm!C$1,norm!C$2,norm!C$3,norm!C$4,norm!C$5,norm!C$6,norm!C$7) -> 09:00:00
A31: 2019-01-28 | B31: Ma | H31: 00:00:00 | J31: =ColTime(T.!$J$3,T.!$L$3,D31,E31) -> 00:00:00 | L31: =ColTime(TIME(T.!$J$4,0,0),TIME(T.!$L$4,0,0),D31,E31) -> 00:00:00 | S31: =CHOOSE(WEEKDAY(A31,2),norm!C$1,norm!C$2,norm!C$3,norm!C$4,norm!C$5,norm!C$6,norm!C$7) -> 09:00:00
A32: 2019-01-29 | B32: Ti | C32: =IF(A32="","",HelligdagsNavn(A32,0,0)) ->  | H32: 00:00:00 | J32: =ColTime(T.!$J$3,T.!$L$3,D32,E32) -> 00:00:00 | L32: =ColTime(TIME(T.!$J$4,0,0),TIME(T.!$L$4,0,0),D32,E32) -> 00:00:00 | N32: =IFERROR(IF(WEEKDAY(A32,2)=6,ColTime(TIME(15,0,0),TIME(24,0,0),D32,E32),""),"") ->  | O32: =IFERROR(IF(OR(C32<>"",WEEKDAY(A32,2)=7),ColTime(TIME(0,0,0),TIME(24,0,0),D32,E32),""),"") ->  | S32: =IFERROR(CHOOSE(WEEKDAY(A32,2),norm!C$1,norm!C$2,norm!C$3,norm!C$4,norm!C$5,norm!C$6,norm!C$7),"") -> 09:00:00
A33: 2019-01-30 | B33: On | H33: 00:00:00 | J33: =ColTime(T.!$J$3,T.!$L$3,D33,E33) -> 00:00:00 | L33: =ColTime(TIME(T.!$J$4,0,0),TIME(T.!$L$4,0,0),D33,E33) -> 00:00:00 | N33: =IFERROR(IF(WEEKDAY(A33,2)=6,ColTime(TIME(15,0,0),TIME(24,0,0),D33,E33),""),"") ->  | O33: =IFERROR(IF(OR(C33<>"",WEEKDAY(A33,2)=7),ColTime(TIME(0,0,0),TIME(24,0,0),D33,E33),""),"") ->  | S33: =IFERROR(CHOOSE(WEEKDAY(A33,2),norm!C$1,norm!C$2,norm!C$3,norm!C$4,norm!C$5,norm!C$6,norm!C$7),"") -> 09:00:00
A34: 2019-01-31 | B34: =IFERROR(PROPER(TEXT(A34,"ddd")),"") -> To | C34: =IF(A34="","",HelligdagsNavn(A34,0,0)) ->  | H34: 00:00:00 | J34: =ColTime(T.!$J$3,T.!$L$3,D34,E34) -> 00:00:00 | L34: =ColTime(TIME(T.!$J$4,0,0),TIME(T.!$L$4,0,0),D34,E34) -> 00:00:00 | S34: =IFERROR(CHOOSE(WEEKDAY(A34,2),norm!C$1,norm!C$2,norm!C$3,norm!C$4,norm!C$5,norm!C$6,norm!C$7),"") -> 09:00:00 | V34: =IF(D34="","",HOUR(D34)) ->  | W34: =IF(D34="","",MINUTE(D34)) ->  | X34: =IF(D34="","",TIME(HOUR(D34),MINUTE(D34),0)) ->  | Y34: =IF(E34="","",HOUR(E34)) ->  | Z34: =IF(E34="","",MINUTE(E34)) ->  | AA34: =IF(E34="","",TIME(HOUR(E34),MINUTE(E34),0)) -> 
A35: 2019-02-01 | B35: =IFERROR(PROPER(TEXT(A35,"ddd")),"") -> Fr | C35: =IF(A35="","",HelligdagsNavn(A35,0,0)) ->  | G35: =IF(D35="","",(E35-D35)+(D35>E35)-F35) ->  | H35: =IF(G35="",0,IF(WEEKDAY(A35,2)=7,0,IF(G35>S35,MIN(G35-S35,$AI$1),0))) -> 00:00:00 | I35: =IF(G35="","",IF(G35>S35+H35,G35-(S35+H35),"")) ->  | J35: =ColTime(T.!$J$3,T.!$L$3,D35,E35) -> 00:00:00 | L35: =ColTime(TIME(T.!$J$4,0,0),TIME(T.!$L$4,0,0),D35,E35) -> 00:00:00 | N35: =IFERROR(IF(WEEKDAY(A35,2)=6,ColTime(TIME(15,0,0),TIME(24,0,0),D35,E35),""),"") ->  | O35: =IFERROR(IF(OR(C35<>"",WEEKDAY(A35,2)=7),ColTime(TIME(0,0,0),TIME(24,0,0),D35,E35),""),"") ->  | P35: =IFERROR(H35+I35,"") ->  | S35: =IFERROR(CHOOSE(WEEKDAY(A35,2),norm!C$1,norm!C$2,norm!C$3,norm!C$4,norm!C$5,norm!C$6,norm!C$7),"") -> 09:00:00
A36: 2019-02-02 | B36: Lø | H36: 00:00:00 | J36: =ColTime(T.!$J$3,T.!$L$3,D36,E36) -> 00:00:00 | L36: =ColTime(TIME(T.!$J$4,0,0),TIME(T.!$L$4,0,0),D36,E36) -> 00:00:00 | N36: 00:00:00 | S36: =IFERROR(CHOOSE(WEEKDAY(A36,2),norm!C$1,norm!C$2,norm!C$3,norm!C$4,norm!C$5,norm!C$6,norm!C$7),"") -> 09:00:00
A37: 2019-02-03 | B37: Sø | H37: 00:00:00 | J37: =ColTime(T.!$J$3,T.!$L$3,D37,E37) -> 00:00:00 | L37: =ColTime(TIME(T.!$J$4,0,0),TIME(T.!$L$4,0,0),D37,E37) -> 00:00:00 | O37: 00:00:00 | S37: =IFERROR(CHOOSE(WEEKDAY(A37,2),norm!C$1,norm!C$2,norm!C$3,norm!C$4,norm!C$5,norm!C$6,norm!C$7),"") -> 09:00:00
A38: 2019-02-04 | B38: Ma | H38: 00:00:00 | J38: =ColTime(T.!$J$3,T.!$L$3,D38,E38) -> 00:00:00 | L38: =ColTime(TIME(T.!$J$4,0,0),TIME(T.!$L$4,0,0),D38,E38) -> 00:00:00 | S38: =IFERROR(CHOOSE(WEEKDAY(A38,2),norm!C$1,norm!C$2,norm!C$3,norm!C$4,norm!C$5,norm!C$6,norm!C$7),"") -> 09:00:00
A39: 2019-02-05 | B39: Ti | H39: 00:00:00 | J39: =ColTime(T.!$J$3,T.!$L$3,D39,E39) -> 00:00:00 | L39: =ColTime(TIME(T.!$J$4,0,0),TIME(T.!$L$4,0,0),D39,E39) -> 00:00:00 | S39: =IFERROR(CHOOSE(WEEKDAY(A39,2),norm!C$1,norm!C$2,norm!C$3,norm!C$4,norm!C$5,norm!C$6,norm!C$7),"") -> 09:00:00
A40: 2019-02-06 | B40: On | H40: 00:00:00 | J40: =ColTime(T.!$J$3,T.!$L$3,D40,E40) -> 00:00:00 | L40: =ColTime(TIME(T.!$J$4,0,0),TIME(T.!$L$4,0,0),D40,E40) -> 00:00:00 | S40: =IFERROR(CHOOSE(WEEKDAY(A40,2),norm!C$1,norm!C$2,norm!C$3,norm!C$4,norm!C$5,norm!C$6,norm!C$7),"") -> 09:00:00
A41: 2019-02-07 | B41: To | H41: 00:00:00 | J41: =ColTime(T.!$J$3,T.!$L$3,D41,E41) -> 00:00:00 | L41: =ColTime(TIME(T.!$J$4,0,0),TIME(T.!$L$4,0,0),D41,E41) -> 00:00:00 | S41: =IFERROR(CHOOSE(WEEKDAY(A41,2),norm!C$1,norm!C$2,norm!C$3,norm!C$4,norm!C$5,norm!C$6,norm!C$7),"") -> 09:00:00
A42: 2019-02-08 | B42: Fr | H42: 00:00:00 | J42: =ColTime(T.!$J$3,T.!$L$3,D42,E42) -> 00:00:00 | L42: =ColTime(TIME(T.!$J$4,0,0),TIME(T.!$L$4,0,0),D42,E42) -> 00:00:00 | S42: =IFERROR(CHOOSE(WEEKDAY(A42,2),norm!C$1,norm!C$2,norm!C$3,norm!C$4,norm!C$5,norm!C$6,norm!C$7),"") -> 09:00:00
A43: 2019-02-09 | B43: Lø | H43: 00:00:00 | J43: =ColTime(T.!$J$3,T.!$L$3,D43,E43) -> 00:00:00 | L43: =ColTime(TIME(T.!$J$4,0,0),TIME(T.!$L$4,0,0),D43,E43) -> 00:00:00 | N43: 00:00:00 | S43: =IFERROR(CHOOSE(WEEKDAY(A43,2),norm!C$1,norm!C$2,norm!C$3,norm!C$4,norm!C$5,norm!C$6,norm!C$7),"") -> 09:00:00
A44: 2019-02-10 | B44: Sø | H44: 00:00:00 | J44: =ColTime(T.!$J$3,T.!$L$3,D44,E44) -> 00:00:00 | L44: =ColTime(TIME(T.!$J$4,0,0),TIME(T.!$L$4,0,0),D44,E44) -> 00:00:00 | O44: 00:00:00 | S44: =IFERROR(CHOOSE(WEEKDAY(A44,2),norm!C$1,norm!C$2,norm!C$3,norm!C$4,norm!C$5,norm!C$6,norm!C$7),"") -> 09:00:00
A45: 2019-02-11 | B45: Ma | C45: =IF(A45="","",HelligdagsNavn(A45,0,0)) ->  | G45: =IF(D45="","",(E45-D45)+(D45>E45)-F45) ->  | H45: =IF(G45="",0,IF(WEEKDAY(A45,2)=7,0,IF(G45>S45,MIN(G45-S45,$AI$1),0))) -> 00:00:00 | I45: =IF(G45="","",IF(G45>S45+H45,G45-(S45+H45),"")) ->  | J45: =ColTime(T.!$J$3,T.!$L$3,D45,E45) -> 00:00:00 | L45: =ColTime(TIME(T.!$J$4,0,0),TIME(T.!$L$4,0,0),D45,E45) -> 00:00:00 | N45: =IFERROR(IF(WEEKDAY(A45,2)=6,ColTime(TIME(15,0,0),TIME(24,0,0),D45,E45),""),"") ->  | O45: =IFERROR(IF(OR(C45<>"",WEEKDAY(A45,2)=7),ColTime(TIME(0,0,0),TIME(24,0,0),D45,E45),""),"") ->  | P45: =IFERROR(H45+I45,"") ->  | S45: =IFERROR(CHOOSE(WEEKDAY(A45,2),norm!C$1,norm!C$2,norm!C$3,norm!C$4,norm!C$5,norm!C$6,norm!C$7),"") -> 09:00:00
A46: 2019-02-12 | B46: Ti | H46: 00:00:00 | J46: =ColTime(T.!$J$3,T.!$L$3,D46,E46) -> 00:00:00 | L46: =ColTime(TIME(T.!$J$4,0,0),TIME(T.!$L$4,0,0),D46,E46) -> 00:00:00 | S46: =IFERROR(CHOOSE(WEEKDAY(A46,2),norm!C$1,norm!C$2,norm!C$3,norm!C$4,norm!C$5,norm!C$6,norm!C$7),"") -> 09:00:00
A47: 2019-02-13 | B47: On | H47: 00:00:00 | J47: =ColTime(T.!$J$3,T.!$L$3,D47,E47) -> 00:00:00 | L47: =ColTime(TIME(T.!$J$4,0,0),TIME(T.!$L$4,0,0),D47,E47) -> 00:00:00 | S47: =IFERROR(CHOOSE(WEEKDAY(A47,2),norm!C$1,norm!C$2,norm!C$3,norm!C$4,norm!C$5,norm!C$6,norm!C$7),"") -> 09:00:00
A48: 2019-02-14 | B48: To | H48: 00:00:00 | J48: =ColTime(T.!$J$3,T.!$L$3,D48,E48) -> 00:00:00 | L48: =ColTime(TIME(T.!$J$4,0,0),TIME(T.!$L$4,0,0),D48,E48) -> 00:00:00 | S48: =IFERROR(CHOOSE(WEEKDAY(A48,2),norm!C$1,norm!C$2,norm!C$3,norm!C$4,norm!C$5,norm!C$6,norm!C$7),"") -> 09:00:00
A49: 2019-02-15 | B49: Fr | H49: 00:00:00 | J49: =ColTime(T.!$J$3,T.!$L$3,D49,E49) -> 00:00:00 | L49: =ColTime(TIME(T.!$J$4,0,0),TIME(T.!$L$4,0,0),D49,E49) -> 00:00:00 | S49: =IFERROR(CHOOSE(WEEKDAY(A49,2),norm!C$1,norm!C$2,norm!C$3,norm!C$4,norm!C$5,norm!C$6,norm!C$7),"") -> 09:00:00
A50: 2019-02-16 | B50: Lø | H50: 00:00:00 | J50: =ColTime(T.!$J$3,T.!$L$3,D50,E50) -> 00:00:00 | L50: =ColTime(TIME(T.!$J$4,0,0),TIME(T.!$L$4,0,0),D50,E50) -> 00:00:00 | N50: 00:00:00 | S50: =IFERROR(CHOOSE(WEEKDAY(A50,2),norm!C$1,norm!C$2,norm!C$3,norm!C$4,norm!C$5,norm!C$6,norm!C$7),"") -> 09:00:00
A51: 2019-02-17 | B51: Sø | H51: 00:00:00 | J51: =ColTime(T.!$J$3,T.!$L$3,D51,E51) -> 00:00:00 | L51: =ColTime(TIME(T.!$J$4,0,0),TIME(T.!$L$4,0,0),D51,E51) -> 00:00:00 | O51: 00:00:00 | S51: =IFERROR(CHOOSE(WEEKDAY(A51,2),norm!C$1,norm!C$2,norm!C$3,norm!C$4,norm!C$5,norm!C$6,norm!C$7),"") -> 09:00:00
A52: 2019-02-18 | B52: Ma | H52: 00:00:00 | J52: =ColTime(T.!$J$3,T.!$L$3,D52,E52) -> 00:00:00 | L52: =ColTime(TIME(T.!$J$4,0,0),TIME(T.!$L$4,0,0),D52,E52) -> 00:00:00 | S52: =IFERROR(CHOOSE(WEEKDAY(A52,2),norm!C$1,norm!C$2,norm!C$3,norm!C$4,norm!C$5,norm!C$6,norm!C$7),"") -> 09:00:00
A53: 2019-02-19 | B53: Ti | H53: 00:00:00 | J53: =ColTime(T.!$J$3,T.!$L$3,D53,E53) -> 00:00:00 | L53: =ColTime(TIME(T.!$J$4,0,0),TIME(T.!$L$4,0,0),D53,E53) -> 00:00:00 | S53: =IFERROR(CHOOSE(WEEKDAY(A53,2),norm!C$1,norm!C$2,norm!C$3,norm!C$4,norm!C$5,norm!C$6,norm!C$7),"") -> 09:00:00
A54: 2019-02-20 | B54: On | H54: 00:00:00 | J54: =ColTime(T.!$J$3,T.!$L$3,D54,E54) -> 00:00:00 | L54: =ColTime(TIME(T.!$J$4,0,0),TIME(T.!$L$4,0,0),D54,E54) -> 00:00:00 | S54: =IFERROR(CHOOSE(WEEKDAY(A54,2),norm!C$1,norm!C$2,norm!C$3,norm!C$4,norm!C$5,norm!C$6,norm!C$7),"") -> 09:00:00
A55: 2019-02-21 | B55: To | H55: 00:00:00 | J55: =ColTime(T.!$J$3,T.!$L$3,D55,E55) -> 00:00:00 | L55: =ColTime(TIME(T.!$J$4,0,0),TIME(T.!$L$4,0,0),D55,E55) -> 00:00:00 | S55: =IFERROR(CHOOSE(WEEKDAY(A55,2),norm!C$1,norm!C$2,norm!C$3,norm!C$4,norm!C$5,norm!C$6,norm!C$7),"") -> 09:00:00
A56: 2019-02-22 | B56: Fr | H56: 00:00:00 | J56: =ColTime(T.!$J$3,T.!$L$3,D56,E56) -> 00:00:00 | L56: =ColTime(TIME(T.!$J$4,0,0),TIME(T.!$L$4,0,0),D56,E56) -> 00:00:00 | S56: =IFERROR(CHOOSE(WEEKDAY(A56,2),norm!C$1,norm!C$2,norm!C$3,norm!C$4,norm!C$5,norm!C$6,norm!C$7),"") -> 09:00:00
A57: 2019-02-23 | B57: Lø | H57: 00:00:00 | J57: =ColTime(T.!$J$3,T.!$L$3,D57,E57) -> 00:00:00 | L57: =ColTime(TIME(T.!$J$4,0,0),TIME(T.!$L$4,0,0),D57,E57) -> 00:00:00 | N57: 00:00:00 | S57: =IFERROR(CHOOSE(WEEKDAY(A57,2),norm!C$1,norm!C$2,norm!C$3,norm!C$4,norm!C$5,norm!C$6,norm!C$7),"") -> 09:00:00
A58: 2019-02-24 | B58: Sø | H58: 00:00:00 | J58: =ColTime(T.!$J$3,T.!$L$3,D58,E58) -> 00:00:00 | L58: =ColTime(TIME(T.!$J$4,0,0),TIME(T.!$L$4,0,0),D58,E58) -> 00:00:00 | O58: 00:00:00 | S58: =IFERROR(CHOOSE(WEEKDAY(A58,2),norm!C$1,norm!C$2,norm!C$3,norm!C$4,norm!C$5,norm!C$6,norm!C$7),"") -> 09:00:00
A59: 2019-02-25 | B59: Ma | H59: 00:00:00 | J59: =ColTime(T.!$J$3,T.!$L$3,D59,E59) -> 00:00:00 | L59: =ColTime(TIME(T.!$J$4,0,0),TIME(T.!$L$4,0,0),D59,E59) -> 00:00:00 | S59: =IFERROR(CHOOSE(WEEKDAY(A59,2),norm!C$1,norm!C$2,norm!C$3,norm!C$4,norm!C$5,norm!C$6,norm!C$7),"") -> 09:00:00
A60: 2019-02-26 | B60: Ti | H60: 00:00:00 | J60: =ColTime(T.!$J$3,T.!$L$3,D60,E60) -> 00:00:00 | L60: =ColTime(TIME(T.!$J$4,0,0),TIME(T.!$L$4,0,0),D60,E60) -> 00:00:00 | S60: =IFERROR(CHOOSE(WEEKDAY(A60,2),norm!C$1,norm!C$2,norm!C$3,norm!C$4,norm!C$5,norm!C$6,norm!C$7),"") -> 09:00:00
A61: 2019-02-27 | B61: On | H61: 00:00:00 | J61: =ColTime(T.!$J$3,T.!$L$3,D61,E61) -> 00:00:00 | L61: =ColTime(TIME(T.!$J$4,0,0),TIME(T.!$L$4,0,0),D61,E61) -> 00:00:00 | S61: =IFERROR(CHOOSE(WEEKDAY(A61,2),norm!C$1,norm!C$2,norm!C$3,norm!C$4,norm!C$5,norm!C$6,norm!C$7),"") -> 09:00:00
A62: 2019-02-28 | B62: To | H62: 00:00:00 | J62: =ColTime(T.!$J$3,T.!$L$3,D62,E62) -> 00:00:00 | L62: =ColTime(TIME(T.!$J$4,0,0),TIME(T.!$L$4,0,0),D62,E62) -> 00:00:00 | S62: =IFERROR(CHOOSE(WEEKDAY(A62,2),norm!C$1,norm!C$2,norm!C$3,norm!C$4,norm!C$5,norm!C$6,norm!C$7),"") -> 09:00:00
A63: 2019-03-01 | B63: Fr | H63: 00:00:00 | J63: =ColTime(T.!$J$3,T.!$L$3,D63,E63) -> 00:00:00 | L63: =ColTime(TIME(T.!$J$4,0,0),TIME(T.!$L$4,0,0),D63,E63) -> 00:00:00 | S63: =IFERROR(CHOOSE(WEEKDAY(A63,2),norm!C$1,norm!C$2,norm!C$3,norm!C$4,norm!C$5,norm!C$6,norm!C$7),"") -> 09:00:00
A64: 2019-03-02 | B64: Lø | H64: 00:00:00 | J64: =ColTime(T.!$J$3,T.!$L$3,D64,E64) -> 00:00:00 | L64: =ColTime(TIME(T.!$J$4,0,0),TIME(T.!$L$4,0,0),D64,E64) -> 00:00:00 | N64: 00:00:00 | S64: =IFERROR(CHOOSE(WEEKDAY(A64,2),norm!C$1,norm!C$2,norm!C$3,norm!C$4,norm!C$5,norm!C$6,norm!C$7),"") -> 09:00:00
A65: 2019-03-03 | B65: Sø | H65: 00:00:00 | J65: =ColTime(T.!$J$3,T.!$L$3,D65,E65) -> 00:00:00 | L65: =ColTime(TIME(T.!$J$4,0,0),TIME(T.!$L$4,0,0),D65,E65) -> 00:00:00 | O65: 00:00:00 | S65: =IFERROR(CHOOSE(WEEKDAY(A65,2),norm!C$1,norm!C$2,norm!C$3,norm!C$4,norm!C$5,norm!C$6,norm!C$7),"") -> 09:00:00
A66: 2019-03-04 | B66: Ma | H66: 00:00:00 | J66: =ColTime(T.!$J$3,T.!$L$3,D66,E66) -> 00:00:00 | L66: =ColTime(TIME(T.!$J$4,0,0),TIME(T.!$L$4,0,0),D66,E66) -> 00:00:00 | S66: =IFERROR(CHOOSE(WEEKDAY(A66,2),norm!C$1,norm!C$2,norm!C$3,norm!C$4,norm!C$5,norm!C$6,norm!C$7),"") -> 09:00:00
A67: 2019-03-05 | B67: Ti | H67: 00:00:00 | J67: =ColTime(T.!$J$3,T.!$L$3,D67,E67) -> 00:00:00 | L67: =ColTime(TIME(T.!$J$4,0,0),TIME(T.!$L$4,0,0),D67,E67) -> 00:00:00 | S67: =IFERROR(CHOOSE(WEEKDAY(A67,2),norm!C$1,norm!C$2,norm!C$3,norm!C$4,norm!C$5,norm!C$6,norm!C$7),"") -> 09:00:00
A68: 2019-03-06 | B68: On | H68: 00:00:00 | J68: =ColTime(T.!$J$3,T.!$L$3,D68,E68) -> 00:00:00 | L68: =ColTime(TIME(T.!$J$4,0,0),TIME(T.!$L$4,0,0),D68,E68) -> 00:00:00 | S68: =IFERROR(CHOOSE(WEEKDAY(A68,2),norm!C$1,norm!C$2,norm!C$3,norm!C$4,norm!C$5,norm!C$6,norm!C$7),"") -> 09:00:00
A69: 2019-03-07 | B69: To | H69: 00:00:00 | J69: =ColTime(T.!$J$3,T.!$L$3,D69,E69) -> 00:00:00 | L69: =ColTime(TIME(T.!$J$4,0,0),TIME(T.!$L$4,0,0),D69,E69) -> 00:00:00 | S69: =IFERROR(CHOOSE(WEEKDAY(A69,2),norm!C$1,norm!C$2,norm!C$3,norm!C$4,norm!C$5,norm!C$6,norm!C$7),"") -> 09:00:00
A70: 2019-03-08 | B70: Fr | H70: 00:00:00 | J70: =ColTime(T.!$J$3,T.!$L$3,D70,E70) -> 00:00:00 | L70: =ColTime(TIME(T.!$J$4,0,0),TIME(T.!$L$4,0,0),D70,E70) -> 00:00:00 | S70: =IFERROR(CHOOSE(WEEKDAY(A70,2),norm!C$1,norm!C$2,norm!C$3,norm!C$4,norm!C$5,norm!C$6,norm!C$7),"") -> 09:00:00
A71: 2019-03-09 | B71: Lø | H71: 00:00:00 | J71: =ColTime(T.!$J$3,T.!$L$3,D71,E71) -> 00:00:00 | L71: =ColTime(TIME(T.!$J$4,0,0),TIME(T.!$L$4,0,0),D71,E71) -> 00:00:00 | N71: 00:00:00 | S71: =IFERROR(CHOOSE(WEEKDAY(A71,2),norm!C$1,norm!C$2,norm!C$3,norm!C$4,norm!C$5,norm!C$6,norm!C$7),"") -> 09:00:00
A72: 2019-03-10 | B72: Sø | H72: 00:00:00 | J72: =ColTime(T.!$J$3,T.!$L$3,D72,E72) -> 00:00:00 | L72: =ColTime(TIME(T.!$J$4,0,0),TIME(T.!$L$4,0,0),D72,E72) -> 00:00:00 | O72: 00:00:00 | S72: =IFERROR(CHOOSE(WEEKDAY(A72,2),norm!C$1,norm!C$2,norm!C$3,norm!C$4,norm!C$5,norm!C$6,norm!C$7),"") -> 09:00:00
A73: 2019-03-11 | B73: Ma | H73: 00:00:00 | J73: =ColTime(T.!$J$3,T.!$L$3,D73,E73) -> 00:00:00 | L73: =ColTime(TIME(T.!$J$4,0,0),TIME(T.!$L$4,0,0),D73,E73) -> 00:00:00 | S73: =IFERROR(CHOOSE(WEEKDAY(A73,2),norm!C$1,norm!C$2,norm!C$3,norm!C$4,norm!C$5,norm!C$6,norm!C$7),"") -> 09:00:00
A74: 2019-03-12 | B74: Ti | H74: 00:00:00 | J74: =ColTime(T.!$J$3,T.!$L$3,D74,E74) -> 00:00:00 | L74: =ColTime(TIME(T.!$J$4,0,0),TIME(T.!$L$4,0,0),D74,E74) -> 00:00:00 | S74: =IFERROR(CHOOSE(WEEKDAY(A74,2),norm!C$1,norm!C$2,norm!C$3,norm!C$4,norm!C$5,norm!C$6,norm!C$7),"") -> 09:00:00
A75: 2019-03-13 | B75: On | H75: 00:00:00 | J75: =ColTime(T.!$J$3,T.!$L$3,D75,E75) -> 00:00:00 | L75: =ColTime(TIME(T.!$J$4,0,0),TIME(T.!$L$4,0,0),D75,E75) -> 00:00:00 | S75: =IFERROR(CHOOSE(WEEKDAY(A75,2),norm!C$1,norm!C$2,norm!C$3,norm!C$4,norm!C$5,norm!C$6,norm!C$7),"") -> 09:00:00
A76: 2019-03-14 | B76: To | H76: 00:00:00 | J76: =ColTime(T.!$J$3,T.!$L$3,D76,E76) -> 00:00:00 | L76: =ColTime(TIME(T.!$J$4,0,0),TIME(T.!$L$4,0,0),D76,E76) -> 00:00:00 | S76: =IFERROR(CHOOSE(WEEKDAY(A76,2),norm!C$1,norm!C$2,norm!C$3,norm!C$4,norm!C$5,norm!C$6,norm!C$7),"") -> 09:00:00
A77: 2019-03-15 | B77: Fr | H77: 00:00:00 | J77: =ColTime(T.!$J$3,T.!$L$3,D77,E77) -> 00:00:00 | L77: =ColTime(TIME(T.!$J$4,0,0),TIME(T.!$L$4,0,0),D77,E77) -> 00:00:00 | S77: =IFERROR(CHOOSE(WEEKDAY(A77,2),norm!C$1,norm!C$2,norm!C$3,norm!C$4,norm!C$5,norm!C$6,norm!C$7),"") -> 09:00:00
A78: 2019-03-16 | B78: Lø | H78: 00:00:00 | J78: =ColTime(T.!$J$3,T.!$L$3,D78,E78) -> 00:00:00 | L78: =ColTime(TIME(T.!$J$4,0,0),TIME(T.!$L$4,0,0),D78,E78) -> 00:00:00 | N78: 00:00:00 | S78: =IFERROR(CHOOSE(WEEKDAY(A78,2),norm!C$1,norm!C$2,norm!C$3,norm!C$4,norm!C$5,norm!C$6,norm!C$7),"") -> 09:00:00
A79: 2019-03-17 | B79: Sø | H79: 00:00:00 | J79: =ColTime(T.!$J$3,T.!$L$3,D79,E79) -> 00:00:00 | L79: =ColTime(TIME(T.!$J$4,0,0),TIME(T.!$L$4,0,0),D79,E79) -> 00:00:00 | O79: 00:00:00 | S79: =IFERROR(CHOOSE(WEEKDAY(A79,2),norm!C$1,norm!C$2,norm!C$3,norm!C$4,norm!C$5,norm!C$6,norm!C$7),"") -> 09:00:00
A80: 2019-03-18 | B80: Ma | H80: 00:00:00 | J80: =ColTime(T.!$J$3,T.!$L$3,D80,E80) -> 00:00:00 | L80: =ColTime(TIME(T.!$J$4,0,0),TIME(T.!$L$4,0,0),D80,E80) -> 00:00:00 | S80: =IFERROR(CHOOSE(WEEKDAY(A80,2),norm!C$1,norm!C$2,norm!C$3,norm!C$4,norm!C$5,norm!C$6,norm!C$7),"") -> 09:00:00
A81: 2019-03-19 | B81: Ti | H81: 00:00:00 | J81: =ColTime(T.!$J$3,T.!$L$3,D81,E81) -> 00:00:00 | L81: =ColTime(TIME(T.!$J$4,0,0),TIME(T.!$L$4,0,0),D81,E81) -> 00:00:00 | S81: =IFERROR(CHOOSE(WEEKDAY(A81,2),norm!C$1,norm!C$2,norm!C$3,norm!C$4,norm!C$5,norm!C$6,norm!C$7),"") -> 09:00:00
A82: 2019-03-20 | B82: On | H82: 00:00:00 | J82: =ColTime(T.!$J$3,T.!$L$3,D82,E82) -> 00:00:00 | L82: =ColTime(TIME(T.!$J$4,0,0),TIME(T.!$L$4,0,0),D82,E82) -> 00:00:00 | S82: =IFERROR(CHOOSE(WEEKDAY(A82,2),norm!C$1,norm!C$2,norm!C$3,norm!C$4,norm!C$5,norm!C$6,norm!C$7),"") -> 09:00:00
A83: 2019-03-21 | B83: To | H83: 00:00:00 | J83: =ColTime(T.!$J$3,T.!$L$3,D83,E83) -> 00:00:00 | L83: =ColTime(TIME(T.!$J$4,0,0),TIME(T.!$L$4,0,0),D83,E83) -> 00:00:00 | S83: =IFERROR(CHOOSE(WEEKDAY(A83,2),norm!C$1,norm!C$2,norm!C$3,norm!C$4,norm!C$5,norm!C$6,norm!C$7),"") -> 09:00:00
A84: 2019-03-22 | B84: Fr | H84: 00:00:00 | J84: =ColTime(T.!$J$3,T.!$L$3,D84,E84) -> 00:00:00 | L84: =ColTime(TIME(T.!$J$4,0,0),TIME(T.!$L$4,0,0),D84,E84) -> 00:00:00 | S84: =IFERROR(CHOOSE(WEEKDAY(A84,2),norm!C$1,norm!C$2,norm!C$3,norm!C$4,norm!C$5,norm!C$6,norm!C$7),"") -> 09:00:00
A85: 2019-03-23 | B85: Lø | H85: 00:00:00 | J85: =ColTime(T.!$J$3,T.!$L$3,D85,E85) -> 00:00:00 | L85: =ColTime(TIME(T.!$J$4,0,0),TIME(T.!$L$4,0,0),D85,E85) -> 00:00:00 | N85: 00:00:00 | S85: =IFERROR(CHOOSE(WEEKDAY(A85,2),norm!C$1,norm!C$2,norm!C$3,norm!C$4,norm!C$5,norm!C$6,norm!C$7),"") -> 09:00:00
A86: 2019-03-24 | B86: Sø | H86: 00:00:00 | J86: =ColTime(T.!$J$3,T.!$L$3,D86,E86) -> 00:00:00 | L86: =ColTime(TIME(T.!$J$4,0,0),TIME(T.!$L$4,0,0),D86,E86) -> 00:00:00 | O86: 00:00:00 | S86: =IFERROR(CHOOSE(WEEKDAY(A86,2),norm!C$1,norm!C$2,norm!C$3,norm!C$4,norm!C$5,norm!C$6,norm!C$7),"") -> 09:00:00
A87: 2019-03-25 | B87: Ma | H87: 00:00:00 | J87: =ColTime(T.!$J$3,T.!$L$3,D87,E87) -> 00:00:00 | L87: =ColTime(TIME(T.!$J$4,0,0),TIME(T.!$L$4,0,0),D87,E87) -> 00:00:00 | S87: =IFERROR(CHOOSE(WEEKDAY(A87,2),norm!C$1,norm!C$2,norm!C$3,norm!C$4,norm!C$5,norm!C$6,norm!C$7),"") -> 09:00:00
A88: 2019-03-26 | B88: Ti | H88: 00:00:00 | J88: =ColTime(T.!$J$3,T.!$L$3,D88,E88) -> 00:00:00 | L88: =ColTime(TIME(T.!$J$4,0,0),TIME(T.!$L$4,0,0),D88,E88) -> 00:00:00 | S88: =IFERROR(CHOOSE(WEEKDAY(A88,2),norm!C$1,norm!C$2,norm!C$3,norm!C$4,norm!C$5,norm!C$6,norm!C$7),"") -> 09:00:00
A89: 2019-03-27 | B89: On | H89: 00:00:00 | J89: =ColTime(T.!$J$3,T.!$L$3,D89,E89) -> 00:00:00 | L89: =ColTime(TIME(T.!$J$4,0,0),TIME(T.!$L$4,0,0),D89,E89) -> 00:00:00 | S89: =IFERROR(CHOOSE(WEEKDAY(A89,2),norm!C$1,norm!C$2,norm!C$3,norm!C$4,norm!C$5,norm!C$6,norm!C$7),"") -> 09:00:00
A90: 2019-03-28 | B90: To | H90: 00:00:00 | J90: =ColTime(T.!$J$3,T.!$L$3,D90,E90) -> 00:00:00 | L90: =ColTime(TIME(T.!$J$4,0,0),TIME(T.!$L$4,0,0),D90,E90) -> 00:00:00 | S90: =IFERROR(CHOOSE(WEEKDAY(A90,2),norm!C$1,norm!C$2,norm!C$3,norm!C$4,norm!C$5,norm!C$6,norm!C$7),"") -> 09:00:00
A91: =A90+1 -> 2019-03-29 | B91: Fr | H91: 00:00:00 | J91: =ColTime(T.!$J$3,T.!$L$3,D91,E91) -> 00:00:00 | L91: =ColTime(TIME(T.!$J$4,0,0),TIME(T.!$L$4,0,0),D91,E91) -> 00:00:00 | S91: =IFERROR(CHOOSE(WEEKDAY(A91,2),norm!C$1,norm!C$2,norm!C$3,norm!C$4,norm!C$5,norm!C$6,norm!C$7),"") -> 09:00:00
A92: 2019-03-30 | B92: Lø | H92: 00:00:00 | J92: =ColTime(T.!$J$3,T.!$L$3,D92,E92) -> 00:00:00 | L92: =ColTime(TIME(T.!$J$4,0,0),TIME(T.!$L$4,0,0),D92,E92) -> 00:00:00 | N92: 00:00:00 | S92: =IFERROR(CHOOSE(WEEKDAY(A92,2),norm!C$1,norm!C$2,norm!C$3,norm!C$4,norm!C$5,norm!C$6,norm!C$7),"") -> 09:00:00
A93: 2019-03-31 | B93: Sø | H93: 00:00:00 | J93: =ColTime(T.!$J$3,T.!$L$3,D93,E93) -> 00:00:00 | L93: =ColTime(TIME(T.!$J$4,0,0),TIME(T.!$L$4,0,0),D93,E93) -> 00:00:00 | O93: 00:00:00 | S93: =IFERROR(CHOOSE(WEEKDAY(A93,2),norm!C$1,norm!C$2,norm!C$3,norm!C$4,norm!C$5,norm!C$6,norm!C$7),"") -> 09:00:00
A94: 2019-04-01 | B94: Ma | H94: 00:00:00 | J94: =ColTime(T.!$J$3,T.!$L$3,D94,E94) -> 00:00:00 | L94: =ColTime(TIME(T.!$J$4,0,0),TIME(T.!$L$4,0,0),D94,E94) -> 00:00:00 | S94: =IFERROR(CHOOSE(WEEKDAY(A94,2),norm!C$1,norm!C$2,norm!C$3,norm!C$4,norm!C$5,norm!C$6,norm!C$7),"") -> 09:00:00
A95: 2019-04-02 | B95: Ti | H95: 00:00:00 | J95: =ColTime(T.!$J$3,T.!$L$3,D95,E95) -> 00:00:00 | L95: =ColTime(TIME(T.!$J$4,0,0),TIME(T.!$L$4,0,0),D95,E95) -> 00:00:00 | S95: =IFERROR(CHOOSE(WEEKDAY(A95,2),norm!C$1,norm!C$2,norm!C$3,norm!C$4,norm!C$5,norm!C$6,norm!C$7),"") -> 09:00:00
A96: 2019-04-03 | B96: On | H96: 00:00:00 | J96: =ColTime(T.!$J$3,T.!$L$3,D96,E96) -> 00:00:00 | L96: =ColTime(TIME(T.!$J$4,0,0),TIME(T.!$L$4,0,0),D96,E96) -> 00:00:00 | S96: =IFERROR(CHOOSE(WEEKDAY(A96,2),norm!C$1,norm!C$2,norm!C$3,norm!C$4,norm!C$5,norm!C$6,norm!C$7),"") -> 09:00:00
A97: 2019-04-04 | B97: To | H97: 00:00:00 | J97: =ColTime(T.!$J$3,T.!$L$3,D97,E97) -> 00:00:00 | L97: =ColTime(TIME(T.!$J$4,0,0),TIME(T.!$L$4,0,0),D97,E97) -> 00:00:00 | S97: =IFERROR(CHOOSE(WEEKDAY(A97,2),norm!C$1,norm!C$2,norm!C$3,norm!C$4,norm!C$5,norm!C$6,norm!C$7),"") -> 09:00:00
A98: 2019-04-05 | B98: Fr | H98: 00:00:00 | J98: =ColTime(T.!$J$3,T.!$L$3,D98,E98) -> 00:00:00 | L98: =ColTime(TIME(T.!$J$4,0,0),TIME(T.!$L$4,0,0),D98,E98) -> 00:00:00 | S98: =IFERROR(CHOOSE(WEEKDAY(A98,2),norm!C$1,norm!C$2,norm!C$3,norm!C$4,norm!C$5,norm!C$6,norm!C$7),"") -> 09:00:00
A99: 2019-04-06 | B99: =IFERROR(PROPER(TEXT(A99,"ddd")),"") -> Lø | H99: 00:00:00 | J99: =ColTime(T.!$J$3,T.!$L$3,D99,E99) -> 00:00:00 | L99: =ColTime(TIME(T.!$J$4,0,0),TIME(T.!$L$4,0,0),D99,E99) -> 00:00:00 | N99: 00:00:00 | S99: =IFERROR(CHOOSE(WEEKDAY(A99,2),norm!C$1,norm!C$2,norm!C$3,norm!C$4,norm!C$5,norm!C$6,norm!C$7),"") -> 09:00:00
A100: 2019-04-07 | B100: Sø | H100: 00:00:00 | J100: =ColTime(T.!$J$3,T.!$L$3,D100,E100) -> 00:00:00 | L100: =ColTime(TIME(T.!$J$4,0,0),TIME(T.!$L$4,0,0),D100,E100) -> 00:00:00 | O100: 00:00:00 | S100: =IFERROR(CHOOSE(WEEKDAY(A100,2),norm!C$1,norm!C$2,norm!C$3,norm!C$4,norm!C$5,norm!C$6,norm!C$7),"") -> 09:00:00
A101: 2019-04-08 | B101: Ma | H101: 00:00:00 | J101: =ColTime(T.!$J$3,T.!$L$3,D101,E101) -> 00:00:00 | L101: =ColTime(TIME(T.!$J$4,0,0),TIME(T.!$L$4,0,0),D101,E101) -> 00:00:00 | S101: =IFERROR(CHOOSE(WEEKDAY(A101,2),norm!C$1,norm!C$2,norm!C$3,norm!C$4,norm!C$5,norm!C$6,norm!C$7),"") -> 09:00:00
A102: 2019-04-09 | B102: Ti | H102: 00:00:00 | J102: =ColTime(T.!$J$3,T.!$L$3,D102,E102) -> 00:00:00 | L102: =ColTime(TIME(T.!$J$4,0,0),TIME(T.!$L$4,0,0),D102,E102) -> 00:00:00 | S102: =IFERROR(CHOOSE(WEEKDAY(A102,2),norm!C$1,norm!C$2,norm!C$3,norm!C$4,norm!C$5,norm!C$6,norm!C$7),"") -> 09:00:00
A103: 2019-04-10 | B103: On | H103: 00:00:00 | J103: =ColTime(T.!$J$3,T.!$L$3,D103,E103) -> 00:00:00 | L103: =ColTime(TIME(T.!$J$4,0,0),TIME(T.!$L$4,0,0),D103,E103) -> 00:00:00 | S103: =IFERROR(CHOOSE(WEEKDAY(A103,2),norm!C$1,norm!C$2,norm!C$3,norm!C$4,norm!C$5,norm!C$6,norm!C$7),"") -> 09:00:00
A104: 2019-04-11 | B104: To | H104: 00:00:00 | J104: =ColTime(T.!$J$3,T.!$L$3,D104,E104) -> 00:00:00 | L104: =ColTime(TIME(T.!$J$4,0,0),TIME(T.!$L$4,0,0),D104,E104) -> 00:00:00 | S104: =IFERROR(CHOOSE(WEEKDAY(A104,2),norm!C$1,norm!C$2,norm!C$3,norm!C$4,norm!C$5,norm!C$6,norm!C$7),"") -> 09:00:00
A105: 2019-04-12 | B105: Fr | H105: 00:00:00 | J105: =ColTime(T.!$J$3,T.!$L$3,D105,E105) -> 00:00:00 | L105: =ColTime(TIME(T.!$J$4,0,0),TIME(T.!$L$4,0,0),D105,E105) -> 00:00:00 | S105: =IFERROR(CHOOSE(WEEKDAY(A105,2),norm!C$1,norm!C$2,norm!C$3,norm!C$4,norm!C$5,norm!C$6,norm!C$7),"") -> 09:00:00
A106: 2019-04-13 | B106: Lø | H106: 00:00:00 | J106: =ColTime(T.!$J$3,T.!$L$3,D106,E106) -> 00:00:00 | L106: =ColTime(TIME(T.!$J$4,0,0),TIME(T.!$L$4,0,0),D106,E106) -> 00:00:00 | N106: 00:00:00 | S106: =IFERROR(CHOOSE(WEEKDAY(A106,2),norm!C$1,norm!C$2,norm!C$3,norm!C$4,norm!C$5,norm!C$6,norm!C$7),"") -> 09:00:00
A107: 2019-04-14 | B107: Sø | H107: 00:00:00 | J107: =ColTime(T.!$J$3,T.!$L$3,D107,E107) -> 00:00:00 | L107: =ColTime(TIME(T.!$J$4,0,0),TIME(T.!$L$4,0,0),D107,E107) -> 00:00:00 | O107: 00:00:00 | S107: =IFERROR(CHOOSE(WEEKDAY(A107,2),norm!C$1,norm!C$2,norm!C$3,norm!C$4,norm!C$5,norm!C$6,norm!C$7),"") -> 09:00:00
A108: 2019-04-15 | B108: Ma | H108: 00:00:00 | J108: =ColTime(T.!$J$3,T.!$L$3,D108,E108) -> 00:00:00 | L108: =ColTime(TIME(T.!$J$4,0,0),TIME(T.!$L$4,0,0),D108,E108) -> 00:00:00 | S108: =IFERROR(CHOOSE(WEEKDAY(A108,2),norm!C$1,norm!C$2,norm!C$3,norm!C$4,norm!C$5,norm!C$6,norm!C$7),"") -> 09:00:00
A109: 2019-04-16 | B109: Ti | C109: =IF(A109="","",HelligdagsNavn(A109,0,0)) ->  | G109: =IF(D109="","",(E109-D109)+(D109>E109)-F109) ->  | H109: =IF(G109="",0,IF(WEEKDAY(A109,2)=7,0,IF(G109>S109,MIN(G109-S109,$AI$1),0))) -> 00:00:00 | I109: =IF(G109="","",IF(G109>S109+H109,G109-(S109+H109),"")) ->  | J109: =ColTime(T.!$J$3,T.!$L$3,D109,E109) -> 00:00:00 | L109: =ColTime(TIME(T.!$J$4,0,0),TIME(T.!$L$4,0,0),D109,E109) -> 00:00:00 | N109: =IFERROR(IF(WEEKDAY(A109,2)=6,ColTime(TIME(15,0,0),TIME(24,0,0),D109,E109),""),"") ->  | O109: =IFERROR(IF(OR(C109<>"",WEEKDAY(A109,2)=7),ColTime(TIME(0,0,0),TIME(24,0,0),D109,E109),""),"") ->  | P109: =IFERROR(H109+I109,"") ->  | S109: =IFERROR(CHOOSE(WEEKDAY(A109,2),norm!C$1,norm!C$2,norm!C$3,norm!C$4,norm!C$5,norm!C$6,norm!C$7),"") -> 09:00:00
A110: 2019-04-17 | B110: On | H110: 00:00:00 | J110: =ColTime(T.!$J$3,T.!$L$3,D110,E110) -> 00:00:00 | L110: =ColTime(TIME(T.!$J$4,0,0),TIME(T.!$L$4,0,0),D110,E110) -> 00:00:00 | S110: =IFERROR(CHOOSE(WEEKDAY(A110,2),norm!C$1,norm!C$2,norm!C$3,norm!C$4,norm!C$5,norm!C$6,norm!C$7),"") -> 09:00:00
A111: 2019-04-18 | B111: To | C111: Skærtorsdag | H111: 00:00:00 | J111: =ColTime(T.!$J$3,T.!$L$3,D111,E111) -> 00:00:00 | L111: =ColTime(TIME(T.!$J$4,0,0),TIME(T.!$L$4,0,0),D111,E111) -> 00:00:00 | O111: 00:00:00 | S111: =IFERROR(CHOOSE(WEEKDAY(A111,2),norm!C$1,norm!C$2,norm!C$3,norm!C$4,norm!C$5,norm!C$6,norm!C$7),"") -> 09:00:00
A112: 2019-04-19 | B112: Fr | C112: Langfredag | H112: 00:00:00 | J112: =ColTime(T.!$J$3,T.!$L$3,D112,E112) -> 00:00:00 | L112: =ColTime(TIME(T.!$J$4,0,0),TIME(T.!$L$4,0,0),D112,E112) -> 00:00:00 | O112: 00:00:00 | S112: =IFERROR(CHOOSE(WEEKDAY(A112,2),norm!C$1,norm!C$2,norm!C$3,norm!C$4,norm!C$5,norm!C$6,norm!C$7),"") -> 09:00:00
A113: 2019-04-20 | B113: Lø | H113: 00:00:00 | J113: =ColTime(T.!$J$3,T.!$L$3,D113,E113) -> 00:00:00 | L113: =ColTime(TIME(T.!$J$4,0,0),TIME(T.!$L$4,0,0),D113,E113) -> 00:00:00 | N113: 00:00:00 | S113: =IFERROR(CHOOSE(WEEKDAY(A113,2),norm!C$1,norm!C$2,norm!C$3,norm!C$4,norm!C$5,norm!C$6,norm!C$7),"") -> 09:00:00
A114: 2019-04-21 | B114: Sø | C114: Påskedag | H114: 00:00:00 | J114: =ColTime(T.!$J$3,T.!$L$3,D114,E114) -> 00:00:00 | L114: =ColTime(TIME(T.!$J$4,0,0),TIME(T.!$L$4,0,0),D114,E114) -> 00:00:00 | O114: 00:00:00 | S114: =IFERROR(CHOOSE(WEEKDAY(A114,2),norm!C$1,norm!C$2,norm!C$3,norm!C$4,norm!C$5,norm!C$6,norm!C$7),"") -> 09:00:00
A115: 2019-04-22 | B115: Ma | C115: 2. Påskedag | H115: 00:00:00 | J115: =ColTime(T.!$J$3,T.!$L$3,D115,E115) -> 00:00:00 | L115: =ColTime(TIME(T.!$J$4,0,0),TIME(T.!$L$4,0,0),D115,E115) -> 00:00:00 | O115: 00:00:00 | S115: =IFERROR(CHOOSE(WEEKDAY(A115,2),norm!C$1,norm!C$2,norm!C$3,norm!C$4,norm!C$5,norm!C$6,norm!C$7),"") -> 09:00:00
A116: 2019-04-23 | B116: Ti | H116: 00:00:00 | J116: =ColTime(T.!$J$3,T.!$L$3,D116,E116) -> 00:00:00 | L116: =ColTime(TIME(T.!$J$4,0,0),TIME(T.!$L$4,0,0),D116,E116) -> 00:00:00 | S116: =IFERROR(CHOOSE(WEEKDAY(A116,2),norm!C$1,norm!C$2,norm!C$3,norm!C$4,norm!C$5,norm!C$6,norm!C$7),"") -> 09:00:00
A117: 2019-04-24 | B117: On | H117: 00:00:00 | J117: =ColTime(T.!$J$3,T.!$L$3,D117,E117) -> 00:00:00 | L117: =ColTime(TIME(T.!$J$4,0,0),TIME(T.!$L$4,0,0),D117,E117) -> 00:00:00 | S117: =IFERROR(CHOOSE(WEEKDAY(A117,2),norm!C$1,norm!C$2,norm!C$3,norm!C$4,norm!C$5,norm!C$6,norm!C$7),"") -> 09:00:00
A118: 2019-04-25 | B118: To | H118: 00:00:00 | J118: =ColTime(T.!$J$3,T.!$L$3,D118,E118) -> 00:00:00 | L118: =ColTime(TIME(T.!$J$4,0,0),TIME(T.!$L$4,0,0),D118,E118) -> 00:00:00 | S118: =IFERROR(CHOOSE(WEEKDAY(A118,2),norm!C$1,norm!C$2,norm!C$3,norm!C$4,norm!C$5,norm!C$6,norm!C$7),"") -> 09:00:00
A119: 2019-04-26 | B119: Fr | H119: 00:00:00 | J119: =ColTime(T.!$J$3,T.!$L$3,D119,E119) -> 00:00:00 | L119: =ColTime(TIME(T.!$J$4,0,0),TIME(T.!$L$4,0,0),D119,E119) -> 00:00:00 | S119: =IFERROR(CHOOSE(WEEKDAY(A119,2),norm!C$1,norm!C$2,norm!C$3,norm!C$4,norm!C$5,norm!C$6,norm!C$7),"") -> 09:00:00
A120: 2019-04-27 | B120: Lø | H120: 00:00:00 | J120: =ColTime(T.!$J$3,T.!$L$3,D120,E120) -> 00:00:00 | L120: =ColTime(TIME(T.!$J$4,0,0),TIME(T.!$L$4,0,0),D120,E120) -> 00:00:00 | N120: 00:00:00 | S120: =IFERROR(CHOOSE(WEEKDAY(A120,2),norm!C$1,norm!C$2,norm!C$3,norm!C$4,norm!C$5,norm!C$6,norm!C$7),"") -> 09:00:00
A121: 2019-04-28 | B121: Sø | H121: 00:00:00 | J121: =ColTime(T.!$J$3,T.!$L$3,D121,E121) -> 00:00:00 | L121: =ColTime(TIME(T.!$J$4,0,0),TIME(T.!$L$4,0,0),D121,E121) -> 00:00:00 | O121: 00:00:00 | S121: =IFERROR(CHOOSE(WEEKDAY(A121,2),norm!C$1,norm!C$2,norm!C$3,norm!C$4,norm!C$5,norm!C$6,norm!C$7),"") -> 09:00:00
A122: 2019-04-29 | B122: Ma | H122: 00:00:00 | J122: =ColTime(T.!$J$3,T.!$L$3,D122,E122) -> 00:00:00 | L122: =ColTime(TIME(T.!$J$4,0,0),TIME(T.!$L$4,0,0),D122,E122) -> 00:00:00 | S122: =IFERROR(CHOOSE(WEEKDAY(A122,2),norm!C$1,norm!C$2,norm!C$3,norm!C$4,norm!C$5,norm!C$6,norm!C$7),"") -> 09:00:00
A123: 2019-04-30 | B123: Ti | H123: 00:00:00 | J123: =ColTime(T.!$J$3,T.!$L$3,D123,E123) -> 00:00:00 | L123: =ColTime(TIME(T.!$J$4,0,0),TIME(T.!$L$4,0,0),D123,E123) -> 00:00:00 | S123: =IFERROR(CHOOSE(WEEKDAY(A123,2),norm!C$1,norm!C$2,norm!C$3,norm!C$4,norm!C$5,norm!C$6,norm!C$7),"") -> 09:00:00
A124: 2019-05-01 | B124: On | H124: 00:00:00 | J124: =ColTime(T.!$J$3,T.!$L$3,D124,E124) -> 00:00:00 | L124: =ColTime(TIME(T.!$J$4,0,0),TIME(T.!$L$4,0,0),D124,E124) -> 00:00:00 | S124: =IFERROR(CHOOSE(WEEKDAY(A124,2),norm!C$1,norm!C$2,norm!C$3,norm!C$4,norm!C$5,norm!C$6,norm!C$7),"") -> 09:00:00
A125: 2019-05-02 | B125: To | H125: 00:00:00 | J125: =ColTime(T.!$J$3,T.!$L$3,D125,E125) -> 00:00:00 | L125: =ColTime(TIME(T.!$J$4,0,0),TIME(T.!$L$4,0,0),D125,E125) -> 00:00:00 | S125: =IFERROR(CHOOSE(WEEKDAY(A125,2),norm!C$1,norm!C$2,norm!C$3,norm!C$4,norm!C$5,norm!C$6,norm!C$7),"") -> 09:00:00
A126: 2019-05-03 | B126: Fr | H126: 00:00:00 | J126: =ColTime(T.!$J$3,T.!$L$3,D126,E126) -> 00:00:00 | L126: =ColTime(TIME(T.!$J$4,0,0),TIME(T.!$L$4,0,0),D126,E126) -> 00:00:00 | S126: =IFERROR(CHOOSE(WEEKDAY(A126,2),norm!C$1,norm!C$2,norm!C$3,norm!C$4,norm!C$5,norm!C$6,norm!C$7),"") -> 09:00:00
A127: 2019-05-04 | B127: Lø | H127: 00:00:00 | J127: =ColTime(T.!$J$3,T.!$L$3,D127,E127) -> 00:00:00 | L127: =ColTime(TIME(T.!$J$4,0,0),TIME(T.!$L$4,0,0),D127,E127) -> 00:00:00 | N127: 00:00:00 | S127: =IFERROR(CHOOSE(WEEKDAY(A127,2),norm!C$1,norm!C$2,norm!C$3,norm!C$4,norm!C$5,norm!C$6,norm!C$7),"") -> 09:00:00
A128: 2019-05-05 | B128: Sø | H128: 00:00:00 | J128: =ColTime(T.!$J$3,T.!$L$3,D128,E128) -> 00:00:00 | L128: =ColTime(TIME(T.!$J$4,0,0),TIME(T.!$L$4,0,0),D128,E128) -> 00:00:00 | O128: 00:00:00 | S128: =IFERROR(CHOOSE(WEEKDAY(A128,2),norm!C$1,norm!C$2,norm!C$3,norm!C$4,norm!C$5,norm!C$6,norm!C$7),"") -> 09:00:00
A129: 2019-05-06 | B129: Ma | H129: 00:00:00 | J129: =ColTime(T.!$J$3,T.!$L$3,D129,E129) -> 00:00:00 | L129: =ColTime(TIME(T.!$J$4,0,0),TIME(T.!$L$4,0,0),D129,E129) -> 00:00:00 | S129: =IFERROR(CHOOSE(WEEKDAY(A129,2),norm!C$1,norm!C$2,norm!C$3,norm!C$4,norm!C$5,norm!C$6,norm!C$7),"") -> 09:00:00
A130: 2019-05-07 | B130: Ti | H130: 00:00:00 | J130: =ColTime(T.!$J$3,T.!$L$3,D130,E130) -> 00:00:00 | L130: =ColTime(TIME(T.!$J$4,0,0),TIME(T.!$L$4,0,0),D130,E130) -> 00:00:00 | S130: =IFERROR(CHOOSE(WEEKDAY(A130,2),norm!C$1,norm!C$2,norm!C$3,norm!C$4,norm!C$5,norm!C$6,norm!C$7),"") -> 09:00:00
A131: 2019-05-08 | B131: On | H131: 00:00:00 | J131: =ColTime(T.!$J$3,T.!$L$3,D131,E131) -> 00:00:00 | L131: =ColTime(TIME(T.!$J$4,0,0),TIME(T.!$L$4,0,0),D131,E131) -> 00:00:00 | S131: =IFERROR(CHOOSE(WEEKDAY(A131,2),norm!C$1,norm!C$2,norm!C$3,norm!C$4,norm!C$5,norm!C$6,norm!C$7),"") -> 09:00:00
A132: 2019-05-09 | B132: To | H132: 00:00:00 | J132: =ColTime(T.!$J$3,T.!$L$3,D132,E132) -> 00:00:00 | L132: =ColTime(TIME(T.!$J$4,0,0),TIME(T.!$L$4,0,0),D132,E132) -> 00:00:00 | S132: =IFERROR(CHOOSE(WEEKDAY(A132,2),norm!C$1,norm!C$2,norm!C$3,norm!C$4,norm!C$5,norm!C$6,norm!C$7),"") -> 09:00:00
A133: 2019-05-10 | B133: Fr | H133: 00:00:00 | J133: =ColTime(T.!$J$3,T.!$L$3,D133,E133) -> 00:00:00 | L133: =ColTime(TIME(T.!$J$4,0,0),TIME(T.!$L$4,0,0),D133,E133) -> 00:00:00 | S133: =IFERROR(CHOOSE(WEEKDAY(A133,2),norm!C$1,norm!C$2,norm!C$3,norm!C$4,norm!C$5,norm!C$6,norm!C$7),"") -> 09:00:00
A134: 2019-05-11 | B134: Lø | H134: 00:00:00 | J134: =ColTime(T.!$J$3,T.!$L$3,D134,E134) -> 00:00:00 | L134: =ColTime(TIME(T.!$J$4,0,0),TIME(T.!$L$4,0,0),D134,E134) -> 00:00:00 | N134: 00:00:00 | S134: =IFERROR(CHOOSE(WEEKDAY(A134,2),norm!C$1,norm!C$2,norm!C$3,norm!C$4,norm!C$5,norm!C$6,norm!C$7),"") -> 09:00:00
A135: 2019-05-12 | B135: Sø | H135: 00:00:00 | J135: =ColTime(T.!$J$3,T.!$L$3,D135,E135) -> 00:00:00 | L135: =ColTime(TIME(T.!$J$4,0,0),TIME(T.!$L$4,0,0),D135,E135) -> 00:00:00 | O135: 00:00:00 | S135: =IFERROR(CHOOSE(WEEKDAY(A135,2),norm!C$1,norm!C$2,norm!C$3,norm!C$4,norm!C$5,norm!C$6,norm!C$7),"") -> 09:00:00
A136: 2019-05-13 | B136: Ma | H136: 00:00:00 | J136: =ColTime(T.!$J$3,T.!$L$3,D136,E136) -> 00:00:00 | L136: =ColTime(TIME(T.!$J$4,0,0),TIME(T.!$L$4,0,0),D136,E136) -> 00:00:00 | S136: =IFERROR(CHOOSE(WEEKDAY(A136,2),norm!C$1,norm!C$2,norm!C$3,norm!C$4,norm!C$5,norm!C$6,norm!C$7),"") -> 09:00:00
A137: 2019-05-14 | B137: Ti | H137: 00:00:00 | J137: =ColTime(T.!$J$3,T.!$L$3,D137,E137) -> 00:00:00 | L137: =ColTime(TIME(T.!$J$4,0,0),TIME(T.!$L$4,0,0),D137,E137) -> 00:00:00 | S137: =IFERROR(CHOOSE(WEEKDAY(A137,2),norm!C$1,norm!C$2,norm!C$3,norm!C$4,norm!C$5,norm!C$6,norm!C$7),"") -> 09:00:00
A138: 2019-05-15 | B138: On | H138: 00:00:00 | J138: =ColTime(T.!$J$3,T.!$L$3,D138,E138) -> 00:00:00 | L138: =ColTime(TIME(T.!$J$4,0,0),TIME(T.!$L$4,0,0),D138,E138) -> 00:00:00 | S138: =IFERROR(CHOOSE(WEEKDAY(A138,2),norm!C$1,norm!C$2,norm!C$3,norm!C$4,norm!C$5,norm!C$6,norm!C$7),"") -> 09:00:00
A139: 2019-05-16 | B139: To | H139: 00:00:00 | J139: =ColTime(T.!$J$3,T.!$L$3,D139,E139) -> 00:00:00 | L139: =ColTime(TIME(T.!$J$4,0,0),TIME(T.!$L$4,0,0),D139,E139) -> 00:00:00 | S139: =IFERROR(CHOOSE(WEEKDAY(A139,2),norm!C$1,norm!C$2,norm!C$3,norm!C$4,norm!C$5,norm!C$6,norm!C$7),"") -> 09:00:00
A140: 2019-05-17 | B140: Fr | C140: Store Bededag | H140: 00:00:00 | J140: =ColTime(T.!$J$3,T.!$L$3,D140,E140) -> 00:00:00 | L140: =ColTime(TIME(T.!$J$4,0,0),TIME(T.!$L$4,0,0),D140,E140) -> 00:00:00 | O140: 00:00:00 | S140: =IFERROR(CHOOSE(WEEKDAY(A140,2),norm!C$1,norm!C$2,norm!C$3,norm!C$4,norm!C$5,norm!C$6,norm!C$7),"") -> 09:00:00
A141: 2019-05-18 | B141: Lø | H141: 00:00:00 | J141: =ColTime(T.!$J$3,T.!$L$3,D141,E141) -> 00:00:00 | L141: =ColTime(TIME(T.!$J$4,0,0),TIME(T.!$L$4,0,0),D141,E141) -> 00:00:00 | N141: 00:00:00 | S141: =IFERROR(CHOOSE(WEEKDAY(A141,2),norm!C$1,norm!C$2,norm!C$3,norm!C$4,norm!C$5,norm!C$6,norm!C$7),"") -> 09:00:00
A142: 2019-05-19 | B142: Sø | H142: 00:00:00 | J142: =ColTime(T.!$J$3,T.!$L$3,D142,E142) -> 00:00:00 | L142: =ColTime(TIME(T.!$J$4,0,0),TIME(T.!$L$4,0,0),D142,E142) -> 00:00:00 | O142: 00:00:00 | S142: =IFERROR(CHOOSE(WEEKDAY(A142,2),norm!C$1,norm!C$2,norm!C$3,norm!C$4,norm!C$5,norm!C$6,norm!C$7),"") -> 09:00:00
A143: 2019-05-20 | B143: Ma | H143: 00:00:00 | J143: =ColTime(T.!$J$3,T.!$L$3,D143,E143) -> 00:00:00 | L143: =ColTime(TIME(T.!$J$4,0,0),TIME(T.!$L$4,0,0),D143,E143) -> 00:00:00 | S143: =IFERROR(CHOOSE(WEEKDAY(A143,2),norm!C$1,norm!C$2,norm!C$3,norm!C$4,norm!C$5,norm!C$6,norm!C$7),"") -> 09:00:00
A144: 2019-05-21 | B144: Ti | H144: 00:00:00 | J144: =ColTime(T.!$J$3,T.!$L$3,D144,E144) -> 00:00:00 | L144: =ColTime(TIME(T.!$J$4,0,0),TIME(T.!$L$4,0,0),D144,E144) -> 00:00:00 | S144: =IFERROR(CHOOSE(WEEKDAY(A144,2),norm!C$1,norm!C$2,norm!C$3,norm!C$4,norm!C$5,norm!C$6,norm!C$7),"") -> 09:00:00
A145: 2019-05-22 | B145: On | C145: =IF(A145="","",HelligdagsNavn(A145,0,0)) ->  | G145: =IF(D145="","",(E145-D145)+(D145>E145)-F145) ->  | H145: =IF(G145="",0,IF(WEEKDAY(A145,2)=7,0,IF(G145>S145,MIN(G145-S145,$AI$1),0))) -> 00:00:00 | I145: =IF(G145="","",IF(G145>S145+H145,G145-(S145+H145),"")) ->  | J145: =ColTime(T.!$J$3,T.!$L$3,D145,E145) -> 00:00:00 | L145: =ColTime(TIME(T.!$J$4,0,0),TIME(T.!$L$4,0,0),D145,E145) -> 00:00:00 | N145: =IFERROR(IF(WEEKDAY(A145,2)=6,ColTime(TIME(15,0,0),TIME(24,0,0),D145,E145),""),"") ->  | O145: =IFERROR(IF(OR(C145<>"",WEEKDAY(A145,2)=7),ColTime(TIME(0,0,0),TIME(24,0,0),D145,E145),""),"") ->  | P145: =IFERROR(H145+I145,"") ->  | S145: =IFERROR(CHOOSE(WEEKDAY(A145,2),norm!C$1,norm!C$2,norm!C$3,norm!C$4,norm!C$5,norm!C$6,norm!C$7),"") -> 09:00:00
A146: 2019-05-23 | B146: To | H146: 00:00:00 | J146: =ColTime(T.!$J$3,T.!$L$3,D146,E146) -> 00:00:00 | L146: =ColTime(TIME(T.!$J$4,0,0),TIME(T.!$L$4,0,0),D146,E146) -> 00:00:00 | S146: =IFERROR(CHOOSE(WEEKDAY(A146,2),norm!C$1,norm!C$2,norm!C$3,norm!C$4,norm!C$5,norm!C$6,norm!C$7),"") -> 09:00:00
A147: 2019-05-24 | B147: Fr | H147: 00:00:00 | J147: =ColTime(T.!$J$3,T.!$L$3,D147,E147) -> 00:00:00 | L147: =ColTime(TIME(T.!$J$4,0,0),TIME(T.!$L$4,0,0),D147,E147) -> 00:00:00 | S147: =IFERROR(CHOOSE(WEEKDAY(A147,2),norm!C$1,norm!C$2,norm!C$3,norm!C$4,norm!C$5,norm!C$6,norm!C$7),"") -> 09:00:00
A148: 2019-05-25 | B148: Lø | H148: 00:00:00 | J148: =ColTime(T.!$J$3,T.!$L$3,D148,E148) -> 00:00:00 | L148: =ColTime(TIME(T.!$J$4,0,0),TIME(T.!$L$4,0,0),D148,E148) -> 00:00:00 | N148: 00:00:00 | S148: =IFERROR(CHOOSE(WEEKDAY(A148,2),norm!C$1,norm!C$2,norm!C$3,norm!C$4,norm!C$5,norm!C$6,norm!C$7),"") -> 09:00:00
A149: 2019-05-26 | B149: Sø | H149: 00:00:00 | J149: =ColTime(T.!$J$3,T.!$L$3,D149,E149) -> 00:00:00 | L149: =ColTime(TIME(T.!$J$4,0,0),TIME(T.!$L$4,0,0),D149,E149) -> 00:00:00 | O149: 00:00:00 | S149: =IFERROR(CHOOSE(WEEKDAY(A149,2),norm!C$1,norm!C$2,norm!C$3,norm!C$4,norm!C$5,norm!C$6,norm!C$7),"") -> 09:00:00
A150: 2019-05-27 | B150: Ma | H150: 00:00:00 | J150: =ColTime(T.!$J$3,T.!$L$3,D150,E150) -> 00:00:00 | L150: =ColTime(TIME(T.!$J$4,0,0),TIME(T.!$L$4,0,0),D150,E150) -> 00:00:00 | S150: =IFERROR(CHOOSE(WEEKDAY(A150,2),norm!C$1,norm!C$2,norm!C$3,norm!C$4,norm!C$5,norm!C$6,norm!C$7),"") -> 09:00:00
A151: 2019-05-28 | B151: Ti | H151: 00:00:00 | J151: =ColTime(T.!$J$3,T.!$L$3,D151,E151) -> 00:00:00 | L151: =ColTime(TIME(T.!$J$4,0,0),TIME(T.!$L$4,0,0),D151,E151) -> 00:00:00 | S151: =IFERROR(CHOOSE(WEEKDAY(A151,2),norm!C$1,norm!C$2,norm!C$3,norm!C$4,norm!C$5,norm!C$6,norm!C$7),"") -> 09:00:00
A152: 2019-05-29 | B152: On | H152: 00:00:00 | J152: =ColTime(T.!$J$3,T.!$L$3,D152,E152) -> 00:00:00 | L152: =ColTime(TIME(T.!$J$4,0,0),TIME(T.!$L$4,0,0),D152,E152) -> 00:00:00 | S152: =IFERROR(CHOOSE(WEEKDAY(A152,2),norm!C$1,norm!C$2,norm!C$3,norm!C$4,norm!C$5,norm!C$6,norm!C$7),"") -> 09:00:00
A153: 2019-05-30 | B153: To | C153: Kristi Himmelfartsdag | H153: 00:00:00 | J153: =ColTime(T.!$J$3,T.!$L$3,D153,E153) -> 00:00:00 | L153: =ColTime(TIME(T.!$J$4,0,0),TIME(T.!$L$4,0,0),D153,E153) -> 00:00:00 | O153: 00:00:00 | S153: =IFERROR(CHOOSE(WEEKDAY(A153,2),norm!C$1,norm!C$2,norm!C$3,norm!C$4,norm!C$5,norm!C$6,norm!C$7),"") -> 09:00:00
A154: 2019-05-31 | B154: Fr | H154: 00:00:00 | J154: =ColTime(T.!$J$3,T.!$L$3,D154,E154) -> 00:00:00 | L154: =ColTime(TIME(T.!$J$4,0,0),TIME(T.!$L$4,0,0),D154,E154) -> 00:00:00 | S154: =IFERROR(CHOOSE(WEEKDAY(A154,2),norm!C$1,norm!C$2,norm!C$3,norm!C$4,norm!C$5,norm!C$6,norm!C$7),"") -> 09:00:00
A155: =A154+1 -> 2019-06-01 | B155: Lø | H155: 00:00:00 | J155: =ColTime(T.!$J$3,T.!$L$3,D155,E155) -> 00:00:00 | L155: =ColTime(TIME(T.!$J$4,0,0),TIME(T.!$L$4,0,0),D155,E155) -> 00:00:00 | N155: 00:00:00 | S155: =IFERROR(CHOOSE(WEEKDAY(A155,2),norm!C$1,norm!C$2,norm!C$3,norm!C$4,norm!C$5,norm!C$6,norm!C$7),"") -> 09:00:00
A156: 2019-06-02 | B156: Sø | H156: 00:00:00 | J156: =ColTime(T.!$J$3,T.!$L$3,D156,E156) -> 00:00:00 | L156: =ColTime(TIME(T.!$J$4,0,0),TIME(T.!$L$4,0,0),D156,E156) -> 00:00:00 | O156: 00:00:00 | S156: =IFERROR(CHOOSE(WEEKDAY(A156,2),norm!C$1,norm!C$2,norm!C$3,norm!C$4,norm!C$5,norm!C$6,norm!C$7),"") -> 09:00:00
A157: 2019-06-03 | B157: Ma | H157: 00:00:00 | J157: =ColTime(T.!$J$3,T.!$L$3,D157,E157) -> 00:00:00 | L157: =ColTime(TIME(T.!$J$4,0,0),TIME(T.!$L$4,0,0),D157,E157) -> 00:00:00 | S157: =IFERROR(CHOOSE(WEEKDAY(A157,2),norm!C$1,norm!C$2,norm!C$3,norm!C$4,norm!C$5,norm!C$6,norm!C$7),"") -> 09:00:00
A158: 2019-06-04 | B158: Ti | H158: 00:00:00 | J158: =ColTime(T.!$J$3,T.!$L$3,D158,E158) -> 00:00:00 | L158: =ColTime(TIME(T.!$J$4,0,0),TIME(T.!$L$4,0,0),D158,E158) -> 00:00:00 | S158: =IFERROR(CHOOSE(WEEKDAY(A158,2),norm!C$1,norm!C$2,norm!C$3,norm!C$4,norm!C$5,norm!C$6,norm!C$7),"") -> 09:00:00
A159: 2019-06-05 | B159: On | C159: Grundlovsdag | H159: 00:00:00 | J159: =ColTime(T.!$J$3,T.!$L$3,D159,E159) -> 00:00:00 | L159: =ColTime(TIME(T.!$J$4,0,0),TIME(T.!$L$4,0,0),D159,E159) -> 00:00:00 | O159: 00:00:00 | S159: =IFERROR(CHOOSE(WEEKDAY(A159,2),norm!C$1,norm!C$2,norm!C$3,norm!C$4,norm!C$5,norm!C$6,norm!C$7),"") -> 09:00:00
A160: 2019-06-06 | B160: To | H160: 00:00:00 | J160: =ColTime(T.!$J$3,T.!$L$3,D160,E160) -> 00:00:00 | L160: =ColTime(TIME(T.!$J$4,0,0),TIME(T.!$L$4,0,0),D160,E160) -> 00:00:00 | S160: =IFERROR(CHOOSE(WEEKDAY(A160,2),norm!C$1,norm!C$2,norm!C$3,norm!C$4,norm!C$5,norm!C$6,norm!C$7),"") -> 09:00:00
A161: 2019-06-07 | B161: Fr | H161: 00:00:00 | J161: =ColTime(T.!$J$3,T.!$L$3,D161,E161) -> 00:00:00 | L161: =ColTime(TIME(T.!$J$4,0,0),TIME(T.!$L$4,0,0),D161,E161) -> 00:00:00 | S161: =IFERROR(CHOOSE(WEEKDAY(A161,2),norm!C$1,norm!C$2,norm!C$3,norm!C$4,norm!C$5,norm!C$6,norm!C$7),"") -> 09:00:00
A162: 2019-06-08 | B162: Lø | H162: 00:00:00 | J162: =ColTime(T.!$J$3,T.!$L$3,D162,E162) -> 00:00:00 | L162: =ColTime(TIME(T.!$J$4,0,0),TIME(T.!$L$4,0,0),D162,E162) -> 00:00:00 | N162: 00:00:00 | S162: =IFERROR(CHOOSE(WEEKDAY(A162,2),norm!C$1,norm!C$2,norm!C$3,norm!C$4,norm!C$5,norm!C$6,norm!C$7),"") -> 09:00:00
A163: 2019-06-09 | B163: =IFERROR(PROPER(TEXT(A163,"ddd")),"") -> Sø | C163: Pinsedag | H163: 00:00:00 | J163: =ColTime(T.!$J$3,T.!$L$3,D163,E163) -> 00:00:00 | L163: =ColTime(TIME(T.!$J$4,0,0),TIME(T.!$L$4,0,0),D163,E163) -> 00:00:00 | O163: 00:00:00 | S163: =IFERROR(CHOOSE(WEEKDAY(A163,2),norm!C$1,norm!C$2,norm!C$3,norm!C$4,norm!C$5,norm!C$6,norm!C$7),"") -> 09:00:00
A164: 2019-06-10 | B164: Ma | C164: 2. Pinsedag | H164: 00:00:00 | J164: =ColTime(T.!$J$3,T.!$L$3,D164,E164) -> 00:00:00 | L164: =ColTime(TIME(T.!$J$4,0,0),TIME(T.!$L$4,0,0),D164,E164) -> 00:00:00 | O164: 00:00:00 | S164: =IFERROR(CHOOSE(WEEKDAY(A164,2),norm!C$1,norm!C$2,norm!C$3,norm!C$4,norm!C$5,norm!C$6,norm!C$7),"") -> 09:00:00
A165: 2019-06-11 | B165: Ti | H165: 00:00:00 | J165: =ColTime(T.!$J$3,T.!$L$3,D165,E165) -> 00:00:00 | L165: =ColTime(TIME(T.!$J$4,0,0),TIME(T.!$L$4,0,0),D165,E165) -> 00:00:00 | S165: =IFERROR(CHOOSE(WEEKDAY(A165,2),norm!C$1,norm!C$2,norm!C$3,norm!C$4,norm!C$5,norm!C$6,norm!C$7),"") -> 09:00:00
A166: 2019-06-12 | B166: On | H166: 00:00:00 | J166: =ColTime(T.!$J$3,T.!$L$3,D166,E166) -> 00:00:00 | L166: =ColTime(TIME(T.!$J$4,0,0),TIME(T.!$L$4,0,0),D166,E166) -> 00:00:00 | S166: =IFERROR(CHOOSE(WEEKDAY(A166,2),norm!C$1,norm!C$2,norm!C$3,norm!C$4,norm!C$5,norm!C$6,norm!C$7),"") -> 09:00:00
A167: 2019-06-13 | B167: To | H167: 00:00:00 | J167: =ColTime(T.!$J$3,T.!$L$3,D167,E167) -> 00:00:00 | L167: =ColTime(TIME(T.!$J$4,0,0),TIME(T.!$L$4,0,0),D167,E167) -> 00:00:00 | S167: =IFERROR(CHOOSE(WEEKDAY(A167,2),norm!C$1,norm!C$2,norm!C$3,norm!C$4,norm!C$5,norm!C$6,norm!C$7),"") -> 09:00:00
A168: 2019-06-14 | B168: Fr | H168: 00:00:00 | J168: =ColTime(T.!$J$3,T.!$L$3,D168,E168) -> 00:00:00 | L168: =ColTime(TIME(T.!$J$4,0,0),TIME(T.!$L$4,0,0),D168,E168) -> 00:00:00 | S168: =IFERROR(CHOOSE(WEEKDAY(A168,2),norm!C$1,norm!C$2,norm!C$3,norm!C$4,norm!C$5,norm!C$6,norm!C$7),"") -> 09:00:00
A169: 2019-06-15 | B169: Lø | H169: 00:00:00 | J169: =ColTime(T.!$J$3,T.!$L$3,D169,E169) -> 00:00:00 | L169: =ColTime(TIME(T.!$J$4,0,0),TIME(T.!$L$4,0,0),D169,E169) -> 00:00:00 | N169: 00:00:00 | S169: =IFERROR(CHOOSE(WEEKDAY(A169,2),norm!C$1,norm!C$2,norm!C$3,norm!C$4,norm!C$5,norm!C$6,norm!C$7),"") -> 09:00:00
A170: 2019-06-16 | B170: Sø | H170: 00:00:00 | J170: =ColTime(T.!$J$3,T.!$L$3,D170,E170) -> 00:00:00 | L170: =ColTime(TIME(T.!$J$4,0,0),TIME(T.!$L$4,0,0),D170,E170) -> 00:00:00 | O170: 00:00:00 | S170: =IFERROR(CHOOSE(WEEKDAY(A170,2),norm!C$1,norm!C$2,norm!C$3,norm!C$4,norm!C$5,norm!C$6,norm!C$7),"") -> 09:00:00
A171: 2019-06-17 | B171: Ma | H171: 00:00:00 | J171: =ColTime(T.!$J$3,T.!$L$3,D171,E171) -> 00:00:00 | L171: =ColTime(TIME(T.!$J$4,0,0),TIME(T.!$L$4,0,0),D171,E171) -> 00:00:00 | S171: =IFERROR(CHOOSE(WEEKDAY(A171,2),norm!C$1,norm!C$2,norm!C$3,norm!C$4,norm!C$5,norm!C$6,norm!C$7),"") -> 09:00:00
A172: 2019-06-18 | B172: Ti | H172: 00:00:00 | J172: =ColTime(T.!$J$3,T.!$L$3,D172,E172) -> 00:00:00 | L172: =ColTime(TIME(T.!$J$4,0,0),TIME(T.!$L$4,0,0),D172,E172) -> 00:00:00 | S172: =IFERROR(CHOOSE(WEEKDAY(A172,2),norm!C$1,norm!C$2,norm!C$3,norm!C$4,norm!C$5,norm!C$6,norm!C$7),"") -> 09:00:00
A173: 2019-06-19 | B173: On | H173: 00:00:00 | J173: =ColTime(T.!$J$3,T.!$L$3,D173,E173) -> 00:00:00 | L173: =ColTime(TIME(T.!$J$4,0,0),TIME(T.!$L$4,0,0),D173,E173) -> 00:00:00 | S173: =IFERROR(CHOOSE(WEEKDAY(A173,2),norm!C$1,norm!C$2,norm!C$3,norm!C$4,norm!C$5,norm!C$6,norm!C$7),"") -> 09:00:00
A174: 2019-06-20 | B174: To | H174: 00:00:00 | J174: =ColTime(T.!$J$3,T.!$L$3,D174,E174) -> 00:00:00 | L174: =ColTime(TIME(T.!$J$4,0,0),TIME(T.!$L$4,0,0),D174,E174) -> 00:00:00 | S174: =IFERROR(CHOOSE(WEEKDAY(A174,2),norm!C$1,norm!C$2,norm!C$3,norm!C$4,norm!C$5,norm!C$6,norm!C$7),"") -> 09:00:00
A175: 2019-06-21 | B175: Fr | H175: 00:00:00 | J175: =ColTime(T.!$J$3,T.!$L$3,D175,E175) -> 00:00:00 | L175: =ColTime(TIME(T.!$J$4,0,0),TIME(T.!$L$4,0,0),D175,E175) -> 00:00:00 | S175: =IFERROR(CHOOSE(WEEKDAY(A175,2),norm!C$1,norm!C$2,norm!C$3,norm!C$4,norm!C$5,norm!C$6,norm!C$7),"") -> 09:00:00
A176: 2019-06-22 | B176: Lø | H176: 00:00:00 | J176: =ColTime(T.!$J$3,T.!$L$3,D176,E176) -> 00:00:00 | L176: =ColTime(TIME(T.!$J$4,0,0),TIME(T.!$L$4,0,0),D176,E176) -> 00:00:00 | N176: 00:00:00 | S176: =IFERROR(CHOOSE(WEEKDAY(A176,2),norm!C$1,norm!C$2,norm!C$3,norm!C$4,norm!C$5,norm!C$6,norm!C$7),"") -> 09:00:00
A177: 2019-06-23 | B177: Sø | H177: 00:00:00 | J177: =ColTime(T.!$J$3,T.!$L$3,D177,E177) -> 00:00:00 | L177: =ColTime(TIME(T.!$J$4,0,0),TIME(T.!$L$4,0,0),D177,E177) -> 00:00:00 | O177: 00:00:00 | S177: =IFERROR(CHOOSE(WEEKDAY(A177,2),norm!C$1,norm!C$2,norm!C$3,norm!C$4,norm!C$5,norm!C$6,norm!C$7),"") -> 09:00:00
A178: 2019-06-24 | B178: Ma | H178: 00:00:00 | J178: =ColTime(T.!$J$3,T.!$L$3,D178,E178) -> 00:00:00 | L178: =ColTime(TIME(T.!$J$4,0,0),TIME(T.!$L$4,0,0),D178,E178) -> 00:00:00 | S178: =IFERROR(CHOOSE(WEEKDAY(A178,2),norm!C$1,norm!C$2,norm!C$3,norm!C$4,norm!C$5,norm!C$6,norm!C$7),"") -> 09:00:00
A179: 2019-06-25 | B179: Ti | H179: 00:00:00 | J179: =ColTime(T.!$J$3,T.!$L$3,D179,E179) -> 00:00:00 | L179: =ColTime(TIME(T.!$J$4,0,0),TIME(T.!$L$4,0,0),D179,E179) -> 00:00:00 | S179: =IFERROR(CHOOSE(WEEKDAY(A179,2),norm!C$1,norm!C$2,norm!C$3,norm!C$4,norm!C$5,norm!C$6,norm!C$7),"") -> 09:00:00
A180: 2019-06-26 | B180: On | H180: 00:00:00 | J180: =ColTime(T.!$J$3,T.!$L$3,D180,E180) -> 00:00:00 | L180: =ColTime(TIME(T.!$J$4,0,0),TIME(T.!$L$4,0,0),D180,E180) -> 00:00:00 | S180: =IFERROR(CHOOSE(WEEKDAY(A180,2),norm!C$1,norm!C$2,norm!C$3,norm!C$4,norm!C$5,norm!C$6,norm!C$7),"") -> 09:00:00
A181: 2019-06-27 | B181: To | H181: 00:00:00 | J181: =ColTime(T.!$J$3,T.!$L$3,D181,E181) -> 00:00:00 | L181: =ColTime(TIME(T.!$J$4,0,0),TIME(T.!$L$4,0,0),D181,E181) -> 00:00:00 | S181: =IFERROR(CHOOSE(WEEKDAY(A181,2),norm!C$1,norm!C$2,norm!C$3,norm!C$4,norm!C$5,norm!C$6,norm!C$7),"") -> 09:00:00
A182: 2019-06-28 | B182: Fr | H182: 00:00:00 | J182: =ColTime(T.!$J$3,T.!$L$3,D182,E182) -> 00:00:00 | L182: =ColTime(TIME(T.!$J$4,0,0),TIME(T.!$L$4,0,0),D182,E182) -> 00:00:00 | S182: =IFERROR(CHOOSE(WEEKDAY(A182,2),norm!C$1,norm!C$2,norm!C$3,norm!C$4,norm!C$5,norm!C$6,norm!C$7),"") -> 09:00:00
A183: 2019-06-29 | B183: Lø | H183: 00:00:00 | J183: =ColTime(T.!$J$3,T.!$L$3,D183,E183) -> 00:00:00 | L183: =ColTime(TIME(T.!$J$4,0,0),TIME(T.!$L$4,0,0),D183,E183) -> 00:00:00 | N183: 00:00:00 | S183: =IFERROR(CHOOSE(WEEKDAY(A183,2),norm!C$1,norm!C$2,norm!C$3,norm!C$4,norm!C$5,norm!C$6,norm!C$7),"") -> 09:00:00
A184: 2019-06-30 | B184: Sø | H184: 00:00:00 | J184: =ColTime(T.!$J$3,T.!$L$3,D184,E184) -> 00:00:00 | L184: =ColTime(TIME(T.!$J$4,0,0),TIME(T.!$L$4,0,0),D184,E184) -> 00:00:00 | O184: 00:00:00 | S184: =IFERROR(CHOOSE(WEEKDAY(A184,2),norm!C$1,norm!C$2,norm!C$3,norm!C$4,norm!C$5,norm!C$6,norm!C$7),"") -> 09:00:00
A185: 2019-07-01 | B185: Ma | H185: 00:00:00 | J185: =ColTime(T.!$J$3,T.!$L$3,D185,E185) -> 00:00:00 | L185: =ColTime(TIME(T.!$J$4,0,0),TIME(T.!$L$4,0,0),D185,E185) -> 00:00:00 | S185: =IFERROR(CHOOSE(WEEKDAY(A185,2),norm!C$1,norm!C$2,norm!C$3,norm!C$4,norm!C$5,norm!C$6,norm!C$7),"") -> 09:00:00
A186: 2019-07-02 | B186: Ti | H186: 00:00:00 | J186: =ColTime(T.!$J$3,T.!$L$3,D186,E186) -> 00:00:00 | L186: =ColTime(TIME(T.!$J$4,0,0),TIME(T.!$L$4,0,0),D186,E186) -> 00:00:00 | S186: =IFERROR(CHOOSE(WEEKDAY(A186,2),norm!C$1,norm!C$2,norm!C$3,norm!C$4,norm!C$5,norm!C$6,norm!C$7),"") -> 09:00:00
A187: 2019-07-03 | B187: On | H187: 00:00:00 | J187: =ColTime(T.!$J$3,T.!$L$3,D187,E187) -> 00:00:00 | L187: =ColTime(TIME(T.!$J$4,0,0),TIME(T.!$L$4,0,0),D187,E187) -> 00:00:00 | S187: =IFERROR(CHOOSE(WEEKDAY(A187,2),norm!C$1,norm!C$2,norm!C$3,norm!C$4,norm!C$5,norm!C$6,norm!C$7),"") -> 09:00:00
A188: 2019-07-04 | B188: To | H188: 00:00:00 | J188: =ColTime(T.!$J$3,T.!$L$3,D188,E188) -> 00:00:00 | L188: =ColTime(TIME(T.!$J$4,0,0),TIME(T.!$L$4,0,0),D188,E188) -> 00:00:00 | S188: =IFERROR(CHOOSE(WEEKDAY(A188,2),norm!C$1,norm!C$2,norm!C$3,norm!C$4,norm!C$5,norm!C$6,norm!C$7),"") -> 09:00:00
A189: 2019-07-05 | B189: Fr | H189: 00:00:00 | J189: =ColTime(T.!$J$3,T.!$L$3,D189,E189) -> 00:00:00 | L189: =ColTime(TIME(T.!$J$4,0,0),TIME(T.!$L$4,0,0),D189,E189) -> 00:00:00 | S189: =IFERROR(CHOOSE(WEEKDAY(A189,2),norm!C$1,norm!C$2,norm!C$3,norm!C$4,norm!C$5,norm!C$6,norm!C$7),"") -> 09:00:00
A190: 2019-07-06 | B190: Lø | H190: 00:00:00 | J190: =ColTime(T.!$J$3,T.!$L$3,D190,E190) -> 00:00:00 | L190: =ColTime(TIME(T.!$J$4,0,0),TIME(T.!$L$4,0,0),D190,E190) -> 00:00:00 | N190: 00:00:00 | S190: =IFERROR(CHOOSE(WEEKDAY(A190,2),norm!C$1,norm!C$2,norm!C$3,norm!C$4,norm!C$5,norm!C$6,norm!C$7),"") -> 09:00:00
A191: 2019-07-07 | B191: Sø | H191: 00:00:00 | J191: =ColTime(T.!$J$3,T.!$L$3,D191,E191) -> 00:00:00 | L191: =ColTime(TIME(T.!$J$4,0,0),TIME(T.!$L$4,0,0),D191,E191) -> 00:00:00 | O191: 00:00:00 | S191: =IFERROR(CHOOSE(WEEKDAY(A191,2),norm!C$1,norm!C$2,norm!C$3,norm!C$4,norm!C$5,norm!C$6,norm!C$7),"") -> 09:00:00
A192: 2019-07-08 | B192: Ma | H192: 00:00:00 | J192: =ColTime(T.!$J$3,T.!$L$3,D192,E192) -> 00:00:00 | L192: =ColTime(TIME(T.!$J$4,0,0),TIME(T.!$L$4,0,0),D192,E192) -> 00:00:00 | S192: =IFERROR(CHOOSE(WEEKDAY(A192,2),norm!C$1,norm!C$2,norm!C$3,norm!C$4,norm!C$5,norm!C$6,norm!C$7),"") -> 09:00:00
A193: 2019-07-09 | B193: Ti | H193: 00:00:00 | J193: =ColTime(T.!$J$3,T.!$L$3,D193,E193) -> 00:00:00 | L193: =ColTime(TIME(T.!$J$4,0,0),TIME(T.!$L$4,0,0),D193,E193) -> 00:00:00 | S193: =IFERROR(CHOOSE(WEEKDAY(A193,2),norm!C$1,norm!C$2,norm!C$3,norm!C$4,norm!C$5,norm!C$6,norm!C$7),"") -> 09:00:00
A194: 2019-07-10 | B194: On | H194: 00:00:00 | J194: =ColTime(T.!$J$3,T.!$L$3,D194,E194) -> 00:00:00 | L194: =ColTime(TIME(T.!$J$4,0,0),TIME(T.!$L$4,0,0),D194,E194) -> 00:00:00 | S194: =IFERROR(CHOOSE(WEEKDAY(A194,2),norm!C$1,norm!C$2,norm!C$3,norm!C$4,norm!C$5,norm!C$6,norm!C$7),"") -> 09:00:00
A195: 2019-07-11 | B195: To | H195: 00:00:00 | J195: =ColTime(T.!$J$3,T.!$L$3,D195,E195) -> 00:00:00 | L195: =ColTime(TIME(T.!$J$4,0,0),TIME(T.!$L$4,0,0),D195,E195) -> 00:00:00 | S195: =IFERROR(CHOOSE(WEEKDAY(A195,2),norm!C$1,norm!C$2,norm!C$3,norm!C$4,norm!C$5,norm!C$6,norm!C$7),"") -> 09:00:00
A196: 2019-07-12 | B196: Fr | H196: 00:00:00 | J196: =ColTime(T.!$J$3,T.!$L$3,D196,E196) -> 00:00:00 | L196: =ColTime(TIME(T.!$J$4,0,0),TIME(T.!$L$4,0,0),D196,E196) -> 00:00:00 | S196: =IFERROR(CHOOSE(WEEKDAY(A196,2),norm!C$1,norm!C$2,norm!C$3,norm!C$4,norm!C$5,norm!C$6,norm!C$7),"") -> 09:00:00
A197: 2019-07-13 | B197: Lø | H197: 00:00:00 | J197: =ColTime(T.!$J$3,T.!$L$3,D197,E197) -> 00:00:00 | L197: =ColTime(TIME(T.!$J$4,0,0),TIME(T.!$L$4,0,0),D197,E197) -> 00:00:00 | N197: 00:00:00 | S197: =IFERROR(CHOOSE(WEEKDAY(A197,2),norm!C$1,norm!C$2,norm!C$3,norm!C$4,norm!C$5,norm!C$6,norm!C$7),"") -> 09:00:00
A198: 2019-07-14 | B198: Sø | H198: 00:00:00 | J198: =ColTime(T.!$J$3,T.!$L$3,D198,E198) -> 00:00:00 | L198: =ColTime(TIME(T.!$J$4,0,0),TIME(T.!$L$4,0,0),D198,E198) -> 00:00:00 | O198: 00:00:00 | S198: =IFERROR(CHOOSE(WEEKDAY(A198,2),norm!C$1,norm!C$2,norm!C$3,norm!C$4,norm!C$5,norm!C$6,norm!C$7),"") -> 09:00:00
A199: 2019-07-15 | B199: Ma | H199: 00:00:00 | J199: =ColTime(T.!$J$3,T.!$L$3,D199,E199) -> 00:00:00 | L199: =ColTime(TIME(T.!$J$4,0,0),TIME(T.!$L$4,0,0),D199,E199) -> 00:00:00 | S199: =IFERROR(CHOOSE(WEEKDAY(A199,2),norm!C$1,norm!C$2,norm!C$3,norm!C$4,norm!C$5,norm!C$6,norm!C$7),"") -> 09:00:00
A200: 2019-07-16 | B200: Ti | H200: 00:00:00 | J200: =ColTime(T.!$J$3,T.!$L$3,D200,E200) -> 00:00:00 | L200: =ColTime(TIME(T.!$J$4,0,0),TIME(T.!$L$4,0,0),D200,E200) -> 00:00:00 | S200: =IFERROR(CHOOSE(WEEKDAY(A200,2),norm!C$1,norm!C$2,norm!C$3,norm!C$4,norm!C$5,norm!C$6,norm!C$7),"") -> 09:00:00
... 179 more rows

Sheet Februar (hidden)
A1: Løn | B1: =PROPER(TEXT(A4,"dd mmmm åååå")) & PROPER(TEXT(N1," - dd mmmm åååå")) -> 01 Februar 2019 - 28 Februar 2019 | I1: Uge : | J1: =IF(A4="","",TRUNC((A4-WEEKDAY(A4,2)-DATE(YEAR(A4+4-WEEKDAY(A4,2)),1,-10))/7)) -> 5 | K1: - | M1: =IF(A25="","",TRUNC((A25-WEEKDAY(A25,2)-DATE(YEAR(A25+4-WEEKDAY(A25,2)),1,-10))/7)) -> 8 | N1: =EOMONTH(A4,0) -> 2019-02-28 | P1: 2 | V1: Time beregning: | AG1: 06:00:00 | AH1: 18:00:00 | AI1: 03:00:00
A2: Lønart | V2: Betalt pause ved vagt over 5 timer | Z2: 00:25:00 | AA2: minutter | AB2: 00:00:00 | AC2: 06:00:00 | AD2: 17:00:00 | AE2: 14:00:00
A3: Dato | B3: Dag | D3: Start | E3: Slut | F3: Pause | G3: Arb. Tid | H3: Overtid 1-3 time | I3: Overtid 4 - time | J3: Forskudt tid alle dage 18-23 | L3: Natarbejde 23-06 | N3: Lørdag tillæg 14 - 24 | O3: Søndag tillæg 00 - 24 | P3: Optjent afspadsering | Q3: Afholdt afspadsering | R3: Syge Timer | S3: norm
A4: =DATE(T.!$B$1,$P$1,1) -> 2019-02-01 | B4: =PROPER(TEXT(A4,"ddd")) -> Fr | C4: =HelligdagsNavn(A4,0,0) ->  | D4: 07:00:00 | E4: 16:00:00 | F4: 00:30:00 | G4: =IF(D4="","",(E4-D4)+(D4>E4)-F4) -> 0.3541666667 | H4: =IF(G4="",0,IF(WEEKDAY(A4,2)=7,0,IF(G4>S4,MIN(G4-S4,$AI$1),0))) -> 00:00:00 | I4: =IF(G4="","",IF(G4>S4+H4,G4-(S4+H4),"")) ->  | J4: =ColTime(T.!$J$3,T.!$L$3,D4,E4) -> 00:00:00 | L4: =ColTime(TIME(T.!$J$4,0,0),TIME(T.!$L$4,0,0),D4,E4) -> 00:00:00 | N4: =IF(WEEKDAY(A4,2)=6,ColTime(TIME(14,0,0),TIME(24,0,0),D4,E4),"") ->  | O4: =IF(OR(C4<>"",WEEKDAY(A4,2)=7),ColTime(TIME(0,0,0),TIME(24,0,0),D4,E4),"") ->  | P4: =IFERROR(H4+I4,"") ->  | S4: =CHOOSE(WEEKDAY(A4,2),norm!C$1,norm!C$2,norm!C$3,norm!C$4,norm!C$5,norm!C$6,norm!C$7) -> 09:00:00 | V4: =IF(D4="","",HOUR(D4)) -> 7 | W4: =IF(D4="","",MINUTE(D4)) -> 0 | X4: =IF(D4="","",TIME(HOUR(D4),MINUTE(D4),0)) -> 07:00:00 | Y4: =IF(E4="","",HOUR(E4)) -> 16 | Z4: =IF(E4="","",MINUTE(E4)) -> 0 | AA4: 02:00:00 | AB4: 09:30:00 | AC4: 11:30:00 | AG4: =MIN(G4-S4,3) -> -0.02083333333
A5: =A4+1 -> 2019-02-02 | B5: =PROPER(TEXT(A5,"ddd")) -> Lø | C5: =HelligdagsNavn(A5,0,0) ->  | D5: 13:45:00 | E5: 21:30:00 | F5: 00:30:00 | G5: =IF(D5="","",(E5-D5)+(D5>E5)-F5) -> 0.3020833333 | H5: =IF(G5="",0,IF(WEEKDAY(A5,2)=7,0,IF(G5>S5,MIN(G5-S5,$AI$1),0))) -> 00:00:00 | I5: =IF(G5="","",IF(G5>S5+H5,G5-(S5+H5),"")) ->  | J5: =ColTime(T.!$J$3,T.!$L$3,D5,E5) -> 03:30:00 | L5: =ColTime(TIME(T.!$J$4,0,0),TIME(T.!$L$4,0,0),D5,E5) -> 00:00:00 | N5: 07:30:00 | P5: =IFERROR(H5+I5,"") ->  | S5: =CHOOSE(WEEKDAY(A5,2),norm!C$1,norm!C$2,norm!C$3,norm!C$4,norm!C$5,norm!C$6,norm!C$7) -> 09:00:00 | V5: 13 | W5: 45 | X5: 13:45:00 | Y5: 21 | Z5: 30 | AA5: =IF(E5="","",TIME(HOUR(E5),MINUTE(E5),0)) -> 21:30:00 | AH5: Der taste kun i de Gule celler
A6: =A5+1 -> 2019-02-03 | B6: =PROPER(TEXT(A6,"ddd")) -> Sø | D6: 22:00:00 | E6: 05:45:00 | F6: 00:30:00 | G6: 0.3020833333 | H6: 00:00:00 | J6: =ColTime(T.!$J$3,T.!$L$3,D6,E6) -> 01:00:00 | L6: =ColTime(TIME(T.!$J$4,0,0),TIME(T.!$L$4,0,0),D6,E6) -> 06:45:00 | O6: 07:45:00 | P6: =IFERROR(H6+I6,"") ->  | S6: =CHOOSE(WEEKDAY(A6,2),norm!C$1,norm!C$2,norm!C$3,norm!C$4,norm!C$5,norm!C$6,norm!C$7) -> 09:00:00 | V6: 22 | W6: 0 | X6: 22:00:00 | Y6: 5 | Z6: 45 | AA6: 05:45:00
A7: 2019-02-04 | B7: Ma | D7: 05:00:00 | E7: 16:45:00 | F7: 00:30:00 | G7: 0.46875 | H7: 02:15:00 | J7: =ColTime(T.!$J$3,T.!$L$3,D7,E7) -> 00:00:00 | L7: =ColTime(TIME(T.!$J$4,0,0),TIME(T.!$L$4,0,0),D7,E7) -> 01:00:00 | P7: =IFERROR(H7+I7,"") ->  | S7: =CHOOSE(WEEKDAY(A7,2),norm!C$1,norm!C$2,norm!C$3,norm!C$4,norm!C$5,norm!C$6,norm!C$7) -> 09:00:00 | V7: 5 | W7: 0 | X7: 05:00:00 | Y7: 16 | Z7: 45 | AA7: 16:45:00
A8: 2019-02-05 | B8: Ti | H8: 00:00:00 | J8: =ColTime(T.!$J$3,T.!$L$3,D8,E8) -> 00:00:00 | L8: =ColTime(TIME(T.!$J$4,0,0),TIME(T.!$L$4,0,0),D8,E8) -> 00:00:00 | P8: =IFERROR(H8+I8,"") ->  | S8: =CHOOSE(WEEKDAY(A8,2),norm!C$1,norm!C$2,norm!C$3,norm!C$4,norm!C$5,norm!C$6,norm!C$7) -> 09:00:00
A9: 2019-02-06 | B9: On | D9: 06:00:00 | E9: 19:00:00 | F9: 00:30:00 | G9: 0.5208333333 | H9: 03:00:00 | I9: 00:30:00 | J9: =ColTime(T.!$J$3,T.!$L$3,D9,E9) -> 01:00:00 | L9: =ColTime(TIME(T.!$J$4,0,0),TIME(T.!$L$4,0,0),D9,E9) -> 00:00:00 | O9: =IF(OR(C9<>"",WEEKDAY(A9,2)=7),ColTime(TIME(0,0,0),TIME(24,0,0),D9,E9),"") ->  | P9: =IFERROR(H9+I9,"") -> 03:30:00 | S9: =CHOOSE(WEEKDAY(A9,2),norm!C$1,norm!C$2,norm!C$3,norm!C$4,norm!C$5,norm!C$6,norm!C$7) -> 09:00:00 | V9: 6 | W9: 0 | X9: 06:00:00 | Y9: 19 | Z9: 0 | AA9: 19:00:00
A10: 2019-02-07 | B10: To | D10: 07:00:00 | E10: 19:00:00 | G10: 0.5 | H10: 03:00:00 | J10: =ColTime(T.!$J$3,T.!$L$3,D10,E10) -> 01:00:00 | L10: =ColTime(TIME(T.!$J$4,0,0),TIME(T.!$L$4,0,0),D10,E10) -> 00:00:00 | N10: =IF(WEEKDAY(A10,2)=6,ColTime(TIME(14,0,0),TIME(24,0,0),D10,E10),"") ->  | O10: =IF(OR(C10<>"",WEEKDAY(A10,2)=7),ColTime(TIME(0,0,0),TIME(24,0,0),D10,E10),"") ->  | S10: =CHOOSE(WEEKDAY(A10,2),norm!C$1,norm!C$2,norm!C$3,norm!C$4,norm!C$5,norm!C$6,norm!C$7) -> 09:00:00 | V10: 7 | W10: 0 | X10: 07:00:00 | Y10: 19 | Z10: 0 | AA10: 19:00:00
A11: =A10+1 -> 2019-02-08 | B11: =PROPER(TEXT(A11,"ddd")) -> Fr | C11: =HelligdagsNavn(A11,0,0) ->  | H11: 00:00:00 | J11: =ColTime(T.!$J$3,T.!$L$3,D11,E11) -> 00:00:00 | L11: =ColTime(TIME(T.!$J$4,0,0),TIME(T.!$L$4,0,0),D11,E11) -> 00:00:00 | N11: =IF(WEEKDAY(A11,2)=6,ColTime(TIME(15,0,0),TIME(24,0,0),D11,E11),"") ->  | S11: =CHOOSE(WEEKDAY(A11,2),norm!C$1,norm!C$2,norm!C$3,norm!C$4,norm!C$5,norm!C$6,norm!C$7) -> 09:00:00
A12: =A11+1 -> 2019-02-09 | B12: =PROPER(TEXT(A12,"ddd")) -> Lø | C12: =HelligdagsNavn(A12,0,0) ->  | H12: 00:00:00 | J12: =ColTime(T.!$J$3,T.!$L$3,D12,E12) -> 00:00:00 | L12: =ColTime(TIME(T.!$J$4,0,0),TIME(T.!$L$4,0,0),D12,E12) -> 00:00:00 | N12: 00:00:00 | S12: =CHOOSE(WEEKDAY(A12,2),norm!C$1,norm!C$2,norm!C$3,norm!C$4,norm!C$5,norm!C$6,norm!C$7) -> 09:00:00
A13: =A12+1 -> 2019-02-10 | B13: =PROPER(TEXT(A13,"ddd")) -> Sø | H13: 00:00:00 | J13: =ColTime(T.!$J$3,T.!$L$3,D13,E13) -> 00:00:00 | L13: =ColTime(TIME(T.!$J$4,0,0),TIME(T.!$L$4,0,0),D13,E13) -> 00:00:00 | O13: 00:00:00 | S13: =CHOOSE(WEEKDAY(A13,2),norm!C$1,norm!C$2,norm!C$3,norm!C$4,norm!C$5,norm!C$6,norm!C$7) -> 09:00:00
A14: 2019-02-11 | B14: Ma | H14: 00:00:00 | J14: =ColTime(T.!$J$3,T.!$L$3,D14,E14) -> 00:00:00 | L14: =ColTime(TIME(T.!$J$4,0,0),TIME(T.!$L$4,0,0),D14,E14) -> 00:00:00 | S14: =CHOOSE(WEEKDAY(A14,2),norm!C$1,norm!C$2,norm!C$3,norm!C$4,norm!C$5,norm!C$6,norm!C$7) -> 09:00:00
A15: 2019-02-12 | B15: Ti | H15: 00:00:00 | J15: =ColTime(T.!$J$3,T.!$L$3,D15,E15) -> 00:00:00 | L15: =ColTime(TIME(T.!$J$4,0,0),TIME(T.!$L$4,0,0),D15,E15) -> 00:00:00 | S15: =CHOOSE(WEEKDAY(A15,2),norm!C$1,norm!C$2,norm!C$3,norm!C$4,norm!C$5,norm!C$6,norm!C$7) -> 09:00:00
A16: 2019-02-13 | B16: On | H16: 00:00:00 | J16: =ColTime(T.!$J$3,T.!$L$3,D16,E16) -> 00:00:00 | L16: =ColTime(TIME(T.!$J$4,0,0),TIME(T.!$L$4,0,0),D16,E16) -> 00:00:00 | S16: =CHOOSE(WEEKDAY(A16,2),norm!C$1,norm!C$2,norm!C$3,norm!C$4,norm!C$5,norm!C$6,norm!C$7) -> 09:00:00
A17: 2019-02-14 | B17: To | H17: 00:00:00 | J17: =ColTime(T.!$J$3,T.!$L$3,D17,E17) -> 00:00:00 | L17: =ColTime(TIME(T.!$J$4,0,0),TIME(T.!$L$4,0,0),D17,E17) -> 00:00:00 | S17: =CHOOSE(WEEKDAY(A17,2),norm!C$1,norm!C$2,norm!C$3,norm!C$4,norm!C$5,norm!C$6,norm!C$7) -> 09:00:00
A18: =A17+1 -> 2019-02-15 | B18: =PROPER(TEXT(A18,"ddd")) -> Fr | C18: =HelligdagsNavn(A18,0,0) ->  | H18: 00:00:00 | J18: =ColTime(T.!$J$3,T.!$L$3,D18,E18) -> 00:00:00 | L18: =ColTime(TIME(T.!$J$4,0,0),TIME(T.!$L$4,0,0),D18,E18) -> 00:00:00 | S18: =CHOOSE(WEEKDAY(A18,2),norm!C$1,norm!C$2,norm!C$3,norm!C$4,norm!C$5,norm!C$6,norm!C$7) -> 09:00:00
A19: =A18+1 -> 2019-02-16 | B19: =PROPER(TEXT(A19,"ddd")) -> Lø | C19: =HelligdagsNavn(A19,0,0) ->  | H19: 00:00:00 | J19: =ColTime(T.!$J$3,T.!$L$3,D19,E19) -> 00:00:00 | L19: =ColTime(TIME(T.!$J$4,0,0),TIME(T.!$L$4,0,0),D19,E19) -> 00:00:00 | N19: 00:00:00 | S19: =CHOOSE(WEEKDAY(A19,2),norm!C$1,norm!C$2,norm!C$3,norm!C$4,norm!C$5,norm!C$6,norm!C$7) -> 09:00:00
A20: =A19+1 -> 2019-02-17 | B20: =PROPER(TEXT(A20,"ddd")) -> Sø | H20: 00:00:00 | J20: =ColTime(T.!$J$3,T.!$L$3,D20,E20) -> 00:00:00 | L20: =ColTime(TIME(T.!$J$4,0,0),TIME(T.!$L$4,0,0),D20,E20) -> 00:00:00 | O20: 00:00:00 | S20: =CHOOSE(WEEKDAY(A20,2),norm!C$1,norm!C$2,norm!C$3,norm!C$4,norm!C$5,norm!C$6,norm!C$7) -> 09:00:00
A21: 2019-02-18 | B21: Ma | H21: 00:00:00 | J21: =ColTime(T.!$J$3,T.!$L$3,D21,E21) -> 00:00:00 | L21: =ColTime(TIME(T.!$J$4,0,0),TIME(T.!$L$4,0,0),D21,E21) -> 00:00:00 | S21: =CHOOSE(WEEKDAY(A21,2),norm!C$1,norm!C$2,norm!C$3,norm!C$4,norm!C$5,norm!C$6,norm!C$7) -> 09:00:00
A22: 2019-02-19 | B22: Ti | H22: 00:00:00 | J22: =ColTime(T.!$J$3,T.!$L$3,D22,E22) -> 00:00:00 | L22: =ColTime(TIME(T.!$J$4,0,0),TIME(T.!$L$4,0,0),D22,E22) -> 00:00:00 | S22: =CHOOSE(WEEKDAY(A22,2),norm!C$1,norm!C$2,norm!C$3,norm!C$4,norm!C$5,norm!C$6,norm!C$7) -> 09:00:00
A23: 2019-02-20 | B23: On | H23: 00:00:00 | J23: =ColTime(T.!$J$3,T.!$L$3,D23,E23) -> 00:00:00 | L23: =ColTime(TIME(T.!$J$4,0,0),TIME(T.!$L$4,0,0),D23,E23) -> 00:00:00 | S23: =CHOOSE(WEEKDAY(A23,2),norm!C$1,norm!C$2,norm!C$3,norm!C$4,norm!C$5,norm!C$6,norm!C$7) -> 09:00:00
A24: 2019-02-21 | B24: To | H24: 00:00:00 | J24: =ColTime(T.!$J$3,T.!$L$3,D24,E24) -> 00:00:00 | L24: =ColTime(TIME(T.!$J$4,0,0),TIME(T.!$L$4,0,0),D24,E24) -> 00:00:00 | S24: =CHOOSE(WEEKDAY(A24,2),norm!C$1,norm!C$2,norm!C$3,norm!C$4,norm!C$5,norm!C$6,norm!C$7) -> 09:00:00
A25: =A24+1 -> 2019-02-22 | B25: =PROPER(TEXT(A25,"ddd")) -> Fr | C25: =HelligdagsNavn(A25,0,0) ->  | H25: 00:00:00 | J25: =ColTime(T.!$J$3,T.!$L$3,D25,E25) -> 00:00:00 | L25: =ColTime(TIME(T.!$J$4,0,0),TIME(T.!$L$4,0,0),D25,E25) -> 00:00:00 | S25: =CHOOSE(WEEKDAY(A25,2),norm!C$1,norm!C$2,norm!C$3,norm!C$4,norm!C$5,norm!C$6,norm!C$7) -> 09:00:00
A26: =A25+1 -> 2019-02-23 | B26: =PROPER(TEXT(A26,"ddd")) -> Lø | C26: =HelligdagsNavn(A26,0,0) ->  | H26: 00:00:00 | J26: =ColTime(T.!$J$3,T.!$L$3,D26,E26) -> 00:00:00 | L26: =ColTime(TIME(T.!$J$4,0,0),TIME(T.!$L$4,0,0),D26,E26) -> 00:00:00 | N26: 00:00:00 | S26: =CHOOSE(WEEKDAY(A26,2),norm!C$1,norm!C$2,norm!C$3,norm!C$4,norm!C$5,norm!C$6,norm!C$7) -> 09:00:00
A27: =A26+1 -> 2019-02-24 | B27: =PROPER(TEXT(A27,"ddd")) -> Sø | H27: 00:00:00 | J27: =ColTime(T.!$J$3,T.!$L$3,D27,E27) -> 00:00:00 | L27: =ColTime(TIME(T.!$J$4,0,0),TIME(T.!$L$4,0,0),D27,E27) -> 00:00:00 | O27: 00:00:00 | S27: =CHOOSE(WEEKDAY(A27,2),norm!C$1,norm!C$2,norm!C$3,norm!C$4,norm!C$5,norm!C$6,norm!C$7) -> 09:00:00
A28: 2019-02-25 | B28: Ma | H28: 00:00:00 | J28: =ColTime(T.!$J$3,T.!$L$3,D28,E28) -> 00:00:00 | L28: =ColTime(TIME(T.!$J$4,0,0),TIME(T.!$L$4,0,0),D28,E28) -> 00:00:00 | S28: =CHOOSE(WEEKDAY(A28,2),norm!C$1,norm!C$2,norm!C$3,norm!C$4,norm!C$5,norm!C$6,norm!C$7) -> 09:00:00
A29: 2019-02-26 | B29: Ti | H29: 00:00:00 | J29: =ColTime(T.!$J$3,T.!$L$3,D29,E29) -> 00:00:00 | L29: =ColTime(TIME(T.!$J$4,0,0),TIME(T.!$L$4,0,0),D29,E29) -> 00:00:00 | S29: =CHOOSE(WEEKDAY(A29,2),norm!C$1,norm!C$2,norm!C$3,norm!C$4,norm!C$5,norm!C$6,norm!C$7) -> 09:00:00
A30: 2019-02-27 | B30: On | H30: 00:00:00 | J30: =ColTime(T.!$J$3,T.!$L$3,D30,E30) -> 00:00:00 | L30: =ColTime(TIME(T.!$J$4,0,0),TIME(T.!$L$4,0,0),D30,E30) -> 00:00:00 | S30: =CHOOSE(WEEKDAY(A30,2),norm!C$1,norm!C$2,norm!C$3,norm!C$4,norm!C$5,norm!C$6,norm!C$7) -> 09:00:00
A31: 2019-02-28 | B31: To | H31: 00:00:00 | J31: =ColTime(T.!$J$3,T.!$L$3,D31,E31) -> 00:00:00 | L31: =ColTime(TIME(T.!$J$4,0,0),TIME(T.!$L$4,0,0),D31,E31) -> 00:00:00 | S31: =CHOOSE(WEEKDAY(A31,2),norm!C$1,norm!C$2,norm!C$3,norm!C$4,norm!C$5,norm!C$6,norm!C$7) -> 09:00:00
A32: =IF(MONTH(A31+1)>MONTH(A31),"",A31+1) ->  | C32: =IF(A32="","",HelligdagsNavn(A32,0,0)) ->  | H32: 00:00:00 | J32: =ColTime(T.!$J$3,T.!$L$3,D32,E32) -> 00:00:00 | L32: =ColTime(TIME(T.!$J$4,0,0),TIME(T.!$L$4,0,0),D32,E32) -> 00:00:00 | N32: =IFERROR(IF(WEEKDAY(A32,2)=6,ColTime(TIME(15,0,0),TIME(24,0,0),D32,E32),""),"") ->  | O32: =IFERROR(IF(OR(C32<>"",WEEKDAY(A32,2)=7),ColTime(TIME(0,0,0),TIME(24,0,0),D32,E32),""),"") ->  | S32: =IFERROR(CHOOSE(WEEKDAY(A32,2),norm!C$1,norm!C$2,norm!C$3,norm!C$4,norm!C$5,norm!C$6,norm!C$7),"") -> 
A33: =IFERROR(IF(MONTH(A32+1)>MONTH(A32),"",A32+1),"") ->  | H33: 00:00:00 | J33: =ColTime(T.!$J$3,T.!$L$3,D33,E33) -> 00:00:00 | L33: =ColTime(TIME(T.!$J$4,0,0),TIME(T.!$L$4,0,0),D33,E33) -> 00:00:00 | N33: =IFERROR(IF(WEEKDAY(A33,2)=6,ColTime(TIME(15,0,0),TIME(24,0,0),D33,E33),""),"") ->  | O33: =IFERROR(IF(OR(C33<>"",WEEKDAY(A33,2)=7),ColTime(TIME(0,0,0),TIME(24,0,0),D33,E33),""),"") ->  | S33: =IFERROR(CHOOSE(WEEKDAY(A33,2),norm!C$1,norm!C$2,norm!C$3,norm!C$4,norm!C$5,norm!C$6,norm!C$7),"") -> 
A34: =IFERROR(IF(MONTH(A33+1)>MONTH(A33),"",A33+1),"") ->  | B34: =IFERROR(PROPER(TEXT(A34,"ddd")),"") ->  | C34: =IF(A34="","",HelligdagsNavn(A34,0,0)) ->  | H34: 00:00:00 | J34: =ColTime(T.!$J$3,T.!$L$3,D34,E34) -> 00:00:00 | L34: =ColTime(TIME(T.!$J$4,0,0),TIME(T.!$L$4,0,0),D34,E34) -> 00:00:00 | N34: =IFERROR(IF(WEEKDAY(A34,2)=6,ColTime(TIME(15,0,0),TIME(24,0,0),D34,E34),""),"") ->  | S34: =IFERROR(CHOOSE(WEEKDAY(A34,2),norm!C$1,norm!C$2,norm!C$3,norm!C$4,norm!C$5,norm!C$6,norm!C$7),"") ->  | V34: =IF(D34="","",HOUR(D34)) ->  | W34: =IF(D34="","",MINUTE(D34)) ->  | X34: =IF(D34="","",TIME(HOUR(D34),MINUTE(D34),0)) ->  | Y34: =IF(E34="","",HOUR(E34)) ->  | Z34: =IF(E34="","",MINUTE(E34)) ->  | AA34: =IF(E34="","",TIME(HOUR(E34),MINUTE(E34),0)) -> 
A35: Total timer | G35: =IF(SUM(G9:G34)<>"0",SUM(G4:G34),"") -> 2.447916667 | H35: =IF(SUM(H4:H34)<>"0",SUM(H4:H34),"") -> 0.34375 | I35: =IF(SUM(I4:I34)<>"0",SUM(I4:I34),"") -> 0.02083333333 | J35: =IF(SUM(J4:J34)<>"0",SUM(J4:J34),"") -> 0.2708333333 | L35: =SUM(L4:M34) -> 07:45:00 | N35: =IF(SUM(N4:N34)<>"0",SUM(N4:N34),"") -> 0.3125 | O35: =IF(SUM(O4:O34)<>"0",SUM(O4:O34),"") -> 07:45:00 | P35: =SUM(P4:P34) -> 0.1458333333 | Q35: =SUM(Q4:Q34) -> 0
A36: Timer 1/100 | G36: =IF(G35<>"",ROUND(G35*24,2),"") -> 58.75 | H36: =IF(H35<>"",ROUND(H35*24,2),"") -> 8.25 | I36: 0.5 | J36: =IF(J35<>"",ROUND(J35*24,2),"") -> 6.5 | L36: =IF(L35<>"",ROUND(L35*24,2),"") -> 7.75 | N36: =IF(N35<>"",ROUND(N35*24,2),"") -> 7.5 | O36: 7.75 | P36: 3.5 | Q36: 0
A37: Satser | G37: =Satser!B7 -> 107.35 | H37: =Satser!B9 -> 36.35 | I37: =Satser!B12 -> 58.1 | J37: =Satser!B17 -> 25.6 | L37: =Satser!B18 -> 34.2 | N37: =Satser!B19 -> 45.1 | O37: =Satser!B20 -> 50.6
G38: =IF(G35<>"",G36*G37,"") -> 6306.8125 | H38: =IF(H35<>"",H36*H37,"") -> 299.8875 | I38: 29.05 | J38: =IF(J35<>"",J36*J37,"") -> 166.4 | L38: =IF(L35<>"",L36*L36,"") -> 60.0625 | N38: =IF(N35<>"",N36*N37,"") -> 338.25 | O38: 392.15
A40: Lønart
A41: 3025 | G41: =G35 -> 2.447916667
A42: 3425 | G42: =H35 -> 0.34375
A43: 3428 | G43: =I35 -> 0.02083333333
A44: Timer | G44: =SUM(G41:G43) -> 2.8125 | H44: =IF(G44<>"",ROUND(G44*24,2),"") -> 67.5
H45: =G37*H44 -> 7246.125

Sheet Marts (hidden)
A1: Løn | B1: =PROPER(TEXT(A4,"dd mmmm åååå")) & PROPER(TEXT(N1," - dd mmmm åååå")) -> 01 Marts 2019 - 31 Marts 2019 | I1: Uge : | J1: =IF(A4="","",TRUNC((A4-WEEKDAY(A4,2)-DATE(YEAR(A4+4-WEEKDAY(A4,2)),1,-10))/7)) -> 9 | K1: - | M1: =IF(A25="","",TRUNC((A25-WEEKDAY(A25,2)-DATE(YEAR(A25+4-WEEKDAY(A25,2)),1,-10))/7)) -> 12 | N1: =EOMONTH(A4,0) -> 2019-03-31 | P1: 3 | V1: Time beregning: | AG1: 06:00:00 | AH1: 18:00:00 | AI1: 03:00:00
A2: Lønart | V2: Betalt pause ved vagt over 5 timer | Z2: 00:25:00 | AA2: minutter | AB2: 00:00:00 | AC2: 06:00:00 | AD2: 17:00:00 | AE2: 14:00:00
A3: Dato | B3: Dag | D3: Start | E3: Slut | F3: Pause | G3: Arb. Tid | H3: Overtid 1-3 time | I3: Overtid 4 - time | J3: Forskudt tid alle dage 18-23 | L3: Natarbejde 23-06 | N3: Lørdag tillæg 14 - 24 | O3: Søndag tillæg 00 - 24 | P3: Optjent afspadsering | Q3: Afholdt afspadsering | R3: Syge Timer | S3: norm
A4: =DATE(T.!$B$1,$P$1,1) -> 2019-03-01 | B4: =PROPER(TEXT(A4,"ddd")) -> Fr | C4: =HelligdagsNavn(A4,0,0) ->  | D4: 07:00:00 | E4: 16:00:00 | F4: 00:30:00 | G4: =IF(D4="","",(E4-D4)+(D4>E4)-F4) -> 0.3541666667 | H4: =IF(G4="",0,IF(WEEKDAY(A4,2)=7,0,IF(G4>S4,MIN(G4-S4,$AI$1),0))) -> 00:00:00 | I4: =IF(G4="","",IF(G4>S4+H4,G4-(S4+H4),"")) ->  | J4: =ColTime(T.!$J$3,T.!$L$3,D4,E4) -> 00:00:00 | L4: =ColTime(TIME(T.!$J$4,0,0),TIME(T.!$L$4,0,0),D4,E4) -> 00:00:00 | N4: =IF(WEEKDAY(A4,2)=6,ColTime(TIME(14,0,0),TIME(24,0,0),D4,E4),"") ->  | O4: =IF(OR(C4<>"",WEEKDAY(A4,2)=7),ColTime(TIME(0,0,0),TIME(24,0,0),D4,E4),"") ->  | P4: =IFERROR(H4+I4,"") ->  | S4: =CHOOSE(WEEKDAY(A4,2),norm!C$1,norm!C$2,norm!C$3,norm!C$4,norm!C$5,norm!C$6,norm!C$7) -> 09:00:00 | V4: =IF(D4="","",HOUR(D4)) -> 7 | W4: =IF(D4="","",MINUTE(D4)) -> 0 | X4: =IF(D4="","",TIME(HOUR(D4),MINUTE(D4),0)) -> 07:00:00 | Y4: =IF(E4="","",HOUR(E4)) -> 16 | Z4: =IF(E4="","",MINUTE(E4)) -> 0 | AA4: 02:00:00 | AB4: 09:30:00 | AC4: 11:30:00 | AG4: =MIN(G4-S4,3) -> -0.02083333333
A5: =A4+1 -> 2019-03-02 | B5: =PROPER(TEXT(A5,"ddd")) -> Lø | C5: =HelligdagsNavn(A5,0,0) ->  | D5: 13:45:00 | E5: 21:30:00 | F5: 00:30:00 | G5: =IF(D5="","",(E5-D5)+(D5>E5)-F5) -> 0.3020833333 | H5: =IF(G5="",0,IF(WEEKDAY(A5,2)=7,0,IF(G5>S5,MIN(G5-S5,$AI$1),0))) -> 00:00:00 | I5: =IF(G5="","",IF(G5>S5+H5,G5-(S5+H5),"")) ->  | J5: =ColTime(T.!$J$3,T.!$L$3,D5,E5) -> 03:30:00 | L5: =ColTime(TIME(T.!$J$4,0,0),TIME(T.!$L$4,0,0),D5,E5) -> 00:00:00 | N5: 07:30:00 | P5: =IFERROR(H5+I5,"") ->  | S5: =CHOOSE(WEEKDAY(A5,2),norm!C$1,norm!C$2,norm!C$3,norm!C$4,norm!C$5,norm!C$6,norm!C$7) -> 09:00:00 | V5: 13 | W5: 45 | X5: 13:45:00 | Y5: 21 | Z5: 30 | AA5: =IF(E5="","",TIME(HOUR(E5),MINUTE(E5),0)) -> 21:30:00 | AH5: Der taste kun i de Gule celler
A6: =A5+1 -> 2019-03-03 | B6: =PROPER(TEXT(A6,"ddd")) -> Sø | D6: 22:00:00 | E6: 05:45:00 | F6: 00:30:00 | G6: 0.3020833333 | H6: 00:00:00 | J6: =ColTime(T.!$J$3,T.!$L$3,D6,E6) -> 01:00:00 | L6: =ColTime(TIME(T.!$J$4,0,0),TIME(T.!$L$4,0,0),D6,E6) -> 06:45:00 | O6: 07:45:00 | P6: =IFERROR(H6+I6,"") ->  | S6: =CHOOSE(WEEKDAY(A6,2),norm!C$1,norm!C$2,norm!C$3,norm!C$4,norm!C$5,norm!C$6,norm!C$7) -> 09:00:00 | V6: 22 | W6: 0 | X6: 22:00:00 | Y6: 5 | Z6: 45 | AA6: 05:45:00
A7: 2019-03-04 | B7: Ma | D7: 05:00:00 | E7: 16:45:00 | F7: 00:30:00 | G7: 0.46875 | H7: 02:15:00 | J7: =ColTime(T.!$J$3,T.!$L$3,D7,E7) -> 00:00:00 | L7: =ColTime(TIME(T.!$J$4,0,0),TIME(T.!$L$4,0,0),D7,E7) -> 01:00:00 | P7: =IFERROR(H7+I7,"") ->  | S7: =CHOOSE(WEEKDAY(A7,2),norm!C$1,norm!C$2,norm!C$3,norm!C$4,norm!C$5,norm!C$6,norm!C$7) -> 09:00:00 | V7: 5 | W7: 0 | X7: 05:00:00 | Y7: 16 | Z7: 45 | AA7: 16:45:00
A8: 2019-03-05 | B8: Ti | H8: 00:00:00 | J8: =ColTime(T.!$J$3,T.!$L$3,D8,E8) -> 00:00:00 | L8: =ColTime(TIME(T.!$J$4,0,0),TIME(T.!$L$4,0,0),D8,E8) -> 00:00:00 | P8: =IFERROR(H8+I8,"") ->  | S8: =CHOOSE(WEEKDAY(A8,2),norm!C$1,norm!C$2,norm!C$3,norm!C$4,norm!C$5,norm!C$6,norm!C$7) -> 09:00:00
A9: 2019-03-06 | B9: On | D9: 06:00:00 | E9: 19:00:00 | F9: 00:30:00 | G9: 0.5208333333 | H9: 03:00:00 | I9: 00:30:00 | J9: =ColTime(T.!$J$3,T.!$L$3,D9,E9) -> 01:00:00 | L9: =ColTime(TIME(T.!$J$4,0,0),TIME(T.!$L$4,0,0),D9,E9) -> 00:00:00 | O9: =IF(OR(C9<>"",WEEKDAY(A9,2)=7),ColTime(TIME(0,0,0),TIME(24,0,0),D9,E9),"") ->  | P9: =IFERROR(H9+I9,"") -> 03:30:00 | S9: =CHOOSE(WEEKDAY(A9,2),norm!C$1,norm!C$2,norm!C$3,norm!C$4,norm!C$5,norm!C$6,norm!C$7) -> 09:00:00 | V9: 6 | W9: 0 | X9: 06:00:00 | Y9: 19 | Z9: 0 | AA9: 19:00:00
A10: 2019-03-07 | B10: To | D10: 07:00:00 | E10: 19:00:00 | G10: 0.5 | H10: 03:00:00 | J10: =ColTime(T.!$J$3,T.!$L$3,D10,E10) -> 01:00:00 | L10: =ColTime(TIME(T.!$J$4,0,0),TIME(T.!$L$4,0,0),D10,E10) -> 00:00:00 | N10: =IF(WEEKDAY(A10,2)=6,ColTime(TIME(14,0,0),TIME(24,0,0),D10,E10),"") ->  | O10: =IF(OR(C10<>"",WEEKDAY(A10,2)=7),ColTime(TIME(0,0,0),TIME(24,0,0),D10,E10),"") ->  | S10: =CHOOSE(WEEKDAY(A10,2),norm!C$1,norm!C$2,norm!C$3,norm!C$4,norm!C$5,norm!C$6,norm!C$7) -> 09:00:00 | V10: 7 | W10: 0 | X10: 07:00:00 | Y10: 19 | Z10: 0 | AA10: 19:00:00
A11: =A10+1 -> 2019-03-08 | B11: =PROPER(TEXT(A11,"ddd")) -> Fr | C11: =HelligdagsNavn(A11,0,0) ->  | H11: 00:00:00 | J11: =ColTime(T.!$J$3,T.!$L$3,D11,E11) -> 00:00:00 | L11: =ColTime(TIME(T.!$J$4,0,0),TIME(T.!$L$4,0,0),D11,E11) -> 00:00:00 | N11: =IF(WEEKDAY(A11,2)=6,ColTime(TIME(15,0,0),TIME(24,0,0),D11,E11),"") ->  | S11: =CHOOSE(WEEKDAY(A11,2),norm!C$1,norm!C$2,norm!C$3,norm!C$4,norm!C$5,norm!C$6,norm!C$7) -> 09:00:00
A12: =A11+1 -> 2019-03-09 | B12: =PROPER(TEXT(A12,"ddd")) -> Lø | C12: =HelligdagsNavn(A12,0,0) ->  | H12: 00:00:00 | J12: =ColTime(T.!$J$3,T.!$L$3,D12,E12) -> 00:00:00 | L12: =ColTime(TIME(T.!$J$4,0,0),TIME(T.!$L$4,0,0),D12,E12) -> 00:00:00 | N12: 00:00:00 | S12: =CHOOSE(WEEKDAY(A12,2),norm!C$1,norm!C$2,norm!C$3,norm!C$4,norm!C$5,norm!C$6,norm!C$7) -> 09:00:00
A13: =A12+1 -> 2019-03-10 | B13: =PROPER(TEXT(A13,"ddd")) -> Sø | H13: 00:00:00 | J13: =ColTime(T.!$J$3,T.!$L$3,D13,E13) -> 00:00:00 | L13: =ColTime(TIME(T.!$J$4,0,0),TIME(T.!$L$4,0,0),D13,E13) -> 00:00:00 | O13: 00:00:00 | S13: =CHOOSE(WEEKDAY(A13,2),norm!C$1,norm!C$2,norm!C$3,norm!C$4,norm!C$5,norm!C$6,norm!C$7) -> 09:00:00
A14: 2019-03-11 | B14: Ma | H14: 00:00:00 | J14: =ColTime(T.!$J$3,T.!$L$3,D14,E14) -> 00:00:00 | L14: =ColTime(TIME(T.!$J$4,0,0),TIME(T.!$L$4,0,0),D14,E14) -> 00:00:00 | S14: =CHOOSE(WEEKDAY(A14,2),norm!C$1,norm!C$2,norm!C$3,norm!C$4,norm!C$5,norm!C$6,norm!C$7) -> 09:00:00
A15: 2019-03-12 | B15: Ti | H15: 00:00:00 | J15: =ColTime(T.!$J$3,T.!$L$3,D15,E15) -> 00:00:00 | L15: =ColTime(TIME(T.!$J$4,0,0),TIME(T.!$L$4,0,0),D15,E15) -> 00:00:00 | S15: =CHOOSE(WEEKDAY(A15,2),norm!C$1,norm!C$2,norm!C$3,norm!C$4,norm!C$5,norm!C$6,norm!C$7) -> 09:00:00
A16: 2019-03-13 | B16: On | H16: 00:00:00 | J16: =ColTime(T.!$J$3,T.!$L$3,D16,E16) -> 00:00:00 | L16: =ColTime(TIME(T.!$J$4,0,0),TIME(T.!$L$4,0,0),D16,E16) -> 00:00:00 | S16: =CHOOSE(WEEKDAY(A16,2),norm!C$1,norm!C$2,norm!C$3,norm!C$4,norm!C$5,norm!C$6,norm!C$7) -> 09:00:00
A17: 2019-03-14 | B17: To | H17: 00:00:00 | J17: =ColTime(T.!$J$3,T.!$L$3,D17,E17) -> 00:00:00 | L17: =ColTime(TIME(T.!$J$4,0,0),TIME(T.!$L$4,0,0),D17,E17) -> 00:00:00 | S17: =CHOOSE(WEEKDAY(A17,2),norm!C$1,norm!C$2,norm!C$3,norm!C$4,norm!C$5,norm!C$6,norm!C$7) -> 09:00:00
A18: =A17+1 -> 2019-03-15 | B18: =PROPER(TEXT(A18,"ddd")) -> Fr | C18: =HelligdagsNavn(A18,0,0) ->  | H18: 00:00:00 | J18: =ColTime(T.!$J$3,T.!$L$3,D18,E18) -> 00:00:00 | L18: =ColTime(TIME(T.!$J$4,0,0),TIME(T.!$L$4,0,0),D18,E18) -> 00:00:00 | S18: =CHOOSE(WEEKDAY(A18,2),norm!C$1,norm!C$2,norm!C$3,norm!C$4,norm!C$5,norm!C$6,norm!C$7) -> 09:00:00
A19: =A18+1 -> 2019-03-16 | B19: =PROPER(TEXT(A19,"ddd")) -> Lø | C19: =HelligdagsNavn(A19,0,0) ->  | H19: 00:00:00 | J19: =ColTime(T.!$J$3,T.!$L$3,D19,E19) -> 00:00:00 | L19: =ColTime(TIME(T.!$J$4,0,0),TIME(T.!$L$4,0,0),D19,E19) -> 00:00:00 | N19: 00:00:00 | S19: =CHOOSE(WEEKDAY(A19,2),norm!C$1,norm!C$2,norm!C$3,norm!C$4,norm!C$5,norm!C$6,norm!C$7) -> 09:00:00
A20: =A19+1 -> 2019-03-17 | B20: =PROPER(TEXT(A20,"ddd")) -> Sø | H20: 00:00:00 | J20: =ColTime(T.!$J$3,T.!$L$3,D20,E20) -> 00:00:00 | L20: =ColTime(TIME(T.!$J$4,0,0),TIME(T.!$L$4,0,0),D20,E20) -> 00:00:00 | O20: 00:00:00 | S20: =CHOOSE(WEEKDAY(A20,2),norm!C$1,norm!C$2,norm!C$3,norm!C$4,norm!C$5,norm!C$6,norm!C$7) -> 09:00:00
A21: 2019-03-18 | B21: Ma | H21: 00:00:00 | J21: =ColTime(T.!$J$3,T.!$L$3,D21,E21) -> 00:00:00 | L21: =ColTime(TIME(T.!$J$4,0,0),TIME(T.!$L$4,0,0),D21,E21) -> 00:00:00 | S21: =CHOOSE(WEEKDAY(A21,2),norm!C$1,norm!C$2,norm!C$3,norm!C$4,norm!C$5,norm!C$6,norm!C$7) -> 09:00:00
A22: 2019-03-19 | B22: Ti | H22: 00:00:00 | J22: =ColTime(T.!$J$3,T.!$L$3,D22,E22) -> 00:00:00 | L22: =ColTime(TIME(T.!$J$4,0,0),TIME(T.!$L$4,0,0),D22,E22) -> 00:00:00 | S22: =CHOOSE(WEEKDAY(A22,2),norm!C$1,norm!C$2,norm!C$3,norm!C$4,norm!C$5,norm!C$6,norm!C$7) -> 09:00:00
A23: 2019-03-20 | B23: On | H23: 00:00:00 | J23: =ColTime(T.!$J$3,T.!$L$3,D23,E23) -> 00:00:00 | L23: =ColTime(TIME(T.!$J$4,0,0),TIME(T.!$L$4,0,0),D23,E23) -> 00:00:00 | S23: =CHOOSE(WEEKDAY(A23,2),norm!C$1,norm!C$2,norm!C$3,norm!C$4,norm!C$5,norm!C$6,norm!C$7) -> 09:00:00
A24: 2019-03-21 | B24: To | H24: 00:00:00 | J24: =ColTime(T.!$J$3,T.!$L$3,D24,E24) -> 00:00:00 | L24: =ColTime(TIME(T.!$J$4,0,0),TIME(T.!$L$4,0,0),D24,E24) -> 00:00:00 | S24: =CHOOSE(WEEKDAY(A24,2),norm!C$1,norm!C$2,norm!C$3,norm!C$4,norm!C$5,norm!C$6,norm!C$7) -> 09:00:00
A25: =A24+1 -> 2019-03-22 | B25: =PROPER(TEXT(A25,"ddd")) -> Fr | C25: =HelligdagsNavn(A25,0,0) ->  | H25: 00:00:00 | J25: =ColTime(T.!$J$3,T.!$L$3,D25,E25) -> 00:00:00 | L25: =ColTime(TIME(T.!$J$4,0,0),TIME(T.!$L$4,0,0),D25,E25) -> 00:00:00 | S25: =CHOOSE(WEEKDAY(A25,2),norm!C$1,norm!C$2,norm!C$3,norm!C$4,norm!C$5,norm!C$6,norm!C$7) -> 09:00:00
A26: =A25+1 -> 2019-03-23 | B26: =PROPER(TEXT(A26,"ddd")) -> Lø | C26: =HelligdagsNavn(A26,0,0) ->  | H26: 00:00:00 | J26: =ColTime(T.!$J$3,T.!$L$3,D26,E26) -> 00:00:00 | L26: =ColTime(TIME(T.!$J$4,0,0),TIME(T.!$L$4,0,0),D26,E26) -> 00:00:00 | N26: 00:00:00 | S26: =CHOOSE(WEEKDAY(A26,2),norm!C$1,norm!C$2,norm!C$3,norm!C$4,norm!C$5,norm!C$6,norm!C$7) -> 09:00:00
A27: =A26+1 -> 2019-03-24 | B27: =PROPER(TEXT(A27,"ddd")) -> Sø | H27: 00:00:00 | J27: =ColTime(T.!$J$3,T.!$L$3,D27,E27) -> 00:00:00 | L27: =ColTime(TIME(T.!$J$4,0,0),TIME(T.!$L$4,0,0),D27,E27) -> 00:00:00 | O27: 00:00:00 | S27: =CHOOSE(WEEKDAY(A27,2),norm!C$1,norm!C$2,norm!C$3,norm!C$4,norm!C$5,norm!C$6,norm!C$7) -> 09:00:00
A28: 2019-03-25 | B28: Ma | H28: 00:00:00 | J28: =ColTime(T.!$J$3,T.!$L$3,D28,E28) -> 00:00:00 | L28: =ColTime(TIME(T.!$J$4,0,0),TIME(T.!$L$4,0,0),D28,E28) -> 00:00:00 | S28: =CHOOSE(WEEKDAY(A28,2),norm!C$1,norm!C$2,norm!C$3,norm!C$4,norm!C$5,norm!C$6,norm!C$7) -> 09:00:00
A29: 2019-03-26 | B29: Ti | H29: 00:00:00 | J29: =ColTime(T.!$J$3,T.!$L$3,D29,E29) -> 00:00:00 | L29: =ColTime(TIME(T.!$J$4,0,0),TIME(T.!$L$4,0,0),D29,E29) -> 00:00:00 | S29: =CHOOSE(WEEKDAY(A29,2),norm!C$1,norm!C$2,norm!C$3,norm!C$4,norm!C$5,norm!C$6,norm!C$7) -> 09:00:00
A30: 2019-03-27 | B30: On | H30: 00:00:00 | J30: =ColTime(T.!$J$3,T.!$L$3,D30,E30) -> 00:00:00 | L30: =ColTime(TIME(T.!$J$4,0,0),TIME(T.!$L$4,0,0),D30,E30) -> 00:00:00 | S30: =CHOOSE(WEEKDAY(A30,2),norm!C$1,norm!C$2,norm!C$3,norm!C$4,norm!C$5,norm!C$6,norm!C$7) -> 09:00:00
A31: 2019-03-28 | B31: To | H31: 00:00:00 | J31: =ColTime(T.!$J$3,T.!$L$3,D31,E31) -> 00:00:00 | L31: =ColTime(TIME(T.!$J$4,0,0),TIME(T.!$L$4,0,0),D31,E31) -> 00:00:00 | S31: =CHOOSE(WEEKDAY(A31,2),norm!C$1,norm!C$2,norm!C$3,norm!C$4,norm!C$5,norm!C$6,norm!C$7) -> 09:00:00
A32: =IF(MONTH(A31+1)>MONTH(A31),"",A31+1) -> 2019-03-29 | B32: Fr | C32: =IF(A32="","",HelligdagsNavn(A32,0,0)) ->  | H32: 00:00:00 | J32: =ColTime(T.!$J$3,T.!$L$3,D32,E32) -> 00:00:00 | L32: =ColTime(TIME(T.!$J$4,0,0),TIME(T.!$L$4,0,0),D32,E32) -> 00:00:00 | N32: =IFERROR(IF(WEEKDAY(A32,2)=6,ColTime(TIME(15,0,0),TIME(24,0,0),D32,E32),""),"") ->  | O32: =IFERROR(IF(OR(C32<>"",WEEKDAY(A32,2)=7),ColTime(TIME(0,0,0),TIME(24,0,0),D32,E32),""),"") ->  | S32: =IFERROR(CHOOSE(WEEKDAY(A32,2),norm!C$1,norm!C$2,norm!C$3,norm!C$4,norm!C$5,norm!C$6,norm!C$7),"") -> 09:00:00
A33: =IFERROR(IF(MONTH(A32+1)>MONTH(A32),"",A32+1),"") -> 2019-03-30 | B33: Lø | H33: 00:00:00 | J33: =ColTime(T.!$J$3,T.!$L$3,D33,E33) -> 00:00:00 | L33: =ColTime(TIME(T.!$J$4,0,0),TIME(T.!$L$4,0,0),D33,E33) -> 00:00:00 | N33: =IFERROR(IF(WEEKDAY(A33,2)=6,ColTime(TIME(15,0,0),TIME(24,0,0),D33,E33),""),"") -> 00:00:00 | O33: =IFERROR(IF(OR(C33<>"",WEEKDAY(A33,2)=7),ColTime(TIME(0,0,0),TIME(24,0,0),D33,E33),""),"") ->  | S33: =IFERROR(CHOOSE(WEEKDAY(A33,2),norm!C$1,norm!C$2,norm!C$3,norm!C$4,norm!C$5,norm!C$6,norm!C$7),"") -> 09:00:00
A34: =IFERROR(IF(MONTH(A33+1)>MONTH(A33),"",A33+1),"") -> 2019-03-31 | B34: =IFERROR(PROPER(TEXT(A34,"ddd")),"") -> Sø | C34: =IF(A34="","",HelligdagsNavn(A34,0,0)) ->  | H34: 00:00:00 | J34: =ColTime(T.!$J$3,T.!$L$3,D34,E34) -> 00:00:00 | L34: =ColTime(TIME(T.!$J$4,0,0),TIME(T.!$L$4,0,0),D34,E34) -> 00:00:00 | N34: =IFERROR(IF(WEEKDAY(A34,2)=6,ColTime(TIME(15,0,0),TIME(24,0,0),D34,E34),""),"") ->  | O34: 00:00:00 | S34: =IFERROR(CHOOSE(WEEKDAY(A34,2),norm!C$1,norm!C$2,norm!C$3,norm!C$4,norm!C$5,norm!C$6,norm!C$7),"") -> 09:00:00 | V34: =IF(D34="","",HOUR(D34)) ->  | W34: =IF(D34="","",MINUTE(D34)) ->  | X34: =IF(D34="","",TIME(HOUR(D34),MINUTE(D34),0)) ->  | Y34: =IF(E34="","",HOUR(E34)) ->  | Z34: =IF(E34="","",MINUTE(E34)) ->  | AA34: =IF(E34="","",TIME(HOUR(E34),MINUTE(E34),0)) -> 
A35: Total timer | G35: =IF(SUM(G9:G34)<>"0",SUM(G4:G34),"") -> 2.447916667 | H35: =IF(SUM(H4:H34)<>"0",SUM(H4:H34),"") -> 0.34375 | I35: =IF(SUM(I4:I34)<>"0",SUM(I4:I34),"") -> 0.02083333333 | J35: =IF(SUM(J4:J34)<>"0",SUM(J4:J34),"") -> 0.2708333333 | L35: =SUM(L4:M34) -> 07:45:00 | N35: =IF(SUM(N4:N34)<>"0",SUM(N4:N34),"") -> 0.3125 | O35: =IF(SUM(O4:O34)<>"0",SUM(O4:O34),"") -> 07:45:00 | P35: =SUM(P4:P34) -> 0.1458333333 | Q35: =SUM(Q4:Q34) -> 0
A36: Timer 1/100 | G36: =IF(G35<>"",ROUND(G35*24,2),"") -> 58.75 | H36: =IF(H35<>"",ROUND(H35*24,2),"") -> 8.25 | I36: 0.5 | J36: =IF(J35<>"",ROUND(J35*24,2),"") -> 6.5 | L36: =IF(L35<>"",ROUND(L35*24,2),"") -> 7.75 | N36: =IF(N35<>"",ROUND(N35*24,2),"") -> 7.5 | O36: 7.75 | P36: 3.5 | Q36: 0
A37: Satser | G37: =Satser!B7 -> 107.35 | H37: =Satser!B9 -> 36.35 | I37: =Satser!B12 -> 58.1 | J37: =Satser!B17 -> 25.6 | L37: =Satser!B18 -> 34.2 | N37: =Satser!B19 -> 45.1 | O37: =Satser!B20 -> 50.6
G38: =IF(G35<>"",G36*G37,"") -> 6306.8125 | H38: =IF(H35<>"",H36*H37,"") -> 299.8875 | I38: 29.05 | J38: =IF(J35<>"",J36*J37,"") -> 166.4 | L38: =IF(L35<>"",L36*L36,"") -> 60.0625 | N38: =IF(N35<>"",N36*N37,"") -> 338.25 | O38: 392.15
A40: Lønart
A41: 3025 | G41: =G35 -> 2.447916667
A42: 3425 | G42: =H35 -> 0.34375
A43: 3428 | G43: =I35 -> 0.02083333333
A44: Timer | G44: =SUM(G41:G43) -> 2.8125 | H44: =IF(G44<>"",ROUND(G44*24,2),"") -> 67.5
H45: =G37*H44 -> 7246.125

Sheet April (hidden)
A1: Løn | B1: =PROPER(TEXT(A4,"dd mmmm åååå")) & PROPER(TEXT(N1," - dd mmmm åååå")) -> 01 April 2019 - 30 April 2019 | I1: Uge : | J1: =IF(A4="","",TRUNC((A4-WEEKDAY(A4,2)-DATE(YEAR(A4+4-WEEKDAY(A4,2)),1,-10))/7)) -> 14 | K1: - | M1: =IF(A25="","",TRUNC((A25-WEEKDAY(A25,2)-DATE(YEAR(A25+4-WEEKDAY(A25,2)),1,-10))/7)) -> 17 | N1: =EOMONTH(A4,0) -> 2019-04-30 | P1: 4 | V1: Time beregning: | AG1: 06:00:00 | AH1: 18:00:00 | AI1: 03:00:00
A2: Lønart | V2: Betalt pause ved vagt over 5 timer | Z2: 00:25:00 | AA2: minutter | AB2: 00:00:00 | AC2: 06:00:00 | AD2: 17:00:00 | AE2: 14:00:00
A3: Dato | B3: Dag | D3: Start | E3: Slut | F3: Pause | G3: Arb. Tid | H3: Overtid 1-3 time | I3: Overtid 4 - time | J3: Forskudt tid alle dage 18-23 | L3: Natarbejde 23-06 | N3: Lørdag tillæg 14 - 24 | O3: Søndag tillæg 00 - 24 | P3: Optjent afspadsering | Q3: Afholdt afspadsering | R3: Syge Timer | S3: norm
A4: =DATE(T.!$B$1,$P$1,1) -> 2019-04-01 | B4: =PROPER(TEXT(A4,"ddd")) -> Ma | C4: =HelligdagsNavn(A4,0,0) ->  | D4: 07:00:00 | E4: 16:00:00 | F4: 00:30:00 | G4: =IF(D4="","",(E4-D4)+(D4>E4)-F4) -> 0.3541666667 | H4: =IF(G4="",0,IF(WEEKDAY(A4,2)=7,0,IF(G4>S4,MIN(G4-S4,$AI$1),0))) -> 00:00:00 | I4: =IF(G4="","",IF(G4>S4+H4,G4-(S4+H4),"")) ->  | J4: =ColTime(T.!$J$3,T.!$L$3,D4,E4) -> 00:00:00 | L4: =ColTime(TIME(T.!$J$4,0,0),TIME(T.!$L$4,0,0),D4,E4) -> 00:00:00 | N4: =IF(WEEKDAY(A4,2)=6,ColTime(TIME(14,0,0),TIME(24,0,0),D4,E4),"") ->  | O4: =IF(OR(C4<>"",WEEKDAY(A4,2)=7),ColTime(TIME(0,0,0),TIME(24,0,0),D4,E4),"") ->  | P4: =IFERROR(H4+I4,"") ->  | S4: =CHOOSE(WEEKDAY(A4,2),norm!C$1,norm!C$2,norm!C$3,norm!C$4,norm!C$5,norm!C$6,norm!C$7) -> 09:00:00 | V4: =IF(D4="","",HOUR(D4)) -> 7 | W4: =IF(D4="","",MINUTE(D4)) -> 0 | X4: =IF(D4="","",TIME(HOUR(D4),MINUTE(D4),0)) -> 07:00:00 | Y4: =IF(E4="","",HOUR(E4)) -> 16 | Z4: =IF(E4="","",MINUTE(E4)) -> 0 | AA4: 02:00:00 | AB4: 09:30:00 | AC4: 11:30:00 | AG4: =MIN(G4-S4,3) -> -0.02083333333
A5: =A4+1 -> 2019-04-02 | B5: =PROPER(TEXT(A5,"ddd")) -> Ti | C5: =HelligdagsNavn(A5,0,0) ->  | D5: 13:45:00 | E5: 21:30:00 | F5: 00:30:00 | G5: =IF(D5="","",(E5-D5)+(D5>E5)-F5) -> 0.3020833333 | H5: =IF(G5="",0,IF(WEEKDAY(A5,2)=7,0,IF(G5>S5,MIN(G5-S5,$AI$1),0))) -> 00:00:00 | I5: =IF(G5="","",IF(G5>S5+H5,G5-(S5+H5),"")) ->  | J5: =ColTime(T.!$J$3,T.!$L$3,D5,E5) -> 03:30:00 | L5: =ColTime(TIME(T.!$J$4,0,0),TIME(T.!$L$4,0,0),D5,E5) -> 00:00:00 | P5: =IFERROR(H5+I5,"") ->  | S5: =CHOOSE(WEEKDAY(A5,2),norm!C$1,norm!C$2,norm!C$3,norm!C$4,norm!C$5,norm!C$6,norm!C$7) -> 09:00:00 | V5: 13 | W5: 45 | X5: 13:45:00 | Y5: 21 | Z5: 30 | AA5: =IF(E5="","",TIME(HOUR(E5),MINUTE(E5),0)) -> 21:30:00 | AH5: Der taste kun i de Gule celler
A6: =A5+1 -> 2019-04-03 | B6: =PROPER(TEXT(A6,"ddd")) -> On | D6: 22:00:00 | E6: 05:45:00 | F6: 00:30:00 | G6: 0.3020833333 | H6: 00:00:00 | J6: =ColTime(T.!$J$3,T.!$L$3,D6,E6) -> 01:00:00 | L6: =ColTime(TIME(T.!$J$4,0,0),TIME(T.!$L$4,0,0),D6,E6) -> 06:45:00 | P6: =IFERROR(H6+I6,"") ->  | S6: =CHOOSE(WEEKDAY(A6,2),norm!C$1,norm!C$2,norm!C$3,norm!C$4,norm!C$5,norm!C$6,norm!C$7) -> 09:00:00 | V6: 22 | W6: 0 | X6: 22:00:00 | Y6: 5 | Z6: 45 | AA6: 05:45:00
A7: 2019-04-04 | B7: To | D7: 05:00:00 | E7: 16:45:00 | F7: 00:30:00 | G7: 0.46875 | H7: 02:15:00 | J7: =ColTime(T.!$J$3,T.!$L$3,D7,E7) -> 00:00:00 | L7: =ColTime(TIME(T.!$J$4,0,0),TIME(T.!$L$4,0,0),D7,E7) -> 01:00:00 | P7: =IFERROR(H7+I7,"") ->  | S7: =CHOOSE(WEEKDAY(A7,2),norm!C$1,norm!C$2,norm!C$3,norm!C$4,norm!C$5,norm!C$6,norm!C$7) -> 09:00:00 | V7: 5 | W7: 0 | X7: 05:00:00 | Y7: 16 | Z7: 45 | AA7: 16:45:00
A8: 2019-04-05 | B8: Fr | H8: 00:00:00 | J8: =ColTime(T.!$J$3,T.!$L$3,D8,E8) -> 00:00:00 | L8: =ColTime(TIME(T.!$J$4,0,0),TIME(T.!$L$4,0,0),D8,E8) -> 00:00:00 | P8: =IFERROR(H8+I8,"") ->  | S8: =CHOOSE(WEEKDAY(A8,2),norm!C$1,norm!C$2,norm!C$3,norm!C$4,norm!C$5,norm!C$6,norm!C$7) -> 09:00:00
A9: 2019-04-06 | B9: Lø | D9: 06:00:00 | E9: 19:00:00 | F9: 00:30:00 | G9: 0.5208333333 | H9: 03:00:00 | I9: 00:30:00 | J9: =ColTime(T.!$J$3,T.!$L$3,D9,E9) -> 01:00:00 | L9: =ColTime(TIME(T.!$J$4,0,0),TIME(T.!$L$4,0,0),D9,E9) -> 00:00:00 | N9: 05:00:00 | O9: =IF(OR(C9<>"",WEEKDAY(A9,2)=7),ColTime(TIME(0,0,0),TIME(24,0,0),D9,E9),"") ->  | P9: =IFERROR(H9+I9,"") -> 03:30:00 | S9: =CHOOSE(WEEKDAY(A9,2),norm!C$1,norm!C$2,norm!C$3,norm!C$4,norm!C$5,norm!C$6,norm!C$7) -> 09:00:00 | V9: 6 | W9: 0 | X9: 06:00:00 | Y9: 19 | Z9: 0 | AA9: 19:00:00
A10: 2019-04-07 | B10: Sø | D10: 07:00:00 | E10: 19:00:00 | G10: 0.5 | H10: 00:00:00 | I10: 03:00:00 | J10: =ColTime(T.!$J$3,T.!$L$3,D10,E10) -> 01:00:00 | L10: =ColTime(TIME(T.!$J$4,0,0),TIME(T.!$L$4,0,0),D10,E10) -> 00:00:00 | N10: =IF(WEEKDAY(A10,2)=6,ColTime(TIME(14,0,0),TIME(24,0,0),D10,E10),"") ->  | O10: =IF(OR(C10<>"",WEEKDAY(A10,2)=7),ColTime(TIME(0,0,0),TIME(24,0,0),D10,E10),"") -> 12:00:00 | P10: 03:00:00 | S10: =CHOOSE(WEEKDAY(A10,2),norm!C$1,norm!C$2,norm!C$3,norm!C$4,norm!C$5,norm!C$6,norm!C$7) -> 09:00:00 | V10: 7 | W10: 0 | X10: 07:00:00 | Y10: 19 | Z10: 0 | AA10: 19:00:00
A11: =A10+1 -> 2019-04-08 | B11: =PROPER(TEXT(A11,"ddd")) -> Ma | C11: =HelligdagsNavn(A11,0,0) ->  | H11: 00:00:00 | J11: =ColTime(T.!$J$3,T.!$L$3,D11,E11) -> 00:00:00 | L11: =ColTime(TIME(T.!$J$4,0,0),TIME(T.!$L$4,0,0),D11,E11) -> 00:00:00 | N11: =IF(WEEKDAY(A11,2)=6,ColTime(TIME(15,0,0),TIME(24,0,0),D11,E11),"") ->  | S11: =CHOOSE(WEEKDAY(A11,2),norm!C$1,norm!C$2,norm!C$3,norm!C$4,norm!C$5,norm!C$6,norm!C$7) -> 09:00:00
A12: =A11+1 -> 2019-04-09 | B12: =PROPER(TEXT(A12,"ddd")) -> Ti | C12: =HelligdagsNavn(A12,0,0) ->  | H12: 00:00:00 | J12: =ColTime(T.!$J$3,T.!$L$3,D12,E12) -> 00:00:00 | L12: =ColTime(TIME(T.!$J$4,0,0),TIME(T.!$L$4,0,0),D12,E12) -> 00:00:00 | S12: =CHOOSE(WEEKDAY(A12,2),norm!C$1,norm!C$2,norm!C$3,norm!C$4,norm!C$5,norm!C$6,norm!C$7) -> 09:00:00
A13: =A12+1 -> 2019-04-10 | B13: =PROPER(TEXT(A13,"ddd")) -> On | H13: 00:00:00 | J13: =ColTime(T.!$J$3,T.!$L$3,D13,E13) -> 00:00:00 | L13: =ColTime(TIME(T.!$J$4,0,0),TIME(T.!$L$4,0,0),D13,E13) -> 00:00:00 | S13: =CHOOSE(WEEKDAY(A13,2),norm!C$1,norm!C$2,norm!C$3,norm!C$4,norm!C$5,norm!C$6,norm!C$7) -> 09:00:00
A14: 2019-04-11 | B14: To | H14: 00:00:00 | J14: =ColTime(T.!$J$3,T.!$L$3,D14,E14) -> 00:00:00 | L14: =ColTime(TIME(T.!$J$4,0,0),TIME(T.!$L$4,0,0),D14,E14) -> 00:00:00 | S14: =CHOOSE(WEEKDAY(A14,2),norm!C$1,norm!C$2,norm!C$3,norm!C$4,norm!C$5,norm!C$6,norm!C$7) -> 09:00:00
A15: 2019-04-12 | B15: Fr | H15: 00:00:00 | J15: =ColTime(T.!$J$3,T.!$L$3,D15,E15) -> 00:00:00 | L15: =ColTime(TIME(T.!$J$4,0,0),TIME(T.!$L$4,0,0),D15,E15) -> 00:00:00 | S15: =CHOOSE(WEEKDAY(A15,2),norm!C$1,norm!C$2,norm!C$3,norm!C$4,norm!C$5,norm!C$6,norm!C$7) -> 09:00:00
A16: 2019-04-13 | B16: Lø | H16: 00:00:00 | J16: =ColTime(T.!$J$3,T.!$L$3,D16,E16) -> 00:00:00 | L16: =ColTime(TIME(T.!$J$4,0,0),TIME(T.!$L$4,0,0),D16,E16) -> 00:00:00 | N16: 00:00:00 | S16: =CHOOSE(WEEKDAY(A16,2),norm!C$1,norm!C$2,norm!C$3,norm!C$4,norm!C$5,norm!C$6,norm!C$7) -> 09:00:00
A17: 2019-04-14 | B17: Sø | H17: 00:00:00 | J17: =ColTime(T.!$J$3,T.!$L$3,D17,E17) -> 00:00:00 | L17: =ColTime(TIME(T.!$J$4,0,0),TIME(T.!$L$4,0,0),D17,E17) -> 00:00:00 | O17: 00:00:00 | S17: =CHOOSE(WEEKDAY(A17,2),norm!C$1,norm!C$2,norm!C$3,norm!C$4,norm!C$5,norm!C$6,norm!C$7) -> 09:00:00
A18: =A17+1 -> 2019-04-15 | B18: =PROPER(TEXT(A18,"ddd")) -> Ma | C18: =HelligdagsNavn(A18,0,0) ->  | H18: 00:00:00 | J18: =ColTime(T.!$J$3,T.!$L$3,D18,E18) -> 00:00:00 | L18: =ColTime(TIME(T.!$J$4,0,0),TIME(T.!$L$4,0,0),D18,E18) -> 00:00:00 | S18: =CHOOSE(WEEKDAY(A18,2),norm!C$1,norm!C$2,norm!C$3,norm!C$4,norm!C$5,norm!C$6,norm!C$7) -> 09:00:00
A19: =A18+1 -> 2019-04-16 | B19: =PROPER(TEXT(A19,"ddd")) -> Ti | C19: =HelligdagsNavn(A19,0,0) ->  | H19: 00:00:00 | J19: =ColTime(T.!$J$3,T.!$L$3,D19,E19) -> 00:00:00 | L19: =ColTime(TIME(T.!$J$4,0,0),TIME(T.!$L$4,0,0),D19,E19) -> 00:00:00 | S19: =CHOOSE(WEEKDAY(A19,2),norm!C$1,norm!C$2,norm!C$3,norm!C$4,norm!C$5,norm!C$6,norm!C$7) -> 09:00:00
A20: =A19+1 -> 2019-04-17 | B20: =PROPER(TEXT(A20,"ddd")) -> On | H20: 00:00:00 | J20: =ColTime(T.!$J$3,T.!$L$3,D20,E20) -> 00:00:00 | L20: =ColTime(TIME(T.!$J$4,0,0),TIME(T.!$L$4,0,0),D20,E20) -> 00:00:00 | S20: =CHOOSE(WEEKDAY(A20,2),norm!C$1,norm!C$2,norm!C$3,norm!C$4,norm!C$5,norm!C$6,norm!C$7) -> 09:00:00
A21: 2019-04-18 | B21: To | C21: Skærtorsdag | H21: 00:00:00 | J21: =ColTime(T.!$J$3,T.!$L$3,D21,E21) -> 00:00:00 | L21: =ColTime(TIME(T.!$J$4,0,0),TIME(T.!$L$4,0,0),D21,E21) -> 00:00:00 | O21: 00:00:00 | S21: =CHOOSE(WEEKDAY(A21,2),norm!C$1,norm!C$2,norm!C$3,norm!C$4,norm!C$5,norm!C$6,norm!C$7) -> 09:00:00
A22: 2019-04-19 | B22: Fr | C22: Langfredag | H22: 00:00:00 | J22: =ColTime(T.!$J$3,T.!$L$3,D22,E22) -> 00:00:00 | L22: =ColTime(TIME(T.!$J$4,0,0),TIME(T.!$L$4,0,0),D22,E22) -> 00:00:00 | O22: 00:00:00 | S22: =CHOOSE(WEEKDAY(A22,2),norm!C$1,norm!C$2,norm!C$3,norm!C$4,norm!C$5,norm!C$6,norm!C$7) -> 09:00:00
A23: 2019-04-20 | B23: Lø | H23: 00:00:00 | J23: =ColTime(T.!$J$3,T.!$L$3,D23,E23) -> 00:00:00 | L23: =ColTime(TIME(T.!$J$4,0,0),TIME(T.!$L$4,0,0),D23,E23) -> 00:00:00 | N23: 00:00:00 | S23: =CHOOSE(WEEKDAY(A23,2),norm!C$1,norm!C$2,norm!C$3,norm!C$4,norm!C$5,norm!C$6,norm!C$7) -> 09:00:00
A24: 2019-04-21 | B24: Sø | C24: Påskedag | H24: 00:00:00 | J24: =ColTime(T.!$J$3,T.!$L$3,D24,E24) -> 00:00:00 | L24: =ColTime(TIME(T.!$J$4,0,0),TIME(T.!$L$4,0,0),D24,E24) -> 00:00:00 | O24: 00:00:00 | S24: =CHOOSE(WEEKDAY(A24,2),norm!C$1,norm!C$2,norm!C$3,norm!C$4,norm!C$5,norm!C$6,norm!C$7) -> 09:00:00
A25: =A24+1 -> 2019-04-22 | B25: =PROPER(TEXT(A25,"ddd")) -> Ma | C25: =HelligdagsNavn(A25,0,0) -> 2. Påskedag | H25: 00:00:00 | J25: =ColTime(T.!$J$3,T.!$L$3,D25,E25) -> 00:00:00 | L25: =ColTime(TIME(T.!$J$4,0,0),TIME(T.!$L$4,0,0),D25,E25) -> 00:00:00 | O25: 00:00:00 | S25: =CHOOSE(WEEKDAY(A25,2),norm!C$1,norm!C$2,norm!C$3,norm!C$4,norm!C$5,norm!C$6,norm!C$7) -> 09:00:00
A26: =A25+1 -> 2019-04-23 | B26: =PROPER(TEXT(A26,"ddd")) -> Ti | C26: =HelligdagsNavn(A26,0,0) ->  | H26: 00:00:00 | J26: =ColTime(T.!$J$3,T.!$L$3,D26,E26) -> 00:00:00 | L26: =ColTime(TIME(T.!$J$4,0,0),TIME(T.!$L$4,0,0),D26,E26) -> 00:00:00 | S26: =CHOOSE(WEEKDAY(A26,2),norm!C$1,norm!C$2,norm!C$3,norm!C$4,norm!C$5,norm!C$6,norm!C$7) -> 09:00:00
A27: =A26+1 -> 2019-04-24 | B27: =PROPER(TEXT(A27,"ddd")) -> On | H27: 00:00:00 | J27: =ColTime(T.!$J$3,T.!$L$3,D27,E27) -> 00:00:00 | L27: =ColTime(TIME(T.!$J$4,0,0),TIME(T.!$L$4,0,0),D27,E27) -> 00:00:00 | S27: =CHOOSE(WEEKDAY(A27,2),norm!C$1,norm!C$2,norm!C$3,norm!C$4,norm!C$5,norm!C$6,norm!C$7) -> 09:00:00
A28: 2019-04-25 | B28: To | H28: 00:00:00 | J28: =ColTime(T.!$J$3,T.!$L$3,D28,E28) -> 00:00:00 | L28: =ColTime(TIME(T.!$J$4,0,0),TIME(T.!$L$4,0,0),D28,E28) -> 00:00:00 | S28: =CHOOSE(WEEKDAY(A28,2),norm!C$1,norm!C$2,norm!C$3,norm!C$4,norm!C$5,norm!C$6,norm!C$7) -> 09:00:00
A29: 2019-04-26 | B29: Fr | H29: 00:00:00 | J29: =ColTime(T.!$J$3,T.!$L$3,D29,E29) -> 00:00:00 | L29: =ColTime(TIME(T.!$J$4,0,0),TIME(T.!$L$4,0,0),D29,E29) -> 00:00:00 | S29: =CHOOSE(WEEKDAY(A29,2),norm!C$1,norm!C$2,norm!C$3,norm!C$4,norm!C$5,norm!C$6,norm!C$7) -> 09:00:00
A30: 2019-04-27 | B30: Lø | H30: 00:00:00 | J30: =ColTime(T.!$J$3,T.!$L$3,D30,E30) -> 00:00:00 | L30: =ColTime(TIME(T.!$J$4,0,0),TIME(T.!$L$4,0,0),D30,E30) -> 00:00:00 | N30: 00:00:00 | S30: =CHOOSE(WEEKDAY(A30,2),norm!C$1,norm!C$2,norm!C$3,norm!C$4,norm!C$5,norm!C$6,norm!C$7) -> 09:00:00
A31: 2019-04-28 | B31: Sø | H31: 00:00:00 | J31: =ColTime(T.!$J$3,T.!$L$3,D31,E31) -> 00:00:00 | L31: =ColTime(TIME(T.!$J$4,0,0),TIME(T.!$L$4,0,0),D31,E31) -> 00:00:00 | O31: 00:00:00 | S31: =CHOOSE(WEEKDAY(A31,2),norm!C$1,norm!C$2,norm!C$3,norm!C$4,norm!C$5,norm!C$6,norm!C$7) -> 09:00:00
A32: =IF(MONTH(A31+1)>MONTH(A31),"",A31+1) -> 2019-04-29 | B32: Ma | C32: =IF(A32="","",HelligdagsNavn(A32,0,0)) ->  | H32: 00:00:00 | J32: =ColTime(T.!$J$3,T.!$L$3,D32,E32) -> 00:00:00 | L32: =ColTime(TIME(T.!$J$4,0,0),TIME(T.!$L$4,0,0),D32,E32) -> 00:00:00 | N32: =IFERROR(IF(WEEKDAY(A32,2)=6,ColTime(TIME(15,0,0),TIME(24,0,0),D32,E32),""),"") ->  | O32: =IFERROR(IF(OR(C32<>"",WEEKDAY(A32,2)=7),ColTime(TIME(0,0,0),TIME(24,0,0),D32,E32),""),"") ->  | S32: =IFERROR(CHOOSE(WEEKDAY(A32,2),norm!C$1,norm!C$2,norm!C$3,norm!C$4,norm!C$5,norm!C$6,norm!C$7),"") -> 09:00:00
A33: =IFERROR(IF(MONTH(A32+1)>MONTH(A32),"",A32+1),"") -> 2019-04-30 | B33: Ti | H33: 00:00:00 | J33: =ColTime(T.!$J$3,T.!$L$3,D33,E33) -> 00:00:00 | L33: =ColTime(TIME(T.!$J$4,0,0),TIME(T.!$L$4,0,0),D33,E33) -> 00:00:00 | N33: =IFERROR(IF(WEEKDAY(A33,2)=6,ColTime(TIME(15,0,0),TIME(24,0,0),D33,E33),""),"") ->  | O33: =IFERROR(IF(OR(C33<>"",WEEKDAY(A33,2)=7),ColTime(TIME(0,0,0),TIME(24,0,0),D33,E33),""),"") ->  | S33: =IFERROR(CHOOSE(WEEKDAY(A33,2),norm!C$1,norm!C$2,norm!C$3,norm!C$4,norm!C$5,norm!C$6,norm!C$7),"") -> 09:00:00
A34: =IFERROR(IF(MONTH(A33+1)>MONTH(A33),"",A33+1),"") ->  | B34: =IFERROR(PROPER(TEXT(A34,"ddd")),"") ->  | C34: =IF(A34="","",HelligdagsNavn(A34,0,0)) ->  | H34: 00:00:00 | J34: =ColTime(T.!$J$3,T.!$L$3,D34,E34) -> 00:00:00 | L34: =ColTime(TIME(T.!$J$4,0,0),TIME(T.!$L$4,0,0),D34,E34) -> 00:00:00 | N34: =IFERROR(IF(WEEKDAY(A34,2)=6,ColTime(TIME(15,0,0),TIME(24,0,0),D34,E34),""),"") ->  | S34: =IFERROR(CHOOSE(WEEKDAY(A34,2),norm!C$1,norm!C$2,norm!C$3,norm!C$4,norm!C$5,norm!C$6,norm!C$7),"") ->  | V34: =IF(D34="","",HOUR(D34)) ->  | W34: =IF(D34="","",MINUTE(D34)) ->  | X34: =IF(D34="","",TIME(HOUR(D34),MINUTE(D34),0)) ->  | Y34: =IF(E34="","",HOUR(E34)) ->  | Z34: =IF(E34="","",MINUTE(E34)) ->  | AA34: =IF(E34="","",TIME(HOUR(E34),MINUTE(E34),0)) -> 
A35: Total timer | G35: =IF(SUM(G9:G34)<>"0",SUM(G4:G34),"") -> 2.447916667 | H35: =IF(SUM(H4:H34)<>"0",SUM(H4:H34),"") -> 0.21875 | I35: =IF(SUM(I4:I34)<>"0",SUM(I4:I34),"") -> 0.1458333333 | J35: =IF(SUM(J4:J34)<>"0",SUM(J4:J34),"") -> 0.2708333333 | L35: =SUM(L4:M34) -> 07:45:00 | N35: =IF(SUM(N4:N34)<>"0",SUM(N4:N34),"") -> 0.2083333333 | O35: =IF(SUM(O4:O34)<>"0",SUM(O4:O34),"") -> 12:00:00 | P35: =SUM(P4:P34) -> 0.2708333333 | Q35: =SUM(Q4:Q34) -> 0
A36: Timer 1/100 | G36: =IF(G35<>"",ROUND(G35*24,2),"") -> 58.75 | H36: =IF(H35<>"",ROUND(H35*24,2),"") -> 5.25 | I36: 3.5 | J36: =IF(J35<>"",ROUND(J35*24,2),"") -> 6.5 | L36: =IF(L35<>"",ROUND(L35*24,2),"") -> 7.75 | N36: =IF(N35<>"",ROUND(N35*24,2),"") -> 5 | O36: 12 | P36: 6.5 | Q36: 0
A37: Satser | G37: =Satser!B7 -> 107.35 | H37: =Satser!B9 -> 36.35 | I37: =Satser!B12 -> 58.1 | J37: =Satser!B17 -> 25.6 | L37: =Satser!B18 -> 34.2 | N37: =Satser!B19 -> 45.1 | O37: =Satser!B20 -> 50.6
G38: =IF(G35<>"",G36*G37,"") -> 6306.8125 | H38: =IF(H35<>"",H36*H37,"") -> 190.8375 | I38: 203.35 | J38: =IF(J35<>"",J36*J37,"") -> 166.4 | L38: =IF(L35<>"",L36*L36,"") -> 60.0625 | N38: =IF(N35<>"",N36*N37,"") -> 225.5 | O38: 607.2
A40: Lønart
A41: 3025 | G41: =G35 -> 2.447916667
A42: 3425 | G42: =H35 -> 0.21875
A43: 3428 | G43: =I35 -> 0.1458333333
A44: Timer | G44: =SUM(G41:G43) -> 2.8125 | H44: =IF(G44<>"",ROUND(G44*24,2),"") -> 67.5
H45: =G37*H44 -> 7246.125

Sheet Maj (hidden)
A1: Løn | B1: =PROPER(TEXT(A4,"dd mmmm åååå")) & PROPER(TEXT(N1," - dd mmmm åååå")) -> 01 Maj 2019 - 31 Maj 2019 | I1: Uge : | J1: =IF(A4="","",TRUNC((A4-WEEKDAY(A4,2)-DATE(YEAR(A4+4-WEEKDAY(A4,2)),1,-10))/7)) -> 18 | K1: - | M1: =IF(A25="","",TRUNC((A25-WEEKDAY(A25,2)-DATE(YEAR(A25+4-WEEKDAY(A25,2)),1,-10))/7)) -> 21 | N1: =EOMONTH(A4,0) -> 2019-05-31 | P1: 5 | V1: Time beregning: | AG1: 06:00:00 | AH1: 18:00:00 | AI1: 03:00:00
A2: Lønart | V2: Betalt pause ved vagt over 5 timer | Z2: 00:25:00 | AA2: minutter | AB2: 00:00:00 | AC2: 06:00:00 | AD2: 17:00:00 | AE2: 14:00:00
A3: Dato | B3: Dag | D3: Start | E3: Slut | F3: Pause | G3: Arb. Tid | H3: Overtid 1-3 time | I3: Overtid 4 - time | J3: Forskudt tid alle dage 18-23 | L3: Natarbejde 23-06 | N3: Lørdag tillæg 14 - 24 | O3: Søndag tillæg 00 - 24 | P3: Optjent afspadsering | Q3: Afholdt afspadsering | R3: Syge Timer | S3: norm
A4: =DATE(T.!$B$1,$P$1,1) -> 2019-05-01 | B4: =PROPER(TEXT(A4,"ddd")) -> On | C4: =HelligdagsNavn(A4,0,0) ->  | D4: 07:00:00 | E4: 16:00:00 | F4: 00:30:00 | G4: =IF(D4="","",(E4-D4)+(D4>E4)-F4) -> 0.3541666667 | H4: =IF(G4="",0,IF(WEEKDAY(A4,2)=7,0,IF(G4>S4,MIN(G4-S4,$AI$1),0))) -> 00:00:00 | I4: =IF(G4="","",IF(G4>S4+H4,G4-(S4+H4),"")) ->  | J4: =ColTime(T.!$J$3,T.!$L$3,D4,E4) -> 00:00:00 | L4: =ColTime(TIME(T.!$J$4,0,0),TIME(T.!$L$4,0,0),D4,E4) -> 00:00:00 | N4: =IF(WEEKDAY(A4,2)=6,ColTime(TIME(14,0,0),TIME(24,0,0),D4,E4),"") ->  | O4: =IF(OR(C4<>"",WEEKDAY(A4,2)=7),ColTime(TIME(0,0,0),TIME(24,0,0),D4,E4),"") ->  | P4: =IFERROR(H4+I4,"") ->  | S4: =CHOOSE(WEEKDAY(A4,2),norm!C$1,norm!C$2,norm!C$3,norm!C$4,norm!C$5,norm!C$6,norm!C$7) -> 09:00:00 | V4: =IF(D4="","",HOUR(D4)) -> 7 | W4: =IF(D4="","",MINUTE(D4)) -> 0 | X4: =IF(D4="","",TIME(HOUR(D4),MINUTE(D4),0)) -> 07:00:00 | Y4: =IF(E4="","",HOUR(E4)) -> 16 | Z4: =IF(E4="","",MINUTE(E4)) -> 0 | AA4: 02:00:00 | AB4: 09:30:00 | AC4: 11:30:00 | AG4: =MIN(G4-S4,3) -> -0.02083333333
A5: =A4+1 -> 2019-05-02 | B5: =PROPER(TEXT(A5,"ddd")) -> To | C5: =HelligdagsNavn(A5,0,0) ->  | D5: 13:45:00 | E5: 21:30:00 | F5: 00:30:00 | G5: =IF(D5="","",(E5-D5)+(D5>E5)-F5) -> 0.3020833333 | H5: =IF(G5="",0,IF(WEEKDAY(A5,2)=7,0,IF(G5>S5,MIN(G5-S5,$AI$1),0))) -> 00:00:00 | I5: =IF(G5="","",IF(G5>S5+H5,G5-(S5+H5),"")) ->  | J5: =ColTime(T.!$J$3,T.!$L$3,D5,E5) -> 03:30:00 | L5: =ColTime(TIME(T.!$J$4,0,0),TIME(T.!$L$4,0,0),D5,E5) -> 00:00:00 | P5: =IFERROR(H5+I5,"") ->  | S5: =CHOOSE(WEEKDAY(A5,2),norm!C$1,norm!C$2,norm!C$3,norm!C$4,norm!C$5,norm!C$6,norm!C$7) -> 09:00:00 | V5: 13 | W5: 45 | X5: 13:45:00 | Y5: 21 | Z5: 30 | AA5: =IF(E5="","",TIME(HOUR(E5),MINUTE(E5),0)) -> 21:30:00 | AH5: Der taste kun i de Gule celler
A6: =A5+1 -> 2019-05-03 | B6: =PROPER(TEXT(A6,"ddd")) -> Fr | D6: 22:00:00 | E6: 05:45:00 | F6: 00:30:00 | G6: 0.3020833333 | H6: 00:00:00 | J6: =ColTime(T.!$J$3,T.!$L$3,D6,E6) -> 01:00:00 | L6: =ColTime(TIME(T.!$J$4,0,0),TIME(T.!$L$4,0,0),D6,E6) -> 06:45:00 | P6: =IFERROR(H6+I6,"") ->  | S6: =CHOOSE(WEEKDAY(A6,2),norm!C$1,norm!C$2,norm!C$3,norm!C$4,norm!C$5,norm!C$6,norm!C$7) -> 09:00:00 | V6: 22 | W6: 0 | X6: 22:00:00 | Y6: 5 | Z6: 45 | AA6: 05:45:00
A7: 2019-05-04 | B7: Lø | D7: 05:00:00 | E7: 16:45:00 | F7: 00:30:00 | G7: 0.46875 | H7: 02:15:00 | J7: =ColTime(T.!$J$3,T.!$L$3,D7,E7) -> 00:00:00 | L7: =ColTime(TIME(T.!$J$4,0,0),TIME(T.!$L$4,0,0),D7,E7) -> 01:00:00 | N7: 02:45:00 | P7: =IFERROR(H7+I7,"") ->  | S7: =CHOOSE(WEEKDAY(A7,2),norm!C$1,norm!C$2,norm!C$3,norm!C$4,norm!C$5,norm!C$6,norm!C$7) -> 09:00:00 | V7: 5 | W7: 0 | X7: 05:00:00 | Y7: 16 | Z7: 45 | AA7: 16:45:00
A8: 2019-05-05 | B8: Sø | H8: 00:00:00 | J8: =ColTime(T.!$J$3,T.!$L$3,D8,E8) -> 00:00:00 | L8: =ColTime(TIME(T.!$J$4,0,0),TIME(T.!$L$4,0,0),D8,E8) -> 00:00:00 | O8: 00:00:00 | P8: =IFERROR(H8+I8,"") ->  | S8: =CHOOSE(WEEKDAY(A8,2),norm!C$1,norm!C$2,norm!C$3,norm!C$4,norm!C$5,norm!C$6,norm!C$7) -> 09:00:00
A9: 2019-05-06 | B9: Ma | D9: 06:00:00 | E9: 19:00:00 | F9: 00:30:00 | G9: 0.5208333333 | H9: 03:00:00 | I9: 00:30:00 | J9: =ColTime(T.!$J$3,T.!$L$3,D9,E9) -> 01:00:00 | L9: =ColTime(TIME(T.!$J$4,0,0),TIME(T.!$L$4,0,0),D9,E9) -> 00:00:00 | O9: =IF(OR(C9<>"",WEEKDAY(A9,2)=7),ColTime(TIME(0,0,0),TIME(24,0,0),D9,E9),"") ->  | P9: =IFERROR(H9+I9,"") -> 03:30:00 | S9: =CHOOSE(WEEKDAY(A9,2),norm!C$1,norm!C$2,norm!C$3,norm!C$4,norm!C$5,norm!C$6,norm!C$7) -> 09:00:00 | V9: 6 | W9: 0 | X9: 06:00:00 | Y9: 19 | Z9: 0 | AA9: 19:00:00
A10: 2019-05-07 | B10: Ti | D10: 07:00:00 | E10: 19:00:00 | G10: 0.5 | H10: 03:00:00 | J10: =ColTime(T.!$J$3,T.!$L$3,D10,E10) -> 01:00:00 | L10: =ColTime(TIME(T.!$J$4,0,0),TIME(T.!$L$4,0,0),D10,E10) -> 00:00:00 | N10: =IF(WEEKDAY(A10,2)=6,ColTime(TIME(14,0,0),TIME(24,0,0),D10,E10),"") ->  | O10: =IF(OR(C10<>"",WEEKDAY(A10,2)=7),ColTime(TIME(0,0,0),TIME(24,0,0),D10,E10),"") ->  | S10: =CHOOSE(WEEKDAY(A10,2),norm!C$1,norm!C$2,norm!C$3,norm!C$4,norm!C$5,norm!C$6,norm!C$7) -> 09:00:00 | V10: 7 | W10: 0 | X10: 07:00:00 | Y10: 19 | Z10: 0 | AA10: 19:00:00
A11: =A10+1 -> 2019-05-08 | B11: =PROPER(TEXT(A11,"ddd")) -> On | C11: =HelligdagsNavn(A11,0,0) ->  | H11: 00:00:00 | J11: =ColTime(T.!$J$3,T.!$L$3,D11,E11) -> 00:00:00 | L11: =ColTime(TIME(T.!$J$4,0,0),TIME(T.!$L$4,0,0),D11,E11) -> 00:00:00 | N11: =IF(WEEKDAY(A11,2)=6,ColTime(TIME(15,0,0),TIME(24,0,0),D11,E11),"") ->  | S11: =CHOOSE(WEEKDAY(A11,2),norm!C$1,norm!C$2,norm!C$3,norm!C$4,norm!C$5,norm!C$6,norm!C$7) -> 09:00:00
A12: =A11+1 -> 2019-05-09 | B12: =PROPER(TEXT(A12,"ddd")) -> To | C12: =HelligdagsNavn(A12,0,0) ->  | H12: 00:00:00 | J12: =ColTime(T.!$J$3,T.!$L$3,D12,E12) -> 00:00:00 | L12: =ColTime(TIME(T.!$J$4,0,0),TIME(T.!$L$4,0,0),D12,E12) -> 00:00:00 | S12: =CHOOSE(WEEKDAY(A12,2),norm!C$1,norm!C$2,norm!C$3,norm!C$4,norm!C$5,norm!C$6,norm!C$7) -> 09:00:00
A13: =A12+1 -> 2019-05-10 | B13: =PROPER(TEXT(A13,"ddd")) -> Fr | H13: 00:00:00 | J13: =ColTime(T.!$J$3,T.!$L$3,D13,E13) -> 00:00:00 | L13: =ColTime(TIME(T.!$J$4,0,0),TIME(T.!$L$4,0,0),D13,E13) -> 00:00:00 | S13: =CHOOSE(WEEKDAY(A13,2),norm!C$1,norm!C$2,norm!C$3,norm!C$4,norm!C$5,norm!C$6,norm!C$7) -> 09:00:00
A14: 2019-05-11 | B14: Lø | H14: 00:00:00 | J14: =ColTime(T.!$J$3,T.!$L$3,D14,E14) -> 00:00:00 | L14: =ColTime(TIME(T.!$J$4,0,0),TIME(T.!$L$4,0,0),D14,E14) -> 00:00:00 | N14: 00:00:00 | S14: =CHOOSE(WEEKDAY(A14,2),norm!C$1,norm!C$2,norm!C$3,norm!C$4,norm!C$5,norm!C$6,norm!C$7) -> 09:00:00
A15: 2019-05-12 | B15: Sø | H15: 00:00:00 | J15: =ColTime(T.!$J$3,T.!$L$3,D15,E15) -> 00:00:00 | L15: =ColTime(TIME(T.!$J$4,0,0),TIME(T.!$L$4,0,0),D15,E15) -> 00:00:00 | O15: 00:00:00 | S15: =CHOOSE(WEEKDAY(A15,2),norm!C$1,norm!C$2,norm!C$3,norm!C$4,norm!C$5,norm!C$6,norm!C$7) -> 09:00:00
A16: 2019-05-13 | B16: Ma | H16: 00:00:00 | J16: =ColTime(T.!$J$3,T.!$L$3,D16,E16) -> 00:00:00 | L16: =ColTime(TIME(T.!$J$4,0,0),TIME(T.!$L$4,0,0),D16,E16) -> 00:00:00 | S16: =CHOOSE(WEEKDAY(A16,2),norm!C$1,norm!C$2,norm!C$3,norm!C$4,norm!C$5,norm!C$6,norm!C$7) -> 09:00:00
A17: 2019-05-14 | B17: Ti | H17: 00:00:00 | J17: =ColTime(T.!$J$3,T.!$L$3,D17,E17) -> 00:00:00 | L17: =ColTime(TIME(T.!$J$4,0,0),TIME(T.!$L$4,0,0),D17,E17) -> 00:00:00 | S17: =CHOOSE(WEEKDAY(A17,2),norm!C$1,norm!C$2,norm!C$3,norm!C$4,norm!C$5,norm!C$6,norm!C$7) -> 09:00:00
A18: =A17+1 -> 2019-05-15 | B18: =PROPER(TEXT(A18,"ddd")) -> On | C18: =HelligdagsNavn(A18,0,0) ->  | H18: 00:00:00 | J18: =ColTime(T.!$J$3,T.!$L$3,D18,E18) -> 00:00:00 | L18: =ColTime(TIME(T.!$J$4,0,0),TIME(T.!$L$4,0,0),D18,E18) -> 00:00:00 | S18: =CHOOSE(WEEKDAY(A18,2),norm!C$1,norm!C$2,norm!C$3,norm!C$4,norm!C$5,norm!C$6,norm!C$7) -> 09:00:00
A19: =A18+1 -> 2019-05-16 | B19: =PROPER(TEXT(A19,"ddd")) -> To | C19: =HelligdagsNavn(A19,0,0) ->  | H19: 00:00:00 | J19: =ColTime(T.!$J$3,T.!$L$3,D19,E19) -> 00:00:00 | L19: =ColTime(TIME(T.!$J$4,0,0),TIME(T.!$L$4,0,0),D19,E19) -> 00:00:00 | S19: =CHOOSE(WEEKDAY(A19,2),norm!C$1,norm!C$2,norm!C$3,norm!C$4,norm!C$5,norm!C$6,norm!C$7) -> 09:00:00
A20: =A19+1 -> 2019-05-17 | B20: =PROPER(TEXT(A20,"ddd")) -> Fr | C20: Store Bededag | H20: 00:00:00 | J20: =ColTime(T.!$J$3,T.!$L$3,D20,E20) -> 00:00:00 | L20: =ColTime(TIME(T.!$J$4,0,0),TIME(T.!$L$4,0,0),D20,E20) -> 00:00:00 | O20: 00:00:00 | S20: =CHOOSE(WEEKDAY(A20,2),norm!C$1,norm!C$2,norm!C$3,norm!C$4,norm!C$5,norm!C$6,norm!C$7) -> 09:00:00
A21: 2019-05-18 | B21: Lø | H21: 00:00:00 | J21: =ColTime(T.!$J$3,T.!$L$3,D21,E21) -> 00:00:00 | L21: =ColTime(TIME(T.!$J$4,0,0),TIME(T.!$L$4,0,0),D21,E21) -> 00:00:00 | N21: 00:00:00 | S21: =CHOOSE(WEEKDAY(A21,2),norm!C$1,norm!C$2,norm!C$3,norm!C$4,norm!C$5,norm!C$6,norm!C$7) -> 09:00:00
A22: 2019-05-19 | B22: Sø | H22: 00:00:00 | J22: =ColTime(T.!$J$3,T.!$L$3,D22,E22) -> 00:00:00 | L22: =ColTime(TIME(T.!$J$4,0,0),TIME(T.!$L$4,0,0),D22,E22) -> 00:00:00 | O22: 00:00:00 | S22: =CHOOSE(WEEKDAY(A22,2),norm!C$1,norm!C$2,norm!C$3,norm!C$4,norm!C$5,norm!C$6,norm!C$7) -> 09:00:00
A23: 2019-05-20 | B23: Ma | H23: 00:00:00 | J23: =ColTime(T.!$J$3,T.!$L$3,D23,E23) -> 00:00:00 | L23: =ColTime(TIME(T.!$J$4,0,0),TIME(T.!$L$4,0,0),D23,E23) -> 00:00:00 | S23: =CHOOSE(WEEKDAY(A23,2),norm!C$1,norm!C$2,norm!C$3,norm!C$4,norm!C$5,norm!C$6,norm!C$7) -> 09:00:00
A24: 2019-05-21 | B24: Ti | H24: 00:00:00 | J24: =ColTime(T.!$J$3,T.!$L$3,D24,E24) -> 00:00:00 | L24: =ColTime(TIME(T.!$J$4,0,0),TIME(T.!$L$4,0,0),D24,E24) -> 00:00:00 | S24: =CHOOSE(WEEKDAY(A24,2),norm!C$1,norm!C$2,norm!C$3,norm!C$4,norm!C$5,norm!C$6,norm!C$7) -> 09:00:00
A25: =A24+1 -> 2019-05-22 | B25: =PROPER(TEXT(A25,"ddd")) -> On | C25: =HelligdagsNavn(A25,0,0) ->  | H25: 00:00:00 | J25: =ColTime(T.!$J$3,T.!$L$3,D25,E25) -> 00:00:00 | L25: =ColTime(TIME(T.!$J$4,0,0),TIME(T.!$L$4,0,0),D25,E25) -> 00:00:00 | S25: =CHOOSE(WEEKDAY(A25,2),norm!C$1,norm!C$2,norm!C$3,norm!C$4,norm!C$5,norm!C$6,norm!C$7) -> 09:00:00
A26: =A25+1 -> 2019-05-23 | B26: =PROPER(TEXT(A26,"ddd")) -> To | C26: =HelligdagsNavn(A26,0,0) ->  | H26: 00:00:00 | J26: =ColTime(T.!$J$3,T.!$L$3,D26,E26) -> 00:00:00 | L26: =ColTime(TIME(T.!$J$4,0,0),TIME(T.!$L$4,0,0),D26,E26) -> 00:00:00 | S26: =CHOOSE(WEEKDAY(A26,2),norm!C$1,norm!C$2,norm!C$3,norm!C$4,norm!C$5,norm!C$6,norm!C$7) -> 09:00:00
A27: =A26+1 -> 2019-05-24 | B27: =PROPER(TEXT(A27,"ddd")) -> Fr | H27: 00:00:00 | J27: =ColTime(T.!$J$3,T.!$L$3,D27,E27) -> 00:00:00 | L27: =ColTime(TIME(T.!$J$4,0,0),TIME(T.!$L$4,0,0),D27,E27) -> 00:00:00 | S27: =CHOOSE(WEEKDAY(A27,2),norm!C$1,norm!C$2,norm!C$3,norm!C$4,norm!C$5,norm!C$6,norm!C$7) -> 09:00:00
A28: 2019-05-25 | B28: Lø | H28: 00:00:00 | J28: =ColTime(T.!$J$3,T.!$L$3,D28,E28) -> 00:00:00 | L28: =ColTime(TIME(T.!$J$4,0,0),TIME(T.!$L$4,0,0),D28,E28) -> 00:00:00 | N28: 00:00:00 | S28: =CHOOSE(WEEKDAY(A28,2),norm!C$1,norm!C$2,norm!C$3,norm!C$4,norm!C$5,norm!C$6,norm!C$7) -> 09:00:00
A29: 2019-05-26 | B29: Sø | H29: 00:00:00 | J29: =ColTime(T.!$J$3,T.!$L$3,D29,E29) -> 00:00:00 | L29: =ColTime(TIME(T.!$J$4,0,0),TIME(T.!$L$4,0,0),D29,E29) -> 00:00:00 | O29: 00:00:00 | S29: =CHOOSE(WEEKDAY(A29,2),norm!C$1,norm!C$2,norm!C$3,norm!C$4,norm!C$5,norm!C$6,norm!C$7) -> 09:00:00
A30: 2019-05-27 | B30: Ma | H30: 00:00:00 | J30: =ColTime(T.!$J$3,T.!$L$3,D30,E30) -> 00:00:00 | L30: =ColTime(TIME(T.!$J$4,0,0),TIME(T.!$L$4,0,0),D30,E30) -> 00:00:00 | S30: =CHOOSE(WEEKDAY(A30,2),norm!C$1,norm!C$2,norm!C$3,norm!C$4,norm!C$5,norm!C$6,norm!C$7) -> 09:00:00
A31: 2019-05-28 | B31: Ti | H31: 00:00:00 | J31: =ColTime(T.!$J$3,T.!$L$3,D31,E31) -> 00:00:00 | L31: =ColTime(TIME(T.!$J$4,0,0),TIME(T.!$L$4,0,0),D31,E31) -> 00:00:00 | S31: =CHOOSE(WEEKDAY(A31,2),norm!C$1,norm!C$2,norm!C$3,norm!C$4,norm!C$5,norm!C$6,norm!C$7) -> 09:00:00
A32: =IF(MONTH(A31+1)>MONTH(A31),"",A31+1) -> 2019-05-29 | B32: On | C32: =IF(A32="","",HelligdagsNavn(A32,0,0)) ->  | H32: 00:00:00 | J32: =ColTime(T.!$J$3,T.!$L$3,D32,E32) -> 00:00:00 | L32: =ColTime(TIME(T.!$J$4,0,0),TIME(T.!$L$4,0,0),D32,E32) -> 00:00:00 | N32: =IFERROR(IF(WEEKDAY(A32,2)=6,ColTime(TIME(15,0,0),TIME(24,0,0),D32,E32),""),"") ->  | O32: =IFERROR(IF(OR(C32<>"",WEEKDAY(A32,2)=7),ColTime(TIME(0,0,0),TIME(24,0,0),D32,E32),""),"") ->  | S32: =IFERROR(CHOOSE(WEEKDAY(A32,2),norm!C$1,norm!C$2,norm!C$3,norm!C$4,norm!C$5,norm!C$6,norm!C$7),"") -> 09:00:00
A33: =IFERROR(IF(MONTH(A32+1)>MONTH(A32),"",A32+1),"") -> 2019-05-30 | B33: To | C33: Kristi Himmelfartsdag | H33: 00:00:00 | J33: =ColTime(T.!$J$3,T.!$L$3,D33,E33) -> 00:00:00 | L33: =ColTime(TIME(T.!$J$4,0,0),TIME(T.!$L$4,0,0),D33,E33) -> 00:00:00 | N33: =IFERROR(IF(WEEKDAY(A33,2)=6,ColTime(TIME(15,0,0),TIME(24,0,0),D33,E33),""),"") ->  | O33: =IFERROR(IF(OR(C33<>"",WEEKDAY(A33,2)=7),ColTime(TIME(0,0,0),TIME(24,0,0),D33,E33),""),"") -> 00:00:00 | S33: =IFERROR(CHOOSE(WEEKDAY(A33,2),norm!C$1,norm!C$2,norm!C$3,norm!C$4,norm!C$5,norm!C$6,norm!C$7),"") -> 09:00:00
A34: =IFERROR(IF(MONTH(A33+1)>MONTH(A33),"",A33+1),"") -> 2019-05-31 | B34: =IFERROR(PROPER(TEXT(A34,"ddd")),"") -> Fr | C34: =IF(A34="","",HelligdagsNavn(A34,0,0)) ->  | H34: 00:00:00 | J34: =ColTime(T.!$J$3,T.!$L$3,D34,E34) -> 00:00:00 | L34: =ColTime(TIME(T.!$J$4,0,0),TIME(T.!$L$4,0,0),D34,E34) -> 00:00:00 | N34: =IFERROR(IF(WEEKDAY(A34,2)=6,ColTime(TIME(15,0,0),TIME(24,0,0),D34,E34),""),"") ->  | S34: =IFERROR(CHOOSE(WEEKDAY(A34,2),norm!C$1,norm!C$2,norm!C$3,norm!C$4,norm!C$5,norm!C$6,norm!C$7),"") -> 09:00:00 | V34: =IF(D34="","",HOUR(D34)) ->  | W34: =IF(D34="","",MINUTE(D34)) ->  | X34: =IF(D34="","",TIME(HOUR(D34),MINUTE(D34),0)) ->  | Y34: =IF(E34="","",HOUR(E34)) ->  | Z34: =IF(E34="","",MINUTE(E34)) ->  | AA34: =IF(E34="","",TIME(HOUR(E34),MINUTE(E34),0)) -> 
A35: Total timer | G35: =IF(SUM(G9:G34)<>"0",SUM(G4:G34),"") -> 2.447916667 | H35: =IF(SUM(H4:H34)<>"0",SUM(H4:H34),"") -> 0.34375 | I35: =IF(SUM(I4:I34)<>"0",SUM(I4:I34),"") -> 0.02083333333 | J35: =IF(SUM(J4:J34)<>"0",SUM(J4:J34),"") -> 0.2708333333 | L35: =SUM(L4:M34) -> 07:45:00 | N35: =IF(SUM(N4:N34)<>"0",SUM(N4:N34),"") -> 0.1145833333 | O35: =IF(SUM(O4:O34)<>"0",SUM(O4:O34),"") -> 00:00:00 | P35: =SUM(P4:P34) -> 0.1458333333 | Q35: =SUM(Q4:Q34) -> 0
A36: Timer 1/100 | G36: =IF(G35<>"",ROUND(G35*24,2),"") -> 58.75 | H36: =IF(H35<>"",ROUND(H35*24,2),"") -> 8.25 | I36: 0.5 | J36: =IF(J35<>"",ROUND(J35*24,2),"") -> 6.5 | L36: =IF(L35<>"",ROUND(L35*24,2),"") -> 7.75 | N36: =IF(N35<>"",ROUND(N35*24,2),"") -> 2.75 | O36: 0 | P36: 3.5 | Q36: 0
A37: Satser | G37: =Satser!B7 -> 107.35 | H37: =Satser!B9 -> 36.35 | I37: =Satser!B12 -> 58.1 | J37: =Satser!B17 -> 25.6 | L37: =Satser!B18 -> 34.2 | N37: =Satser!B19 -> 45.1 | O37: =Satser!B20 -> 50.6
G38: =IF(G35<>"",G36*G37,"") -> 6306.8125 | H38: =IF(H35<>"",H36*H37,"") -> 299.8875 | I38: 29.05 | J38: =IF(J35<>"",J36*J37,"") -> 166.4 | L38: =IF(L35<>"",L36*L36,"") -> 60.0625 | N38: =IF(N35<>"",N36*N37,"") -> 124.025 | O38: 0
A40: Lønart
A41: 3025 | G41: =G35 -> 2.447916667
A42: 3425 | G42: =H35 -> 0.34375
A43: 3428 | G43: =I35 -> 0.02083333333
A44: Timer | G44: =SUM(G41:G43) -> 2.8125 | H44: =IF(G44<>"",ROUND(G44*24,2),"") -> 67.5
H45: =G37*H44 -> 7246.125

Sheet Juni (hidden)
A1: Løn | B1: =PROPER(TEXT(A4,"dd mmmm åååå")) & PROPER(TEXT(N1," - dd mmmm åååå")) -> 01 Juni 2019 - 30 Juni 2019 | I1: Uge : | J1: =IF(A4="","",TRUNC((A4-WEEKDAY(A4,2)-DATE(YEAR(A4+4-WEEKDAY(A4,2)),1,-10))/7)) -> 22 | K1: - | M1: =IF(A25="","",TRUNC((A25-WEEKDAY(A25,2)-DATE(YEAR(A25+4-WEEKDAY(A25,2)),1,-10))/7)) -> 25 | N1: =EOMONTH(A4,0) -> 2019-06-30 | P1: 6 | V1: Time beregning: | AG1: 06:00:00 | AH1: 18:00:00 | AI1: 03:00:00
A2: Lønart | V2: Betalt pause ved vagt over 5 timer | Z2: 00:25:00 | AA2: minutter | AB2: 00:00:00 | AC2: 06:00:00 | AD2: 17:00:00 | AE2: 14:00:00
A3: Dato | B3: Dag | D3: Start | E3: Slut | F3: Pause | G3: Arb. Tid | H3: Overtid 1-3 time | I3: Overtid 4 - time | J3: Forskudt tid alle dage 18-23 | L3: Natarbejde 23-06 | N3: Lørdag tillæg 14 - 24 | O3: Søndag tillæg 00 - 24 | P3: Optjent afspadsering | Q3: Afholdt afspadsering | R3: Syge Timer | S3: norm
A4: =DATE(T.!$B$1,$P$1,1) -> 2019-06-01 | B4: =PROPER(TEXT(A4,"ddd")) -> Lø | C4: =HelligdagsNavn(A4,0,0) ->  | D4: 07:00:00 | E4: 16:00:00 | F4: 00:30:00 | G4: =IF(D4="","",(E4-D4)+(D4>E4)-F4) -> 0.3541666667 | H4: =IF(G4="",0,IF(WEEKDAY(A4,2)=7,0,IF(G4>S4,MIN(G4-S4,$AI$1),0))) -> 00:00:00 | I4: =IF(G4="","",IF(G4>S4+H4,G4-(S4+H4),"")) ->  | J4: =ColTime(T.!$J$3,T.!$L$3,D4,E4) -> 00:00:00 | L4: =ColTime(TIME(T.!$J$4,0,0),TIME(T.!$L$4,0,0),D4,E4) -> 00:00:00 | N4: =IF(WEEKDAY(A4,2)=6,ColTime(TIME(14,0,0),TIME(24,0,0),D4,E4),"") -> 02:00:00 | O4: =IF(OR(C4<>"",WEEKDAY(A4,2)=7),ColTime(TIME(0,0,0),TIME(24,0,0),D4,E4),"") ->  | P4: =IFERROR(H4+I4,"") ->  | S4: =CHOOSE(WEEKDAY(A4,2),norm!C$1,norm!C$2,norm!C$3,norm!C$4,norm!C$5,norm!C$6,norm!C$7) -> 09:00:00 | V4: =IF(D4="","",HOUR(D4)) -> 7 | W4: =IF(D4="","",MINUTE(D4)) -> 0 | X4: =IF(D4="","",TIME(HOUR(D4),MINUTE(D4),0)) -> 07:00:00 | Y4: =IF(E4="","",HOUR(E4)) -> 16 | Z4: =IF(E4="","",MINUTE(E4)) -> 0 | AA4: 02:00:00 | AB4: 09:30:00 | AC4: 11:30:00 | AG4: =MIN(G4-S4,3) -> -0.02083333333
A5: =A4+1 -> 2019-06-02 | B5: =PROPER(TEXT(A5,"ddd")) -> Sø | C5: =HelligdagsNavn(A5,0,0) ->  | D5: 13:45:00 | E5: 21:30:00 | F5: 00:30:00 | G5: =IF(D5="","",(E5-D5)+(D5>E5)-F5) -> 0.3020833333 | H5: =IF(G5="",0,IF(WEEKDAY(A5,2)=7,0,IF(G5>S5,MIN(G5-S5,$AI$1),0))) -> 00:00:00 | I5: =IF(G5="","",IF(G5>S5+H5,G5-(S5+H5),"")) ->  | J5: =ColTime(T.!$J$3,T.!$L$3,D5,E5) -> 03:30:00 | L5: =ColTime(TIME(T.!$J$4,0,0),TIME(T.!$L$4,0,0),D5,E5) -> 00:00:00 | O5: 07:45:00 | P5: =IFERROR(H5+I5,"") ->  | S5: =CHOOSE(WEEKDAY(A5,2),norm!C$1,norm!C$2,norm!C$3,norm!C$4,norm!C$5,norm!C$6,norm!C$7) -> 09:00:00 | V5: 13 | W5: 45 | X5: 13:45:00 | Y5: 21 | Z5: 30 | AA5: =IF(E5="","",TIME(HOUR(E5),MINUTE(E5),0)) -> 21:30:00 | AH5: Der taste kun i de Gule celler
A6: =A5+1 -> 2019-06-03 | B6: =PROPER(TEXT(A6,"ddd")) -> Ma | D6: 22:00:00 | E6: 05:45:00 | F6: 00:30:00 | G6: 0.3020833333 | H6: 00:00:00 | J6: =ColTime(T.!$J$3,T.!$L$3,D6,E6) -> 01:00:00 | L6: =ColTime(TIME(T.!$J$4,0,0),TIME(T.!$L$4,0,0),D6,E6) -> 06:45:00 | P6: =IFERROR(H6+I6,"") ->  | S6: =CHOOSE(WEEKDAY(A6,2),norm!C$1,norm!C$2,norm!C$3,norm!C$4,norm!C$5,norm!C$6,norm!C$7) -> 09:00:00 | V6: 22 | W6: 0 | X6: 22:00:00 | Y6: 5 | Z6: 45 | AA6: 05:45:00
A7: 2019-06-04 | B7: Ti | D7: 05:00:00 | E7: 16:45:00 | F7: 00:30:00 | G7: 0.46875 | H7: 02:15:00 | J7: =ColTime(T.!$J$3,T.!$L$3,D7,E7) -> 00:00:00 | L7: =ColTime(TIME(T.!$J$4,0,0),TIME(T.!$L$4,0,0),D7,E7) -> 01:00:00 | P7: =IFERROR(H7+I7,"") ->  | S7: =CHOOSE(WEEKDAY(A7,2),norm!C$1,norm!C$2,norm!C$3,norm!C$4,norm!C$5,norm!C$6,norm!C$7) -> 09:00:00 | V7: 5 | W7: 0 | X7: 05:00:00 | Y7: 16 | Z7: 45 | AA7: 16:45:00
A8: 2019-06-05 | B8: On | C8: Grundlovsdag | H8: 00:00:00 | J8: =ColTime(T.!$J$3,T.!$L$3,D8,E8) -> 00:00:00 | L8: =ColTime(TIME(T.!$J$4,0,0),TIME(T.!$L$4,0,0),D8,E8) -> 00:00:00 | O8: 00:00:00 | P8: =IFERROR(H8+I8,"") ->  | S8: =CHOOSE(WEEKDAY(A8,2),norm!C$1,norm!C$2,norm!C$3,norm!C$4,norm!C$5,norm!C$6,norm!C$7) -> 09:00:00
A9: 2019-06-06 | B9: To | D9: 06:00:00 | E9: 19:00:00 | F9: 00:30:00 | G9: 0.5208333333 | H9: 03:00:00 | I9: 00:30:00 | J9: =ColTime(T.!$J$3,T.!$L$3,D9,E9) -> 01:00:00 | L9: =ColTime(TIME(T.!$J$4,0,0),TIME(T.!$L$4,0,0),D9,E9) -> 00:00:00 | O9: =IF(OR(C9<>"",WEEKDAY(A9,2)=7),ColTime(TIME(0,0,0),TIME(24,0,0),D9,E9),"") ->  | P9: =IFERROR(H9+I9,"") -> 03:30:00 | S9: =CHOOSE(WEEKDAY(A9,2),norm!C$1,norm!C$2,norm!C$3,norm!C$4,norm!C$5,norm!C$6,norm!C$7) -> 09:00:00 | V9: 6 | W9: 0 | X9: 06:00:00 | Y9: 19 | Z9: 0 | AA9: 19:00:00
A10: 2019-06-07 | B10: Fr | D10: 07:00:00 | E10: 19:00:00 | G10: 0.5 | H10: 03:00:00 | J10: =ColTime(T.!$J$3,T.!$L$3,D10,E10) -> 01:00:00 | L10: =ColTime(TIME(T.!$J$4,0,0),TIME(T.!$L$4,0,0),D10,E10) -> 00:00:00 | N10: =IF(WEEKDAY(A10,2)=6,ColTime(TIME(14,0,0),TIME(24,0,0),D10,E10),"") ->  | O10: =IF(OR(C10<>"",WEEKDAY(A10,2)=7),ColTime(TIME(0,0,0),TIME(24,0,0),D10,E10),"") ->  | S10: =CHOOSE(WEEKDAY(A10,2),norm!C$1,norm!C$2,norm!C$3,norm!C$4,norm!C$5,norm!C$6,norm!C$7) -> 09:00:00 | V10: 7 | W10: 0 | X10: 07:00:00 | Y10: 19 | Z10: 0 | AA10: 19:00:00
A11: =A10+1 -> 2019-06-08 | B11: =PROPER(TEXT(A11,"ddd")) -> Lø | C11: =HelligdagsNavn(A11,0,0) ->  | H11: 00:00:00 | J11: =ColTime(T.!$J$3,T.!$L$3,D11,E11) -> 00:00:00 | L11: =ColTime(TIME(T.!$J$4,0,0),TIME(T.!$L$4,0,0),D11,E11) -> 00:00:00 | N11: =IF(WEEKDAY(A11,2)=6,ColTime(TIME(15,0,0),TIME(24,0,0),D11,E11),"") -> 00:00:00 | S11: =CHOOSE(WEEKDAY(A11,2),norm!C$1,norm!C$2,norm!C$3,norm!C$4,norm!C$5,norm!C$6,norm!C$7) -> 09:00:00
A12: =A11+1 -> 2019-06-09 | B12: =PROPER(TEXT(A12,"ddd")) -> Sø | C12: =HelligdagsNavn(A12,0,0) -> Pinsedag | H12: 00:00:00 | J12: =ColTime(T.!$J$3,T.!$L$3,D12,E12) -> 00:00:00 | L12: =ColTime(TIME(T.!$J$4,0,0),TIME(T.!$L$4,0,0),D12,E12) -> 00:00:00 | O12: 00:00:00 | S12: =CHOOSE(WEEKDAY(A12,2),norm!C$1,norm!C$2,norm!C$3,norm!C$4,norm!C$5,norm!C$6,norm!C$7) -> 09:00:00
A13: =A12+1 -> 2019-06-10 | B13: =PROPER(TEXT(A13,"ddd")) -> Ma | C13: 2. Pinsedag | H13: 00:00:00 | J13: =ColTime(T.!$J$3,T.!$L$3,D13,E13) -> 00:00:00 | L13: =ColTime(TIME(T.!$J$4,0,0),TIME(T.!$L$4,0,0),D13,E13) -> 00:00:00 | O13: 00:00:00 | S13: =CHOOSE(WEEKDAY(A13,2),norm!C$1,norm!C$2,norm!C$3,norm!C$4,norm!C$5,norm!C$6,norm!C$7) -> 09:00:00
A14: 2019-06-11 | B14: Ti | H14: 00:00:00 | J14: =ColTime(T.!$J$3,T.!$L$3,D14,E14) -> 00:00:00 | L14: =ColTime(TIME(T.!$J$4,0,0),TIME(T.!$L$4,0,0),D14,E14) -> 00:00:00 | S14: =CHOOSE(WEEKDAY(A14,2),norm!C$1,norm!C$2,norm!C$3,norm!C$4,norm!C$5,norm!C$6,norm!C$7) -> 09:00:00
A15: 2019-06-12 | B15: On | H15: 00:00:00 | J15: =ColTime(T.!$J$3,T.!$L$3,D15,E15) -> 00:00:00 | L15: =ColTime(TIME(T.!$J$4,0,0),TIME(T.!$L$4,0,0),D15,E15) -> 00:00:00 | S15: =CHOOSE(WEEKDAY(A15,2),norm!C$1,norm!C$2,norm!C$3,norm!C$4,norm!C$5,norm!C$6,norm!C$7) -> 09:00:00
A16: 2019-06-13 | B16: To | H16: 00:00:00 | J16: =ColTime(T.!$J$3,T.!$L$3,D16,E16) -> 00:00:00 | L16: =ColTime(TIME(T.!$J$4,0,0),TIME(T.!$L$4,0,0),D16,E16) -> 00:00:00 | S16: =CHOOSE(WEEKDAY(A16,2),norm!C$1,norm!C$2,norm!C$3,norm!C$4,norm!C$5,norm!C$6,norm!C$7) -> 09:00:00
A17: 2019-06-14 | B17: Fr | H17: 00:00:00 | J17: =ColTime(T.!$J$3,T.!$L$3,D17,E17) -> 00:00:00 | L17: =ColTime(TIME(T.!$J$4,0,0),TIME(T.!$L$4,0,0),D17,E17) -> 00:00:00 | S17: =CHOOSE(WEEKDAY(A17,2),norm!C$1,norm!C$2,norm!C$3,norm!C$4,norm!C$5,norm!C$6,norm!C$7) -> 09:00:00
A18: =A17+1 -> 2019-06-15 | B18: =PROPER(TEXT(A18,"ddd")) -> Lø | C18: =HelligdagsNavn(A18,0,0) ->  | H18: 00:00:00 | J18: =ColTime(T.!$J$3,T.!$L$3,D18,E18) -> 00:00:00 | L18: =ColTime(TIME(T.!$J$4,0,0),TIME(T.!$L$4,0,0),D18,E18) -> 00:00:00 | N18: 00:00:00 | S18: =CHOOSE(WEEKDAY(A18,2),norm!C$1,norm!C$2,norm!C$3,norm!C$4,norm!C$5,norm!C$6,norm!C$7) -> 09:00:00
A19: =A18+1 -> 2019-06-16 | B19: =PROPER(TEXT(A19,"ddd")) -> Sø | C19: =HelligdagsNavn(A19,0,0) ->  | H19: 00:00:00 | J19: =ColTime(T.!$J$3,T.!$L$3,D19,E19) -> 00:00:00 | L19: =ColTime(TIME(T.!$J$4,0,0),TIME(T.!$L$4,0,0),D19,E19) -> 00:00:00 | O19: 00:00:00 | S19: =CHOOSE(WEEKDAY(A19,2),norm!C$1,norm!C$2,norm!C$3,norm!C$4,norm!C$5,norm!C$6,norm!C$7) -> 09:00:00
A20: =A19+1 -> 2019-06-17 | B20: =PROPER(TEXT(A20,"ddd")) -> Ma | H20: 00:00:00 | J20: =ColTime(T.!$J$3,T.!$L$3,D20,E20) -> 00:00:00 | L20: =ColTime(TIME(T.!$J$4,0,0),TIME(T.!$L$4,0,0),D20,E20) -> 00:00:00 | S20: =CHOOSE(WEEKDAY(A20,2),norm!C$1,norm!C$2,norm!C$3,norm!C$4,norm!C$5,norm!C$6,norm!C$7) -> 09:00:00
A21: 2019-06-18 | B21: Ti | H21: 00:00:00 | J21: =ColTime(T.!$J$3,T.!$L$3,D21,E21) -> 00:00:00 | L21: =ColTime(TIME(T.!$J$4,0,0),TIME(T.!$L$4,0,0),D21,E21) -> 00:00:00 | S21: =CHOOSE(WEEKDAY(A21,2),norm!C$1,norm!C$2,norm!C$3,norm!C$4,norm!C$5,norm!C$6,norm!C$7) -> 09:00:00
A22: 2019-06-19 | B22: On | H22: 00:00:00 | J22: =ColTime(T.!$J$3,T.!$L$3,D22,E22) -> 00:00:00 | L22: =ColTime(TIME(T.!$J$4,0,0),TIME(T.!$L$4,0,0),D22,E22) -> 00:00:00 | S22: =CHOOSE(WEEKDAY(A22,2),norm!C$1,norm!C$2,norm!C$3,norm!C$4,norm!C$5,norm!C$6,norm!C$7) -> 09:00:00
A23: 2019-06-20 | B23: To | H23: 00:00:00 | J23: =ColTime(T.!$J$3,T.!$L$3,D23,E23) -> 00:00:00 | L23: =ColTime(TIME(T.!$J$4,0,0),TIME(T.!$L$4,0,0),D23,E23) -> 00:00:00 | S23: =CHOOSE(WEEKDAY(A23,2),norm!C$1,norm!C$2,norm!C$3,norm!C$4,norm!C$5,norm!C$6,norm!C$7) -> 09:00:00
A24: 2019-06-21 | B24: Fr | H24: 00:00:00 | J24: =ColTime(T.!$J$3,T.!$L$3,D24,E24) -> 00:00:00 | L24: =ColTime(TIME(T.!$J$4,0,0),TIME(T.!$L$4,0,0),D24,E24) -> 00:00:00 | S24: =CHOOSE(WEEKDAY(A24,2),norm!C$1,norm!C$2,norm!C$3,norm!C$4,norm!C$5,norm!C$6,norm!C$7) -> 09:00:00
A25: =A24+1 -> 2019-06-22 | B25: =PROPER(TEXT(A25,"ddd")) -> Lø | C25: =HelligdagsNavn(A25,0,0) ->  | H25: 00:00:00 | J25: =ColTime(T.!$J$3,T.!$L$3,D25,E25) -> 00:00:00 | L25: =ColTime(TIME(T.!$J$4,0,0),TIME(T.!$L$4,0,0),D25,E25) -> 00:00:00 | N25: 00:00:00 | S25: =CHOOSE(WEEKDAY(A25,2),norm!C$1,norm!C$2,norm!C$3,norm!C$4,norm!C$5,norm!C$6,norm!C$7) -> 09:00:00
A26: =A25+1 -> 2019-06-23 | B26: =PROPER(TEXT(A26,"ddd")) -> Sø | C26: =HelligdagsNavn(A26,0,0) ->  | H26: 00:00:00 | J26: =ColTime(T.!$J$3,T.!$L$3,D26,E26) -> 00:00:00 | L26: =ColTime(TIME(T.!$J$4,0,0),TIME(T.!$L$4,0,0),D26,E26) -> 00:00:00 | O26: 00:00:00 | S26: =CHOOSE(WEEKDAY(A26,2),norm!C$1,norm!C$2,norm!C$3,norm!C$4,norm!C$5,norm!C$6,norm!C$7) -> 09:00:00
A27: =A26+1 -> 2019-06-24 | B27: =PROPER(TEXT(A27,"ddd")) -> Ma | H27: 00:00:00 | J27: =ColTime(T.!$J$3,T.!$L$3,D27,E27) -> 00:00:00 | L27: =ColTime(TIME(T.!$J$4,0,0),TIME(T.!$L$4,0,0),D27,E27) -> 00:00:00 | S27: =CHOOSE(WEEKDAY(A27,2),norm!C$1,norm!C$2,norm!C$3,norm!C$4,norm!C$5,norm!C$6,norm!C$7) -> 09:00:00
A28: 2019-06-25 | B28: Ti | H28: 00:00:00 | J28: =ColTime(T.!$J$3,T.!$L$3,D28,E28) -> 00:00:00 | L28: =ColTime(TIME(T.!$J$4,0,0),TIME(T.!$L$4,0,0),D28,E28) -> 00:00:00 | S28: =CHOOSE(WEEKDAY(A28,2),norm!C$1,norm!C$2,norm!C$3,norm!C$4,norm!C$5,norm!C$6,norm!C$7) -> 09:00:00
A29: 2019-06-26 | B29: On | H29: 00:00:00 | J29: =ColTime(T.!$J$3,T.!$L$3,D29,E29) -> 00:00:00 | L29: =ColTime(TIME(T.!$J$4,0,0),TIME(T.!$L$4,0,0),D29,E29) -> 00:00:00 | S29: =CHOOSE(WEEKDAY(A29,2),norm!C$1,norm!C$2,norm!C$3,norm!C$4,norm!C$5,norm!C$6,norm!C$7) -> 09:00:00
A30: 2019-06-27 | B30: To | H30: 00:00:00 | J30: =ColTime(T.!$J$3,T.!$L$3,D30,E30) -> 00:00:00 | L30: =ColTime(TIME(T.!$J$4,0,0),TIME(T.!$L$4,0,0),D30,E30) -> 00:00:00 | S30: =CHOOSE(WEEKDAY(A30,2),norm!C$1,norm!C$2,norm!C$3,norm!C$4,norm!C$5,norm!C$6,norm!C$7) -> 09:00:00
A31: 2019-06-28 | B31: Fr | H31: 00:00:00 | J31: =ColTime(T.!$J$3,T.!$L$3,D31,E31) -> 00:00:00 | L31: =ColTime(TIME(T.!$J$4,0,0),TIME(T.!$L$4,0,0),D31,E31) -> 00:00:00 | S31: =CHOOSE(WEEKDAY(A31,2),norm!C$1,norm!C$2,norm!C$3,norm!C$4,norm!C$5,norm!C$6,norm!C$7) -> 09:00:00
A32: =IF(MONTH(A31+1)>MONTH(A31),"",A31+1) -> 2019-06-29 | B32: Lø | C32: =IF(A32="","",HelligdagsNavn(A32,0,0)) ->  | H32: 00:00:00 | J32: =ColTime(T.!$J$3,T.!$L$3,D32,E32) -> 00:00:00 | L32: =ColTime(TIME(T.!$J$4,0,0),TIME(T.!$L$4,0,0),D32,E32) -> 00:00:00 | N32: =IFERROR(IF(WEEKDAY(A32,2)=6,ColTime(TIME(15,0,0),TIME(24,0,0),D32,E32),""),"") -> 00:00:00 | O32: =IFERROR(IF(OR(C32<>"",WEEKDAY(A32,2)=7),ColTime(TIME(0,0,0),TIME(24,0,0),D32,E32),""),"") ->  | S32: =IFERROR(CHOOSE(WEEKDAY(A32,2),norm!C$1,norm!C$2,norm!C$3,norm!C$4,norm!C$5,norm!C$6,norm!C$7),"") -> 09:00:00
A33: =IFERROR(IF(MONTH(A32+1)>MONTH(A32),"",A32+1),"") -> 2019-06-30 | B33: Sø | H33: 00:00:00 | J33: =ColTime(T.!$J$3,T.!$L$3,D33,E33) -> 00:00:00 | L33: =ColTime(TIME(T.!$J$4,0,0),TIME(T.!$L$4,0,0),D33,E33) -> 00:00:00 | N33: =IFERROR(IF(WEEKDAY(A33,2)=6,ColTime(TIME(15,0,0),TIME(24,0,0),D33,E33),""),"") ->  | O33: =IFERROR(IF(OR(C33<>"",WEEKDAY(A33,2)=7),ColTime(TIME(0,0,0),TIME(24,0,0),D33,E33),""),"") -> 00:00:00 | S33: =IFERROR(CHOOSE(WEEKDAY(A33,2),norm!C$1,norm!C$2,norm!C$3,norm!C$4,norm!C$5,norm!C$6,norm!C$7),"") -> 09:00:00
A34: =IFERROR(IF(MONTH(A33+1)>MONTH(A33),"",A33+1),"") ->  | B34: =IFERROR(PROPER(TEXT(A34,"ddd")),"") ->  | C34: =IF(A34="","",HelligdagsNavn(A34,0,0)) ->  | H34: 00:00:00 | J34: =ColTime(T.!$J$3,T.!$L$3,D34,E34) -> 00:00:00 | L34: =ColTime(TIME(T.!$J$4,0,0),TIME(T.!$L$4,0,0),D34,E34) -> 00:00:00 | N34: =IFERROR(IF(WEEKDAY(A34,2)=6,ColTime(TIME(15,0,0),TIME(24,0,0),D34,E34),""),"") ->  | S34: =IFERROR(CHOOSE(WEEKDAY(A34,2),norm!C$1,norm!C$2,norm!C$3,norm!C$4,norm!C$5,norm!C$6,norm!C$7),"") ->  | V34: =IF(D34="","",HOUR(D34)) ->  | W34: =IF(D34="","",MINUTE(D34)) ->  | X34: =IF(D34="","",TIME(HOUR(D34),MINUTE(D34),0)) ->  | Y34: =IF(E34="","",HOUR(E34)) ->  | Z34: =IF(E34="","",MINUTE(E34)) ->  | AA34: =IF(E34="","",TIME(HOUR(E34),MINUTE(E34),0)) -> 
A35: Total timer | G35: =IF(SUM(G9:G34)<>"0",SUM(G4:G34),"") -> 2.447916667 | H35: =IF(SUM(H4:H34)<>"0",SUM(H4:H34),"") -> 0.34375 | I35: =IF(SUM(I4:I34)<>"0",SUM(I4:I34),"") -> 0.02083333333 | J35: =IF(SUM(J4:J34)<>"0",SUM(J4:J34),"") -> 0.2708333333 | L35: =SUM(L4:M34) -> 07:45:00 | N35: =IF(SUM(N4:N34)<>"0",SUM(N4:N34),"") -> 0.08333333333 | O35: =IF(SUM(O4:O34)<>"0",SUM(O4:O34),"") -> 07:45:00 | P35: =SUM(P4:P34) -> 0.1458333333 | Q35: =SUM(Q4:Q34) -> 0
A36: Timer 1/100 | G36: =IF(G35<>"",ROUND(G35*24,2),"") -> 58.75 | H36: =IF(H35<>"",ROUND(H35*24,2),"") -> 8.25 | I36: 0.5 | J36: =IF(J35<>"",ROUND(J35*24,2),"") -> 6.5 | L36: =IF(L35<>"",ROUND(L35*24,2),"") -> 7.75 | N36: =IF(N35<>"",ROUND(N35*24,2),"") -> 2 | O36: 7.75 | P36: 3.5 | Q36: 0
A37: Satser | G37: =Satser!B7 -> 107.35 | H37: =Satser!B9 -> 36.35 | I37: =Satser!B12 -> 58.1 | J37: =Satser!B17 -> 25.6 | L37: =Satser!B18 -> 34.2 | N37: =Satser!B19 -> 45.1 | O37: =Satser!B20 -> 50.6
G38: =IF(G35<>"",G36*G37,"") -> 6306.8125 | H38: =IF(H35<>"",H36*H37,"") -> 299.8875 | I38: 29.05 | J38: =IF(J35<>"",J36*J37,"") -> 166.4 | L38: =IF(L35<>"",L36*L36,"") -> 60.0625 | N38: =IF(N35<>"",N36*N37,"") -> 90.2 | O38: 392.15
A40: Lønart
A41: 3025 | G41: =G35 -> 2.447916667
A42: 3425 | G42: =H35 -> 0.34375
A43: 3428 | G43: =I35 -> 0.02083333333
A44: Timer | G44: =SUM(G41:G43) -> 2.8125 | H44: =IF(G44<>"",ROUND(G44*24,2),"") -> 67.5
H45: =G37*H44 -> 7246.125

Sheet Juli (hidden)
A1: Løn | B1: =PROPER(TEXT(A4,"dd mmmm åååå")) & PROPER(TEXT(N1," - dd mmmm åååå")) -> 01 Juli 2019 - 31 Juli 2019 | I1: Uge : | J1: =IF(A4="","",TRUNC((A4-WEEKDAY(A4,2)-DATE(YEAR(A4+4-WEEKDAY(A4,2)),1,-10))/7)) -> 27 | K1: - | M1: =IF(A25="","",TRUNC((A25-WEEKDAY(A25,2)-DATE(YEAR(A25+4-WEEKDAY(A25,2)),1,-10))/7)) -> 30 | N1: =EOMONTH(A4,0) -> 2019-07-31 | P1: 7 | V1: Time beregning: | AG1: 06:00:00 | AH1: 18:00:00 | AI1: 03:00:00
A2: Lønart | V2: Betalt pause ved vagt over 5 timer | Z2: 00:25:00 | AA2: minutter | AB2: 00:00:00 | AC2: 06:00:00 | AD2: 17:00:00 | AE2: 14:00:00
A3: Dato | B3: Dag | D3: Start | E3: Slut | F3: Pause | G3: Arb. Tid | H3: Overtid 1-3 time | I3: Overtid 4 - time | J3: Forskudt tid alle dage 18-23 | L3: Natarbejde 23-06 | N3: Lørdag tillæg 14 - 24 | O3: Søndag tillæg 00 - 24 | P3: Optjent afspadsering | Q3: Afholdt afspadsering | R3: Syge Timer | S3: norm
A4: =DATE(T.!$B$1,$P$1,1) -> 2019-07-01 | B4: =PROPER(TEXT(A4,"ddd")) -> Ma | C4: =HelligdagsNavn(A4,0,0) ->  | D4: 07:00:00 | E4: 16:00:00 | F4: 00:30:00 | G4: =IF(D4="","",(E4-D4)+(D4>E4)-F4) -> 0.3541666667 | H4: =IF(G4="",0,IF(WEEKDAY(A4,2)=7,0,IF(G4>S4,MIN(G4-S4,$AI$1),0))) -> 00:00:00 | I4: =IF(G4="","",IF(G4>S4+H4,G4-(S4+H4),"")) ->  | J4: =ColTime(T.!$J$3,T.!$L$3,D4,E4) -> 00:00:00 | L4: =ColTime(TIME(T.!$J$4,0,0),TIME(T.!$L$4,0,0),D4,E4) -> 00:00:00 | N4: =IF(WEEKDAY(A4,2)=6,ColTime(TIME(14,0,0),TIME(24,0,0),D4,E4),"") ->  | O4: =IF(OR(C4<>"",WEEKDAY(A4,2)=7),ColTime(TIME(0,0,0),TIME(24,0,0),D4,E4),"") ->  | P4: =IFERROR(H4+I4,"") ->  | S4: =CHOOSE(WEEKDAY(A4,2),norm!C$1,norm!C$2,norm!C$3,norm!C$4,norm!C$5,norm!C$6,norm!C$7) -> 09:00:00 | V4: =IF(D4="","",HOUR(D4)) -> 7 | W4: =IF(D4="","",MINUTE(D4)) -> 0 | X4: =IF(D4="","",TIME(HOUR(D4),MINUTE(D4),0)) -> 07:00:00 | Y4: =IF(E4="","",HOUR(E4)) -> 16 | Z4: =IF(E4="","",MINUTE(E4)) -> 0 | AA4: 02:00:00 | AB4: 09:30:00 | AC4: 11:30:00 | AG4: =MIN(G4-S4,3) -> -0.02083333333
A5: =A4+1 -> 2019-07-02 | B5: =PROPER(TEXT(A5,"ddd")) -> Ti | C5: =HelligdagsNavn(A5,0,0) ->  | D5: 13:45:00 | E5: 21:30:00 | F5: 00:30:00 | G5: =IF(D5="","",(E5-D5)+(D5>E5)-F5) -> 0.3020833333 | H5: =IF(G5="",0,IF(WEEKDAY(A5,2)=7,0,IF(G5>S5,MIN(G5-S5,$AI$1),0))) -> 00:00:00 | I5: =IF(G5="","",IF(G5>S5+H5,G5-(S5+H5),"")) ->  | J5: =ColTime(T.!$J$3,T.!$L$3,D5,E5) -> 03:30:00 | L5: =ColTime(TIME(T.!$J$4,0,0),TIME(T.!$L$4,0,0),D5,E5) -> 00:00:00 | P5: =IFERROR(H5+I5,"") ->  | S5: =CHOOSE(WEEKDAY(A5,2),norm!C$1,norm!C$2,norm!C$3,norm!C$4,norm!C$5,norm!C$6,norm!C$7) -> 09:00:00 | V5: 13 | W5: 45 | X5: 13:45:00 | Y5: 21 | Z5: 30 | AA5: =IF(E5="","",TIME(HOUR(E5),MINUTE(E5),0)) -> 21:30:00 | AH5: Der taste kun i de Gule celler
A6: =A5+1 -> 2019-07-03 | B6: =PROPER(TEXT(A6,"ddd")) -> On | D6: 22:00:00 | E6: 05:45:00 | F6: 00:30:00 | G6: 0.3020833333 | H6: 00:00:00 | J6: =ColTime(T.!$J$3,T.!$L$3,D6,E6) -> 01:00:00 | L6: =ColTime(TIME(T.!$J$4,0,0),TIME(T.!$L$4,0,0),D6,E6) -> 06:45:00 | P6: =IFERROR(H6+I6,"") ->  | S6: =CHOOSE(WEEKDAY(A6,2),norm!C$1,norm!C$2,norm!C$3,norm!C$4,norm!C$5,norm!C$6,norm!C$7) -> 09:00:00 | V6: 22 | W6: 0 | X6: 22:00:00 | Y6: 5 | Z6: 45 | AA6: 05:45:00
A7: 2019-07-04 | B7: To | D7: 05:00:00 | E7: 16:45:00 | F7: 00:30:00 | G7: 0.46875 | H7: 02:15:00 | J7: =ColTime(T.!$J$3,T.!$L$3,D7,E7) -> 00:00:00 | L7: =ColTime(TIME(T.!$J$4,0,0),TIME(T.!$L$4,0,0),D7,E7) -> 01:00:00 | P7: =IFERROR(H7+I7,"") ->  | S7: =CHOOSE(WEEKDAY(A7,2),norm!C$1,norm!C$2,norm!C$3,norm!C$4,norm!C$5,norm!C$6,norm!C$7) -> 09:00:00 | V7: 5 | W7: 0 | X7: 05:00:00 | Y7: 16 | Z7: 45 | AA7: 16:45:00
A8: 2019-07-05 | B8: Fr | H8: 00:00:00 | J8: =ColTime(T.!$J$3,T.!$L$3,D8,E8) -> 00:00:00 | L8: =ColTime(TIME(T.!$J$4,0,0),TIME(T.!$L$4,0,0),D8,E8) -> 00:00:00 | P8: =IFERROR(H8+I8,"") ->  | S8: =CHOOSE(WEEKDAY(A8,2),norm!C$1,norm!C$2,norm!C$3,norm!C$4,norm!C$5,norm!C$6,norm!C$7) -> 09:00:00
A9: 2019-07-06 | B9: Lø | D9: 06:00:00 | E9: 19:00:00 | F9: 00:30:00 | G9: 0.5208333333 | H9: 03:00:00 | I9: 00:30:00 | J9: =ColTime(T.!$J$3,T.!$L$3,D9,E9) -> 01:00:00 | L9: =ColTime(TIME(T.!$J$4,0,0),TIME(T.!$L$4,0,0),D9,E9) -> 00:00:00 | N9: 05:00:00 | O9: =IF(OR(C9<>"",WEEKDAY(A9,2)=7),ColTime(TIME(0,0,0),TIME(24,0,0),D9,E9),"") ->  | P9: =IFERROR(H9+I9,"") -> 03:30:00 | S9: =CHOOSE(WEEKDAY(A9,2),norm!C$1,norm!C$2,norm!C$3,norm!C$4,norm!C$5,norm!C$6,norm!C$7) -> 09:00:00 | V9: 6 | W9: 0 | X9: 06:00:00 | Y9: 19 | Z9: 0 | AA9: 19:00:00
A10: 2019-07-07 | B10: Sø | D10: 07:00:00 | E10: 19:00:00 | G10: 0.5 | H10: 00:00:00 | I10: 03:00:00 | J10: =ColTime(T.!$J$3,T.!$L$3,D10,E10) -> 01:00:00 | L10: =ColTime(TIME(T.!$J$4,0,0),TIME(T.!$L$4,0,0),D10,E10) -> 00:00:00 | N10: =IF(WEEKDAY(A10,2)=6,ColTime(TIME(14,0,0),TIME(24,0,0),D10,E10),"") ->  | O10: =IF(OR(C10<>"",WEEKDAY(A10,2)=7),ColTime(TIME(0,0,0),TIME(24,0,0),D10,E10),"") -> 12:00:00 | P10: 03:00:00 | S10: =CHOOSE(WEEKDAY(A10,2),norm!C$1,norm!C$2,norm!C$3,norm!C$4,norm!C$5,norm!C$6,norm!C$7) -> 09:00:00 | V10: 7 | W10: 0 | X10: 07:00:00 | Y10: 19 | Z10: 0 | AA10: 19:00:00
A11: =A10+1 -> 2019-07-08 | B11: =PROPER(TEXT(A11,"ddd")) -> Ma | C11: =HelligdagsNavn(A11,0,0) ->  | H11: 00:00:00 | J11: =ColTime(T.!$J$3,T.!$L$3,D11,E11) -> 00:00:00 | L11: =ColTime(TIME(T.!$J$4,0,0),TIME(T.!$L$4,0,0),D11,E11) -> 00:00:00 | N11: =IF(WEEKDAY(A11,2)=6,ColTime(TIME(15,0,0),TIME(24,0,0),D11,E11),"") ->  | S11: =CHOOSE(WEEKDAY(A11,2),norm!C$1,norm!C$2,norm!C$3,norm!C$4,norm!C$5,norm!C$6,norm!C$7) -> 09:00:00
A12: =A11+1 -> 2019-07-09 | B12: =PROPER(TEXT(A12,"ddd")) -> Ti | C12: =HelligdagsNavn(A12,0,0) ->  | H12: 00:00:00 | J12: =ColTime(T.!$J$3,T.!$L$3,D12,E12) -> 00:00:00 | L12: =ColTime(TIME(T.!$J$4,0,0),TIME(T.!$L$4,0,0),D12,E12) -> 00:00:00 | S12: =CHOOSE(WEEKDAY(A12,2),norm!C$1,norm!C$2,norm!C$3,norm!C$4,norm!C$5,norm!C$6,norm!C$7) -> 09:00:00
A13: =A12+1 -> 2019-07-10 | B13: =PROPER(TEXT(A13,"ddd")) -> On | H13: 00:00:00 | J13: =ColTime(T.!$J$3,T.!$L$3,D13,E13) -> 00:00:00 | L13: =ColTime(TIME(T.!$J$4,0,0),TIME(T.!$L$4,0,0),D13,E13) -> 00:00:00 | S13: =CHOOSE(WEEKDAY(A13,2),norm!C$1,norm!C$2,norm!C$3,norm!C$4,norm!C$5,norm!C$6,norm!C$7) -> 09:00:00
A14: 2019-07-11 | B14: To | H14: 00:00:00 | J14: =ColTime(T.!$J$3,T.!$L$3,D14,E14) -> 00:00:00 | L14: =ColTime(TIME(T.!$J$4,0,0),TIME(T.!$L$4,0,0),D14,E14) -> 00:00:00 | S14: =CHOOSE(WEEKDAY(A14,2),norm!C$1,norm!C$2,norm!C$3,norm!C$4,norm!C$5,norm!C$6,norm!C$7) -> 09:00:00
A15: 2019-07-12 | B15: Fr | H15: 00:00:00 | J15: =ColTime(T.!$J$3,T.!$L$3,D15,E15) -> 00:00:00 | L15: =ColTime(TIME(T.!$J$4,0,0),TIME(T.!$L$4,0,0),D15,E15) -> 00:00:00 | S15: =CHOOSE(WEEKDAY(A15,2),norm!C$1,norm!C$2,norm!C$3,norm!C$4,norm!C$5,norm!C$6,norm!C$7) -> 09:00:00
A16: 2019-07-13 | B16: Lø | H16: 00:00:00 | J16: =ColTime(T.!$J$3,T.!$L$3,D16,E16) -> 00:00:00 | L16: =ColTime(TIME(T.!$J$4,0,0),TIME(T.!$L$4,0,0),D16,E16) -> 00:00:00 | N16: 00:00:00 | S16: =CHOOSE(WEEKDAY(A16,2),norm!C$1,norm!C$2,norm!C$3,norm!C$4,norm!C$5,norm!C$6,norm!C$7) -> 09:00:00
A17: 2019-07-14 | B17: Sø | H17: 00:00:00 | J17: =ColTime(T.!$J$3,T.!$L$3,D17,E17) -> 00:00:00 | L17: =ColTime(TIME(T.!$J$4,0,0),TIME(T.!$L$4,0,0),D17,E17) -> 00:00:00 | O17: 00:00:00 | S17: =CHOOSE(WEEKDAY(A17,2),norm!C$1,norm!C$2,norm!C$3,norm!C$4,norm!C$5,norm!C$6,norm!C$7) -> 09:00:00
A18: =A17+1 -> 2019-07-15 | B18: =PROPER(TEXT(A18,"ddd")) -> Ma | C18: =HelligdagsNavn(A18,0,0) ->  | H18: 00:00:00 | J18: =ColTime(T.!$J$3,T.!$L$3,D18,E18) -> 00:00:00 | L18: =ColTime(TIME(T.!$J$4,0,0),TIME(T.!$L$4,0,0),D18,E18) -> 00:00:00 | S18: =CHOOSE(WEEKDAY(A18,2),norm!C$1,norm!C$2,norm!C$3,norm!C$4,norm!C$5,norm!C$6,norm!C$7) -> 09:00:00
A19: =A18+1 -> 2019-07-16 | B19: =PROPER(TEXT(A19,"ddd")) -> Ti | C19: =HelligdagsNavn(A19,0,0) ->  | H19: 00:00:00 | J19: =ColTime(T.!$J$3,T.!$L$3,D19,E19) -> 00:00:00 | L19: =ColTime(TIME(T.!$J$4,0,0),TIME(T.!$L$4,0,0),D19,E19) -> 00:00:00 | S19: =CHOOSE(WEEKDAY(A19,2),norm!C$1,norm!C$2,norm!C$3,norm!C$4,norm!C$5,norm!C$6,norm!C$7) -> 09:00:00
A20: =A19+1 -> 2019-07-17 | B20: =PROPER(TEXT(A20,"ddd")) -> On | H20: 00:00:00 | J20: =ColTime(T.!$J$3,T.!$L$3,D20,E20) -> 00:00:00 | L20: =ColTime(TIME(T.!$J$4,0,0),TIME(T.!$L$4,0,0),D20,E20) -> 00:00:00 | S20: =CHOOSE(WEEKDAY(A20,2),norm!C$1,norm!C$2,norm!C$3,norm!C$4,norm!C$5,norm!C$6,norm!C$7) -> 09:00:00
A21: 2019-07-18 | B21: To | H21: 00:00:00 | J21: =ColTime(T.!$J$3,T.!$L$3,D21,E21) -> 00:00:00 | L21: =ColTime(TIME(T.!$J$4,0,0),TIME(T.!$L$4,0,0),D21,E21) -> 00:00:00 | S21: =CHOOSE(WEEKDAY(A21,2),norm!C$1,norm!C$2,norm!C$3,norm!C$4,norm!C$5,norm!C$6,norm!C$7) -> 09:00:00
A22: 2019-07-19 | B22: Fr | H22: 00:00:00 | J22: =ColTime(T.!$J$3,T.!$L$3,D22,E22) -> 00:00:00 | L22: =ColTime(TIME(T.!$J$4,0,0),TIME(T.!$L$4,0,0),D22,E22) -> 00:00:00 | S22: =CHOOSE(WEEKDAY(A22,2),norm!C$1,norm!C$2,norm!C$3,norm!C$4,norm!C$5,norm!C$6,norm!C$7) -> 09:00:00
A23: 2019-07-20 | B23: Lø | H23: 00:00:00 | J23: =ColTime(T.!$J$3,T.!$L$3,D23,E23) -> 00:00:00 | L23: =ColTime(TIME(T.!$J$4,0,0),TIME(T.!$L$4,0,0),D23,E23) -> 00:00:00 | N23: 00:00:00 | S23: =CHOOSE(WEEKDAY(A23,2),norm!C$1,norm!C$2,norm!C$3,norm!C$4,norm!C$5,norm!C$6,norm!C$7) -> 09:00:00
A24: 2019-07-21 | B24: Sø | H24: 00:00:00 | J24: =ColTime(T.!$J$3,T.!$L$3,D24,E24) -> 00:00:00 | L24: =ColTime(TIME(T.!$J$4,0,0),TIME(T.!$L$4,0,0),D24,E24) -> 00:00:00 | O24: 00:00:00 | S24: =CHOOSE(WEEKDAY(A24,2),norm!C$1,norm!C$2,norm!C$3,norm!C$4,norm!C$5,norm!C$6,norm!C$7) -> 09:00:00
A25: =A24+1 -> 2019-07-22 | B25: =PROPER(TEXT(A25,"ddd")) -> Ma | C25: =HelligdagsNavn(A25,0,0) ->  | H25: 00:00:00 | J25: =ColTime(T.!$J$3,T.!$L$3,D25,E25) -> 00:00:00 | L25: =ColTime(TIME(T.!$J$4,0,0),TIME(T.!$L$4,0,0),D25,E25) -> 00:00:00 | S25: =CHOOSE(WEEKDAY(A25,2),norm!C$1,norm!C$2,norm!C$3,norm!C$4,norm!C$5,norm!C$6,norm!C$7) -> 09:00:00
A26: =A25+1 -> 2019-07-23 | B26: =PROPER(TEXT(A26,"ddd")) -> Ti | C26: =HelligdagsNavn(A26,0,0) ->  | H26: 00:00:00 | J26: =ColTime(T.!$J$3,T.!$L$3,D26,E26) -> 00:00:00 | L26: =ColTime(TIME(T.!$J$4,0,0),TIME(T.!$L$4,0,0),D26,E26) -> 00:00:00 | S26: =CHOOSE(WEEKDAY(A26,2),norm!C$1,norm!C$2,norm!C$3,norm!C$4,norm!C$5,norm!C$6,norm!C$7) -> 09:00:00
A27: =A26+1 -> 2019-07-24 | B27: =PROPER(TEXT(A27,"ddd")) -> On | H27: 00:00:00 | J27: =ColTime(T.!$J$3,T.!$L$3,D27,E27) -> 00:00:00 | L27: =ColTime(TIME(T.!$J$4,0,0),TIME(T.!$L$4,0,0),D27,E27) -> 00:00:00 | S27: =CHOOSE(WEEKDAY(A27,2),norm!C$1,norm!C$2,norm!C$3,norm!C$4,norm!C$5,norm!C$6,norm!C$7) -> 09:00:00
A28: 2019-07-25 | B28: To | H28: 00:00:00 | J28: =ColTime(T.!$J$3,T.!$L$3,D28,E28) -> 00:00:00 | L28: =ColTime(TIME(T.!$J$4,0,0),TIME(T.!$L$4,0,0),D28,E28) -> 00:00:00 | S28: =CHOOSE(WEEKDAY(A28,2),norm!C$1,norm!C$2,norm!C$3,norm!C$4,norm!C$5,norm!C$6,norm!C$7) -> 09:00:00
A29: 2019-07-26 | B29: Fr | H29: 00:00:00 | J29: =ColTime(T.!$J$3,T.!$L$3,D29,E29) -> 00:00:00 | L29: =ColTime(TIME(T.!$J$4,0,0),TIME(T.!$L$4,0,0),D29,E29) -> 00:00:00 | S29: =CHOOSE(WEEKDAY(A29,2),norm!C$1,norm!C$2,norm!C$3,norm!C$4,norm!C$5,norm!C$6,norm!C$7) -> 09:00:00
A30: 2019-07-27 | B30: Lø | H30: 00:00:00 | J30: =ColTime(T.!$J$3,T.!$L$3,D30,E30) -> 00:00:00 | L30: =ColTime(TIME(T.!$J$4,0,0),TIME(T.!$L$4,0,0),D30,E30) -> 00:00:00 | N30: 00:00:00 | S30: =CHOOSE(WEEKDAY(A30,2),norm!C$1,norm!C$2,norm!C$3,norm!C$4,norm!C$5,norm!C$6,norm!C$7) -> 09:00:00
A31: 2019-07-28 | B31: Sø | H31: 00:00:00 | J31: =ColTime(T.!$J$3,T.!$L$3,D31,E31) -> 00:00:00 | L31: =ColTime(TIME(T.!$J$4,0,0),TIME(T.!$L$4,0,0),D31,E31) -> 00:00:00 | O31: 00:00:00 | S31: =CHOOSE(WEEKDAY(A31,2),norm!C$1,norm!C$2,norm!C$3,norm!C$4,norm!C$5,norm!C$6,norm!C$7) -> 09:00:00
A32: =IF(MONTH(A31+1)>MONTH(A31),"",A31+1) -> 2019-07-29 | B32: Ma | C32: =IF(A32="","",HelligdagsNavn(A32,0,0)) ->  | H32: 00:00:00 | J32: =ColTime(T.!$J$3,T.!$L$3,D32,E32) -> 00:00:00 | L32: =ColTime(TIME(T.!$J$4,0,0),TIME(T.!$L$4,0,0),D32,E32) -> 00:00:00 | N32: =IFERROR(IF(WEEKDAY(A32,2)=6,ColTime(TIME(15,0,0),TIME(24,0,0),D32,E32),""),"") ->  | O32: =IFERROR(IF(OR(C32<>"",WEEKDAY(A32,2)=7),ColTime(TIME(0,0,0),TIME(24,0,0),D32,E32),""),"") ->  | S32: =IFERROR(CHOOSE(WEEKDAY(A32,2),norm!C$1,norm!C$2,norm!C$3,norm!C$4,norm!C$5,norm!C$6,norm!C$7),"") -> 09:00:00
A33: =IFERROR(IF(MONTH(A32+1)>MONTH(A32),"",A32+1),"") -> 2019-07-30 | B33: Ti | H33: 00:00:00 | J33: =ColTime(T.!$J$3,T.!$L$3,D33,E33) -> 00:00:00 | L33: =ColTime(TIME(T.!$J$4,0,0),TIME(T.!$L$4,0,0),D33,E33) -> 00:00:00 | N33: =IFERROR(IF(WEEKDAY(A33,2)=6,ColTime(TIME(15,0,0),TIME(24,0,0),D33,E33),""),"") ->  | O33: =IFERROR(IF(OR(C33<>"",WEEKDAY(A33,2)=7),ColTime(TIME(0,0,0),TIME(24,0,0),D33,E33),""),"") ->  | S33: =IFERROR(CHOOSE(WEEKDAY(A33,2),norm!C$1,norm!C$2,norm!C$3,norm!C$4,norm!C$5,norm!C$6,norm!C$7),"") -> 09:00:00
A34: =IFERROR(IF(MONTH(A33+1)>MONTH(A33),"",A33+1),"") -> 2019-07-31 | B34: =IFERROR(PROPER(TEXT(A34,"ddd")),"") -> On | C34: =IF(A34="","",HelligdagsNavn(A34,0,0)) ->  | H34: 00:00:00 | J34: =ColTime(T.!$J$3,T.!$L$3,D34,E34) -> 00:00:00 | L34: =ColTime(TIME(T.!$J$4,0,0),TIME(T.!$L$4,0,0),D34,E34) -> 00:00:00 | N34: =IFERROR(IF(WEEKDAY(A34,2)=6,ColTime(TIME(15,0,0),TIME(24,0,0),D34,E34),""),"") ->  | S34: =IFERROR(CHOOSE(WEEKDAY(A34,2),norm!C$1,norm!C$2,norm!C$3,norm!C$4,norm!C$5,norm!C$6,norm!C$7),"") -> 09:00:00 | V34: =IF(D34="","",HOUR(D34)) ->  | W34: =IF(D34="","",MINUTE(D34)) ->  | X34: =IF(D34="","",TIME(HOUR(D34),MINUTE(D34),0)) ->  | Y34: =IF(E34="","",HOUR(E34)) ->  | Z34: =IF(E34="","",MINUTE(E34)) ->  | AA34: =IF(E34="","",TIME(HOUR(E34),MINUTE(E34),0)) -> 
A35: Total timer | G35: =IF(SUM(G9:G34)<>"0",SUM(G4:G34),"") -> 2.447916667 | H35: =IF(SUM(H4:H34)<>"0",SUM(H4:H34),"") -> 0.21875 | I35: =IF(SUM(I4:I34)<>"0",SUM(I4:I34),"") -> 0.1458333333 | J35: =IF(SUM(J4:J34)<>"0",SUM(J4:J34),"") -> 0.2708333333 | L35: =SUM(L4:M34) -> 07:45:00 | N35: =IF(SUM(N4:N34)<>"0",SUM(N4:N34),"") -> 0.2083333333 | O35: =IF(SUM(O4:O34)<>"0",SUM(O4:O34),"") -> 12:00:00 | P35: =SUM(P4:P34) -> 0.2708333333 | Q35: =SUM(Q4:Q34) -> 0
A36: Timer 1/100 | G36: =IF(G35<>"",ROUND(G35*24,2),"") -> 58.75 | H36: =IF(H35<>"",ROUND(H35*24,2),"") -> 5.25 | I36: 3.5 | J36: =IF(J35<>"",ROUND(J35*24,2),"") -> 6.5 | L36: =IF(L35<>"",ROUND(L35*24,2),"") -> 7.75 | N36: =IF(N35<>"",ROUND(N35*24,2),"") -> 5 | O36: 12 | P36: 6.5 | Q36: 0
A37: Satser | G37: =Satser!B7 -> 107.35 | H37: =Satser!B9 -> 36.35 | I37: =Satser!B12 -> 58.1 | J37: =Satser!B17 -> 25.6 | L37: =Satser!B18 -> 34.2 | N37: =Satser!B19 -> 45.1 | O37: =Satser!B20 -> 50.6
G38: =IF(G35<>"",G36*G37,"") -> 6306.8125 | H38: =IF(H35<>"",H36*H37,"") -> 190.8375 | I38: 203.35 | J38: =IF(J35<>"",J36*J37,"") -> 166.4 | L38: =IF(L35<>"",L36*L36,"") -> 60.0625 | N38: =IF(N35<>"",N36*N37,"") -> 225.5 | O38: 607.2
A40: Lønart
A41: 3025 | G41: =G35 -> 2.447916667
A42: 3425 | G42: =H35 -> 0.21875
A43: 3428 | G43: =I35 -> 0.1458333333
A44: Timer | G44: =SUM(G41:G43) -> 2.8125 | H44: =IF(G44<>"",ROUND(G44*24,2),"") -> 67.5
H45: =G37*H44 -> 7246.125

Sheet August (hidden)
A1: Løn | B1: =PROPER(TEXT(A4,"dd mmmm åååå")) & PROPER(TEXT(N1," - dd mmmm åååå")) -> 01 August 2019 - 31 August 2019 | I1: Uge : | J1: =IF(A4="","",TRUNC((A4-WEEKDAY(A4,2)-DATE(YEAR(A4+4-WEEKDAY(A4,2)),1,-10))/7)) -> 31 | K1: - | M1: =IF(A25="","",TRUNC((A25-WEEKDAY(A25,2)-DATE(YEAR(A25+4-WEEKDAY(A25,2)),1,-10))/7)) -> 34 | N1: =EOMONTH(A4,0) -> 2019-08-31 | P1: 8 | V1: Time beregning: | AG1: 06:00:00 | AH1: 18:00:00 | AI1: 03:00:00
A2: Lønart | V2: Betalt pause ved vagt over 5 timer | Z2: 00:25:00 | AA2: minutter | AB2: 00:00:00 | AC2: 06:00:00 | AD2: 17:00:00 | AE2: 14:00:00
A3: Dato | B3: Dag | D3: Start | E3: Slut | F3: Pause | G3: Arb. Tid | H3: Overtid 1-3 time | I3: Overtid 4 - time | J3: Forskudt tid alle dage 18-23 | L3: Natarbejde 23-06 | N3: Lørdag tillæg 14 - 24 | O3: Søndag tillæg 00 - 24 | P3: Optjent afspadsering | Q3: Afholdt afspadsering | R3: Syge Timer | S3: norm
A4: =DATE(T.!$B$1,$P$1,1) -> 2019-08-01 | B4: =PROPER(TEXT(A4,"ddd")) -> To | C4: =HelligdagsNavn(A4,0,0) ->  | D4: 07:00:00 | E4: 16:00:00 | F4: 00:30:00 | G4: =IF(D4="","",(E4-D4)+(D4>E4)-F4) -> 0.3541666667 | H4: =IF(G4="",0,IF(WEEKDAY(A4,2)=7,0,IF(G4>S4,MIN(G4-S4,$AI$1),0))) -> 00:00:00 | I4: =IF(G4="","",IF(G4>S4+H4,G4-(S4+H4),"")) ->  | J4: =ColTime(T.!$J$3,T.!$L$3,D4,E4) -> 00:00:00 | L4: =ColTime(TIME(T.!$J$4,0,0),TIME(T.!$L$4,0,0),D4,E4) -> 00:00:00 | N4: =IF(WEEKDAY(A4,2)=6,ColTime(TIME(14,0,0),TIME(24,0,0),D4,E4),"") ->  | O4: =IF(OR(C4<>"",WEEKDAY(A4,2)=7),ColTime(TIME(0,0,0),TIME(24,0,0),D4,E4),"") ->  | P4: =IFERROR(H4+I4,"") ->  | S4: =CHOOSE(WEEKDAY(A4,2),norm!C$1,norm!C$2,norm!C$3,norm!C$4,norm!C$5,norm!C$6,norm!C$7) -> 09:00:00 | V4: =IF(D4="","",HOUR(D4)) -> 7 | W4: =IF(D4="","",MINUTE(D4)) -> 0 | X4: =IF(D4="","",TIME(HOUR(D4),MINUTE(D4),0)) -> 07:00:00 | Y4: =IF(E4="","",HOUR(E4)) -> 16 | Z4: =IF(E4="","",MINUTE(E4)) -> 0 | AA4: 02:00:00 | AB4: 09:30:00 | AC4: 11:30:00 | AG4: =MIN(G4-S4,3) -> -0.02083333333
A5: =A4+1 -> 2019-08-02 | B5: =PROPER(TEXT(A5,"ddd")) -> Fr | C5: =HelligdagsNavn(A5,0,0) ->  | D5: 13:45:00 | E5: 21:30:00 | F5: 00:30:00 | G5: =IF(D5="","",(E5-D5)+(D5>E5)-F5) -> 0.3020833333 | H5: =IF(G5="",0,IF(WEEKDAY(A5,2)=7,0,IF(G5>S5,MIN(G5-S5,$AI$1),0))) -> 00:00:00 | I5: =IF(G5="","",IF(G5>S5+H5,G5-(S5+H5),"")) ->  | J5: =ColTime(T.!$J$3,T.!$L$3,D5,E5) -> 03:30:00 | L5: =ColTime(TIME(T.!$J$4,0,0),TIME(T.!$L$4,0,0),D5,E5) -> 00:00:00 | P5: =IFERROR(H5+I5,"") ->  | S5: =CHOOSE(WEEKDAY(A5,2),norm!C$1,norm!C$2,norm!C$3,norm!C$4,norm!C$5,norm!C$6,norm!C$7) -> 09:00:00 | V5: 13 | W5: 45 | X5: 13:45:00 | Y5: 21 | Z5: 30 | AA5: =IF(E5="","",TIME(HOUR(E5),MINUTE(E5),0)) -> 21:30:00 | AH5: Der taste kun i de Gule celler
A6: =A5+1 -> 2019-08-03 | B6: =PROPER(TEXT(A6,"ddd")) -> Lø | D6: 22:00:00 | E6: 05:45:00 | F6: 00:30:00 | G6: 0.3020833333 | H6: 00:00:00 | J6: =ColTime(T.!$J$3,T.!$L$3,D6,E6) -> 01:00:00 | L6: =ColTime(TIME(T.!$J$4,0,0),TIME(T.!$L$4,0,0),D6,E6) -> 06:45:00 | N6: 02:00:00 | P6: =IFERROR(H6+I6,"") ->  | S6: =CHOOSE(WEEKDAY(A6,2),norm!C$1,norm!C$2,norm!C$3,norm!C$4,norm!C$5,norm!C$6,norm!C$7) -> 09:00:00 | V6: 22 | W6: 0 | X6: 22:00:00 | Y6: 5 | Z6: 45 | AA6: 05:45:00
A7: 2019-08-04 | B7: Sø | D7: 05:00:00 | E7: 16:45:00 | F7: 00:30:00 | G7: 0.46875 | H7: 00:00:00 | I7: 02:15:00 | J7: =ColTime(T.!$J$3,T.!$L$3,D7,E7) -> 00:00:00 | L7: =ColTime(TIME(T.!$J$4,0,0),TIME(T.!$L$4,0,0),D7,E7) -> 01:00:00 | O7: 11:45:00 | P7: =IFERROR(H7+I7,"") -> 02:15:00 | S7: =CHOOSE(WEEKDAY(A7,2),norm!C$1,norm!C$2,norm!C$3,norm!C$4,norm!C$5,norm!C$6,norm!C$7) -> 09:00:00 | V7: 5 | W7: 0 | X7: 05:00:00 | Y7: 16 | Z7: 45 | AA7: 16:45:00
A8: 2019-08-05 | B8: Ma | H8: 00:00:00 | J8: =ColTime(T.!$J$3,T.!$L$3,D8,E8) -> 00:00:00 | L8: =ColTime(TIME(T.!$J$4,0,0),TIME(T.!$L$4,0,0),D8,E8) -> 00:00:00 | P8: =IFERROR(H8+I8,"") ->  | S8: =CHOOSE(WEEKDAY(A8,2),norm!C$1,norm!C$2,norm!C$3,norm!C$4,norm!C$5,norm!C$6,norm!C$7) -> 09:00:00
A9: 2019-08-06 | B9: Ti | D9: 06:00:00 | E9: 19:00:00 | F9: 00:30:00 | G9: 0.5208333333 | H9: 03:00:00 | I9: 00:30:00 | J9: =ColTime(T.!$J$3,T.!$L$3,D9,E9) -> 01:00:00 | L9: =ColTime(TIME(T.!$J$4,0,0),TIME(T.!$L$4,0,0),D9,E9) -> 00:00:00 | O9: =IF(OR(C9<>"",WEEKDAY(A9,2)=7),ColTime(TIME(0,0,0),TIME(24,0,0),D9,E9),"") ->  | P9: =IFERROR(H9+I9,"") -> 03:30:00 | S9: =CHOOSE(WEEKDAY(A9,2),norm!C$1,norm!C$2,norm!C$3,norm!C$4,norm!C$5,norm!C$6,norm!C$7) -> 09:00:00 | V9: 6 | W9: 0 | X9: 06:00:00 | Y9: 19 | Z9: 0 | AA9: 19:00:00
A10: 2019-08-07 | B10: On | D10: 07:00:00 | E10: 19:00:00 | G10: 0.5 | H10: 03:00:00 | J10: =ColTime(T.!$J$3,T.!$L$3,D10,E10) -> 01:00:00 | L10: =ColTime(TIME(T.!$J$4,0,0),TIME(T.!$L$4,0,0),D10,E10) -> 00:00:00 | N10: =IF(WEEKDAY(A10,2)=6,ColTime(TIME(14,0,0),TIME(24,0,0),D10,E10),"") ->  | O10: =IF(OR(C10<>"",WEEKDAY(A10,2)=7),ColTime(TIME(0,0,0),TIME(24,0,0),D10,E10),"") ->  | S10: =CHOOSE(WEEKDAY(A10,2),norm!C$1,norm!C$2,norm!C$3,norm!C$4,norm!C$5,norm!C$6,norm!C$7) -> 09:00:00 | V10: 7 | W10: 0 | X10: 07:00:00 | Y10: 19 | Z10: 0 | AA10: 19:00:00
A11: =A10+1 -> 2019-08-08 | B11: =PROPER(TEXT(A11,"ddd")) -> To | C11: =HelligdagsNavn(A11,0,0) ->  | H11: 00:00:00 | J11: =ColTime(T.!$J$3,T.!$L$3,D11,E11) -> 00:00:00 | L11: =ColTime(TIME(T.!$J$4,0,0),TIME(T.!$L$4,0,0),D11,E11) -> 00:00:00 | N11: =IF(WEEKDAY(A11,2)=6,ColTime(TIME(15,0,0),TIME(24,0,0),D11,E11),"") ->  | S11: =CHOOSE(WEEKDAY(A11,2),norm!C$1,norm!C$2,norm!C$3,norm!C$4,norm!C$5,norm!C$6,norm!C$7) -> 09:00:00
A12: =A11+1 -> 2019-08-09 | B12: =PROPER(TEXT(A12,"ddd")) -> Fr | C12: =HelligdagsNavn(A12,0,0) ->  | H12: 00:00:00 | J12: =ColTime(T.!$J$3,T.!$L$3,D12,E12) -> 00:00:00 | L12: =ColTime(TIME(T.!$J$4,0,0),TIME(T.!$L$4,0,0),D12,E12) -> 00:00:00 | S12: =CHOOSE(WEEKDAY(A12,2),norm!C$1,norm!C$2,norm!C$3,norm!C$4,norm!C$5,norm!C$6,norm!C$7) -> 09:00:00
A13: =A12+1 -> 2019-08-10 | B13: =PROPER(TEXT(A13,"ddd")) -> Lø | H13: 00:00:00 | J13: =ColTime(T.!$J$3,T.!$L$3,D13,E13) -> 00:00:00 | L13: =ColTime(TIME(T.!$J$4,0,0),TIME(T.!$L$4,0,0),D13,E13) -> 00:00:00 | N13: 00:00:00 | S13: =CHOOSE(WEEKDAY(A13,2),norm!C$1,norm!C$2,norm!C$3,norm!C$4,norm!C$5,norm!C$6,norm!C$7) -> 09:00:00
A14: 2019-08-11 | B14: Sø | H14: 00:00:00 | J14: =ColTime(T.!$J$3,T.!$L$3,D14,E14) -> 00:00:00 | L14: =ColTime(TIME(T.!$J$4,0,0),TIME(T.!$L$4,0,0),D14,E14) -> 00:00:00 | O14: 00:00:00 | S14: =CHOOSE(WEEKDAY(A14,2),norm!C$1,norm!C$2,norm!C$3,norm!C$4,norm!C$5,norm!C$6,norm!C$7) -> 09:00:00
A15: 2019-08-12 | B15: Ma | H15: 00:00:00 | J15: =ColTime(T.!$J$3,T.!$L$3,D15,E15) -> 00:00:00 | L15: =ColTime(TIME(T.!$J$4,0,0),TIME(T.!$L$4,0,0),D15,E15) -> 00:00:00 | S15: =CHOOSE(WEEKDAY(A15,2),norm!C$1,norm!C$2,norm!C$3,norm!C$4,norm!C$5,norm!C$6,norm!C$7) -> 09:00:00
A16: 2019-08-13 | B16: Ti | H16: 00:00:00 | J16: =ColTime(T.!$J$3,T.!$L$3,D16,E16) -> 00:00:00 | L16: =ColTime(TIME(T.!$J$4,0,0),TIME(T.!$L$4,0,0),D16,E16) -> 00:00:00 | S16: =CHOOSE(WEEKDAY(A16,2),norm!C$1,norm!C$2,norm!C$3,norm!C$4,norm!C$5,norm!C$6,norm!C$7) -> 09:00:00
A17: 2019-08-14 | B17: On | H17: 00:00:00 | J17: =ColTime(T.!$J$3,T.!$L$3,D17,E17) -> 00:00:00 | L17: =ColTime(TIME(T.!$J$4,0,0),TIME(T.!$L$4,0,0),D17,E17) -> 00:00:00 | S17: =CHOOSE(WEEKDAY(A17,2),norm!C$1,norm!C$2,norm!C$3,norm!C$4,norm!C$5,norm!C$6,norm!C$7) -> 09:00:00
A18: =A17+1 -> 2019-08-15 | B18: =PROPER(TEXT(A18,"ddd")) -> To | C18: =HelligdagsNavn(A18,0,0) ->  | H18: 00:00:00 | J18: =ColTime(T.!$J$3,T.!$L$3,D18,E18) -> 00:00:00 | L18: =ColTime(TIME(T.!$J$4,0,0),TIME(T.!$L$4,0,0),D18,E18) -> 00:00:00 | S18: =CHOOSE(WEEKDAY(A18,2),norm!C$1,norm!C$2,norm!C$3,norm!C$4,norm!C$5,norm!C$6,norm!C$7) -> 09:00:00
A19: =A18+1 -> 2019-08-16 | B19: =PROPER(TEXT(A19,"ddd")) -> Fr | C19: =HelligdagsNavn(A19,0,0) ->  | H19: 00:00:00 | J19: =ColTime(T.!$J$3,T.!$L$3,D19,E19) -> 00:00:00 | L19: =ColTime(TIME(T.!$J$4,0,0),TIME(T.!$L$4,0,0),D19,E19) -> 00:00:00 | S19: =CHOOSE(WEEKDAY(A19,2),norm!C$1,norm!C$2,norm!C$3,norm!C$4,norm!C$5,norm!C$6,norm!C$7) -> 09:00:00
A20: =A19+1 -> 2019-08-17 | B20: =PROPER(TEXT(A20,"ddd")) -> Lø | H20: 00:00:00 | J20: =ColTime(T.!$J$3,T.!$L$3,D20,E20) -> 00:00:00 | L20: =ColTime(TIME(T.!$J$4,0,0),TIME(T.!$L$4,0,0),D20,E20) -> 00:00:00 | N20: 00:00:00 | S20: =CHOOSE(WEEKDAY(A20,2),norm!C$1,norm!C$2,norm!C$3,norm!C$4,norm!C$5,norm!C$6,norm!C$7) -> 09:00:00
A21: 2019-08-18 | B21: Sø | H21: 00:00:00 | J21: =ColTime(T.!$J$3,T.!$L$3,D21,E21) -> 00:00:00 | L21: =ColTime(TIME(T.!$J$4,0,0),TIME(T.!$L$4,0,0),D21,E21) -> 00:00:00 | O21: 00:00:00 | S21: =CHOOSE(WEEKDAY(A21,2),norm!C$1,norm!C$2,norm!C$3,norm!C$4,norm!C$5,norm!C$6,norm!C$7) -> 09:00:00
A22: 2019-08-19 | B22: Ma | H22: 00:00:00 | J22: =ColTime(T.!$J$3,T.!$L$3,D22,E22) -> 00:00:00 | L22: =ColTime(TIME(T.!$J$4,0,0),TIME(T.!$L$4,0,0),D22,E22) -> 00:00:00 | S22: =CHOOSE(WEEKDAY(A22,2),norm!C$1,norm!C$2,norm!C$3,norm!C$4,norm!C$5,norm!C$6,norm!C$7) -> 09:00:00
A23: 2019-08-20 | B23: Ti | H23: 00:00:00 | J23: =ColTime(T.!$J$3,T.!$L$3,D23,E23) -> 00:00:00 | L23: =ColTime(TIME(T.!$J$4,0,0),TIME(T.!$L$4,0,0),D23,E23) -> 00:00:00 | S23: =CHOOSE(WEEKDAY(A23,2),norm!C$1,norm!C$2,norm!C$3,norm!C$4,norm!C$5,norm!C$6,norm!C$7) -> 09:00:00
A24: 2019-08-21 | B24: On | H24: 00:00:00 | J24: =ColTime(T.!$J$3,T.!$L$3,D24,E24) -> 00:00:00 | L24: =ColTime(TIME(T.!$J$4,0,0),TIME(T.!$L$4,0,0),D24,E24) -> 00:00:00 | S24: =CHOOSE(WEEKDAY(A24,2),norm!C$1,norm!C$2,norm!C$3,norm!C$4,norm!C$5,norm!C$6,norm!C$7) -> 09:00:00
A25: =A24+1 -> 2019-08-22 | B25: =PROPER(TEXT(A25,"ddd")) -> To | C25: =HelligdagsNavn(A25,0,0) ->  | H25: 00:00:00 | J25: =ColTime(T.!$J$3,T.!$L$3,D25,E25) -> 00:00:00 | L25: =ColTime(TIME(T.!$J$4,0,0),TIME(T.!$L$4,0,0),D25,E25) -> 00:00:00 | S25: =CHOOSE(WEEKDAY(A25,2),norm!C$1,norm!C$2,norm!C$3,norm!C$4,norm!C$5,norm!C$6,norm!C$7) -> 09:00:00
A26: =A25+1 -> 2019-08-23 | B26: =PROPER(TEXT(A26,"ddd")) -> Fr | C26: =HelligdagsNavn(A26,0,0) ->  | H26: 00:00:00 | J26: =ColTime(T.!$J$3,T.!$L$3,D26,E26) -> 00:00:00 | L26: =ColTime(TIME(T.!$J$4,0,0),TIME(T.!$L$4,0,0),D26,E26) -> 00:00:00 | S26: =CHOOSE(WEEKDAY(A26,2),norm!C$1,norm!C$2,norm!C$3,norm!C$4,norm!C$5,norm!C$6,norm!C$7) -> 09:00:00
A27: =A26+1 -> 2019-08-24 | B27: =PROPER(TEXT(A27,"ddd")) -> Lø | H27: 00:00:00 | J27: =ColTime(T.!$J$3,T.!$L$3,D27,E27) -> 00:00:00 | L27: =ColTime(TIME(T.!$J$4,0,0),TIME(T.!$L$4,0,0),D27,E27) -> 00:00:00 | N27: 00:00:00 | S27: =CHOOSE(WEEKDAY(A27,2),norm!C$1,norm!C$2,norm!C$3,norm!C$4,norm!C$5,norm!C$6,norm!C$7) -> 09:00:00
A28: 2019-08-25 | B28: Sø | H28: 00:00:00 | J28: =ColTime(T.!$J$3,T.!$L$3,D28,E28) -> 00:00:00 | L28: =ColTime(TIME(T.!$J$4,0,0),TIME(T.!$L$4,0,0),D28,E28) -> 00:00:00 | O28: 00:00:00 | S28: =CHOOSE(WEEKDAY(A28,2),norm!C$1,norm!C$2,norm!C$3,norm!C$4,norm!C$5,norm!C$6,norm!C$7) -> 09:00:00
A29: 2019-08-26 | B29: Ma | H29: 00:00:00 | J29: =ColTime(T.!$J$3,T.!$L$3,D29,E29) -> 00:00:00 | L29: =ColTime(TIME(T.!$J$4,0,0),TIME(T.!$L$4,0,0),D29,E29) -> 00:00:00 | S29: =CHOOSE(WEEKDAY(A29,2),norm!C$1,norm!C$2,norm!C$3,norm!C$4,norm!C$5,norm!C$6,norm!C$7) -> 09:00:00
A30: 2019-08-27 | B30: Ti | H30: 00:00:00 | J30: =ColTime(T.!$J$3,T.!$L$3,D30,E30) -> 00:00:00 | L30: =ColTime(TIME(T.!$J$4,0,0),TIME(T.!$L$4,0,0),D30,E30) -> 00:00:00 | S30: =CHOOSE(WEEKDAY(A30,2),norm!C$1,norm!C$2,norm!C$3,norm!C$4,norm!C$5,norm!C$6,norm!C$7) -> 09:00:00
A31: 2019-08-28 | B31: On | H31: 00:00:00 | J31: =ColTime(T.!$J$3,T.!$L$3,D31,E31) -> 00:00:00 | L31: =ColTime(TIME(T.!$J$4,0,0),TIME(T.!$L$4,0,0),D31,E31) -> 00:00:00 | S31: =CHOOSE(WEEKDAY(A31,2),norm!C$1,norm!C$2,norm!C$3,norm!C$4,norm!C$5,norm!C$6,norm!C$7) -> 09:00:00
A32: =IF(MONTH(A31+1)>MONTH(A31),"",A31+1) -> 2019-08-29 | B32: To | C32: =IF(A32="","",HelligdagsNavn(A32,0,0)) ->  | H32: 00:00:00 | J32: =ColTime(T.!$J$3,T.!$L$3,D32,E32) -> 00:00:00 | L32: =ColTime(TIME(T.!$J$4,0,0),TIME(T.!$L$4,0,0),D32,E32) -> 00:00:00 | N32: =IFERROR(IF(WEEKDAY(A32,2)=6,ColTime(TIME(15,0,0),TIME(24,0,0),D32,E32),""),"") ->  | O32: =IFERROR(IF(OR(C32<>"",WEEKDAY(A32,2)=7),ColTime(TIME(0,0,0),TIME(24,0,0),D32,E32),""),"") ->  | S32: =IFERROR(CHOOSE(WEEKDAY(A32,2),norm!C$1,norm!C$2,norm!C$3,norm!C$4,norm!C$5,norm!C$6,norm!C$7),"") -> 09:00:00
A33: =IFERROR(IF(MONTH(A32+1)>MONTH(A32),"",A32+1),"") -> 2019-08-30 | B33: Fr | H33: 00:00:00 | J33: =ColTime(T.!$J$3,T.!$L$3,D33,E33) -> 00:00:00 | L33: =ColTime(TIME(T.!$J$4,0,0),TIME(T.!$L$4,0,0),D33,E33) -> 00:00:00 | N33: =IFERROR(IF(WEEKDAY(A33,2)=6,ColTime(TIME(15,0,0),TIME(24,0,0),D33,E33),""),"") ->  | O33: =IFERROR(IF(OR(C33<>"",WEEKDAY(A33,2)=7),ColTime(TIME(0,0,0),TIME(24,0,0),D33,E33),""),"") ->  | S33: =IFERROR(CHOOSE(WEEKDAY(A33,2),norm!C$1,norm!C$2,norm!C$3,norm!C$4,norm!C$5,norm!C$6,norm!C$7),"") -> 09:00:00
A34: =IFERROR(IF(MONTH(A33+1)>MONTH(A33),"",A33+1),"") -> 2019-08-31 | B34: =IFERROR(PROPER(TEXT(A34,"ddd")),"") -> Lø | C34: =IF(A34="","",HelligdagsNavn(A34,0,0)) ->  | H34: 00:00:00 | J34: =ColTime(T.!$J$3,T.!$L$3,D34,E34) -> 00:00:00 | L34: =ColTime(TIME(T.!$J$4,0,0),TIME(T.!$L$4,0,0),D34,E34) -> 00:00:00 | N34: =IFERROR(IF(WEEKDAY(A34,2)=6,ColTime(TIME(15,0,0),TIME(24,0,0),D34,E34),""),"") -> 00:00:00 | S34: =IFERROR(CHOOSE(WEEKDAY(A34,2),norm!C$1,norm!C$2,norm!C$3,norm!C$4,norm!C$5,norm!C$6,norm!C$7),"") -> 09:00:00 | V34: =IF(D34="","",HOUR(D34)) ->  | W34: =IF(D34="","",MINUTE(D34)) ->  | X34: =IF(D34="","",TIME(HOUR(D34),MINUTE(D34),0)) ->  | Y34: =IF(E34="","",HOUR(E34)) ->  | Z34: =IF(E34="","",MINUTE(E34)) ->  | AA34: =IF(E34="","",TIME(HOUR(E34),MINUTE(E34),0)) -> 
A35: Total timer | G35: =IF(SUM(G9:G34)<>"0",SUM(G4:G34),"") -> 2.447916667 | H35: =IF(SUM(H4:H34)<>"0",SUM(H4:H34),"") -> 0.25 | I35: =IF(SUM(I4:I34)<>"0",SUM(I4:I34),"") -> 0.1145833333 | J35: =IF(SUM(J4:J34)<>"0",SUM(J4:J34),"") -> 0.2708333333 | L35: =SUM(L4:M34) -> 07:45:00 | N35: =IF(SUM(N4:N34)<>"0",SUM(N4:N34),"") -> 0.08333333333 | O35: =IF(SUM(O4:O34)<>"0",SUM(O4:O34),"") -> 11:45:00 | P35: =SUM(P4:P34) -> 0.2395833333 | Q35: =SUM(Q4:Q34) -> 0
A36: Timer 1/100 | G36: =IF(G35<>"",ROUND(G35*24,2),"") -> 58.75 | H36: =IF(H35<>"",ROUND(H35*24,2),"") -> 6 | I36: 2.75 | J36: =IF(J35<>"",ROUND(J35*24,2),"") -> 6.5 | L36: =IF(L35<>"",ROUND(L35*24,2),"") -> 7.75 | N36: =IF(N35<>"",ROUND(N35*24,2),"") -> 2 | O36: 11.75 | P36: 5.75 | Q36: 0
A37: Satser | G37: =Satser!B7 -> 107.35 | H37: =Satser!B9 -> 36.35 | I37: =Satser!B12 -> 58.1 | J37: =Satser!B17 -> 25.6 | L37: =Satser!B18 -> 34.2 | N37: =Satser!B19 -> 45.1 | O37: =Satser!B20 -> 50.6
G38: =IF(G35<>"",G36*G37,"") -> 6306.8125 | H38: =IF(H35<>"",H36*H37,"") -> 218.1 | I38: 159.775 | J38: =IF(J35<>"",J36*J37,"") -> 166.4 | L38: =IF(L35<>"",L36*L36,"") -> 60.0625 | N38: =IF(N35<>"",N36*N37,"") -> 90.2 | O38: 594.55
A40: Lønart
A41: 3025 | G41: =G35 -> 2.447916667
A42: 3425 | G42: =H35 -> 0.25
A43: 3428 | G43: =I35 -> 0.1145833333
A44: Timer | G44: =SUM(G41:G43) -> 2.8125 | H44: =IF(G44<>"",ROUND(G44*24,2),"") -> 67.5
H45: =G37*H44 -> 7246.125

Sheet September (hidden)
A1: Løn | B1: 2019-01-01 | I1: Uge : | J1: =IF(A4="","",TRUNC((A4-WEEKDAY(A4,2)-DATE(YEAR(A4+4-WEEKDAY(A4,2)),1,-10))/7)) -> 35 | K1: - | M1: =IF(A25="","",TRUNC((A25-WEEKDAY(A25,2)-DATE(YEAR(A25+4-WEEKDAY(A25,2)),1,-10))/7)) -> 38 | N1: =EOMONTH(A4,0) -> 2019-09-30 | P1: 9 | V1: Time beregning: | AG1: 06:00:00 | AH1: 18:00:00 | AI1: 03:00:00
A2: Lønart | V2: Betalt pause ved vagt over 5 timer | Z2: 00:25:00 | AA2: minutter | AB2: 00:00:00 | AC2: 06:00:00 | AD2: 17:00:00 | AE2: 14:00:00
A3: Dato | B3: Dag | D3: Start | E3: Slut | F3: Pause | G3: Arb. Tid | H3: Overtid 1-3 time | I3: Overtid 4 - time | J3: Forskudt tid alle dage 18-23 | L3: Natarbejde 23-06 | N3: Lørdag tillæg 14 - 24 | O3: Søndag tillæg 00 - 24 | P3: Optjent afspadsering | Q3: Afholdt afspadsering | R3: Syge Timer | S3: norm
A4: =DATE(T.!$B$1,$P$1,1) -> 2019-09-01 | B4: =PROPER(TEXT(A4,"ddd")) -> Sø | C4: =HelligdagsNavn(A4,0,0) ->  | D4: 07:00:00 | E4: 16:00:00 | F4: 00:30:00 | G4: =IF(D4="","",(E4-D4)+(D4>E4)-F4) -> 0.3541666667 | H4: =IF(G4="",0,IF(WEEKDAY(A4,2)=7,0,IF(G4>S4,MIN(G4-S4,$AI$1),0))) -> 00:00:00 | I4: =IF(G4="","",IF(G4>S4+H4,G4-(S4+H4),"")) ->  | J4: =ColTime(T.!$J$3,T.!$L$3,D4,E4) -> 00:00:00 | L4: =ColTime(TIME(T.!$J$4,0,0),TIME(T.!$L$4,0,0),D4,E4) -> 00:00:00 | N4: =IF(WEEKDAY(A4,2)=6,ColTime(TIME(14,0,0),TIME(24,0,0),D4,E4),"") ->  | O4: =IF(OR(C4<>"",WEEKDAY(A4,2)=7),ColTime(TIME(0,0,0),TIME(24,0,0),D4,E4),"") -> 09:00:00 | P4: =IFERROR(H4+I4,"") ->  | S4: =CHOOSE(WEEKDAY(A4,2),norm!C$1,norm!C$2,norm!C$3,norm!C$4,norm!C$5,norm!C$6,norm!C$7) -> 09:00:00 | V4: =IF(D4="","",HOUR(D4)) -> 7 | W4: =IF(D4="","",MINUTE(D4)) -> 0 | X4: =IF(D4="","",TIME(HOUR(D4),MINUTE(D4),0)) -> 07:00:00 | Y4: =IF(E4="","",HOUR(E4)) -> 16 | Z4: =IF(E4="","",MINUTE(E4)) -> 0 | AA4: 02:00:00 | AB4: 09:30:00 | AC4: 11:30:00 | AG4: =MIN(G4-S4,3) -> -0.02083333333
A5: =A4+1 -> 2019-09-02 | B5: =PROPER(TEXT(A5,"ddd")) -> Ma | C5: =HelligdagsNavn(A5,0,0) ->  | D5: 13:45:00 | E5: 21:30:00 | F5: 00:30:00 | G5: =IF(D5="","",(E5-D5)+(D5>E5)-F5) -> 0.3020833333 | H5: =IF(G5="",0,IF(WEEKDAY(A5,2)=7,0,IF(G5>S5,MIN(G5-S5,$AI$1),0))) -> 00:00:00 | I5: =IF(G5="","",IF(G5>S5+H5,G5-(S5+H5),"")) ->  | J5: =ColTime(T.!$J$3,T.!$L$3,D5,E5) -> 03:30:00 | L5: =ColTime(TIME(T.!$J$4,0,0),TIME(T.!$L$4,0,0),D5,E5) -> 00:00:00 | P5: =IFERROR(H5+I5,"") ->  | S5: =CHOOSE(WEEKDAY(A5,2),norm!C$1,norm!C$2,norm!C$3,norm!C$4,norm!C$5,norm!C$6,norm!C$7) -> 09:00:00 | V5: 13 | W5: 45 | X5: 13:45:00 | Y5: 21 | Z5: 30 | AA5: =IF(E5="","",TIME(HOUR(E5),MINUTE(E5),0)) -> 21:30:00 | AH5: Der taste kun i de Gule celler
A6: =A5+1 -> 2019-09-03 | B6: =PROPER(TEXT(A6,"ddd")) -> Ti | D6: 22:00:00 | E6: 05:45:00 | F6: 00:30:00 | G6: 0.3020833333 | H6: 00:00:00 | J6: =ColTime(T.!$J$3,T.!$L$3,D6,E6) -> 01:00:00 | L6: =ColTime(TIME(T.!$J$4,0,0),TIME(T.!$L$4,0,0),D6,E6) -> 06:45:00 | P6: =IFERROR(H6+I6,"") ->  | S6: =CHOOSE(WEEKDAY(A6,2),norm!C$1,norm!C$2,norm!C$3,norm!C$4,norm!C$5,norm!C$6,norm!C$7) -> 09:00:00 | V6: 22 | W6: 0 | X6: 22:00:00 | Y6: 5 | Z6: 45 | AA6: 05:45:00
A7: 2019-09-04 | B7: On | D7: 05:00:00 | E7: 16:45:00 | F7: 00:30:00 | G7: 0.46875 | H7: 02:15:00 | J7: =ColTime(T.!$J$3,T.!$L$3,D7,E7) -> 00:00:00 | L7: =ColTime(TIME(T.!$J$4,0,0),TIME(T.!$L$4,0,0),D7,E7) -> 01:00:00 | P7: =IFERROR(H7+I7,"") ->  | S7: =CHOOSE(WEEKDAY(A7,2),norm!C$1,norm!C$2,norm!C$3,norm!C$4,norm!C$5,norm!C$6,norm!C$7) -> 09:00:00 | V7: 5 | W7: 0 | X7: 05:00:00 | Y7: 16 | Z7: 45 | AA7: 16:45:00
A8: 2019-09-05 | B8: To | H8: 00:00:00 | J8: =ColTime(T.!$J$3,T.!$L$3,D8,E8) -> 00:00:00 | L8: =ColTime(TIME(T.!$J$4,0,0),TIME(T.!$L$4,0,0),D8,E8) -> 00:00:00 | P8: =IFERROR(H8+I8,"") ->  | S8: =CHOOSE(WEEKDAY(A8,2),norm!C$1,norm!C$2,norm!C$3,norm!C$4,norm!C$5,norm!C$6,norm!C$7) -> 09:00:00
A9: 2019-09-06 | B9: Fr | D9: 06:00:00 | E9: 19:00:00 | F9: 00:30:00 | G9: 0.5208333333 | H9: 03:00:00 | I9: 00:30:00 | J9: =ColTime(T.!$J$3,T.!$L$3,D9,E9) -> 01:00:00 | L9: =ColTime(TIME(T.!$J$4,0,0),TIME(T.!$L$4,0,0),D9,E9) -> 00:00:00 | O9: =IF(OR(C9<>"",WEEKDAY(A9,2)=7),ColTime(TIME(0,0,0),TIME(24,0,0),D9,E9),"") ->  | P9: =IFERROR(H9+I9,"") -> 03:30:00 | S9: =CHOOSE(WEEKDAY(A9,2),norm!C$1,norm!C$2,norm!C$3,norm!C$4,norm!C$5,norm!C$6,norm!C$7) -> 09:00:00 | V9: 6 | W9: 0 | X9: 06:00:00 | Y9: 19 | Z9: 0 | AA9: 19:00:00
A10: 2019-09-07 | B10: Lø | D10: 07:00:00 | E10: 19:00:00 | G10: 0.5 | H10: 03:00:00 | J10: =ColTime(T.!$J$3,T.!$L$3,D10,E10) -> 01:00:00 | L10: =ColTime(TIME(T.!$J$4,0,0),TIME(T.!$L$4,0,0),D10,E10) -> 00:00:00 | N10: =IF(WEEKDAY(A10,2)=6,ColTime(TIME(14,0,0),TIME(24,0,0),D10,E10),"") -> 05:00:00 | O10: =IF(OR(C10<>"",WEEKDAY(A10,2)=7),ColTime(TIME(0,0,0),TIME(24,0,0),D10,E10),"") ->  | S10: =CHOOSE(WEEKDAY(A10,2),norm!C$1,norm!C$2,norm!C$3,norm!C$4,norm!C$5,norm!C$6,norm!C$7) -> 09:00:00 | V10: 7 | W10: 0 | X10: 07:00:00 | Y10: 19 | Z10: 0 | AA10: 19:00:00
A11: =A10+1 -> 2019-09-08 | B11: =PROPER(TEXT(A11,"ddd")) -> Sø | C11: =HelligdagsNavn(A11,0,0) ->  | H11: 00:00:00 | J11: =ColTime(T.!$J$3,T.!$L$3,D11,E11) -> 00:00:00 | L11: =ColTime(TIME(T.!$J$4,0,0),TIME(T.!$L$4,0,0),D11,E11) -> 00:00:00 | N11: =IF(WEEKDAY(A11,2)=6,ColTime(TIME(15,0,0),TIME(24,0,0),D11,E11),"") ->  | O11: 00:00:00 | S11: =CHOOSE(WEEKDAY(A11,2),norm!C$1,norm!C$2,norm!C$3,norm!C$4,norm!C$5,norm!C$6,norm!C$7) -> 09:00:00
A12: =A11+1 -> 2019-09-09 | B12: =PROPER(TEXT(A12,"ddd")) -> Ma | C12: =HelligdagsNavn(A12,0,0) ->  | H12: 00:00:00 | J12: =ColTime(T.!$J$3,T.!$L$3,D12,E12) -> 00:00:00 | L12: =ColTime(TIME(T.!$J$4,0,0),TIME(T.!$L$4,0,0),D12,E12) -> 00:00:00 | S12: =CHOOSE(WEEKDAY(A12,2),norm!C$1,norm!C$2,norm!C$3,norm!C$4,norm!C$5,norm!C$6,norm!C$7) -> 09:00:00
A13: =A12+1 -> 2019-09-10 | B13: =PROPER(TEXT(A13,"ddd")) -> Ti | H13: 00:00:00 | J13: =ColTime(T.!$J$3,T.!$L$3,D13,E13) -> 00:00:00 | L13: =ColTime(TIME(T.!$J$4,0,0),TIME(T.!$L$4,0,0),D13,E13) -> 00:00:00 | S13: =CHOOSE(WEEKDAY(A13,2),norm!C$1,norm!C$2,norm!C$3,norm!C$4,norm!C$5,norm!C$6,norm!C$7) -> 09:00:00
A14: 2019-09-11 | B14: On | H14: 00:00:00 | J14: =ColTime(T.!$J$3,T.!$L$3,D14,E14) -> 00:00:00 | L14: =ColTime(TIME(T.!$J$4,0,0),TIME(T.!$L$4,0,0),D14,E14) -> 00:00:00 | S14: =CHOOSE(WEEKDAY(A14,2),norm!C$1,norm!C$2,norm!C$3,norm!C$4,norm!C$5,norm!C$6,norm!C$7) -> 09:00:00
A15: 2019-09-12 | B15: To | H15: 00:00:00 | J15: =ColTime(T.!$J$3,T.!$L$3,D15,E15) -> 00:00:00 | L15: =ColTime(TIME(T.!$J$4,0,0),TIME(T.!$L$4,0,0),D15,E15) -> 00:00:00 | S15: =CHOOSE(WEEKDAY(A15,2),norm!C$1,norm!C$2,norm!C$3,norm!C$4,norm!C$5,norm!C$6,norm!C$7) -> 09:00:00
A16: 2019-09-13 | B16: Fr | H16: 00:00:00 | J16: =ColTime(T.!$J$3,T.!$L$3,D16,E16) -> 00:00:00 | L16: =ColTime(TIME(T.!$J$4,0,0),TIME(T.!$L$4,0,0),D16,E16) -> 00:00:00 | S16: =CHOOSE(WEEKDAY(A16,2),norm!C$1,norm!C$2,norm!C$3,norm!C$4,norm!C$5,norm!C$6,norm!C$7) -> 09:00:00
A17: 2019-09-14 | B17: Lø | H17: 00:00:00 | J17: =ColTime(T.!$J$3,T.!$L$3,D17,E17) -> 00:00:00 | L17: =ColTime(TIME(T.!$J$4,0,0),TIME(T.!$L$4,0,0),D17,E17) -> 00:00:00 | N17: 00:00:00 | S17: =CHOOSE(WEEKDAY(A17,2),norm!C$1,norm!C$2,norm!C$3,norm!C$4,norm!C$5,norm!C$6,norm!C$7) -> 09:00:00
A18: =A17+1 -> 2019-09-15 | B18: =PROPER(TEXT(A18,"ddd")) -> Sø | C18: =HelligdagsNavn(A18,0,0) ->  | H18: 00:00:00 | J18: =ColTime(T.!$J$3,T.!$L$3,D18,E18) -> 00:00:00 | L18: =ColTime(TIME(T.!$J$4,0,0),TIME(T.!$L$4,0,0),D18,E18) -> 00:00:00 | O18: 00:00:00 | S18: =CHOOSE(WEEKDAY(A18,2),norm!C$1,norm!C$2,norm!C$3,norm!C$4,norm!C$5,norm!C$6,norm!C$7) -> 09:00:00
A19: =A18+1 -> 2019-09-16 | B19: =PROPER(TEXT(A19,"ddd")) -> Ma | C19: =HelligdagsNavn(A19,0,0) ->  | H19: 00:00:00 | J19: =ColTime(T.!$J$3,T.!$L$3,D19,E19) -> 00:00:00 | L19: =ColTime(TIME(T.!$J$4,0,0),TIME(T.!$L$4,0,0),D19,E19) -> 00:00:00 | S19: =CHOOSE(WEEKDAY(A19,2),norm!C$1,norm!C$2,norm!C$3,norm!C$4,norm!C$5,norm!C$6,norm!C$7) -> 09:00:00
A20: =A19+1 -> 2019-09-17 | B20: =PROPER(TEXT(A20,"ddd")) -> Ti | H20: 00:00:00 | J20: =ColTime(T.!$J$3,T.!$L$3,D20,E20) -> 00:00:00 | L20: =ColTime(TIME(T.!$J$4,0,0),TIME(T.!$L$4,0,0),D20,E20) -> 00:00:00 | S20: =CHOOSE(WEEKDAY(A20,2),norm!C$1,norm!C$2,norm!C$3,norm!C$4,norm!C$5,norm!C$6,norm!C$7) -> 09:00:00
A21: 2019-09-18 | B21: On | H21: 00:00:00 | J21: =ColTime(T.!$J$3,T.!$L$3,D21,E21) -> 00:00:00 | L21: =ColTime(TIME(T.!$J$4,0,0),TIME(T.!$L$4,0,0),D21,E21) -> 00:00:00 | S21: =CHOOSE(WEEKDAY(A21,2),norm!C$1,norm!C$2,norm!C$3,norm!C$4,norm!C$5,norm!C$6,norm!C$7) -> 09:00:00
A22: 2019-09-19 | B22: To | H22: 00:00:00 | J22: =ColTime(T.!$J$3,T.!$L$3,D22,E22) -> 00:00:00 | L22: =ColTime(TIME(T.!$J$4,0,0),TIME(T.!$L$4,0,0),D22,E22) -> 00:00:00 | S22: =CHOOSE(WEEKDAY(A22,2),norm!C$1,norm!C$2,norm!C$3,norm!C$4,norm!C$5,norm!C$6,norm!C$7) -> 09:00:00
A23: 2019-09-20 | B23: Fr | H23: 00:00:00 | J23: =ColTime(T.!$J$3,T.!$L$3,D23,E23) -> 00:00:00 | L23: =ColTime(TIME(T.!$J$4,0,0),TIME(T.!$L$4,0,0),D23,E23) -> 00:00:00 | S23: =CHOOSE(WEEKDAY(A23,2),norm!C$1,norm!C$2,norm!C$3,norm!C$4,norm!C$5,norm!C$6,norm!C$7) -> 09:00:00
A24: 2019-09-21 | B24: Lø | H24: 00:00:00 | J24: =ColTime(T.!$J$3,T.!$L$3,D24,E24) -> 00:00:00 | L24: =ColTime(TIME(T.!$J$4,0,0),TIME(T.!$L$4,0,0),D24,E24) -> 00:00:00 | N24: 00:00:00 | S24: =CHOOSE(WEEKDAY(A24,2),norm!C$1,norm!C$2,norm!C$3,norm!C$4,norm!C$5,norm!C$6,norm!C$7) -> 09:00:00
A25: =A24+1 -> 2019-09-22 | B25: =PROPER(TEXT(A25,"ddd")) -> Sø | C25: =HelligdagsNavn(A25,0,0) ->  | H25: 00:00:00 | J25: =ColTime(T.!$J$3,T.!$L$3,D25,E25) -> 00:00:00 | L25: =ColTime(TIME(T.!$J$4,0,0),TIME(T.!$L$4,0,0),D25,E25) -> 00:00:00 | O25: 00:00:00 | S25: =CHOOSE(WEEKDAY(A25,2),norm!C$1,norm!C$2,norm!C$3,norm!C$4,norm!C$5,norm!C$6,norm!C$7) -> 09:00:00
A26: =A25+1 -> 2019-09-23 | B26: =PROPER(TEXT(A26,"ddd")) -> Ma | C26: =HelligdagsNavn(A26,0,0) ->  | H26: 00:00:00 | J26: =ColTime(T.!$J$3,T.!$L$3,D26,E26) -> 00:00:00 | L26: =ColTime(TIME(T.!$J$4,0,0),TIME(T.!$L$4,0,0),D26,E26) -> 00:00:00 | S26: =CHOOSE(WEEKDAY(A26,2),norm!C$1,norm!C$2,norm!C$3,norm!C$4,norm!C$5,norm!C$6,norm!C$7) -> 09:00:00
A27: =A26+1 -> 2019-09-24 | B27: =PROPER(TEXT(A27,"ddd")) -> Ti | H27: 00:00:00 | J27: =ColTime(T.!$J$3,T.!$L$3,D27,E27) -> 00:00:00 | L27: =ColTime(TIME(T.!$J$4,0,0),TIME(T.!$L$4,0,0),D27,E27) -> 00:00:00 | S27: =CHOOSE(WEEKDAY(A27,2),norm!C$1,norm!C$2,norm!C$3,norm!C$4,norm!C$5,norm!C$6,norm!C$7) -> 09:00:00
A28: 2019-09-25 | B28: On | H28: 00:00:00 | J28: =ColTime(T.!$J$3,T.!$L$3,D28,E28) -> 00:00:00 | L28: =ColTime(TIME(T.!$J$4,0,0),TIME(T.!$L$4,0,0),D28,E28) -> 00:00:00 | S28: =CHOOSE(WEEKDAY(A28,2),norm!C$1,norm!C$2,norm!C$3,norm!C$4,norm!C$5,norm!C$6,norm!C$7) -> 09:00:00
A29: 2019-09-26 | B29: To | H29: 00:00:00 | J29: =ColTime(T.!$J$3,T.!$L$3,D29,E29) -> 00:00:00 | L29: =ColTime(TIME(T.!$J$4,0,0),TIME(T.!$L$4,0,0),D29,E29) -> 00:00:00 | S29: =CHOOSE(WEEKDAY(A29,2),norm!C$1,norm!C$2,norm!C$3,norm!C$4,norm!C$5,norm!C$6,norm!C$7) -> 09:00:00
A30: 2019-09-27 | B30: Fr | H30: 00:00:00 | J30: =ColTime(T.!$J$3,T.!$L$3,D30,E30) -> 00:00:00 | L30: =ColTime(TIME(T.!$J$4,0,0),TIME(T.!$L$4,0,0),D30,E30) -> 00:00:00 | S30: =CHOOSE(WEEKDAY(A30,2),norm!C$1,norm!C$2,norm!C$3,norm!C$4,norm!C$5,norm!C$6,norm!C$7) -> 09:00:00
A31: 2019-09-28 | B31: Lø | H31: 00:00:00 | J31: =ColTime(T.!$J$3,T.!$L$3,D31,E31) -> 00:00:00 | L31: =ColTime(TIME(T.!$J$4,0,0),TIME(T.!$L$4,0,0),D31,E31) -> 00:00:00 | N31: 00:00:00 | S31: =CHOOSE(WEEKDAY(A31,2),norm!C$1,norm!C$2,norm!C$3,norm!C$4,norm!C$5,norm!C$6,norm!C$7) -> 09:00:00
A32: =IF(MONTH(A31+1)>MONTH(A31),"",A31+1) -> 2019-09-29 | B32: Sø | C32: =IF(A32="","",HelligdagsNavn(A32,0,0)) ->  | H32: 00:00:00 | J32: =ColTime(T.!$J$3,T.!$L$3,D32,E32) -> 00:00:00 | L32: =ColTime(TIME(T.!$J$4,0,0),TIME(T.!$L$4,0,0),D32,E32) -> 00:00:00 | N32: =IFERROR(IF(WEEKDAY(A32,2)=6,ColTime(TIME(15,0,0),TIME(24,0,0),D32,E32),""),"") ->  | O32: =IFERROR(IF(OR(C32<>"",WEEKDAY(A32,2)=7),ColTime(TIME(0,0,0),TIME(24,0,0),D32,E32),""),"") -> 00:00:00 | S32: =IFERROR(CHOOSE(WEEKDAY(A32,2),norm!C$1,norm!C$2,norm!C$3,norm!C$4,norm!C$5,norm!C$6,norm!C$7),"") -> 09:00:00
A33: =IFERROR(IF(MONTH(A32+1)>MONTH(A32),"",A32+1),"") -> 2019-09-30 | B33: Ma | H33: 00:00:00 | J33: =ColTime(T.!$J$3,T.!$L$3,D33,E33) -> 00:00:00 | L33: =ColTime(TIME(T.!$J$4,0,0),TIME(T.!$L$4,0,0),D33,E33) -> 00:00:00 | N33: =IFERROR(IF(WEEKDAY(A33,2)=6,ColTime(TIME(15,0,0),TIME(24,0,0),D33,E33),""),"") ->  | O33: =IFERROR(IF(OR(C33<>"",WEEKDAY(A33,2)=7),ColTime(TIME(0,0,0),TIME(24,0,0),D33,E33),""),"") ->  | S33: =IFERROR(CHOOSE(WEEKDAY(A33,2),norm!C$1,norm!C$2,norm!C$3,norm!C$4,norm!C$5,norm!C$6,norm!C$7),"") -> 09:00:00
A34: =IFERROR(IF(MONTH(A33+1)>MONTH(A33),"",A33+1),"") ->  | B34: =IFERROR(PROPER(TEXT(A34,"ddd")),"") ->  | C34: =IF(A34="","",HelligdagsNavn(A34,0,0)) ->  | H34: 00:00:00 | J34: =ColTime(T.!$J$3,T.!$L$3,D34,E34) -> 00:00:00 | L34: =ColTime(TIME(T.!$J$4,0,0),TIME(T.!$L$4,0,0),D34,E34) -> 00:00:00 | N34: =IFERROR(IF(WEEKDAY(A34,2)=6,ColTime(TIME(15,0,0),TIME(24,0,0),D34,E34),""),"") ->  | S34: =IFERROR(CHOOSE(WEEKDAY(A34,2),norm!C$1,norm!C$2,norm!C$3,norm!C$4,norm!C$5,norm!C$6,norm!C$7),"") ->  | V34: =IF(D34="","",HOUR(D34)) ->  | W34: =IF(D34="","",MINUTE(D34)) ->  | X34: =IF(D34="","",TIME(HOUR(D34),MINUTE(D34),0)) ->  | Y34: =IF(E34="","",HOUR(E34)) ->  | Z34: =IF(E34="","",MINUTE(E34)) ->  | AA34: =IF(E34="","",TIME(HOUR(E34),MINUTE(E34),0)) -> 
A35: Total timer | G35: =IF(SUM(G9:G34)<>"0",SUM(G4:G34),"") -> 2.447916667 | H35: =IF(SUM(H4:H34)<>"0",SUM(H4:H34),"") -> 0.34375 | I35: =IF(SUM(I4:I34)<>"0",SUM(I4:I34),"") -> 0.02083333333 | J35: =IF(SUM(J4:J34)<>"0",SUM(J4:J34),"") -> 0.2708333333 | L35: =SUM(L4:M34) -> 07:45:00 | N35: =IF(SUM(N4:N34)<>"0",SUM(N4:N34),"") -> 0.2083333333 | O35: =IF(SUM(O4:O34)<>"0",SUM(O4:O34),"") -> 09:00:00 | P35: =SUM(P4:P34) -> 0.1458333333 | Q35: =SUM(Q4:Q34) -> 0
A36: Timer 1/100 | G36: =IF(G35<>"",ROUND(G35*24,2),"") -> 58.75 | H36: =IF(H35<>"",ROUND(H35*24,2),"") -> 8.25 | I36: 0.5 | J36: =IF(J35<>"",ROUND(J35*24,2),"") -> 6.5 | L36: =IF(L35<>"",ROUND(L35*24,2),"") -> 7.75 | N36: =IF(N35<>"",ROUND(N35*24,2),"") -> 5 | O36: 9 | P36: 3.5 | Q36: 0
A37: Satser | G37: =Satser!B7 -> 107.35 | H37: =Satser!B9 -> 36.35 | I37: =Satser!B12 -> 58.1 | J37: =Satser!B17 -> 25.6 | L37: =Satser!B18 -> 34.2 | N37: =Satser!B19 -> 45.1 | O37: =Satser!B20 -> 50.6
G38: =IF(G35<>"",G36*G37,"") -> 6306.8125 | H38: =IF(H35<>"",H36*H37,"") -> 299.8875 | I38: 29.05 | J38: =IF(J35<>"",J36*J37,"") -> 166.4 | L38: =IF(L35<>"",L36*L36,"") -> 60.0625 | N38: =IF(N35<>"",N36*N37,"") -> 225.5 | O38: 455.4
A40: Lønart
A41: 3025 | G41: =G35 -> 2.447916667
A42: 3425 | G42: =H35 -> 0.34375
A43: 3428 | G43: =I35 -> 0.02083333333
A44: Timer | G44: =SUM(G41:G43) -> 2.8125 | H44: =IF(G44<>"",ROUND(G44*24,2),"") -> 67.5
H45: =G37*H44 -> 7246.125

Sheet Oktober (hidden)
A1: Løn | B1: 2019-01-01 | I1: Uge : | J1: =IF(A4="","",TRUNC((A4-WEEKDAY(A4,2)-DATE(YEAR(A4+4-WEEKDAY(A4,2)),1,-10))/7)) -> 35 | K1: - | M1: =IF(A25="","",TRUNC((A25-WEEKDAY(A25,2)-DATE(YEAR(A25+4-WEEKDAY(A25,2)),1,-10))/7)) -> 38 | N1: =EOMONTH(A4,0) -> 2019-09-30 | P1: 9 | V1: Time beregning: | AG1: 06:00:00 | AH1: 18:00:00 | AI1: 03:00:00
A2: Lønart | V2: Betalt pause ved vagt over 5 timer | Z2: 00:25:00 | AA2: minutter | AB2: 00:00:00 | AC2: 06:00:00 | AD2: 17:00:00 | AE2: 14:00:00
A3: Dato | B3: Dag | D3: Start | E3: Slut | F3: Pause | G3: Arb. Tid | H3: Overtid 1-3 time | I3: Overtid 4 - time | J3: Forskudt tid alle dage 18-23 | L3: Natarbejde 23-06 | N3: Lørdag tillæg 14 - 24 | O3: Søndag tillæg 00 - 24 | P3: Optjent afspadsering | Q3: Afholdt afspadsering | R3: Syge Timer | S3: norm
A4: =DATE(T.!$B$1,$P$1,1) -> 2019-09-01 | B4: =PROPER(TEXT(A4,"ddd")) -> Sø | C4: =HelligdagsNavn(A4,0,0) ->  | D4: 07:00:00 | E4: 16:00:00 | F4: 00:30:00 | G4: =IF(D4="","",(E4-D4)+(D4>E4)-F4) -> 0.3541666667 | H4: =IF(G4="",0,IF(WEEKDAY(A4,2)=7,0,IF(G4>S4,MIN(G4-S4,$AI$1),0))) -> 00:00:00 | I4: =IF(G4="","",IF(G4>S4+H4,G4-(S4+H4),"")) ->  | J4: =ColTime(T.!$J$3,T.!$L$3,D4,E4) -> 00:00:00 | L4: =ColTime(TIME(T.!$J$4,0,0),TIME(T.!$L$4,0,0),D4,E4) -> 00:00:00 | N4: =IF(WEEKDAY(A4,2)=6,ColTime(TIME(14,0,0),TIME(24,0,0),D4,E4),"") ->  | O4: =IF(OR(C4<>"",WEEKDAY(A4,2)=7),ColTime(TIME(0,0,0),TIME(24,0,0),D4,E4),"") -> 09:00:00 | P4: =IFERROR(H4+I4,"") ->  | S4: =CHOOSE(WEEKDAY(A4,2),norm!C$1,norm!C$2,norm!C$3,norm!C$4,norm!C$5,norm!C$6,norm!C$7) -> 09:00:00 | V4: =IF(D4="","",HOUR(D4)) -> 7 | W4: =IF(D4="","",MINUTE(D4)) -> 0 | X4: =IF(D4="","",TIME(HOUR(D4),MINUTE(D4),0)) -> 07:00:00 | Y4: =IF(E4="","",HOUR(E4)) -> 16 | Z4: =IF(E4="","",MINUTE(E4)) -> 0 | AA4: 02:00:00 | AB4: 09:30:00 | AC4: 11:30:00 | AG4: =MIN(G4-S4,3) -> -0.02083333333
A5: =A4+1 -> 2019-09-02 | B5: =PROPER(TEXT(A5,"ddd")) -> Ma | C5: =HelligdagsNavn(A5,0,0) ->  | D5: 13:45:00 | E5: 21:30:00 | F5: 00:30:00 | G5: =IF(D5="","",(E5-D5)+(D5>E5)-F5) -> 0.3020833333 | H5: =IF(G5="",0,IF(WEEKDAY(A5,2)=7,0,IF(G5>S5,MIN(G5-S5,$AI$1),0))) -> 00:00:00 | I5: =IF(G5="","",IF(G5>S5+H5,G5-(S5+H5),"")) ->  | J5: =ColTime(T.!$J$3,T.!$L$3,D5,E5) -> 03:30:00 | L5: =ColTime(TIME(T.!$J$4,0,0),TIME(T.!$L$4,0,0),D5,E5) -> 00:00:00 | P5: =IFERROR(H5+I5,"") ->  | S5: =CHOOSE(WEEKDAY(A5,2),norm!C$1,norm!C$2,norm!C$3,norm!C$4,norm!C$5,norm!C$6,norm!C$7) -> 09:00:00 | V5: 13 | W5: 45 | X5: 13:45:00 | Y5: 21 | Z5: 30 | AA5: =IF(E5="","",TIME(HOUR(E5),MINUTE(E5),0)) -> 21:30:00 | AH5: Der taste kun i de Gule celler
A6: =A5+1 -> 2019-09-03 | B6: =PROPER(TEXT(A6,"ddd")) -> Ti | D6: 22:00:00 | E6: 05:45:00 | F6: 00:30:00 | G6: 0.3020833333 | H6: 00:00:00 | J6: =ColTime(T.!$J$3,T.!$L$3,D6,E6) -> 01:00:00 | L6: =ColTime(TIME(T.!$J$4,0,0),TIME(T.!$L$4,0,0),D6,E6) -> 06:45:00 | P6: =IFERROR(H6+I6,"") ->  | S6: =CHOOSE(WEEKDAY(A6,2),norm!C$1,norm!C$2,norm!C$3,norm!C$4,norm!C$5,norm!C$6,norm!C$7) -> 09:00:00 | V6: 22 | W6: 0 | X6: 22:00:00 | Y6: 5 | Z6: 45 | AA6: 05:45:00
A7: 2019-09-04 | B7: On | D7: 05:00:00 | E7: 16:45:00 | F7: 00:30:00 | G7: 0.46875 | H7: 02:15:00 | J7: =ColTime(T.!$J$3,T.!$L$3,D7,E7) -> 00:00:00 | L7: =ColTime(TIME(T.!$J$4,0,0),TIME(T.!$L$4,0,0),D7,E7) -> 01:00:00 | P7: =IFERROR(H7+I7,"") ->  | S7: =CHOOSE(WEEKDAY(A7,2),norm!C$1,norm!C$2,norm!C$3,norm!C$4,norm!C$5,norm!C$6,norm!C$7) -> 09:00:00 | V7: 5 | W7: 0 | X7: 05:00:00 | Y7: 16 | Z7: 45 | AA7: 16:45:00
A8: 2019-09-05 | B8: To | H8: 00:00:00 | J8: =ColTime(T.!$J$3,T.!$L$3,D8,E8) -> 00:00:00 | L8: =ColTime(TIME(T.!$J$4,0,0),TIME(T.!$L$4,0,0),D8,E8) -> 00:00:00 | P8: =IFERROR(H8+I8,"") ->  | S8: =CHOOSE(WEEKDAY(A8,2),norm!C$1,norm!C$2,norm!C$3,norm!C$4,norm!C$5,norm!C$6,norm!C$7) -> 09:00:00
A9: 2019-09-06 | B9: Fr | D9: 06:00:00 | E9: 19:00:00 | F9: 00:30:00 | G9: 0.5208333333 | H9: 03:00:00 | I9: 00:30:00 | J9: =ColTime(T.!$J$3,T.!$L$3,D9,E9) -> 01:00:00 | L9: =ColTime(TIME(T.!$J$4,0,0),TIME(T.!$L$4,0,0),D9,E9) -> 00:00:00 | O9: =IF(OR(C9<>"",WEEKDAY(A9,2)=7),ColTime(TIME(0,0,0),TIME(24,0,0),D9,E9),"") ->  | P9: =IFERROR(H9+I9,"") -> 03:30:00 | S9: =CHOOSE(WEEKDAY(A9,2),norm!C$1,norm!C$2,norm!C$3,norm!C$4,norm!C$5,norm!C$6,norm!C$7) -> 09:00:00 | V9: 6 | W9: 0 | X9: 06:00:00 | Y9: 19 | Z9: 0 | AA9: 19:00:00
A10: 2019-09-07 | B10: Lø | D10: 07:00:00 | E10: 19:00:00 | G10: 0.5 | H10: 03:00:00 | J10: =ColTime(T.!$J$3,T.!$L$3,D10,E10) -> 01:00:00 | L10: =ColTime(TIME(T.!$J$4,0,0),TIME(T.!$L$4,0,0),D10,E10) -> 00:00:00 | N10: =IF(WEEKDAY(A10,2)=6,ColTime(TIME(14,0,0),TIME(24,0,0),D10,E10),"") -> 05:00:00 | O10: =IF(OR(C10<>"",WEEKDAY(A10,2)=7),ColTime(TIME(0,0,0),TIME(24,0,0),D10,E10),"") ->  | S10: =CHOOSE(WEEKDAY(A10,2),norm!C$1,norm!C$2,norm!C$3,norm!C$4,norm!C$5,norm!C$6,norm!C$7) -> 09:00:00 | V10: 7 | W10: 0 | X10: 07:00:00 | Y10: 19 | Z10: 0 | AA10: 19:00:00
A11: =A10+1 -> 2019-09-08 | B11: =PROPER(TEXT(A11,"ddd")) -> Sø | C11: =HelligdagsNavn(A11,0,0) ->  | H11: 00:00:00 | J11: =ColTime(T.!$J$3,T.!$L$3,D11,E11) -> 00:00:00 | L11: =ColTime(TIME(T.!$J$4,0,0),TIME(T.!$L$4,0,0),D11,E11) -> 00:00:00 | N11: =IF(WEEKDAY(A11,2)=6,ColTime(TIME(15,0,0),TIME(24,0,0),D11,E11),"") ->  | O11: 00:00:00 | S11: =CHOOSE(WEEKDAY(A11,2),norm!C$1,norm!C$2,norm!C$3,norm!C$4,norm!C$5,norm!C$6,norm!C$7) -> 09:00:00
A12: =A11+1 -> 2019-09-09 | B12: =PROPER(TEXT(A12,"ddd")) -> Ma | C12: =HelligdagsNavn(A12,0,0) ->  | H12: 00:00:00 | J12: =ColTime(T.!$J$3,T.!$L$3,D12,E12) -> 00:00:00 | L12: =ColTime(TIME(T.!$J$4,0,0),TIME(T.!$L$4,0,0),D12,E12) -> 00:00:00 | S12: =CHOOSE(WEEKDAY(A12,2),norm!C$1,norm!C$2,norm!C$3,norm!C$4,norm!C$5,norm!C$6,norm!C$7) -> 09:00:00
A13: =A12+1 -> 2019-09-10 | B13: =PROPER(TEXT(A13,"ddd")) -> Ti | H13: 00:00:00 | J13: =ColTime(T.!$J$3,T.!$L$3,D13,E13) -> 00:00:00 | L13: =ColTime(TIME(T.!$J$4,0,0),TIME(T.!$L$4,0,0),D13,E13) -> 00:00:00 | S13: =CHOOSE(WEEKDAY(A13,2),norm!C$1,norm!C$2,norm!C$3,norm!C$4,norm!C$5,norm!C$6,norm!C$7) -> 09:00:00
A14: 2019-09-11 | B14: On | H14: 00:00:00 | J14: =ColTime(T.!$J$3,T.!$L$3,D14,E14) -> 00:00:00 | L14: =ColTime(TIME(T.!$J$4,0,0),TIME(T.!$L$4,0,0),D14,E14) -> 00:00:00 | S14: =CHOOSE(WEEKDAY(A14,2),norm!C$1,norm!C$2,norm!C$3,norm!C$4,norm!C$5,norm!C$6,norm!C$7) -> 09:00:00
A15: 2019-09-12 | B15: To | H15: 00:00:00 | J15: =ColTime(T.!$J$3,T.!$L$3,D15,E15) -> 00:00:00 | L15: =ColTime(TIME(T.!$J$4,0,0),TIME(T.!$L$4,0,0),D15,E15) -> 00:00:00 | S15: =CHOOSE(WEEKDAY(A15,2),norm!C$1,norm!C$2,norm!C$3,norm!C$4,norm!C$5,norm!C$6,norm!C$7) -> 09:00:00
A16: 2019-09-13 | B16: Fr | H16: 00:00:00 | J16: =ColTime(T.!$J$3,T.!$L$3,D16,E16) -> 00:00:00 | L16: =ColTime(TIME(T.!$J$4,0,0),TIME(T.!$L$4,0,0),D16,E16) -> 00:00:00 | S16: =CHOOSE(WEEKDAY(A16,2),norm!C$1,norm!C$2,norm!C$3,norm!C$4,norm!C$5,norm!C$6,norm!C$7) -> 09:00:00
A17: 2019-09-14 | B17: Lø | H17: 00:00:00 | J17: =ColTime(T.!$J$3,T.!$L$3,D17,E17) -> 00:00:00 | L17: =ColTime(TIME(T.!$J$4,0,0),TIME(T.!$L$4,0,0),D17,E17) -> 00:00:00 | N17: 00:00:00 | S17: =CHOOSE(WEEKDAY(A17,2),norm!C$1,norm!C$2,norm!C$3,norm!C$4,norm!C$5,norm!C$6,norm!C$7) -> 09:00:00
A18: =A17+1 -> 2019-09-15 | B18: =PROPER(TEXT(A18,"ddd")) -> Sø | C18: =HelligdagsNavn(A18,0,0) ->  | H18: 00:00:00 | J18: =ColTime(T.!$J$3,T.!$L$3,D18,E18) -> 00:00:00 | L18: =ColTime(TIME(T.!$J$4,0,0),TIME(T.!$L$4,0,0),D18,E18) -> 00:00:00 | O18: 00:00:00 | S18: =CHOOSE(WEEKDAY(A18,2),norm!C$1,norm!C$2,norm!C$3,norm!C$4,norm!C$5,norm!C$6,norm!C$7) -> 09:00:00
A19: =A18+1 -> 2019-09-16 | B19: =PROPER(TEXT(A19,"ddd")) -> Ma | C19: =HelligdagsNavn(A19,0,0) ->  | H19: 00:00:00 | J19: =ColTime(T.!$J$3,T.!$L$3,D19,E19) -> 00:00:00 | L19: =ColTime(TIME(T.!$J$4,0,0),TIME(T.!$L$4,0,0),D19,E19) -> 00:00:00 | S19: =CHOOSE(WEEKDAY(A19,2),norm!C$1,norm!C$2,norm!C$3,norm!C$4,norm!C$5,norm!C$6,norm!C$7) -> 09:00:00
A20: =A19+1 -> 2019-09-17 | B20: =PROPER(TEXT(A20,"ddd")) -> Ti | H20: 00:00:00 | J20: =ColTime(T.!$J$3,T.!$L$3,D20,E20) -> 00:00:00 | L20: =ColTime(TIME(T.!$J$4,0,0),TIME(T.!$L$4,0,0),D20,E20) -> 00:00:00 | S20: =CHOOSE(WEEKDAY(A20,2),norm!C$1,norm!C$2,norm!C$3,norm!C$4,norm!C$5,norm!C$6,norm!C$7) -> 09:00:00
A21: 2019-09-18 | B21: On | H21: 00:00:00 | J21: =ColTime(T.!$J$3,T.!$L$3,D21,E21) -> 00:00:00 | L21: =ColTime(TIME(T.!$J$4,0,0),TIME(T.!$L$4,0,0),D21,E21) -> 00:00:00 | S21: =CHOOSE(WEEKDAY(A21,2),norm!C$1,norm!C$2,norm!C$3,norm!C$4,norm!C$5,norm!C$6,norm!C$7) -> 09:00:00
A22: 2019-09-19 | B22: To | H22: 00:00:00 | J22: =ColTime(T.!$J$3,T.!$L$3,D22,E22) -> 00:00:00 | L22: =ColTime(TIME(T.!$J$4,0,0),TIME(T.!$L$4,0,0),D22,E22) -> 00:00:00 | S22: =CHOOSE(WEEKDAY(A22,2),norm!C$1,norm!C$2,norm!C$3,norm!C$4,norm!C$5,norm!C$6,norm!C$7) -> 09:00:00
A23: 2019-09-20 | B23: Fr | H23: 00:00:00 | J23: =ColTime(T.!$J$3,T.!$L$3,D23,E23) -> 00:00:00 | L23: =ColTime(TIME(T.!$J$4,0,0),TIME(T.!$L$4,0,0),D23,E23) -> 00:00:00 | S23: =CHOOSE(WEEKDAY(A23,2),norm!C$1,norm!C$2,norm!C$3,norm!C$4,norm!C$5,norm!C$6,norm!C$7) -> 09:00:00
A24: 2019-09-21 | B24: Lø | H24: 00:00:00 | J24: =ColTime(T.!$J$3,T.!$L$3,D24,E24) -> 00:00:00 | L24: =ColTime(TIME(T.!$J$4,0,0),TIME(T.!$L$4,0,0),D24,E24) -> 00:00:00 | N24: 00:00:00 | S24: =CHOOSE(WEEKDAY(A24,2),norm!C$1,norm!C$2,norm!C$3,norm!C$4,norm!C$5,norm!C$6,norm!C$7) -> 09:00:00
A25: =A24+1 -> 2019-09-22 | B25: =PROPER(TEXT(A25,"ddd")) -> Sø | C25: =HelligdagsNavn(A25,0,0) ->  | H25: 00:00:00 | J25: =ColTime(T.!$J$3,T.!$L$3,D25,E25) -> 00:00:00 | L25: =ColTime(TIME(T.!$J$4,0,0),TIME(T.!$L$4,0,0),D25,E25) -> 00:00:00 | O25: 00:00:00 | S25: =CHOOSE(WEEKDAY(A25,2),norm!C$1,norm!C$2,norm!C$3,norm!C$4,norm!C$5,norm!C$6,norm!C$7) -> 09:00:00
A26: =A25+1 -> 2019-09-23 | B26: =PROPER(TEXT(A26,"ddd")) -> Ma | C26: =HelligdagsNavn(A26,0,0) ->  | H26: 00:00:00 | J26: =ColTime(T.!$J$3,T.!$L$3,D26,E26) -> 00:00:00 | L26: =ColTime(TIME(T.!$J$4,0,0),TIME(T.!$L$4,0,0),D26,E26) -> 00:00:00 | S26: =CHOOSE(WEEKDAY(A26,2),norm!C$1,norm!C$2,norm!C$3,norm!C$4,norm!C$5,norm!C$6,norm!C$7) -> 09:00:00
A27: =A26+1 -> 2019-09-24 | B27: =PROPER(TEXT(A27,"ddd")) -> Ti | H27: 00:00:00 | J27: =ColTime(T.!$J$3,T.!$L$3,D27,E27) -> 00:00:00 | L27: =ColTime(TIME(T.!$J$4,0,0),TIME(T.!$L$4,0,0),D27,E27) -> 00:00:00 | S27: =CHOOSE(WEEKDAY(A27,2),norm!C$1,norm!C$2,norm!C$3,norm!C$4,norm!C$5,norm!C$6,norm!C$7) -> 09:00:00
A28: 2019-09-25 | B28: On | H28: 00:00:00 | J28: =ColTime(T.!$J$3,T.!$L$3,D28,E28) -> 00:00:00 | L28: =ColTime(TIME(T.!$J$4,0,0),TIME(T.!$L$4,0,0),D28,E28) -> 00:00:00 | S28: =CHOOSE(WEEKDAY(A28,2),norm!C$1,norm!C$2,norm!C$3,norm!C$4,norm!C$5,norm!C$6,norm!C$7) -> 09:00:00
A29: 2019-09-26 | B29: To | H29: 00:00:00 | J29: =ColTime(T.!$J$3,T.!$L$3,D29,E29) -> 00:00:00 | L29: =ColTime(TIME(T.!$J$4,0,0),TIME(T.!$L$4,0,0),D29,E29) -> 00:00:00 | S29: =CHOOSE(WEEKDAY(A29,2),norm!C$1,norm!C$2,norm!C$3,norm!C$4,norm!C$5,norm!C$6,norm!C$7) -> 09:00:00
A30: 2019-09-27 | B30: Fr | H30: 00:00:00 | J30: =ColTime(T.!$J$3,T.!$L$3,D30,E30) -> 00:00:00 | L30: =ColTime(TIME(T.!$J$4,0,0),TIME(T.!$L$4,0,0),D30,E30) -> 00:00:00 | S30: =CHOOSE(WEEKDAY(A30,2),norm!C$1,norm!C$2,norm!C$3,norm!C$4,norm!C$5,norm!C$6,norm!C$7) -> 09:00:00
A31: 2019-09-28 | B31: Lø | H31: 00:00:00 | J31: =ColTime(T.!$J$3,T.!$L$3,D31,E31) -> 00:00:00 | L31: =ColTime(TIME(T.!$J$4,0,0),TIME(T.!$L$4,0,0),D31,E31) -> 00:00:00 | N31: 00:00:00 | S31: =CHOOSE(WEEKDAY(A31,2),norm!C$1,norm!C$2,norm!C$3,norm!C$4,norm!C$5,norm!C$6,norm!C$7) -> 09:00:00
A32: =IF(MONTH(A31+1)>MONTH(A31),"",A31+1) -> 2019-09-29 | B32: Sø | C32: =IF(A32="","",HelligdagsNavn(A32,0,0)) ->  | H32: 00:00:00 | J32: =ColTime(T.!$J$3,T.!$L$3,D32,E32) -> 00:00:00 | L32: =ColTime(TIME(T.!$J$4,0,0),TIME(T.!$L$4,0,0),D32,E32) -> 00:00:00 | N32: =IFERROR(IF(WEEKDAY(A32,2)=6,ColTime(TIME(15,0,0),TIME(24,0,0),D32,E32),""),"") ->  | O32: =IFERROR(IF(OR(C32<>"",WEEKDAY(A32,2)=7),ColTime(TIME(0,0,0),TIME(24,0,0),D32,E32),""),"") -> 00:00:00 | S32: =IFERROR(CHOOSE(WEEKDAY(A32,2),norm!C$1,norm!C$2,norm!C$3,norm!C$4,norm!C$5,norm!C$6,norm!C$7),"") -> 09:00:00
A33: =IFERROR(IF(MONTH(A32+1)>MONTH(A32),"",A32+1),"") -> 2019-09-30 | B33: Ma | H33: 00:00:00 | J33: =ColTime(T.!$J$3,T.!$L$3,D33,E33) -> 00:00:00 | L33: =ColTime(TIME(T.!$J$4,0,0),TIME(T.!$L$4,0,0),D33,E33) -> 00:00:00 | N33: =IFERROR(IF(WEEKDAY(A33,2)=6,ColTime(TIME(15,0,0),TIME(24,0,0),D33,E33),""),"") ->  | O33: =IFERROR(IF(OR(C33<>"",WEEKDAY(A33,2)=7),ColTime(TIME(0,0,0),TIME(24,0,0),D33,E33),""),"") ->  | S33: =IFERROR(CHOOSE(WEEKDAY(A33,2),norm!C$1,norm!C$2,norm!C$3,norm!C$4,norm!C$5,norm!C$6,norm!C$7),"") -> 09:00:00
A34: =IFERROR(IF(MONTH(A33+1)>MONTH(A33),"",A33+1),"") ->  | B34: =IFERROR(PROPER(TEXT(A34,"ddd")),"") ->  | C34: =IF(A34="","",HelligdagsNavn(A34,0,0)) ->  | H34: 00:00:00 | J34: =ColTime(T.!$J$3,T.!$L$3,D34,E34) -> 00:00:00 | L34: =ColTime(TIME(T.!$J$4,0,0),TIME(T.!$L$4,0,0),D34,E34) -> 00:00:00 | N34: =IFERROR(IF(WEEKDAY(A34,2)=6,ColTime(TIME(15,0,0),TIME(24,0,0),D34,E34),""),"") ->  | S34: =IFERROR(CHOOSE(WEEKDAY(A34,2),norm!C$1,norm!C$2,norm!C$3,norm!C$4,norm!C$5,norm!C$6,norm!C$7),"") ->  | V34: =IF(D34="","",HOUR(D34)) ->  | W34: =IF(D34="","",MINUTE(D34)) ->  | X34: =IF(D34="","",TIME(HOUR(D34),MINUTE(D34),0)) ->  | Y34: =IF(E34="","",HOUR(E34)) ->  | Z34: =IF(E34="","",MINUTE(E34)) ->  | AA34: =IF(E34="","",TIME(HOUR(E34),MINUTE(E34),0)) -> 
A35: Total timer | G35: =IF(SUM(G9:G34)<>"0",SUM(G4:G34),"") -> 2.447916667 | H35: =IF(SUM(H4:H34)<>"0",SUM(H4:H34),"") -> 0.34375 | I35: =IF(SUM(I4:I34)<>"0",SUM(I4:I34),"") -> 0.02083333333 | J35: =IF(SUM(J4:J34)<>"0",SUM(J4:J34),"") -> 0.2708333333 | L35: =SUM(L4:M34) -> 07:45:00 | N35: =IF(SUM(N4:N34)<>"0",SUM(N4:N34),"") -> 0.2083333333 | O35: =IF(SUM(O4:O34)<>"0",SUM(O4:O34),"") -> 09:00:00 | P35: =SUM(P4:P34) -> 0.1458333333 | Q35: =SUM(Q4:Q34) -> 0
A36: Timer 1/100 | G36: =IF(G35<>"",ROUND(G35*24,2),"") -> 58.75 | H36: =IF(H35<>"",ROUND(H35*24,2),"") -> 8.25 | I36: 0.5 | J36: =IF(J35<>"",ROUND(J35*24,2),"") -> 6.5 | L36: =IF(L35<>"",ROUND(L35*24,2),"") -> 7.75 | N36: =IF(N35<>"",ROUND(N35*24,2),"") -> 5 | O36: 9 | P36: 3.5 | Q36: 0
A37: Satser | G37: =Satser!B7 -> 107.35 | H37: =Satser!B9 -> 36.35 | I37: =Satser!B12 -> 58.1 | J37: =Satser!B17 -> 25.6 | L37: =Satser!B18 -> 34.2 | N37: =Satser!B19 -> 45.1 | O37: =Satser!B20 -> 50.6
G38: =IF(G35<>"",G36*G37,"") -> 6306.8125 | H38: =IF(H35<>"",H36*H37,"") -> 299.8875 | I38: 29.05 | J38: =IF(J35<>"",J36*J37,"") -> 166.4 | L38: =IF(L35<>"",L36*L36,"") -> 60.0625 | N38: =IF(N35<>"",N36*N37,"") -> 225.5 | O38: 455.4
A40: Lønart
A41: 3025 | G41: =G35 -> 2.447916667
A42: 3425 | G42: =H35 -> 0.34375
A43: 3428 | G43: =I35 -> 0.02083333333
A44: Timer | G44: =SUM(G41:G43) -> 2.8125 | H44: =IF(G44<>"",ROUND(G44*24,2),"") -> 67.5
H45: =G37*H44 -> 7246.125

Sheet November (hidden)
A1: Løn | B1: 2019-01-01 | I1: Uge : | J1: =IF(A4="","",TRUNC((A4-WEEKDAY(A4,2)-DATE(YEAR(A4+4-WEEKDAY(A4,2)),1,-10))/7)) -> 35 | K1: - | M1: =IF(A25="","",TRUNC((A25-WEEKDAY(A25,2)-DATE(YEAR(A25+4-WEEKDAY(A25,2)),1,-10))/7)) -> 38 | N1: =EOMONTH(A4,0) -> 2019-09-30 | P1: 9 | V1: Time beregning: | AG1: 06:00:00 | AH1: 18:00:00 | AI1: 03:00:00
A2: Lønart | V2: Betalt pause ved vagt over 5 timer | Z2: 00:25:00 | AA2: minutter | AB2: 00:00:00 | AC2: 06:00:00 | AD2: 17:00:00 | AE2: 14:00:00
A3: Dato | B3: Dag | D3: Start | E3: Slut | F3: Pause | G3: Arb. Tid | H3: Overtid 1-3 time | I3: Overtid 4 - time | J3: Forskudt tid alle dage 18-23 | L3: Natarbejde 23-06 | N3: Lørdag tillæg 14 - 24 | O3: Søndag tillæg 00 - 24 | P3: Optjent afspadsering | Q3: Afholdt afspadsering | R3: Syge Timer | S3: norm
A4: =DATE(T.!$B$1,$P$1,1) -> 2019-09-01 | B4: =PROPER(TEXT(A4,"ddd")) -> Sø | C4: =HelligdagsNavn(A4,0,0) ->  | D4: 07:00:00 | E4: 16:00:00 | F4: 00:30:00 | G4: =IF(D4="","",(E4-D4)+(D4>E4)-F4) -> 0.3541666667 | H4: =IF(G4="",0,IF(WEEKDAY(A4,2)=7,0,IF(G4>S4,MIN(G4-S4,$AI$1),0))) -> 00:00:00 | I4: =IF(G4="","",IF(G4>S4+H4,G4-(S4+H4),"")) ->  | J4: =ColTime(T.!$J$3,T.!$L$3,D4,E4) -> 00:00:00 | L4: =ColTime(TIME(T.!$J$4,0,0),TIME(T.!$L$4,0,0),D4,E4) -> 00:00:00 | N4: =IF(WEEKDAY(A4,2)=6,ColTime(TIME(14,0,0),TIME(24,0,0),D4,E4),"") ->  | O4: =IF(OR(C4<>"",WEEKDAY(A4,2)=7),ColTime(TIME(0,0,0),TIME(24,0,0),D4,E4),"") -> 09:00:00 | P4: =IFERROR(H4+I4,"") ->  | S4: =CHOOSE(WEEKDAY(A4,2),norm!C$1,norm!C$2,norm!C$3,norm!C$4,norm!C$5,norm!C$6,norm!C$7) -> 09:00:00 | V4: =IF(D4="","",HOUR(D4)) -> 7 | W4: =IF(D4="","",MINUTE(D4)) -> 0 | X4: =IF(D4="","",TIME(HOUR(D4),MINUTE(D4),0)) -> 07:00:00 | Y4: =IF(E4="","",HOUR(E4)) -> 16 | Z4: =IF(E4="","",MINUTE(E4)) -> 0 | AA4: 02:00:00 | AB4: 09:30:00 | AC4: 11:30:00 | AG4: =MIN(G4-S4,3) -> -0.02083333333
A5: =A4+1 -> 2019-09-02 | B5: =PROPER(TEXT(A5,"ddd")) -> Ma | C5: =HelligdagsNavn(A5,0,0) ->  | D5: 13:45:00 | E5: 21:30:00 | F5: 00:30:00 | G5: =IF(D5="","",(E5-D5)+(D5>E5)-F5) -> 0.3020833333 | H5: =IF(G5="",0,IF(WEEKDAY(A5,2)=7,0,IF(G5>S5,MIN(G5-S5,$AI$1),0))) -> 00:00:00 | I5: =IF(G5="","",IF(G5>S5+H5,G5-(S5+H5),"")) ->  | J5: =ColTime(T.!$J$3,T.!$L$3,D5,E5) -> 03:30:00 | L5: =ColTime(TIME(T.!$J$4,0,0),TIME(T.!$L$4,0,0),D5,E5) -> 00:00:00 | P5: =IFERROR(H5+I5,"") ->  | S5: =CHOOSE(WEEKDAY(A5,2),norm!C$1,norm!C$2,norm!C$3,norm!C$4,norm!C$5,norm!C$6,norm!C$7) -> 09:00:00 | V5: 13 | W5: 45 | X5: 13:45:00 | Y5: 21 | Z5: 30 | AA5: =IF(E5="","",TIME(HOUR(E5),MINUTE(E5),0)) -> 21:30:00 | AH5: Der taste kun i de Gule celler
A6: =A5+1 -> 2019-09-03 | B6: =PROPER(TEXT(A6,"ddd")) -> Ti | D6: 22:00:00 | E6: 05:45:00 | F6: 00:30:00 | G6: 0.3020833333 | H6: 00:00:00 | J6: =ColTime(T.!$J$3,T.!$L$3,D6,E6) -> 01:00:00 | L6: =ColTime(TIME(T.!$J$4,0,0),TIME(T.!$L$4,0,0),D6,E6) -> 06:45:00 | P6: =IFERROR(H6+I6,"") ->  | S6: =CHOOSE(WEEKDAY(A6,2),norm!C$1,norm!C$2,norm!C$3,norm!C$4,norm!C$5,norm!C$6,norm!C$7) -> 09:00:00 | V6: 22 | W6: 0 | X6: 22:00:00 | Y6: 5 | Z6: 45 | AA6: 05:45:00
A7: 2019-09-04 | B7: On | D7: 05:00:00 | E7: 16:45:00 | F7: 00:30:00 | G7: 0.46875 | H7: 02:15:00 | J7: =ColTime(T.!$J$3,T.!$L$3,D7,E7) -> 00:00:00 | L7: =ColTime(TIME(T.!$J$4,0,0),TIME(T.!$L$4,0,0),D7,E7) -> 01:00:00 | P7: =IFERROR(H7+I7,"") ->  | S7: =CHOOSE(WEEKDAY(A7,2),norm!C$1,norm!C$2,norm!C$3,norm!C$4,norm!C$5,norm!C$6,norm!C$7) -> 09:00:00 | V7: 5 | W7: 0 | X7: 05:00:00 | Y7: 16 | Z7: 45 | AA7: 16:45:00
A8: 2019-09-05 | B8: To | H8: 00:00:00 | J8: =ColTime(T.!$J$3,T.!$L$3,D8,E8) -> 00:00:00 | L8: =ColTime(TIME(T.!$J$4,0,0),TIME(T.!$L$4,0,0),D8,E8) -> 00:00:00 | P8: =IFERROR(H8+I8,"") ->  | S8: =CHOOSE(WEEKDAY(A8,2),norm!C$1,norm!C$2,norm!C$3,norm!C$4,norm!C$5,norm!C$6,norm!C$7) -> 09:00:00
A9: 2019-09-06 | B9: Fr | D9: 06:00:00 | E9: 19:00:00 | F9: 00:30:00 | G9: 0.5208333333 | H9: 03:00:00 | I9: 00:30:00 | J9: =ColTime(T.!$J$3,T.!$L$3,D9,E9) -> 01:00:00 | L9: =ColTime(TIME(T.!$J$4,0,0),TIME(T.!$L$4,0,0),D9,E9) -> 00:00:00 | O9: =IF(OR(C9<>"",WEEKDAY(A9,2)=7),ColTime(TIME(0,0,0),TIME(24,0,0),D9,E9),"") ->  | P9: =IFERROR(H9+I9,"") -> 03:30:00 | S9: =CHOOSE(WEEKDAY(A9,2),norm!C$1,norm!C$2,norm!C$3,norm!C$4,norm!C$5,norm!C$6,norm!C$7) -> 09:00:00 | V9: 6 | W9: 0 | X9: 06:00:00 | Y9: 19 | Z9: 0 | AA9: 19:00:00
A10: 2019-09-07 | B10: Lø | D10: 07:00:00 | E10: 19:00:00 | G10: 0.5 | H10: 03:00:00 | J10: =ColTime(T.!$J$3,T.!$L$3,D10,E10) -> 01:00:00 | L10: =ColTime(TIME(T.!$J$4,0,0),TIME(T.!$L$4,0,0),D10,E10) -> 00:00:00 | N10: =IF(WEEKDAY(A10,2)=6,ColTime(TIME(14,0,0),TIME(24,0,0),D10,E10),"") -> 05:00:00 | O10: =IF(OR(C10<>"",WEEKDAY(A10,2)=7),ColTime(TIME(0,0,0),TIME(24,0,0),D10,E10),"") ->  | S10: =CHOOSE(WEEKDAY(A10,2),norm!C$1,norm!C$2,norm!C$3,norm!C$4,norm!C$5,norm!C$6,norm!C$7) -> 09:00:00 | V10: 7 | W10: 0 | X10: 07:00:00 | Y10: 19 | Z10: 0 | AA10: 19:00:00
A11: =A10+1 -> 2019-09-08 | B11: =PROPER(TEXT(A11,"ddd")) -> Sø | C11: =HelligdagsNavn(A11,0,0) ->  | H11: 00:00:00 | J11: =ColTime(T.!$J$3,T.!$L$3,D11,E11) -> 00:00:00 | L11: =ColTime(TIME(T.!$J$4,0,0),TIME(T.!$L$4,0,0),D11,E11) -> 00:00:00 | N11: =IF(WEEKDAY(A11,2)=6,ColTime(TIME(15,0,0),TIME(24,0,0),D11,E11),"") ->  | O11: 00:00:00 | S11: =CHOOSE(WEEKDAY(A11,2),norm!C$1,norm!C$2,norm!C$3,norm!C$4,norm!C$5,norm!C$6,norm!C$7) -> 09:00:00
A12: =A11+1 -> 2019-09-09 | B12: =PROPER(TEXT(A12,"ddd")) -> Ma | C12: =HelligdagsNavn(A12,0,0) ->  | H12: 00:00:00 | J12: =ColTime(T.!$J$3,T.!$L$3,D12,E12) -> 00:00:00 | L12: =ColTime(TIME(T.!$J$4,0,0),TIME(T.!$L$4,0,0),D12,E12) -> 00:00:00 | S12: =CHOOSE(WEEKDAY(A12,2),norm!C$1,norm!C$2,norm!C$3,norm!C$4,norm!C$5,norm!C$6,norm!C$7) -> 09:00:00
A13: =A12+1 -> 2019-09-10 | B13: =PROPER(TEXT(A13,"ddd")) -> Ti | H13: 00:00:00 | J13: =ColTime(T.!$J$3,T.!$L$3,D13,E13) -> 00:00:00 | L13: =ColTime(TIME(T.!$J$4,0,0),TIME(T.!$L$4,0,0),D13,E13) -> 00:00:00 | S13: =CHOOSE(WEEKDAY(A13,2),norm!C$1,norm!C$2,norm!C$3,norm!C$4,norm!C$5,norm!C$6,norm!C$7) -> 09:00:00
A14: 2019-09-11 | B14: On | H14: 00:00:00 | J14: =ColTime(T.!$J$3,T.!$L$3,D14,E14) -> 00:00:00 | L14: =ColTime(TIME(T.!$J$4,0,0),TIME(T.!$L$4,0,0),D14,E14) -> 00:00:00 | S14: =CHOOSE(WEEKDAY(A14,2),norm!C$1,norm!C$2,norm!C$3,norm!C$4,norm!C$5,norm!C$6,norm!C$7) -> 09:00:00
A15: 2019-09-12 | B15: To | H15: 00:00:00 | J15: =ColTime(T.!$J$3,T.!$L$3,D15,E15) -> 00:00:00 | L15: =ColTime(TIME(T.!$J$4,0,0),TIME(T.!$L$4,0,0),D15,E15) -> 00:00:00 | S15: =CHOOSE(WEEKDAY(A15,2),norm!C$1,norm!C$2,norm!C$3,norm!C$4,norm!C$5,norm!C$6,norm!C$7) -> 09:00:00
A16: 2019-09-13 | B16: Fr | H16: 00:00:00 | J16: =ColTime(T.!$J$3,T.!$L$3,D16,E16) -> 00:00:00 | L16: =ColTime(TIME(T.!$J$4,0,0),TIME(T.!$L$4,0,0),D16,E16) -> 00:00:00 | S16: =CHOOSE(WEEKDAY(A16,2),norm!C$1,norm!C$2,norm!C$3,norm!C$4,norm!C$5,norm!C$6,norm!C$7) -> 09:00:00
A17: 2019-09-14 | B17: Lø | H17: 00:00:00 | J17: =ColTime(T.!$J$3,T.!$L$3,D17,E17) -> 00:00:00 | L17: =ColTime(TIME(T.!$J$4,0,0),TIME(T.!$L$4,0,0),D17,E17) -> 00:00:00 | N17: 00:00:00 | S17: =CHOOSE(WEEKDAY(A17,2),norm!C$1,norm!C$2,norm!C$3,norm!C$4,norm!C$5,norm!C$6,norm!C$7) -> 09:00:00
A18: =A17+1 -> 2019-09-15 | B18: =PROPER(TEXT(A18,"ddd")) -> Sø | C18: =HelligdagsNavn(A18,0,0) ->  | H18: 00:00:00 | J18: =ColTime(T.!$J$3,T.!$L$3,D18,E18) -> 00:00:00 | L18: =ColTime(TIME(T.!$J$4,0,0),TIME(T.!$L$4,0,0),D18,E18) -> 00:00:00 | O18: 00:00:00 | S18: =CHOOSE(WEEKDAY(A18,2),norm!C$1,norm!C$2,norm!C$3,norm!C$4,norm!C$5,norm!C$6,norm!C$7) -> 09:00:00
A19: =A18+1 -> 2019-09-16 | B19: =PROPER(TEXT(A19,"ddd")) -> Ma | C19: =HelligdagsNavn(A19,0,0) ->  | H19: 00:00:00 | J19: =ColTime(T.!$J$3,T.!$L$3,D19,E19) -> 00:00:00 | L19: =ColTime(TIME(T.!$J$4,0,0),TIME(T.!$L$4,0,0),D19,E19) -> 00:00:00 | S19: =CHOOSE(WEEKDAY(A19,2),norm!C$1,norm!C$2,norm!C$3,norm!C$4,norm!C$5,norm!C$6,norm!C$7) -> 09:00:00
A20: =A19+1 -> 2019-09-17 | B20: =PROPER(TEXT(A20,"ddd")) -> Ti | H20: 00:00:00 | J20: =ColTime(T.!$J$3,T.!$L$3,D20,E20) -> 00:00:00 | L20: =ColTime(TIME(T.!$J$4,0,0),TIME(T.!$L$4,0,0),D20,E20) -> 00:00:00 | S20: =CHOOSE(WEEKDAY(A20,2),norm!C$1,norm!C$2,norm!C$3,norm!C$4,norm!C$5,norm!C$6,norm!C$7) -> 09:00:00
A21: 2019-09-18 | B21: On | H21: 00:00:00 | J21: =ColTime(T.!$J$3,T.!$L$3,D21,E21) -> 00:00:00 | L21: =ColTime(TIME(T.!$J$4,0,0),TIME(T.!$L$4,0,0),D21,E21) -> 00:00:00 | S21: =CHOOSE(WEEKDAY(A21,2),norm!C$1,norm!C$2,norm!C$3,norm!C$4,norm!C$5,norm!C$6,norm!C$7) -> 09:00:00
A22: 2019-09-19 | B22: To | H22: 00:00:00 | J22: =ColTime(T.!$J$3,T.!$L$3,D22,E22) -> 00:00:00 | L22: =ColTime(TIME(T.!$J$4,0,0),TIME(T.!$L$4,0,0),D22,E22) -> 00:00:00 | S22: =CHOOSE(WEEKDAY(A22,2),norm!C$1,norm!C$2,norm!C$3,norm!C$4,norm!C$5,norm!C$6,norm!C$7) -> 09:00:00
A23: 2019-09-20 | B23: Fr | H23: 00:00:00 | J23: =ColTime(T.!$J$3,T.!$L$3,D23,E23) -> 00:00:00 | L23: =ColTime(TIME(T.!$J$4,0,0),TIME(T.!$L$4,0,0),D23,E23) -> 00:00:00 | S23: =CHOOSE(WEEKDAY(A23,2),norm!C$1,norm!C$2,norm!C$3,norm!C$4,norm!C$5,norm!C$6,norm!C$7) -> 09:00:00
A24: 2019-09-21 | B24: Lø | H24: 00:00:00 | J24: =ColTime(T.!$J$3,T.!$L$3,D24,E24) -> 00:00:00 | L24: =ColTime(TIME(T.!$J$4,0,0),TIME(T.!$L$4,0,0),D24,E24) -> 00:00:00 | N24: 00:00:00 | S24: =CHOOSE(WEEKDAY(A24,2),norm!C$1,norm!C$2,norm!C$3,norm!C$4,norm!C$5,norm!C$6,norm!C$7) -> 09:00:00
A25: =A24+1 -> 2019-09-22 | B25: =PROPER(TEXT(A25,"ddd")) -> Sø | C25: =HelligdagsNavn(A25,0,0) ->  | H25: 00:00:00 | J25: =ColTime(T.!$J$3,T.!$L$3,D25,E25) -> 00:00:00 | L25: =ColTime(TIME(T.!$J$4,0,0),TIME(T.!$L$4,0,0),D25,E25) -> 00:00:00 | O25: 00:00:00 | S25: =CHOOSE(WEEKDAY(A25,2),norm!C$1,norm!C$2,norm!C$3,norm!C$4,norm!C$5,norm!C$6,norm!C$7) -> 09:00:00
A26: =A25+1 -> 2019-09-23 | B26: =PROPER(TEXT(A26,"ddd")) -> Ma | C26: =HelligdagsNavn(A26,0,0) ->  | H26: 00:00:00 | J26: =ColTime(T.!$J$3,T.!$L$3,D26,E26) -> 00:00:00 | L26: =ColTime(TIME(T.!$J$4,0,0),TIME(T.!$L$4,0,0),D26,E26) -> 00:00:00 | S26: =CHOOSE(WEEKDAY(A26,2),norm!C$1,norm!C$2,norm!C$3,norm!C$4,norm!C$5,norm!C$6,norm!C$7) -> 09:00:00
A27: =A26+1 -> 2019-09-24 | B27: =PROPER(TEXT(A27,"ddd")) -> Ti | H27: 00:00:00 | J27: =ColTime(T.!$J$3,T.!$L$3,D27,E27) -> 00:00:00 | L27: =ColTime(TIME(T.!$J$4,0,0),TIME(T.!$L$4,0,0),D27,E27) -> 00:00:00 | S27: =CHOOSE(WEEKDAY(A27,2),norm!C$1,norm!C$2,norm!C$3,norm!C$4,norm!C$5,norm!C$6,norm!C$7) -> 09:00:00
A28: 2019-09-25 | B28: On | H28: 00:00:00 | J28: =ColTime(T.!$J$3,T.!$L$3,D28,E28) -> 00:00:00 | L28: =ColTime(TIME(T.!$J$4,0,0),TIME(T.!$L$4,0,0),D28,E28) -> 00:00:00 | S28: =CHOOSE(WEEKDAY(A28,2),norm!C$1,norm!C$2,norm!C$3,norm!C$4,norm!C$5,norm!C$6,norm!C$7) -> 09:00:00
A29: 2019-09-26 | B29: To | H29: 00:00:00 | J29: =ColTime(T.!$J$3,T.!$L$3,D29,E29) -> 00:00:00 | L29: =ColTime(TIME(T.!$J$4,0,0),TIME(T.!$L$4,0,0),D29,E29) -> 00:00:00 | S29: =CHOOSE(WEEKDAY(A29,2),norm!C$1,norm!C$2,norm!C$3,norm!C$4,norm!C$5,norm!C$6,norm!C$7) -> 09:00:00
A30: 2019-09-27 | B30: Fr | H30: 00:00:00 | J30: =ColTime(T.!$J$3,T.!$L$3,D30,E30) -> 00:00:00 | L30: =ColTime(TIME(T.!$J$4,0,0),TIME(T.!$L$4,0,0),D30,E30) -> 00:00:00 | S30: =CHOOSE(WEEKDAY(A30,2),norm!C$1,norm!C$2,norm!C$3,norm!C$4,norm!C$5,norm!C$6,norm!C$7) -> 09:00:00
A31: 2019-09-28 | B31: Lø | H31: 00:00:00 | J31: =ColTime(T.!$J$3,T.!$L$3,D31,E31) -> 00:00:00 | L31: =ColTime(TIME(T.!$J$4,0,0),TIME(T.!$L$4,0,0),D31,E31) -> 00:00:00 | N31: 00:00:00 | S31: =CHOOSE(WEEKDAY(A31,2),norm!C$1,norm!C$2,norm!C$3,norm!C$4,norm!C$5,norm!C$6,norm!C$7) -> 09:00:00
A32: =IF(MONTH(A31+1)>MONTH(A31),"",A31+1) -> 2019-09-29 | B32: Sø | C32: =IF(A32="","",HelligdagsNavn(A32,0,0)) ->  | H32: 00:00:00 | J32: =ColTime(T.!$J$3,T.!$L$3,D32,E32) -> 00:00:00 | L32: =ColTime(TIME(T.!$J$4,0,0),TIME(T.!$L$4,0,0),D32,E32) -> 00:00:00 | N32: =IFERROR(IF(WEEKDAY(A32,2)=6,ColTime(TIME(15,0,0),TIME(24,0,0),D32,E32),""),"") ->  | O32: =IFERROR(IF(OR(C32<>"",WEEKDAY(A32,2)=7),ColTime(TIME(0,0,0),TIME(24,0,0),D32,E32),""),"") -> 00:00:00 | S32: =IFERROR(CHOOSE(WEEKDAY(A32,2),norm!C$1,norm!C$2,norm!C$3,norm!C$4,norm!C$5,norm!C$6,norm!C$7),"") -> 09:00:00
A33: =IFERROR(IF(MONTH(A32+1)>MONTH(A32),"",A32+1),"") -> 2019-09-30 | B33: Ma | H33: 00:00:00 | J33: =ColTime(T.!$J$3,T.!$L$3,D33,E33) -> 00:00:00 | L33: =ColTime(TIME(T.!$J$4,0,0),TIME(T.!$L$4,0,0),D33,E33) -> 00:00:00 | N33: =IFERROR(IF(WEEKDAY(A33,2)=6,ColTime(TIME(15,0,0),TIME(24,0,0),D33,E33),""),"") ->  | O33: =IFERROR(IF(OR(C33<>"",WEEKDAY(A33,2)=7),ColTime(TIME(0,0,0),TIME(24,0,0),D33,E33),""),"") ->  | S33: =IFERROR(CHOOSE(WEEKDAY(A33,2),norm!C$1,norm!C$2,norm!C$3,norm!C$4,norm!C$5,norm!C$6,norm!C$7),"") -> 09:00:00
A34: =IFERROR(IF(MONTH(A33+1)>MONTH(A33),"",A33+1),"") ->  | B34: =IFERROR(PROPER(TEXT(A34,"ddd")),"") ->  | C34: =IF(A34="","",HelligdagsNavn(A34,0,0)) ->  | H34: 00:00:00 | J34: =ColTime(T.!$J$3,T.!$L$3,D34,E34) -> 00:00:00 | L34: =ColTime(TIME(T.!$J$4,0,0),TIME(T.!$L$4,0,0),D34,E34) -> 00:00:00 | N34: =IFERROR(IF(WEEKDAY(A34,2)=6,ColTime(TIME(15,0,0),TIME(24,0,0),D34,E34),""),"") ->  | S34: =IFERROR(CHOOSE(WEEKDAY(A34,2),norm!C$1,norm!C$2,norm!C$3,norm!C$4,norm!C$5,norm!C$6,norm!C$7),"") ->  | V34: =IF(D34="","",HOUR(D34)) ->  | W34: =IF(D34="","",MINUTE(D34)) ->  | X34: =IF(D34="","",TIME(HOUR(D34),MINUTE(D34),0)) ->  | Y34: =IF(E34="","",HOUR(E34)) ->  | Z34: =IF(E34="","",MINUTE(E34)) ->  | AA34: =IF(E34="","",TIME(HOUR(E34),MINUTE(E34),0)) -> 
A35: Total timer | G35: =IF(SUM(G9:G34)<>"0",SUM(G4:G34),"") -> 2.447916667 | H35: =IF(SUM(H4:H34)<>"0",SUM(H4:H34),"") -> 0.34375 | I35: =IF(SUM(I4:I34)<>"0",SUM(I4:I34),"") -> 0.02083333333 | J35: =IF(SUM(J4:J34)<>"0",SUM(J4:J34),"") -> 0.2708333333 | L35: =SUM(L4:M34) -> 07:45:00 | N35: =IF(SUM(N4:N34)<>"0",SUM(N4:N34),"") -> 0.2083333333 | O35: =IF(SUM(O4:O34)<>"0",SUM(O4:O34),"") -> 09:00:00 | P35: =SUM(P4:P34) -> 0.1458333333 | Q35: =SUM(Q4:Q34) -> 0
A36: Timer 1/100 | G36: =IF(G35<>"",ROUND(G35*24,2),"") -> 58.75 | H36: =IF(H35<>"",ROUND(H35*24,2),"") -> 8.25 | I36: 0.5 | J36: =IF(J35<>"",ROUND(J35*24,2),"") -> 6.5 | L36: =IF(L35<>"",ROUND(L35*24,2),"") -> 7.75 | N36: =IF(N35<>"",ROUND(N35*24,2),"") -> 5 | O36: 9 | P36: 3.5 | Q36: 0
A37: Satser | G37: =Satser!B7 -> 107.35 | H37: =Satser!B9 -> 36.35 | I37: =Satser!B12 -> 58.1 | J37: =Satser!B17 -> 25.6 | L37: =Satser!B18 -> 34.2 | N37: =Satser!B19 -> 45.1 | O37: =Satser!B20 -> 50.6
G38: =IF(G35<>"",G36*G37,"") -> 6306.8125 | H38: =IF(H35<>"",H36*H37,"") -> 299.8875 | I38: 29.05 | J38: =IF(J35<>"",J36*J37,"") -> 166.4 | L38: =IF(L35<>"",L36*L36,"") -> 60.0625 | N38: =IF(N35<>"",N36*N37,"") -> 225.5 | O38: 455.4
A40: Lønart
A41: 3025 | G41: =G35 -> 2.447916667
A42: 3425 | G42: =H35 -> 0.34375
A43: 3428 | G43: =I35 -> 0.02083333333
A44: Timer | G44: =SUM(G41:G43) -> 2.8125 | H44: =IF(G44<>"",ROUND(G44*24,2),"") -> 67.5
H45: =G37*H44 -> 7246.125

Sheet December (hidden)
A1: Løn | B1: 2019-01-01 | I1: Uge : | J1: =IF(A4="","",TRUNC((A4-WEEKDAY(A4,2)-DATE(YEAR(A4+4-WEEKDAY(A4,2)),1,-10))/7)) -> 35 | K1: - | M1: =IF(A25="","",TRUNC((A25-WEEKDAY(A25,2)-DATE(YEAR(A25+4-WEEKDAY(A25,2)),1,-10))/7)) -> 38 | N1: =EOMONTH(A4,0) -> 2019-09-30 | P1: 9 | V1: Time beregning: | AG1: 06:00:00 | AH1: 18:00:00 | AI1: 03:00:00
A2: Lønart | V2: Betalt pause ved vagt over 5 timer | Z2: 00:25:00 | AA2: minutter | AB2: 00:00:00 | AC2: 06:00:00 | AD2: 17:00:00 | AE2: 14:00:00
A3: Dato | B3: Dag | D3: Start | E3: Slut | F3: Pause | G3: Arb. Tid | H3: Overtid 1-3 time | I3: Overtid 4 - time | J3: Forskudt tid alle dage 18-23 | L3: Natarbejde 23-06 | N3: Lørdag tillæg 14 - 24 | O3: Søndag tillæg 00 - 24 | P3: Optjent afspadsering | Q3: Afholdt afspadsering | R3: Syge Timer | S3: norm
A4: =DATE(T.!$B$1,$P$1,1) -> 2019-09-01 | B4: =PROPER(TEXT(A4,"ddd")) -> Sø | C4: =HelligdagsNavn(A4,0,0) ->  | D4: 07:00:00 | E4: 16:00:00 | F4: 00:30:00 | G4: =IF(D4="","",(E4-D4)+(D4>E4)-F4) -> 0.3541666667 | H4: =IF(G4="",0,IF(WEEKDAY(A4,2)=7,0,IF(G4>S4,MIN(G4-S4,$AI$1),0))) -> 00:00:00 | I4: =IF(G4="","",IF(G4>S4+H4,G4-(S4+H4),"")) ->  | J4: =ColTime(T.!$J$3,T.!$L$3,D4,E4) -> 00:00:00 | L4: =ColTime(TIME(T.!$J$4,0,0),TIME(T.!$L$4,0,0),D4,E4) -> 00:00:00 | N4: =IF(WEEKDAY(A4,2)=6,ColTime(TIME(14,0,0),TIME(24,0,0),D4,E4),"") ->  | O4: =IF(OR(C4<>"",WEEKDAY(A4,2)=7),ColTime(TIME(0,0,0),TIME(24,0,0),D4,E4),"") -> 09:00:00 | P4: =IFERROR(H4+I4,"") ->  | S4: =CHOOSE(WEEKDAY(A4,2),norm!C$1,norm!C$2,norm!C$3,norm!C$4,norm!C$5,norm!C$6,norm!C$7) -> 09:00:00 | V4: =IF(D4="","",HOUR(D4)) -> 7 | W4: =IF(D4="","",MINUTE(D4)) -> 0 | X4: =IF(D4="","",TIME(HOUR(D4),MINUTE(D4),0)) -> 07:00:00 | Y4: =IF(E4="","",HOUR(E4)) -> 16 | Z4: =IF(E4="","",MINUTE(E4)) -> 0 | AA4: 02:00:00 | AB4: 09:30:00 | AC4: 11:30:00 | AG4: =MIN(G4-S4,3) -> -0.02083333333
A5: =A4+1 -> 2019-09-02 | B5: =PROPER(TEXT(A5,"ddd")) -> Ma | C5: =HelligdagsNavn(A5,0,0) ->  | D5: 13:45:00 | E5: 21:30:00 | F5: 00:30:00 | G5: =IF(D5="","",(E5-D5)+(D5>E5)-F5) -> 0.3020833333 | H5: =IF(G5="",0,IF(WEEKDAY(A5,2)=7,0,IF(G5>S5,MIN(G5-S5,$AI$1),0))) -> 00:00:00 | I5: =IF(G5="","",IF(G5>S5+H5,G5-(S5+H5),"")) ->  | J5: =ColTime(T.!$J$3,T.!$L$3,D5,E5) -> 03:30:00 | L5: =ColTime(TIME(T.!$J$4,0,0),TIME(T.!$L$4,0,0),D5,E5) -> 00:00:00 | P5: =IFERROR(H5+I5,"") ->  | S5: =CHOOSE(WEEKDAY(A5,2),norm!C$1,norm!C$2,norm!C$3,norm!C$4,norm!C$5,norm!C$6,norm!C$7) -> 09:00:00 | V5: 13 | W5: 45 | X5: 13:45:00 | Y5: 21 | Z5: 30 | AA5: =IF(E5="","",TIME(HOUR(E5),MINUTE(E5),0)) -> 21:30:00 | AH5: Der taste kun i de Gule celler
A6: =A5+1 -> 2019-09-03 | B6: =PROPER(TEXT(A6,"ddd")) -> Ti | D6: 22:00:00 | E6: 05:45:00 | F6: 00:30:00 | G6: 0.3020833333 | H6: 00:00:00 | J6: =ColTime(T.!$J$3,T.!$L$3,D6,E6) -> 01:00:00 | L6: =ColTime(TIME(T.!$J$4,0,0),TIME(T.!$L$4,0,0),D6,E6) -> 06:45:00 | P6: =IFERROR(H6+I6,"") ->  | S6: =CHOOSE(WEEKDAY(A6,2),norm!C$1,norm!C$2,norm!C$3,norm!C$4,norm!C$5,norm!C$6,norm!C$7) -> 09:00:00 | V6: 22 | W6: 0 | X6: 22:00:00 | Y6: 5 | Z6: 45 | AA6: 05:45:00
A7: 2019-09-04 | B7: On | D7: 05:00:00 | E7: 16:45:00 | F7: 00:30:00 | G7: 0.46875 | H7: 02:15:00 | J7: =ColTime(T.!$J$3,T.!$L$3,D7,E7) -> 00:00:00 | L7: =ColTime(TIME(T.!$J$4,0,0),TIME(T.!$L$4,0,0),D7,E7) -> 01:00:00 | P7: =IFERROR(H7+I7,"") ->  | S7: =CHOOSE(WEEKDAY(A7,2),norm!C$1,norm!C$2,norm!C$3,norm!C$4,norm!C$5,norm!C$6,norm!C$7) -> 09:00:00 | V7: 5 | W7: 0 | X7: 05:00:00 | Y7: 16 | Z7: 45 | AA7: 16:45:00
A8: 2019-09-05 | B8: To | H8: 00:00:00 | J8: =ColTime(T.!$J$3,T.!$L$3,D8,E8) -> 00:00:00 | L8: =ColTime(TIME(T.!$J$4,0,0),TIME(T.!$L$4,0,0),D8,E8) -> 00:00:00 | P8: =IFERROR(H8+I8,"") ->  | S8: =CHOOSE(WEEKDAY(A8,2),norm!C$1,norm!C$2,norm!C$3,norm!C$4,norm!C$5,norm!C$6,norm!C$7) -> 09:00:00
A9: 2019-09-06 | B9: Fr | D9: 06:00:00 | E9: 19:00:00 | F9: 00:30:00 | G9: 0.5208333333 | H9: 03:00:00 | I9: 00:30:00 | J9: =ColTime(T.!$J$3,T.!$L$3,D9,E9) -> 01:00:00 | L9: =ColTime(TIME(T.!$J$4,0,0),TIME(T.!$L$4,0,0),D9,E9) -> 00:00:00 | O9: =IF(OR(C9<>"",WEEKDAY(A9,2)=7),ColTime(TIME(0,0,0),TIME(24,0,0),D9,E9),"") ->  | P9: =IFERROR(H9+I9,"") -> 03:30:00 | S9: =CHOOSE(WEEKDAY(A9,2),norm!C$1,norm!C$2,norm!C$3,norm!C$4,norm!C$5,norm!C$6,norm!C$7) -> 09:00:00 | V9: 6 | W9: 0 | X9: 06:00:00 | Y9: 19 | Z9: 0 | AA9: 19:00:00
A10: 2019-09-07 | B10: Lø | D10: 07:00:00 | E10: 19:00:00 | G10: 0.5 | H10: 03:00:00 | J10: =ColTime(T.!$J$3,T.!$L$3,D10,E10) -> 01:00:00 | L10: =ColTime(TIME(T.!$J$4,0,0),TIME(T.!$L$4,0,0),D10,E10) -> 00:00:00 | N10: =IF(WEEKDAY(A10,2)=6,ColTime(TIME(14,0,0),TIME(24,0,0),D10,E10),"") -> 05:00:00 | O10: =IF(OR(C10<>"",WEEKDAY(A10,2)=7),ColTime(TIME(0,0,0),TIME(24,0,0),D10,E10),"") ->  | S10: =CHOOSE(WEEKDAY(A10,2),norm!C$1,norm!C$2,norm!C$3,norm!C$4,norm!C$5,norm!C$6,norm!C$7) -> 09:00:00 | V10: 7 | W10: 0 | X10: 07:00:00 | Y10: 19 | Z10: 0 | AA10: 19:00:00
A11: =A10+1 -> 2019-09-08 | B11: =PROPER(TEXT(A11,"ddd")) -> Sø | C11: =HelligdagsNavn(A11,0,0) ->  | H11: 00:00:00 | J11: =ColTime(T.!$J$3,T.!$L$3,D11,E11) -> 00:00:00 | L11: =ColTime(TIME(T.!$J$4,0,0),TIME(T.!$L$4,0,0),D11,E11) -> 00:00:00 | N11: =IF(WEEKDAY(A11,2)=6,ColTime(TIME(15,0,0),TIME(24,0,0),D11,E11),"") ->  | O11: 00:00:00 | S11: =CHOOSE(WEEKDAY(A11,2),norm!C$1,norm!C$2,norm!C$3,norm!C$4,norm!C$5,norm!C$6,norm!C$7) -> 09:00:00
A12: =A11+1 -> 2019-09-09 | B12: =PROPER(TEXT(A12,"ddd")) -> Ma | C12: =HelligdagsNavn(A12,0,0) ->  | H12: 00:00:00 | J12: =ColTime(T.!$J$3,T.!$L$3,D12,E12) -> 00:00:00 | L12: =ColTime(TIME(T.!$J$4,0,0),TIME(T.!$L$4,0,0),D12,E12) -> 00:00:00 | S12: =CHOOSE(WEEKDAY(A12,2),norm!C$1,norm!C$2,norm!C$3,norm!C$4,norm!C$5,norm!C$6,norm!C$7) -> 09:00:00
A13: =A12+1 -> 2019-09-10 | B13: =PROPER(TEXT(A13,"ddd")) -> Ti | H13: 00:00:00 | J13: =ColTime(T.!$J$3,T.!$L$3,D13,E13) -> 00:00:00 | L13: =ColTime(TIME(T.!$J$4,0,0),TIME(T.!$L$4,0,0),D13,E13) -> 00:00:00 | S13: =CHOOSE(WEEKDAY(A13,2),norm!C$1,norm!C$2,norm!C$3,norm!C$4,norm!C$5,norm!C$6,norm!C$7) -> 09:00:00
A14: 2019-09-11 | B14: On | H14: 00:00:00 | J14: =ColTime(T.!$J$3,T.!$L$3,D14,E14) -> 00:00:00 | L14: =ColTime(TIME(T.!$J$4,0,0),TIME(T.!$L$4,0,0),D14,E14) -> 00:00:00 | S14: =CHOOSE(WEEKDAY(A14,2),norm!C$1,norm!C$2,norm!C$3,norm!C$4,norm!C$5,norm!C$6,norm!C$7) -> 09:00:00
A15: 2019-09-12 | B15: To | H15: 00:00:00 | J15: =ColTime(T.!$J$3,T.!$L$3,D15,E15) -> 00:00:00 | L15: =ColTime(TIME(T.!$J$4,0,0),TIME(T.!$L$4,0,0),D15,E15) -> 00:00:00 | S15: =CHOOSE(WEEKDAY(A15,2),norm!C$1,norm!C$2,norm!C$3,norm!C$4,norm!C$5,norm!C$6,norm!C$7) -> 09:00:00
A16: 2019-09-13 | B16: Fr | H16: 00:00:00 | J16: =ColTime(T.!$J$3,T.!$L$3,D16,E16) -> 00:00:00 | L16: =ColTime(TIME(T.!$J$4,0,0),TIME(T.!$L$4,0,0),D16,E16) -> 00:00:00 | S16: =CHOOSE(WEEKDAY(A16,2),norm!C$1,norm!C$2,norm!C$3,norm!C$4,norm!C$5,norm!C$6,norm!C$7) -> 09:00:00
A17: 2019-09-14 | B17: Lø | H17: 00:00:00 | J17: =ColTime(T.!$J$3,T.!$L$3,D17,E17) -> 00:00:00 | L17: =ColTime(TIME(T.!$J$4,0,0),TIME(T.!$L$4,0,0),D17,E17) -> 00:00:00 | N17: 00:00:00 | S17: =CHOOSE(WEEKDAY(A17,2),norm!C$1,norm!C$2,norm!C$3,norm!C$4,norm!C$5,norm!C$6,norm!C$7) -> 09:00:00
A18: =A17+1 -> 2019-09-15 | B18: =PROPER(TEXT(A18,"ddd")) -> Sø | C18: =HelligdagsNavn(A18,0,0) ->  | H18: 00:00:00 | J18: =ColTime(T.!$J$3,T.!$L$3,D18,E18) -> 00:00:00 | L18: =ColTime(TIME(T.!$J$4,0,0),TIME(T.!$L$4,0,0),D18,E18) -> 00:00:00 | O18: 00:00:00 | S18: =CHOOSE(WEEKDAY(A18,2),norm!C$1,norm!C$2,norm!C$3,norm!C$4,norm!C$5,norm!C$6,norm!C$7) -> 09:00:00
A19: =A18+1 -> 2019-09-16 | B19: =PROPER(TEXT(A19,"ddd")) -> Ma | C19: =HelligdagsNavn(A19,0,0) ->  | H19: 00:00:00 | J19: =ColTime(T.!$J$3,T.!$L$3,D19,E19) -> 00:00:00 | L19: =ColTime(TIME(T.!$J$4,0,0),TIME(T.!$L$4,0,0),D19,E19) -> 00:00:00 | S19: =CHOOSE(WEEKDAY(A19,2),norm!C$1,norm!C$2,norm!C$3,norm!C$4,norm!C$5,norm!C$6,norm!C$7) -> 09:00:00
A20: =A19+1 -> 2019-09-17 | B20: =PROPER(TEXT(A20,"ddd")) -> Ti | H20: 00:00:00 | J20: =ColTime(T.!$J$3,T.!$L$3,D20,E20) -> 00:00:00 | L20: =ColTime(TIME(T.!$J$4,0,0),TIME(T.!$L$4,0,0),D20,E20) -> 00:00:00 | S20: =CHOOSE(WEEKDAY(A20,2),norm!C$1,norm!C$2,norm!C$3,norm!C$4,norm!C$5,norm!C$6,norm!C$7) -> 09:00:00
A21: 2019-09-18 | B21: On | H21: 00:00:00 | J21: =ColTime(T.!$J$3,T.!$L$3,D21,E21) -> 00:00:00 | L21: =ColTime(TIME(T.!$J$4,0,0),TIME(T.!$L$4,0,0),D21,E21) -> 00:00:00 | S21: =CHOOSE(WEEKDAY(A21,2),norm!C$1,norm!C$2,norm!C$3,norm!C$4,norm!C$5,norm!C$6,norm!C$7) -> 09:00:00
A22: 2019-09-19 | B22: To | H22: 00:00:00 | J22: =ColTime(T.!$J$3,T.!$L$3,D22,E22) -> 00:00:00 | L22: =ColTime(TIME(T.!$J$4,0,0),TIME(T.!$L$4,0,0),D22,E22) -> 00:00:00 | S22: =CHOOSE(WEEKDAY(A22,2),norm!C$1,norm!C$2,norm!C$3,norm!C$4,norm!C$5,norm!C$6,norm!C$7) -> 09:00:00
A23: 2019-09-20 | B23: Fr | H23: 00:00:00 | J23: =ColTime(T.!$J$3,T.!$L$3,D23,E23) -> 00:00:00 | L23: =ColTime(TIME(T.!$J$4,0,0),TIME(T.!$L$4,0,0),D23,E23) -> 00:00:00 | S23: =CHOOSE(WEEKDAY(A23,2),norm!C$1,norm!C$2,norm!C$3,norm!C$4,norm!C$5,norm!C$6,norm!C$7) -> 09:00:00
A24: 2019-09-21 | B24: Lø | H24: 00:00:00 | J24: =ColTime(T.!$J$3,T.!$L$3,D24,E24) -> 00:00:00 | L24: =ColTime(TIME(T.!$J$4,0,0),TIME(T.!$L$4,0,0),D24,E24) -> 00:00:00 | N24: 00:00:00 | S24: =CHOOSE(WEEKDAY(A24,2),norm!C$1,norm!C$2,norm!C$3,norm!C$4,norm!C$5,norm!C$6,norm!C$7) -> 09:00:00
A25: =A24+1 -> 2019-09-22 | B25: =PROPER(TEXT(A25,"ddd")) -> Sø | C25: =HelligdagsNavn(A25,0,0) ->  | H25: 00:00:00 | J25: =ColTime(T.!$J$3,T.!$L$3,D25,E25) -> 00:00:00 | L25: =ColTime(TIME(T.!$J$4,0,0),TIME(T.!$L$4,0,0),D25,E25) -> 00:00:00 | O25: 00:00:00 | S25: =CHOOSE(WEEKDAY(A25,2),norm!C$1,norm!C$2,norm!C$3,norm!C$4,norm!C$5,norm!C$6,norm!C$7) -> 09:00:00
A26: =A25+1 -> 2019-09-23 | B26: =PROPER(TEXT(A26,"ddd")) -> Ma | C26: =HelligdagsNavn(A26,0,0) ->  | H26: 00:00:00 | J26: =ColTime(T.!$J$3,T.!$L$3,D26,E26) -> 00:00:00 | L26: =ColTime(TIME(T.!$J$4,0,0),TIME(T.!$L$4,0,0),D26,E26) -> 00:00:00 | S26: =CHOOSE(WEEKDAY(A26,2),norm!C$1,norm!C$2,norm!C$3,norm!C$4,norm!C$5,norm!C$6,norm!C$7) -> 09:00:00
A27: =A26+1 -> 2019-09-24 | B27: =PROPER(TEXT(A27,"ddd")) -> Ti | H27: 00:00:00 | J27: =ColTime(T.!$J$3,T.!$L$3,D27,E27) -> 00:00:00 | L27: =ColTime(TIME(T.!$J$4,0,0),TIME(T.!$L$4,0,0),D27,E27) -> 00:00:00 | S27: =CHOOSE(WEEKDAY(A27,2),norm!C$1,norm!C$2,norm!C$3,norm!C$4,norm!C$5,norm!C$6,norm!C$7) -> 09:00:00
A28: 2019-09-25 | B28: On | H28: 00:00:00 | J28: =ColTime(T.!$J$3,T.!$L$3,D28,E28) -> 00:00:00 | L28: =ColTime(TIME(T.!$J$4,0,0),TIME(T.!$L$4,0,0),D28,E28) -> 00:00:00 | S28: =CHOOSE(WEEKDAY(A28,2),norm!C$1,norm!C$2,norm!C$3,norm!C$4,norm!C$5,norm!C$6,norm!C$7) -> 09:00:00
A29: 2019-09-26 | B29: To | H29: 00:00:00 | J29: =ColTime(T.!$J$3,T.!$L$3,D29,E29) -> 00:00:00 | L29: =ColTime(TIME(T.!$J$4,0,0),TIME(T.!$L$4,0,0),D29,E29) -> 00:00:00 | S29: =CHOOSE(WEEKDAY(A29,2),norm!C$1,norm!C$2,norm!C$3,norm!C$4,norm!C$5,norm!C$6,norm!C$7) -> 09:00:00
A30: 2019-09-27 | B30: Fr | H30: 00:00:00 | J30: =ColTime(T.!$J$3,T.!$L$3,D30,E30) -> 00:00:00 | L30: =ColTime(TIME(T.!$J$4,0,0),TIME(T.!$L$4,0,0),D30,E30) -> 00:00:00 | S30: =CHOOSE(WEEKDAY(A30,2),norm!C$1,norm!C$2,norm!C$3,norm!C$4,norm!C$5,norm!C$6,norm!C$7) -> 09:00:00
A31: 2019-09-28 | B31: Lø | H31: 00:00:00 | J31: =ColTime(T.!$J$3,T.!$L$3,D31,E31) -> 00:00:00 | L31: =ColTime(TIME(T.!$J$4,0,0),TIME(T.!$L$4,0,0),D31,E31) -> 00:00:00 | N31: 00:00:00 | S31: =CHOOSE(WEEKDAY(A31,2),norm!C$1,norm!C$2,norm!C$3,norm!C$4,norm!C$5,norm!C$6,norm!C$7) -> 09:00:00
A32: =IF(MONTH(A31+1)>MONTH(A31),"",A31+1) -> 2019-09-29 | B32: Sø | C32: =IF(A32="","",HelligdagsNavn(A32,0,0)) ->  | H32: 00:00:00 | J32: =ColTime(T.!$J$3,T.!$L$3,D32,E32) -> 00:00:00 | L32: =ColTime(TIME(T.!$J$4,0,0),TIME(T.!$L$4,0,0),D32,E32) -> 00:00:00 | N32: =IFERROR(IF(WEEKDAY(A32,2)=6,ColTime(TIME(15,0,0),TIME(24,0,0),D32,E32),""),"") ->  | O32: =IFERROR(IF(OR(C32<>"",WEEKDAY(A32,2)=7),ColTime(TIME(0,0,0),TIME(24,0,0),D32,E32),""),"") -> 00:00:00 | S32: =IFERROR(CHOOSE(WEEKDAY(A32,2),norm!C$1,norm!C$2,norm!C$3,norm!C$4,norm!C$5,norm!C$6,norm!C$7),"") -> 09:00:00
A33: =IFERROR(IF(MONTH(A32+1)>MONTH(A32),"",A32+1),"") -> 2019-09-30 | B33: Ma | H33: 00:00:00 | J33: =ColTime(T.!$J$3,T.!$L$3,D33,E33) -> 00:00:00 | L33: =ColTime(TIME(T.!$J$4,0,0),TIME(T.!$L$4,0,0),D33,E33) -> 00:00:00 | N33: =IFERROR(IF(WEEKDAY(A33,2)=6,ColTime(TIME(15,0,0),TIME(24,0,0),D33,E33),""),"") ->  | O33: =IFERROR(IF(OR(C33<>"",WEEKDAY(A33,2)=7),ColTime(TIME(0,0,0),TIME(24,0,0),D33,E33),""),"") ->  | S33: =IFERROR(CHOOSE(WEEKDAY(A33,2),norm!C$1,norm!C$2,norm!C$3,norm!C$4,norm!C$5,norm!C$6,norm!C$7),"") -> 09:00:00
A34: =IFERROR(IF(MONTH(A33+1)>MONTH(A33),"",A33+1),"") ->  | B34: =IFERROR(PROPER(TEXT(A34,"ddd")),"") ->  | C34: =IF(A34="","",HelligdagsNavn(A34,0,0)) ->  | H34: 00:00:00 | J34: =ColTime(T.!$J$3,T.!$L$3,D34,E34) -> 00:00:00 | L34: =ColTime(TIME(T.!$J$4,0,0),TIME(T.!$L$4,0,0),D34,E34) -> 00:00:00 | N34: =IFERROR(IF(WEEKDAY(A34,2)=6,ColTime(TIME(15,0,0),TIME(24,0,0),D34,E34),""),"") ->  | S34: =IFERROR(CHOOSE(WEEKDAY(A34,2),norm!C$1,norm!C$2,norm!C$3,norm!C$4,norm!C$5,norm!C$6,norm!C$7),"") ->  | V34: =IF(D34="","",HOUR(D34)) ->  | W34: =IF(D34="","",MINUTE(D34)) ->  | X34: =IF(D34="","",TIME(HOUR(D34),MINUTE(D34),0)) ->  | Y34: =IF(E34="","",HOUR(E34)) ->  | Z34: =IF(E34="","",MINUTE(E34)) ->  | AA34: =IF(E34="","",TIME(HOUR(E34),MINUTE(E34),0)) -> 
A35: Total timer | G35: =IF(SUM(G9:G34)<>"0",SUM(G4:G34),"") -> 2.447916667 | H35: =IF(SUM(H4:H34)<>"0",SUM(H4:H34),"") -> 0.34375 | I35: =IF(SUM(I4:I34)<>"0",SUM(I4:I34),"") -> 0.02083333333 | J35: =IF(SUM(J4:J34)<>"0",SUM(J4:J34),"") -> 0.2708333333 | L35: =SUM(L4:M34) -> 07:45:00 | N35: =IF(SUM(N4:N34)<>"0",SUM(N4:N34),"") -> 0.2083333333 | O35: =IF(SUM(O4:O34)<>"0",SUM(O4:O34),"") -> 09:00:00 | P35: =SUM(P4:P34) -> 0.1458333333 | Q35: =SUM(Q4:Q34) -> 0
A36: Timer 1/100 | G36: =IF(G35<>"",ROUND(G35*24,2),"") -> 58.75 | H36: =IF(H35<>"",ROUND(H35*24,2),"") -> 8.25 | I36: 0.5 | J36: =IF(J35<>"",ROUND(J35*24,2),"") -> 6.5 | L36: =IF(L35<>"",ROUND(L35*24,2),"") -> 7.75 | N36: =IF(N35<>"",ROUND(N35*24,2),"") -> 5 | O36: 9 | P36: 3.5 | Q36: 0
A37: Satser | G37: =Satser!B7 -> 107.35 | H37: =Satser!B9 -> 36.35 | I37: =Satser!B12 -> 58.1 | J37: =Satser!B17 -> 25.6 | L37: =Satser!B18 -> 34.2 | N37: =Satser!B19 -> 45.1 | O37: =Satser!B20 -> 50.6
G38: =IF(G35<>"",G36*G37,"") -> 6306.8125 | H38: =IF(H35<>"",H36*H37,"") -> 299.8875 | I38: 29.05 | J38: =IF(J35<>"",J36*J37,"") -> 166.4 | L38: =IF(L35<>"",L36*L36,"") -> 60.0625 | N38: =IF(N35<>"",N36*N37,"") -> 225.5 | O38: 455.4
A40: Lønart
A41: 3025 | G41: =G35 -> 2.447916667
A42: 3425 | G42: =H35 -> 0.34375
A43: 3428 | G43: =I35 -> 0.02083333333
A44: Timer | G44: =SUM(G41:G43) -> 2.8125 | H44: =IF(G44<>"",ROUND(G44*24,2),"") -> 67.5
H45: =G37*H44 -> 7246.125

Sheet Satser
A3: Timeløn | B3: 114.42
A4: specielt tillæg
A5: Chauffør tillæg
A7: Samlet timeløn | B7: 107.35 | D7: 108.7
A9: overtidstillæg 50% | B9: 36.35 | D9: 36.5
A10: pr. time | B10: =B7+B9 -> 143.7
A12: overtidstillæg 100% | B12: 58.1 | D12: 58.9
A13: pr. time | B13: =B12+B7 -> 165.45
B15: 108.65 | D15: 110.15
A17: Aftentillæg | B17: 25.6 | F17: Arbejde mellem 18:00 og 23:00
A18: Nattillæg | B18: 34.2 | F18: Arbejde mellem 23:00 og 06:00
A19: Lørdags tillæg | B19: 45.1 | F19: Lørdag mellem 15:00 og 24:00
A20: Søndags tillæg | B20: 50.6 | F20: Søndagstillæg
B26: 07:24:00

Sheet norm
A1: mandag | B1: 9 | C1: 09:00:00 | E1: 03:00:00
A2: tirsdag | B2: 9 | C2: 09:00:00 | E2: 10:30:00
A3: onsdag | B3: 9 | C3: 09:00:00
A4: torsdag | B4: 9 | C4: 09:00:00
A5: fredag | B5: 9 | C5: 09:00:00
A6: lørdag | B6: 9 | C6: 09:00:00
A7: søndag | B7: 9 | C7: 09:00:00

Sheet T.
A1: Årstal: | B1: 2019
B2: Timeløn | E2: Start | F2: Slut
A3: Normal løn | B3: 114.42 | E3: 06:00:00 | F3: 18:00:00 | H3: Aften tillæg | I3: Fra kl. | J3: 18:00:00 | K3: Til kl. | L3: 23:00:00
A4: Aftentillæg | B4: 25.6 | E4: 18:00:00 | F4: 23:00:00 | H4: Nat tillæg | I4: Fra kl. | J4: 23 | K4: Til kl. | L4: 6
A5: Nattillæg | B5: 34.2 | E5: 23:00:00 | F5: 06:00:00 | H5: Lørdags tillæg | I5: Fra kl. | J5: 14 | K5: Til kl. | L5: 24
A6: Lørdagstillæg | B6: 45.1 | E6: 14:00:00 | F6: 1 | H6: Søn og helligdags tillæg | I6: Fra kl. | J6: 0 | K6: Til kl. | L6: 24
A7: Søn- og helligdage | B7: 50.6 | E7: 00:00:00 | F7: 23:59:00

Sheet Ark2

Sheet Ark3
